Workbook

Sheet Contents

Sheet QA
D3: Introduction
D4: My Experience - Making Mistakes; trying different things
D5: History of Models
D6: Example of Models
D8: Old Models - Nuclear
D9: FAST Model
D10: Monster Model
D11: Solar Model
D12: Tax Equity Model
D13: Port Model
D14: Biomas Model
D16: 3. You can use a power sector model as reference (Production curves and tax equity are common points we need folks to be familiar with so should serve as a good example)
D18: 6. After the intro session on Tuesday, you will circulate an evaluation test/homework exercise for the juniors to take on and send it back to you. We should give people only a few days to do so – suggest to have the deadline be COB Friday, Dec 23. We will use this test to assess skills, ensure they’re paying attention and compare with what we do at the end, in order to monitor learning throughout the course
D22: Objective for the course is to build a model from scratch. Ultimate taks to be mastered are: 1. building of CFADS, 2. setting of debt structure with multiple sources (loan + bonds) on a pari-passu basis, 3. calculating equity returns, 4 and preparing a model for syndication purposes - 5. running sensitivities on a set debt amount (no longer sizing for changes made to CFADS and investors play around with model).
D25: Power sector projects are a good example, given complexity added by production curves for sizing methodology and introduction of tax equity. MUFG’s credit policy on sizing debt for power is applying a grid of DSCRs based on different P-curves. For example, on a solar project, on each quarter we constrain P99 CFADS at a 1.00x and p50 at a 1.35x, and take the minimum resulting constrained CFADS.
C28: FALSE | D28: a. Structuring a project with evaluation of debt size from either P90, P50, or maximum debt to capital.
C29: FALSE | D29: b. Inclusion of DSRA changes in the DSCR for debt sculpting.
C30: FALSE | D30: c. Resolving circular references without copy and paste macros or the iteration button.
C31: FALSE | D31: d. Effective control pages where you can evaluate changes to inputs and properly include the inputs in relevant input sheets.
C32: FALSE | D32: e. Debt sculpting of multiple debt issues where cash flow is affected by interest expenses and income taxes.
C33: FALSE | D33: f. Computing debt repayment where the debt size is given, and sculpting is used to obtain a minimum DSCR with varying DSCR’s.
C34: FALSE | D34: g. Modelling development fees in the context of multiple investors.
C35: FALSE | D35: h. Creating data tables using VBA to resolve problems with data tables
C36: FALSE | D36: i. Developing timelines that can easily convert monthly to semi-annual or quarterly and creating semi-annual sums in monthly models without SUM(OFFSET).
C37: FALSE | D37: j. Incorporating options for DSRA funding with an L/C or with cash funding.
C38: FALSE | D38: k. Adding re-financing assumptions to a model where the debt size depends on taxes which are also affected by interest on the re-financing.
C39: FALSE | D39: l. Including actual data in models for the construction period and operating period.
C40: FALSE | D40: m. Developing alternative ways to model working capital requirements in the initial operating periods of a project.
C41: FALSE | D41: n. Evaluating different structures for equity investors including cash flow flips and incentives to developers.
C42: FALSE | D42: o. Modelling the effect of financing in different currencies including translation adjustments on the balance sheet.
C43: FALSE | D43: p. Modelling alternative cash sweep structures.
C44: FALSE | D44: q. Modelling mini-perms and different re-financing assumptions.
C45: FALSE | D45: r. Modelling equity bridge loans and the associated circular references along with options to include or not include interest during construction in the borrowing base.
C46: FALSE | D46: s. Valuation of projects with changing buyer target IRR’s and computation of holding period returns.
C47: FALSE | D47: t. Evaluation of NOL time limits on the calculation of income tax.
C48: FALSE | D48: u. Accumulation of projects into a portfolio or a fund
C49: FALSE | D49: v. Evaluation of defaults and the risks of senior and subordinated debt
C50: FALSE | D50: w. Computation of the LLCR with different debt issues using the prospective debt IRR
C55: High | D55: Enter 1 for High Impact
C56: Medium | D56: Enter 2 for Medium Impact
C57: Low | D57: enter 3 for Low Impact
C59: ="Matters arising from review of Financial Model Filename: “"&MID(CELL("filename",A54),FIND("[",CELL("filename",A54))+1,FIND("]", CELL("filename",A54))-FIND("[",CELL("filename",A54))-1)&" ”" -> Matters arising from review of Financial Model Filename: “Exercise for Class Blank.xlsm ”
C60: No | D60: Impact level | E60: Category | F60: Reference | G60: Issue/Question
C61: 1
C62: 2
C63: 3
C64: 4
C65: 5
C66: 6
C67: 7
C68: 8
C69: 9
C70: 10
C71: 11
C72: 12
C73: 13

Sheet Summary
A1: =RIGHT(CELL("filename",A1),LEN(CELL("filename",A1))- SEARCH("]",CELL("filename",A1))) -> Summary
B2: Modelling Exercise | M2: TRUE | N2: comments
E5: Key Dates | F5: Start | I5: Return Metrics
E6: Financial Close Date | F6: ='InputC - Operations'!J7 -> 2023-01-01 | I6: Equity IRR -- All Equity | J6: ='Taxes Waterfall Returns'!H99 -> 0
E7: Commercial Operation | F7: ='InputC - Operations'!J9 -> 00:00:00
E8: Operations Period End | F8: ='InputC - Operations'!J11 -> 00:00:00 | I8: Post-Tax Project IRR | J8: ='Taxes Waterfall Returns'!H84 -> 
I9: Pre-Tax Project IRR | J9: ='Taxes Waterfall Returns'!H93 -> 0
E10: Key Metrics - Tariff & Financial Score
E11: PPA Rate (USD/MWH) | F11: ='InputC - Operations'!E33 -> 33 | I11: Debt Metrics
E12: PPA Inflation | F12: ='InputC - Operations'!E28 -> 2 | I12: DSCR Output from Sculpting | J12: ='Taxes Waterfall Returns'!H104 -> 0
I13: LLCR | J13: ='Taxes Waterfall Returns'!H117 -> 0
E14: Capacity (MWp) | F14: ='InputC - Operations'!E17 -> 0 | I14: PLCR | J14: ='Taxes Waterfall Returns'!H112 -> 
F16: kWh/kWp | G16: Cap Fac | I16: Average Debt Life | J16: ='Taxes Waterfall Returns'!H123 -> 0
E17: Annual Yield - P50 | F17: ='InputC - Operations'!J22 -> 1980 | G17: =F17/8760 -> 0.2260273973
E18: Annual Yield - P90 | F18: ='InputC - Operations'!K22 -> 0 | G18: =F18/8760 -> 0
F20: USD | G20: USD/kW
E21: EPC Cost | F21: ='Project Finance Semi-Annual'!I21 -> 0 | G21: ='InputC - Operations'!E52 -> 900
E22: Total Plant Cost | F22: ='Project Finance Semi-Annual'!I28 -> 3600000 | G22: =F32/F14/1000 -> 
E25: Uses of Funds
E26: Total EPC Cost Incl. Contingency | F26: ='Project Finance Semi-Annual'!I70 -> 0
E27: ='Project Finance Semi-Annual'!D72 -> Interest During Construction - Senior | F27: ='Project Finance Semi-Annual'!I71 -> 3600000
E28: ='Project Finance Semi-Annual'!D73 -> Up-Front Fee | F28: ='Project Finance Semi-Annual'!I72 -> 0
E29: ='Project Finance Semi-Annual'!D74 -> Commitment Fee | F29: ='Project Finance Semi-Annual'!I73 -> 0
E30: ='Project Finance Semi-Annual'!D75 -> Interest During Construction - SHL | F30: ='Project Finance Semi-Annual'!I74 -> 0
E31: ='Project Finance Semi-Annual'!D76 -> DSRA | F31: ='Project Finance Semi-Annual'!I75 -> 0
E32: Total | F32: =SUM(F26:F31) -> 3600000
E34: Sources of funds
E35: Senior Debt | F35: ='Project Finance Semi-Annual'!I80 -> 0 | G35: ='Project Finance Semi-Annual'!J80 -> 0
E36: Equity | F36: ='Project Finance Semi-Annual'!I81 -> 3600000 | G36: ='Project Finance Semi-Annual'!J81 -> 1
E37: Total Senior Debt | F37: =SUM(F35:F36) -> 3600000 | G37: =SUM(G35:G36) -> 1
E52: =TRANSPOSE('InputC-Financing'!J3:R3) -> Base Case
E53: P90 Debt Size Case
E54: P99 Debt Size Case
E55: Maximum Debt to Capital Case
E56: Stress Case for Credit
E57: P90 and No Inflation
E58: Higher EPC
E59: Lower PPA
E60: Shareholder Loan

Sheet InputC - Operations
E1: Project IRR
E2: Equity IRR
D3: Active Scenario | E3: 2 | J3: ='InputC-Financing'!J3 -> Base Case | K3: ='InputC-Financing'!K3 -> P90 Debt Size Case | L3: ='InputC-Financing'!L3 -> P99 Debt Size Case | M3: ='InputC-Financing'!M3 -> Maximum Debt to Capital Case | N3: ='InputC-Financing'!N3 -> Stress Case for Credit | O3: ='InputC-Financing'!O3 -> P90 and No Inflation | P3: ='InputC-Financing'!P3 -> Higher EPC | Q3: ='InputC-Financing'!Q3 -> Lower PPA | R3: ='InputC-Financing'!R3 -> Shareholder Loan
J4: 1 | K4: 2 | L4: 6 | M4: 3 | N4: 4 | O4: 5 | P4: 7 | Q4: 8 | R4: 9
B6: Model Timeline
D7: Financial Close Date | F7: Date | J7: 2023-01-01 | K7: 2023-01-01 | L7: 2023-01-01 | M7: 2023-01-01 | N7: 2023-01-01 | O7: 2023-01-01 | P7: 2023-01-01 | Q7: 2023-01-01 | R7: 2023-01-01
D8: Construction Period | F8: Month | J8: 11 | K8: =J8 -> 11 | L8: 14 | M8: 16 | N8: 14 | O8: 14 | P8: 14 | Q8: 14 | R8: 14
D9: Commerical Operation Date | F9: Date
D10: Operating Life | F10: Years | J10: 35 | K10: 35 | L10: 35 | M10: 30 | N10: 35 | O10: 35 | P10: 35 | Q10: 35 | R10: 35
D11: Period After Operating Life | F11: Date
D13: Months in Period for Semi-Annual | F13: Months | J13: 6 | K13: 6 | L13: 6 | M13: 6 | N13: 6 | O13: 6 | P13: 6 | Q13: 6 | R13: 6
D14: Months in Period pre-COD | F14: Months | J14: 1 | K14: 1 | L14: 1 | M14: 1 | N14: 1 | O14: 1 | P14: 1 | Q14: 1 | R14: 1
B16: Solar Plant Details
D17: Capacity of Plant | F17: MWp | J17: 132 | K17: 132 | L17: 132 | M17: 132 | N17: 132 | O17: 132 | P17: 132 | Q17: 132 | R17: 132
D19: Standard Deviation in Resoruce | J19: 0.1 | K19: 0.1 | L19: 0.1 | M19: 0.1 | N19: 0.1 | O19: 0.1 | P19: 0.1 | Q19: 0.1 | R19: 0.1
D20: Complement of P Value | J20: 0.5 | K20: 0.1 | L20: 0.01 | M20: 0.1 | N20: 0.05 | O20: 0.1 | P20: 0.1 | Q20: 0.1 | R20: 0.1
D22: Annual Yield | E22: =INDEX(J22:R22,case_active) -> 0 | F22: MWh/MWp | J22: 1980
D24: Plant Availability Code | E24: =INDEX(J24:R24,case_active) -> 0.99 | F24: % | G24: Energy generated to the grid | J24: 0.99 | K24: 0.99 | L24: 0.99 | M24: 0.99 | N24: 0.99 | O24: 0.99 | P24: 0.99 | Q24: 0.99 | R24: 0.99
D25: Degradation Code to InputS | F25: Code | G25: Solar Cells Degradation | J25: 1 | K25: 2 | L25: 3 | M25: 3 | N25: 1 | O25: 1 | P25: 1 | Q25: 1 | R25: 1
B27: Revenues
D28: PPA Inflation Rate Code to InputS | E28: =INDEX(J28:R28,case_active) -> 2 | F28: % p.a. | G28: On costs and Revenues | J28: 2 | K28: 2 | L28: 3 | M28: 2 | N28: 3 | O28: 2 | P28: 1 | Q28: 2 | R28: 2
D30: PPA Term Contract | E30: =INDEX(J30:R30,case_active) -> 35 | F30: Years | J30: =J10 -> 35 | K30: 35 | L30: 35 | M30: 30 | N30: 35 | O30: 35 | P30: 35 | Q30: 35 | R30: 35
D31: Offtake Amount | E31: =INDEX(J31:R31,case_active) -> 1 | F31: % | G31: Of Total Production | J31: 1 | K31: 1 | L31: 1 | M31: 1 | N31: 1 | O31: 1 | P31: 1 | Q31: 1 | R31: 1
D33: Power Price for Offtake (USD 2021) | E33: =INDEX(J33:R33,case_active) -> 33 | F33: USD/MWh | G33: Real Terms - 2021 | J33: 33 | K33: 33 | L33: 33 | M33: 33 | N33: 33 | O33: 30 | P33: 33 | Q33: 33 | R33: 33
D34: Apply PPA Inflation | E34: =INDEX(J34:R34,case_active) -> 1 | F34: Flag | G34: 1 =Yes; 0 - No | J34: 1 | K34: 1 | L34: 0 | M34: 1 | N34: 0 | O34: 0 | P34: 0 | Q34: 0 | R34: 0
D35: Start Date for PPA Inflation | E35: =INDEX(J35:R35,case_active) -> 00:00:00 | F35: Date | J35: =J9 -> 00:00:00 | K35: =K9 -> 00:00:00 | L35: =L9 -> 00:00:00 | M35: 00:00:00 | N35: 00:00:00 | O35: 00:00:00 | P35: 00:00:00 | Q35: 00:00:00 | R35: 00:00:00
D37: Revenues Arrear Collection | E37: =INDEX(J37:R37,case_active) -> 2 | F37: Months | G37: Received in Arrears | J37: 2 | K37: 2 | L37: 2 | M37: 2 | N37: 2 | O37: 2 | P37: 2 | Q37: 2 | R37: 2
B39: Operation and Maintenance
D40: Land Lease | E40: =INDEX(J40:R40,case_active) -> 300000 | F40: USD/Yr | G40: Payable Through Construction | J40: 300000 | K40: 300000 | L40: 300000 | M40: 300000 | N40: 300000 | O40: 300000 | P40: 300000 | Q40: 300000 | R40: 300000
D41: Land Lease Infaltion Start | E41: =INDEX(J41:R41,case_active) -> 2023-01-01 | J41: 2023-01-01 | K41: 2023-01-01 | L41: 2023-01-01 | M41: 2023-01-01 | N41: 2023-01-01 | O41: 2023-01-01 | P41: 2023-01-01 | Q41: 2023-01-01 | R41: 2023-01-01
D43: O&M per Year without Inflation - Initial Contract | E43: =INDEX(J43:R43,case_active) -> 9.5 | F43: USD/kWp-yr | G43: Starting OpEx | J43: 9.5 | K43: 9.5 | L43: 9.5 | M43: 9.5 | N43: 9.5 | O43: 9.5 | P43: 9.5 | Q43: 9.5 | R43: 9.5
D44: Initial Period End for O&M | E44: =INDEX(J44:R44,case_active) -> 5 | F44: Years | J44: 5 | K44: 5 | L44: 5 | M44: 5 | N44: 5 | O44: 5 | P44: 5 | Q44: 5 | R44: 5
D45: O&M per Year after Initial Period | E45: =INDEX(J45:R45,case_active) -> 8 | F45: USD/kWp | G45: Due to Economies of Scale | J45: 7.5 | K45: 8 | L45: 8 | M45: 7.5 | N45: 7.5 | O45: 7.5 | P45: 7.5 | Q45: 7.5 | R45: 7.5
D47: Insurance During Operation | E47: =INDEX(J47:R47,case_active) -> 4 | F47: USD/kWp-yr | G47: Yearly Estimate | J47: 4 | K47: 4 | L47: 4 | M47: 4 | N47: 4 | O47: 4 | P47: 4 | Q47: 4 | R47: 4
D49: Operation and Maintenance Payment Arrears | E49: =INDEX(J49:R49,case_active) -> 2 | F49: Months | J49: 2 | K49: 2 | L49: 2 | M49: 2 | N49: 2 | O49: 2 | P49: 2 | Q49: 2 | R49: 2
B51: Capital Expenditures | G51: Paid at Financial Close
D52: EPC Contractor | E52: =INDEX(J52:R52,case_active) -> 900 | F52: USD/kWp | J52: 900 | K52: 900 | L52: 900 | M52: 900 | N52: 900 | O52: 900 | P52: 1200 | Q52: 1000 | R52: 1000
D53: S-curve Code to InputS | E53: =INDEX(J53:R53,case_active) -> 2 | F53: Code | G53: Detailed in Input-S | J53: 1 | K53: 2 | L53: 3 | M53: 3 | N53: 1 | O53: 1 | P53: 1 | Q53: 1 | R53: 1
D54: Developer Fee | E54: =INDEX(J54:R54,case_active) -> 3600000 | F54: USD | G54: Paid to Developer | J54: 3600000 | K54: 3600000 | L54: 3600000 | M54: 3600000 | N54: 3600000 | O54: 3600000 | P54: 3600000 | Q54: 3600000 | R54: 3600000
D55: Period of Developer Bonus | E55: =INDEX(J55:R55,case_active) -> 00:00:00 | F55: Date | G55: Assume paid in Fin Close (up-front) | J55: =J7 -> 2023-01-01 | K55: =K9 -> 00:00:00 | L55: =L7 -> 2023-01-01 | M55: =M7 -> 2023-01-01 | N55: 2023-01-01 | O55: 2023-01-01 | P55: 2023-01-01 | Q55: 2023-01-01 | R55: 2023-01-01
B57: Taxes and Capital Allowance
D58: Bonus Depreciation | F58: Percent | J58: 0 | K58: 0 | L58: 0 | M58: 0 | N58: 0 | O58: 0 | P58: 0 | Q58: 0 | R58: 0
D59: Depreciaion Life | E59: =INDEX(J59:R59,case_active) -> 5 | F59: Years | J59: 5 | K59: 5 | L59: 5 | M59: 5 | N59: 5 | O59: 5 | P59: 5 | Q59: 5 | R59: 5
D60: Declining Balance Factor | E60: =INDEX(J60:R60,case_active) -> 2 | F60: Factor | J60: 2 | K60: 2 | L60: 2 | M60: 2 | N60: 2 | O60: 2 | P60: 2 | Q60: 2 | R60: 2
D61: Tax Depreciation Code Number | E61: =INDEX(J61:R61,case_active) -> 1 | F61: Code | J61: 1 | K61: 1 | L61: 2 | M61: 1 | N61: 1 | O61: 2 | P61: 2 | Q61: 2 | R61: 2
D62: Tax Rate | E62: =INDEX(J62:R62,case_active) -> 0.21 | F62: % | J62: 0.21 | K62: 0.21 | L62: 0.21 | M62: 0.21 | N62: 0.21 | O62: 0.21 | P62: 0.21 | Q62: 0.21 | R62: 0.21
B64: Constants
D65: Months in Year | E65: 12 | F65: Months
D66: Inflation Days in Year | E66: 365 | F66: Days Inflation
D67: Semi-Annual Periods | E67: 2 | F67: Semi
D68: Days in 360 Year | E68: 360 | F68: Year 360

Sheet InputC-Financing
E1: Project IRR
E2: Equity IRR
B3: Active Scenario | E3: =case_active -> 2 | J3: Base Case | K3: P90 Debt Size Case | L3: P99 Debt Size Case | M3: Maximum Debt to Capital Case | N3: Stress Case for Credit | O3: P90 and No Inflation | P3: Higher EPC | Q3: Lower PPA | R3: Shareholder Loan
J4: 1 | K4: 2 | L4: 6 | M4: 3 | N4: 4 | O4: 5 | P4: 7 | Q4: 8 | R4: 9
B5: Dates
C6: Financial Close | E6: =INDEX(J6:R6,case_active) -> 2023-01-01 | J6: ='InputC - Operations'!J7 -> 2023-01-01 | K6: ='InputC - Operations'!K7 -> 2023-01-01 | L6: ='InputC - Operations'!L7 -> 2023-01-01 | M6: ='InputC - Operations'!M7 -> 2023-01-01 | N6: ='InputC - Operations'!N7 -> 2023-01-01 | O6: ='InputC - Operations'!O7 -> 2023-01-01 | P6: ='InputC - Operations'!P7 -> 2023-01-01 | Q6: ='InputC - Operations'!Q7 -> 2023-01-01 | R6: ='InputC - Operations'!R7 -> 2023-01-01
C7: Commercial Operation | E7: =INDEX(J7:R7,case_active) -> 00:00:00 | J7: ='InputC - Operations'!J9 -> 00:00:00 | K7: ='InputC - Operations'!K9 -> 00:00:00 | L7: ='InputC - Operations'!L9 -> 00:00:00 | M7: ='InputC - Operations'!M9 -> 00:00:00 | N7: ='InputC - Operations'!N9 -> 00:00:00 | O7: ='InputC - Operations'!O9 -> 00:00:00 | P7: ='InputC - Operations'!P9 -> 00:00:00 | Q7: ='InputC - Operations'!Q9 -> 00:00:00 | R7: ='InputC - Operations'!R9 -> 00:00:00
B9: Funding
C10: First Repayment Month
C11: Second Repayment Month
C13: Senior Debt
D14: Maximum Debt Sizing | E14: =INDEX(J14:R14,case_active) -> 0.8 | F14: % | G14: Tested through DSCR | J14: 0.8 | K14: 0.8 | L14: 0.8 | M14: 0.8 | N14: 0.8 | O14: 0.8 | P14: 0.8 | Q14: 0.8 | R14: 0.8
D15: DSCR Target | E15: =INDEX(J15:R15,case_active) -> 1.3 | J15: 1.3 | K15: 1.3 | L15: 1.3 | M15: 1.3 | N15: 1.3 | O15: 1.3 | P15: 1.3 | Q15: 1.3 | R15: 1.3
D16: Fix Debt Size | E16: =INDEX(J16:R16,case_active) -> FALSE | F16: Flag | J16: TRUE | K16: FALSE | L16: FALSE | M16: TRUE | N16: TRUE | O16: TRUE | P16: TRUE | Q16: TRUE | R16: TRUE
D18: Equity Up-Front Funding | E18: =INDEX(J18:R18,case_active) -> TRUE | F18: Flag | J18: TRUE | K18: TRUE | L18: TRUE | M18: TRUE | N18: TRUE | O18: TRUE | P18: TRUE | Q18: TRUE | R18: TRUE
D19: Pro-Rata Funding | E19: =INDEX(J19:R19,case_active) -> 0 | F19: Flag
D21: Debt Tenor | E21: =INDEX(J21:R21,case_active) -> 25 | F21: Years | J21: 25 | K21: 25 | L21: 25 | M21: 25 | N21: 25 | O21: 25 | P21: 25 | Q21: 25 | R21: 25
D22: End of Debt Repayment | E22: =INDEX(J22:R22,case_active) -> 1924-12-31 | J22: =EDATE(J7,J21*Months) -> 1924-12-31 | K22: 1924-12-31 | L22: 1924-12-31 | M22: 1924-12-31 | N22: 1924-12-31 | O22: 1924-12-31 | P22: 1924-12-31 | Q22: 1924-12-31 | R22: 1924-12-31
D23: Interest and Principal Repayments Timing | E23: =INDEX(J23:R23,case_active) -> 6 | F23: Months | G23: Every 6 Months | J23: 6 | K23: 6 | L23: 6 | M23: 6 | N23: 6 | O23: 6 | P23: 6 | Q23: 6 | R23: 6
D25: Base Interest Rate | E25: =INDEX(J25:R25,case_active) -> 0.035 | F25: % p.a. | G25: Annual Rate | J25: 0.035 | K25: 0.035 | L25: 0.035 | M25: 0.035 | N25: 0.035 | O25: 0.035 | P25: 0.035 | Q25: 0.035 | R25: 0.035
D26: Code for Credit Spread | E26: =INDEX(J26:R26,E3) -> 2 | F26: Code | J26: 2 | K26: 2 | L26: 1 | M26: 1 | N26: 3 | O26: 2 | P26: 1 | Q26: 1 | R26: 1
D27: Up-Front Fee | E27: =INDEX(J27:R27,case_active) -> 0.01 | F27: % | J27: 0.01 | K27: 0.01 | L27: 0.01 | M27: 0.01 | N27: 0.01 | O27: 0.01 | P27: 0.01 | Q27: 0.01 | R27: 0.01
D28: Commitment Fee | E28: =INDEX(J28:R28,case_active) -> 0.007 | F28: % p.a. | J28: 0.007 | K28: 0.007 | L28: 0.007 | M28: 0.007 | N28: 0.007 | O28: 0.007 | P28: 0.007 | Q28: 0.007 | R28: 0.007
D30: DSRA Months | E30: =INDEX(J30:R30,case_active) -> 6 | F30: Months | J30: 6 | K30: 6 | L30: 6 | M30: 6 | N30: 6 | O30: 6 | P30: 6 | Q30: 6 | R30: 6
C32: Fixed Items Copied
D33: Fixed Debt Size
D34: IDC Fixed
D35: Up-front Fee Fixed
D36: Commitment Fee Fixed
D37: DSRA Fixed
C39: Shareholder Loan
D40: Shareholder Loan as Percent of Equity | E40: =INDEX(J40:R40,case_active) -> 0 | J40: 0 | K40: 0 | L40: 0 | M40: 0 | N40: 0 | O40: 0 | P40: 0 | Q40: 0 | R40: 0.9
D41: Shareholder Loan Interest Rate | E41: =INDEX(J41:R41,case_active) -> 0.08 | F41: % p.a. | J41: 0.08 | K41: 0.08 | L41: 0.08 | M41: 0.08 | N41: 0.08 | O41: 0.08 | P41: 0.08 | Q41: 0.08 | R41: 0.08
D42: Capitalise Interest on Shareholder Loan | E42: =INDEX(J42:R42,case_active) -> 0 | F42: 1=yes;0=no
D43: Allow SHL Interest Deduction in Taxes | E43: =INDEX(J43:R43,case_active) -> 0 | F43: 1=yes;0=no
D44: Cash Flow Sweep Percent | E44: =INDEX(J44:R44,case_active) -> 0 | F44: % | J44: =J40 -> 0 | K44: =K40 -> 0 | L44: =L40 -> 0 | M44: =M40 -> 0 | N44: =N40 -> 0 | O44: 0 | P44: 0 | Q44: 0 | R44: 0.9

Sheet InputS
A1: =RIGHT(CELL("filename",A1),LEN(CELL("filename",A1))- SEARCH("]",CELL("filename",A1))) -> InputS
B3: EPC - S-Curve
D5: Construction Period | G5: Month | L5: 1 | M5: 2 | N5: 3 | O5: 4 | P5: 5 | Q5: 6 | R5: 7 | S5: 8 | T5: 9 | U5: 10 | V5: 11 | W5: 12 | X5: 13 | Y5: 14 | Z5: 15 | AA5: 16 | AB5: 17 | AC5: 18 | AD5: 19 | AE5: 20 | AF5: 21 | AG5: 22 | AH5: 23 | AI5: 24
D6: Construction Year | G6: Year | L6: =ROUNDUP(L5/12,0) -> 1 | M6: =ROUNDUP(M5/12,0) -> 1 | N6: 1 | O6: 1 | P6: 1 | Q6: 1 | R6: 1 | S6: 1 | T6: 1 | U6: 1 | V6: 1 | W6: 1 | X6: 2 | Y6: 2 | Z6: 2 | AA6: 2 | AB6: 2 | AC6: 2 | AD6: 2 | AE6: 2 | AF6: 2 | AG6: 2 | AH6: 2 | AI6: 2
D7: Construction Months | G7: Flag | H7: ='InputC - Operations'!E8 -> 0 | L7: =L5<=$H$7 -> FALSE | M7: FALSE | N7: FALSE | O7: FALSE | P7: FALSE | Q7: FALSE | R7: FALSE | S7: FALSE | T7: FALSE | U7: FALSE | V7: FALSE | W7: FALSE | X7: FALSE | Y7: FALSE | Z7: FALSE | AA7: FALSE | AB7: FALSE | AC7: FALSE | AD7: FALSE | AE7: FALSE | AF7: FALSE | AG7: FALSE | AH7: FALSE | AI7: FALSE
B9: S-Curve - Scenario Number | G9: Code | H9: ='InputC - Operations'!E53 -> 2
D11: S-Curve - Base Case | F11: 1 | G11: % | H11: =SUM(L11:BI11) -> 1 | L11: 0.25 | M11: 0.1 | N11: 0 | O11: 0.15 | P11: 0.2 | Q11: 0.3 | R11: 0 | S11: 0 | T11: 0 | U11: 0 | V11: 0 | W11: 0 | X11: 0 | Y11: 0 | Z11: 0 | AA11: 0 | AB11: 0 | AC11: 0 | AD11: 0 | AE11: 0 | AF11: 0 | AG11: 0 | AH11: 0 | AI11: 0
D12: S-Curve - Flat Case | F12: 2 | G12: % | H12: =SUM(L12:BI12) ->  | L12: =1/$H$7*L7 -> 
D13: S-Curve - Front Loaded Case | F13: 3 | G13: % | H13: =SUM(L13:BI13) -> 1 | L13: 0.4 | M13: 0.3 | N13: 0.2 | O13: 0.1 | P13: 0 | Q13: 0 | R13: 0 | S13: 0 | T13: 0 | U13: 0 | V13: 0 | W13: 0 | X13: 0 | Y13: 0 | Z13: 0 | AA13: 0 | AB13: 0 | AC13: 0 | AD13: 0 | AE13: 0 | AF13: 0 | AG13: 0 | AH13: 0 | AI13: 0
D15: =INDEX(D11:D13,$H$9) -> S-Curve - Flat Case | G15: % | H15: =SUM(I15:XFD15) ->  | L15: =INDEX(L11:L14,$H$9) ->  | M15: =INDEX(M11:M14,$H$9) ->  | N15: =INDEX(N11:N14,$H$9) ->  | O15: =INDEX(O11:O14,$H$9) ->  | P15: =INDEX(P11:P14,$H$9) ->  | Q15: =INDEX(Q11:Q14,$H$9) ->  | R15: =INDEX(R11:R14,$H$9) ->  | S15: =INDEX(S11:S14,$H$9) ->  | T15: =INDEX(T11:T14,$H$9) ->  | U15: =INDEX(U11:U14,$H$9) ->  | V15: =INDEX(V11:V14,$H$9) ->  | W15: =INDEX(W11:W14,$H$9) ->  | X15: =INDEX(X11:X14,$H$9) ->  | Y15: =INDEX(Y11:Y14,$H$9) ->  | Z15: =INDEX(Z11:Z14,$H$9) ->  | AA15: =INDEX(AA11:AA14,$H$9) ->  | AB15: =INDEX(AB11:AB14,$H$9) ->  | AC15: =INDEX(AC11:AC14,$H$9) ->  | AD15: =INDEX(AD11:AD14,$H$9) ->  | AE15: =INDEX(AE11:AE14,$H$9) ->  | AF15: =INDEX(AF11:AF14,$H$9) ->  | AG15: =INDEX(AG11:AG14,$H$9) ->  | AH15: =INDEX(AH11:AH14,$H$9) ->  | AI15: =INDEX(AI11:AI14,$H$9) -> 
B17: Solar Seasonality
D18: Month Name | K18: 1 | L18: Jan | M18: Feb | N18: March | O18: April | P18: May | Q18: June | R18: July | S18: August | T18: Sept | U18: October | V18: Nov | W18: Dec
D19: Month Number | G19: Counter | L19: 1 | M19: 2 | N19: 3 | O19: 4 | P19: 5 | Q19: 6 | R19: 7 | S19: 8 | T19: 9 | U19: 10 | V19: 11 | W19: 12
D20: Resource Availability | G20: % | H20: =SUM(L20:W20) -> 1 | L20: 0.06666666667 | M20: 0.06666666667 | N20: 0.08 | O20: 0.085 | P20: 0.09 | Q20: 0.12 | R20: 0.12 | S20: 0.09 | T20: 0.08 | U20: 0.07 | V20: 0.065 | W20: 0.06666666667
B22: General Inflation Rate | G22: Code | H22: ='InputC - Operations'!E53 -> 2
D24: Year | L24: 2021 | M24: 2022 | N24: 2023 | O24: 2024 | P24: 2025 | Q24: 2026 | R24: 2027 | S24: 2028 | T24: 2029
D25: Base Case | F25: 1 | G25: % | L25: 0.015 | M25: 0.04 | N25: 0.035 | O25: 0.03 | P25: 0.03 | Q25: 0.03 | R25: 0.03 | S25: 0.03 | T25: 0.03
D26: High Inflation | F26: 2 | G26: % | L26: 0.015 | M26: 0.04 | N26: 0.04 | O26: 0.04 | P26: 0.04 | Q26: 0.04 | R26: 0.04 | S26: 0.04 | T26: 0.04
D27: Low Inflation | F27: 3 | G27: % | L27: 0.015 | M27: 0.04 | N27: 0.02 | O27: 0.02 | P27: 0.015 | Q27: 0.015 | R27: 0.015 | S27: 0.015 | T27: 0.015
D29: =INDEX(D25:D27,$H$22) -> High Inflation | G29: % | L29: =INDEX(L25:L27,$H$22) -> 0.015 | M29: =INDEX(M25:M27,$H$22) -> 0.04 | N29: =INDEX(N25:N27,$H$22) -> 0.04 | O29: =INDEX(O25:O27,$H$22) -> 0.04 | P29: =INDEX(P25:P27,$H$22) -> 0.04 | Q29: =INDEX(Q25:Q27,$H$22) -> 0.04 | R29: =INDEX(R25:R27,$H$22) -> 0.04 | S29: =INDEX(S25:S27,$H$22) -> 0.04 | T29: =INDEX(T25:T27,$H$22) -> 0.04
B31: Degradation Rate | G31: Code
D33: Age - Annual | G33: Year | K33: 0 | L33: 1 | M33: 2 | N33: 3 | O33: 4 | P33: 5 | Q33: 6 | R33: 7 | S33: 8 | T33: 9 | U33: 10 | V33: 11 | W33: 12
D35: Base Case | F35: 1 | G35: % | L35: 0.0075 | M35: 0.005 | N35: 0.005 | O35: 0.005 | P35: 0.005 | Q35: 0.005 | R35: 0.005 | S35: 0.005 | T35: 0.005 | U35: 0.005 | V35: 0.005 | W35: 0.005
D36: High Degradation | F36: 2 | G36: % | L36: 0.0075 | M36: 0.0075 | N36: 0.0075 | O36: 0.0075 | P36: 0.0075 | Q36: 0.0075 | R36: 0.0075 | S36: 0.0075 | T36: 0.0075 | U36: 0.0075 | V36: 0.0075 | W36: 0.0075
D37: Low Degredation | F37: 3 | G37: % | L37: 0.004 | M37: 0.004 | N37: 0.004 | O37: 0.004 | P37: 0.004 | Q37: 0.004 | R37: 0.004 | S37: 0.004 | T37: 0.004 | U37: 0.004 | V37: 0.004 | W37: 0.004
B41: Depreciaion Rate
D43: Life | G43: Years | H43: ='InputC - Operations'!E59 -> 5
D44: Factor | G44: Factor | H44: ='InputC - Operations'!E60 -> 2
D46: Year | L46: 0 | M46: 1 | N46: 2 | O46: 3 | P46: 4 | Q46: 5 | R46: 6 | S46: 7 | T46: 8 | U46: 9 | V46: 10 | W46: 11 | X46: 12 | Y46: 13 | Z46: 14
D47: Annual Depreciation Rate | G47: % | M47: =IFERROR(VDB(1,0,$H$43,L46,M46,$H$44),0) -> 0.4 | N47: =IFERROR(VDB(1,0,$H$43,M46,N46,$H$44),0) -> 0.24 | O47: 0.144 | P47: 0.108 | Q47: 0.108 | R47: 0 | S47: 0 | T47: 0 | U47: 0 | V47: 0 | W47: 0 | X47: 0 | Y47: 0 | Z47: 0
B49: Margin | G49: Code | H49: ='InputC-Financing'!E26 -> 2
D51: Repayment Period | L51: 0 | M51: 1 | N51: 3 | O51: 5 | P51: 7 | Q51: 10
D53: Credit Spread in Term Sheet | F53: 1 | G53: % | L53: 0.015 | M53: 0.0175 | N53: =M53+0.25% -> 0.02 | O53: =N53+0.25% -> 0.0225 | P53: 0.025 | Q53: =P53 -> 0.025
D54: Flat Credit Spread | F54: 2 | G54: % | L54: =L53 -> 0.015 | M54: =M53 -> 0.0175 | N54: =M54 -> 0.0175 | O54: =N54 -> 0.0175 | P54: 0.0175 | Q54: 0.0175
D55: Upside Credit Spread | F55: 3 | G55: % | L55: =L54 -> 0.015 | M55: =M54 -> 0.0175 | N55: 0.015 | O55: 0.015 | P55: 0.015 | Q55: 0.015
D57: =INDEX(D53:D55,$H$49) -> Flat Credit Spread | G57: % | L57: =INDEX(L53:L55,$H$49) -> 0.015 | M57: =INDEX(M53:M55,$H$49) -> 0.0175 | N57: =INDEX(N53:N55,$H$49) -> 0.0175 | O57: =INDEX(O53:O55,$H$49) -> 0.0175 | P57: =INDEX(P53:P55,$H$49) -> 0.0175 | Q57: =INDEX(Q53:Q55,$H$49) -> 0.0175

Sheet Operation Monthly
A1: =MID(CELL("filename"),FIND("]",CELL("filename"),1)+1,250) -> InputC - Operations
E2: Constant | F2: Constant | G2: Unit
D3: Period Number | G3: Number
D4: Start of Period | E4: ='InputC - Operations'!$E$7 -> 00:00:00 | G4: Date
D5: End of Period | G5: Date | K5: =E4-1 -> -1
D6: Pre-COD Flag | E6: ='InputC - Operations'!$E$9 -> 00:00:00 | G6: Flag
D7: Operations Flag | E7: ='InputC - Operations'!$E$9 -> 00:00:00 | F7: ='InputC - Operations'!$E$11 -> 00:00:00 | G7: Flag
D8: Year | G8: Year | L8: =YEAR(L4) -> 1900 | M8: =YEAR(M4) -> 1900 | N8: 1900 | O8: 1900 | P8: 1900 | Q8: 1900 | R8: 1900 | S8: 1900 | T8: 1900 | U8: 1900 | V8: 1900 | W8: 1900 | X8: 1900 | Y8: 1900 | Z8: 1900 | AA8: 1900 | AB8: 1900 | AC8: 1900 | AD8: 1900 | AE8: 1900 | AF8: 1900 | AG8: 1900 | AH8: 1900 | AI8: 1900 | AJ8: 1900 | AK8: 1900 | AL8: 1900 | AM8: 1900 | AN8: 1900 | AO8: 1900 | AP8: 1900 | AQ8: 1900 | AR8: 1900 | AS8: 1900 | AT8: 1900 | AU8: 1900 | AV8: 1900 | AW8: 1900 | AX8: 1900 | AY8: 1900 | AZ8: 1900 | BA8: 1900 | BB8: 1900 | BC8: 1900 | BD8: 1900 | BE8: 1900 | BF8: 1900 | BG8: 1900 | BH8: 1900 | BI8: 1900 | BJ8: 1900 | BK8: 1900 | BL8: 1900 | BM8: 1900 | BN8: 1900 | BO8: 1900 | BP8: 1900 | BQ8: 1900 | BR8: 1900 | BS8: 1900 | BT8: 1900 | BU8: 1900 | BV8: 1900 | BW8: 1900 | BX8: 1900 | BY8: =YEAR(BY4) -> 1900 | BZ8: 1900 | CA8: 1900 | CB8: 1900 | CC8: 1900 | CD8: 1900 | CE8: 1900 | CF8: 1900 | CG8: 1900 | CH8: 1900 | CI8: 1900 | CJ8: 1900 | CK8: 1900 | CL8: 1900 | CM8: 1900 | CN8: 1900 | CO8: 1900 | CP8: 1900 | CQ8: 1900 | CR8: 1900 | CS8: 1900 | CT8: 1900 | CU8: 1900 | CV8: 1900 | CW8: 1900 | CX8: 1900 | CY8: 1900 | CZ8: 1900 | DA8: 1900 | DB8: 1900 | DC8: 1900 | DD8: 1900 | DE8: 1900 | DF8: 1900 | DG8: 1900 | DH8: 1900 | DI8: 1900 | DJ8: 1900 | DK8: 1900 | DL8: 1900 | DM8: 1900 | DN8: 1900 | DO8: 1900 | DP8: 1900 | DQ8: 1900 | DR8: 1900 | DS8: 1900 | DT8: 1900 | DU8: 1900 | DV8: 1900 | DW8: 1900 | DX8: 1900 | DY8: 1900 | DZ8: 1900 | EA8: 1900 | EB8: 1900 | EC8: 1900 | ED8: 1900 | EE8: 1900 | EF8: 1900 | EG8: 1900 | EH8: 1900 | EI8: 1900 | EJ8: 1900 | EK8: =YEAR(EK4) -> 1900 | EL8: 1900 | EM8: 1900 | EN8: 1900 | EO8: 1900 | EP8: 1900 | EQ8: 1900 | ER8: 1900 | ES8: 1900 | ET8: 1900 | EU8: 1900 | EV8: 1900 | EW8: 1900 | EX8: 1900 | EY8: 1900 | EZ8: 1900 | FA8: 1900 | FB8: 1900 | FC8: 1900 | FD8: 1900 | FE8: 1900 | FF8: 1900 | FG8: 1900 | FH8: 1900 | FI8: 1900 | FJ8: 1900 | FK8: 1900 | FL8: 1900 | FM8: 1900 | FN8: 1900 | FO8: 1900 | FP8: 1900 | FQ8: 1900 | FR8: 1900 | FS8: 1900 | FT8: 1900 | FU8: 1900 | FV8: 1900 | FW8: 1900 | FX8: 1900 | FY8: 1900 | FZ8: 1900 | GA8: 1900 | GB8: 1900 | GC8: 1900 | GD8: 1900 | GE8: 1900 | GF8: 1900 | GG8: 1900 | GH8: 1900 | GI8: 1900 | GJ8: 1900 | GK8: 1900 | GL8: 1900 | GM8: 1900 | GN8: 1900 | GO8: 1900 | GP8: 1900 | GQ8: 1900 | GR8: 1900 | GS8: 1900 | GT8: 1900 | GU8: 1900 | GV8: 1900 | GW8: =YEAR(GW4) -> 1900 | GX8: 1900 | GY8: 1900 | GZ8: 1900 | HA8: 1900 | HB8: 1900 | HC8: 1900 | HD8: 1900 | HE8: 1900 | HF8: 1900 | HG8: 1900 | HH8: 1900 | HI8: 1900 | HJ8: 1900 | HK8: 1900 | HL8: 1900 | HM8: 1900 | HN8: 1900 | HO8: 1900 | HP8: 1900 | HQ8: 1900 | HR8: 1900 | HS8: 1900 | HT8: 1900 | HU8: 1900 | HV8: 1900 | HW8: 1900 | HX8: 1900 | HY8: 1900 | HZ8: 1900 | IA8: 1900 | IB8: 1900 | IC8: 1900 | ID8: 1900 | IE8: 1900 | IF8: 1900 | IG8: 1900 | IH8: 1900 | II8: 1900 | IJ8: 1900 | IK8: 1900 | IL8: 1900 | IM8: 1900 | IN8: 1900 | IO8: 1900 | IP8: 1900 | IQ8: 1900 | IR8: 1900 | IS8: 1900 | IT8: 1900 | IU8: 1900 | IV8: 1900 | IW8: 1900 | IX8: 1900 | IY8: 1900 | IZ8: 1900 | JA8: 1900 | JB8: 1900 | JC8: 1900 | JD8: 1900 | JE8: 1900 | JF8: 1900 | JG8: 1900 | JH8: 1900 | JI8: =YEAR(JI4) -> 1900 | JJ8: 1900 | JK8: 1900 | JL8: 1900 | JM8: 1900 | JN8: 1900 | JO8: 1900 | JP8: 1900 | JQ8: 1900 | JR8: 1900 | JS8: 1900 | JT8: 1900 | JU8: 1900 | JV8: 1900 | JW8: 1900 | JX8: 1900 | JY8: 1900 | JZ8: 1900 | KA8: 1900 | KB8: 1900 | KC8: 1900 | KD8: 1900 | KE8: 1900 | KF8: 1900 | KG8: 1900 | KH8: 1900 | KI8: 1900 | KJ8: 1900 | KK8: 1900 | KL8: 1900 | KM8: 1900 | KN8: 1900 | KO8: 1900 | KP8: 1900 | KQ8: 1900 | KR8: 1900 | KS8: 1900 | KT8: 1900 | KU8: 1900 | KV8: 1900 | KW8: 1900 | KX8: 1900 | KY8: 1900 | KZ8: 1900 | LA8: 1900 | LB8: 1900 | LC8: 1900 | LD8: 1900 | LE8: 1900 | LF8: 1900 | LG8: 1900 | LH8: 1900 | LI8: 1900 | LJ8: 1900 | LK8: 1900 | LL8: 1900 | LM8: 1900 | LN8: 1900 | LO8: 1900 | LP8: 1900 | LQ8: 1900 | LR8: 1900 | LS8: 1900 | LT8: 1900 | LU8: =YEAR(LU4) -> 1900 | LV8: 1900 | LW8: 1900 | LX8: 1900 | LY8: 1900 | LZ8: 1900 | MA8: 1900 | MB8: 1900 | MC8: 1900 | MD8: 1900 | ME8: 1900 | MF8: 1900 | MG8: 1900 | MH8: 1900 | MI8: 1900 | MJ8: 1900 | MK8: 1900 | ML8: 1900 | MM8: 1900 | MN8: 1900 | MO8: 1900 | MP8: 1900 | MQ8: 1900 | MR8: 1900 | MS8: 1900 | MT8: 1900 | MU8: 1900 | MV8: 1900 | MW8: 1900 | MX8: 1900 | MY8: 1900 | MZ8: 1900 | NA8: 1900 | NB8: 1900 | NC8: 1900 | ND8: 1900 | NE8: 1900 | NF8: 1900 | NG8: 1900 | NH8: 1900 | NI8: 1900 | NJ8: 1900 | NK8: 1900 | NL8: 1900 | NM8: 1900 | NN8: 1900 | NO8: 1900 | NP8: 1900 | NQ8: 1900 | NR8: 1900 | NS8: 1900 | NT8: 1900 | NU8: 1900 | NV8: 1900 | NW8: 1900 | NX8: 1900 | NY8: 1900 | NZ8: 1900 | OA8: 1900 | OB8: 1900 | OC8: 1900 | OD8: 1900 | OE8: 1900 | OF8: 1900 | OG8: =YEAR(OG4) -> 1900 | OH8: 1900 | OI8: 1900 | OJ8: 1900 | OK8: 1900 | OL8: 1900 | OM8: 1900 | ON8: 1900 | OO8: 1900 | OP8: 1900 | OQ8: 1900 | OR8: 1900 | OS8: 1900 | OT8: 1900 | OU8: 1900 | OV8: 1900 | OW8: 1900 | OX8: 1900 | OY8: 1900 | OZ8: 1900 | PA8: 1900 | PB8: 1900 | PC8: 1900 | PD8: 1900 | PE8: 1900 | PF8: 1900 | PG8: 1900 | PH8: 1900 | PI8: 1900 | PJ8: 1900 | PK8: 1900 | PL8: 1900 | PM8: 1900 | PN8: 1900 | PO8: 1900 | PP8: 1900 | PQ8: 1900 | PR8: 1900 | PS8: 1900 | PT8: 1900 | PU8: 1900 | PV8: 1900 | PW8: 1900 | PX8: 1900 | PY8: 1900 | PZ8: 1900 | QA8: 1900 | QB8: 1900 | QC8: 1900 | QD8: 1900 | QE8: 1900 | QF8: 1900 | QG8: 1900 | QH8: 1900 | QI8: 1900 | QJ8: 1900 | QK8: 1900 | QL8: 1900 | QM8: 1900 | QN8: 1900 | QO8: 1900 | QP8: 1900 | QQ8: 1900 | QR8: 1900 | QS8: =YEAR(QS4) -> 1900 | QT8: 1900 | QU8: 1900 | QV8: 1900 | QW8: 1900 | QX8: 1900 | QY8: 1900 | QZ8: 1900 | RA8: 1900 | RB8: 1900 | RC8: 1900 | RD8: 1900 | RE8: 1900 | RF8: 1900 | RG8: 1900 | RH8: 1900 | RI8: 1900 | RJ8: 1900 | RK8: 1900 | RL8: 1900 | RM8: 1900 | RN8: 1900 | RO8: 1900 | RP8: 1900 | RQ8: 1900 | RR8: 1900 | RS8: 1900 | RT8: 1900 | RU8: 1900 | RV8: 1900 | RW8: 1900 | RX8: 1900 | RY8: 1900 | RZ8: 1900 | SA8: 1900 | SB8: 1900 | SC8: 1900 | SD8: 1900 | SE8: 1900 | SF8: 1900 | SG8: 1900 | SH8: 1900 | SI8: 1900 | SJ8: 1900 | SK8: 1900 | SL8: 1900 | SM8: 1900 | SN8: 1900 | SO8: 1900 | SP8: 1900 | SQ8: 1900
B10: Monthly and Semi-Annual Date for Financing
D11: Counter from COD | G11: Counter
D12: Flag for Semi Annual Period | E12: ='InputC-Financing'!E10 -> 0 | F12: ='InputC-Financing'!E11 -> 0 | G12: Flag | H12: Months -->
D13: Semi-Annual Counter | G13: Counter | K13: 0 | L13: =IF(L12,0,K13+1) -> 1 | M13: =IF(M12,0,L13+1) -> 2 | N13: 3 | O13: 4 | P13: 5 | Q13: 6 | R13: 7 | S13: 8 | T13: 9 | U13: 10 | V13: 11 | W13: 12 | X13: 13 | Y13: 14 | Z13: 15 | AA13: 16 | AB13: 17 | AC13: 18 | AD13: 19 | AE13: 20 | AF13: 21 | AG13: 22 | AH13: 23 | AI13: 24 | AJ13: 25 | AK13: 26 | AL13: 27 | AM13: 28 | AN13: 29 | AO13: 30 | AP13: 31 | AQ13: 32 | AR13: 33 | AS13: 34 | AT13: 35 | AU13: 36 | AV13: 37 | AW13: 38 | AX13: 39 | AY13: 40 | AZ13: 41 | BA13: 42 | BB13: 43 | BC13: 44 | BD13: 45 | BE13: 46 | BF13: 47 | BG13: 48 | BH13: 49 | BI13: 50 | BJ13: 51 | BK13: 52 | BL13: 53 | BM13: 54 | BN13: 55 | BO13: 56 | BP13: 57 | BQ13: 58 | BR13: 59 | BS13: 60 | BT13: 61 | BU13: 62 | BV13: 63 | BW13: 64 | BX13: 65 | BY13: =IF(BY12,0,BX13+1) -> 66 | BZ13: 67 | CA13: 68 | CB13: 69 | CC13: 70 | CD13: 71 | CE13: 72 | CF13: 73 | CG13: 74 | CH13: 75 | CI13: 76 | CJ13: 77 | CK13: 78 | CL13: 79 | CM13: 80 | CN13: 81 | CO13: 82 | CP13: 83 | CQ13: 84 | CR13: 85 | CS13: 86 | CT13: 87 | CU13: 88 | CV13: 89 | CW13: 90 | CX13: 91 | CY13: 92 | CZ13: 93 | DA13: 94 | DB13: 95 | DC13: 96 | DD13: 97 | DE13: 98 | DF13: 99 | DG13: 100 | DH13: 101 | DI13: 102 | DJ13: 103 | DK13: 104 | DL13: 105 | DM13: 106 | DN13: 107 | DO13: 108 | DP13: 109 | DQ13: 110 | DR13: 111 | DS13: 112 | DT13: 113 | DU13: 114 | DV13: 115 | DW13: 116 | DX13: 117 | DY13: 118 | DZ13: 119 | EA13: 120 | EB13: 121 | EC13: 122 | ED13: 123 | EE13: 124 | EF13: 125 | EG13: 126 | EH13: 127 | EI13: 128 | EJ13: 129 | EK13: =IF(EK12,0,EJ13+1) -> 130 | EL13: 131 | EM13: 132 | EN13: 133 | EO13: 134 | EP13: 135 | EQ13: 136 | ER13: 137 | ES13: 138 | ET13: 139 | EU13: 140 | EV13: 141 | EW13: 142 | EX13: 143 | EY13: 144 | EZ13: 145 | FA13: 146 | FB13: 147 | FC13: 148 | FD13: 149 | FE13: 150 | FF13: 151 | FG13: 152 | FH13: 153 | FI13: 154 | FJ13: 155 | FK13: 156 | FL13: 157 | FM13: 158 | FN13: 159 | FO13: 160 | FP13: 161 | FQ13: 162 | FR13: 163 | FS13: 164 | FT13: 165 | FU13: 166 | FV13: 167 | FW13: 168 | FX13: 169 | FY13: 170 | FZ13: 171 | GA13: 172 | GB13: 173 | GC13: 174 | GD13: 175 | GE13: 176 | GF13: 177 | GG13: 178 | GH13: 179 | GI13: 180 | GJ13: 181 | GK13: 182 | GL13: 183 | GM13: 184 | GN13: 185 | GO13: 186 | GP13: 187 | GQ13: 188 | GR13: 189 | GS13: 190 | GT13: 191 | GU13: 192 | GV13: 193 | GW13: =IF(GW12,0,GV13+1) -> 194 | GX13: 195 | GY13: 196 | GZ13: 197 | HA13: 198 | HB13: 199 | HC13: 200 | HD13: 201 | HE13: 202 | HF13: 203 | HG13: 204 | HH13: 205 | HI13: 206 | HJ13: 207 | HK13: 208 | HL13: 209 | HM13: 210 | HN13: 211 | HO13: 212 | HP13: 213 | HQ13: 214 | HR13: 215 | HS13: 216 | HT13: 217 | HU13: 218 | HV13: 219 | HW13: 220 | HX13: 221 | HY13: 222 | HZ13: 223 | IA13: 224 | IB13: 225 | IC13: 226 | ID13: 227 | IE13: 228 | IF13: 229 | IG13: 230 | IH13: 231 | II13: 232 | IJ13: 233 | IK13: 234 | IL13: 235 | IM13: 236 | IN13: 237 | IO13: 238 | IP13: 239 | IQ13: 240 | IR13: 241 | IS13: 242 | IT13: 243 | IU13: 244 | IV13: 245 | IW13: 246 | IX13: 247 | IY13: 248 | IZ13: 249 | JA13: 250 | JB13: 251 | JC13: 252 | JD13: 253 | JE13: 254 | JF13: 255 | JG13: 256 | JH13: 257 | JI13: =IF(JI12,0,JH13+1) -> 258 | JJ13: 259 | JK13: 260 | JL13: 261 | JM13: 262 | JN13: 263 | JO13: 264 | JP13: 265 | JQ13: 266 | JR13: 267 | JS13: 268 | JT13: 269 | JU13: 270 | JV13: 271 | JW13: 272 | JX13: 273 | JY13: 274 | JZ13: 275 | KA13: 276 | KB13: 277 | KC13: 278 | KD13: 279 | KE13: 280 | KF13: 281 | KG13: 282 | KH13: 283 | KI13: 284 | KJ13: 285 | KK13: 286 | KL13: 287 | KM13: 288 | KN13: 289 | KO13: 290 | KP13: 291 | KQ13: 292 | KR13: 293 | KS13: 294 | KT13: 295 | KU13: 296 | KV13: 297 | KW13: 298 | KX13: 299 | KY13: 300 | KZ13: 301 | LA13: 302 | LB13: 303 | LC13: 304 | LD13: 305 | LE13: 306 | LF13: 307 | LG13: 308 | LH13: 309 | LI13: 310 | LJ13: 311 | LK13: 312 | LL13: 313 | LM13: 314 | LN13: 315 | LO13: 316 | LP13: 317 | LQ13: 318 | LR13: 319 | LS13: 320 | LT13: 321 | LU13: =IF(LU12,0,LT13+1) -> 322 | LV13: 323 | LW13: 324 | LX13: 325 | LY13: 326 | LZ13: 327 | MA13: 328 | MB13: 329 | MC13: 330 | MD13: 331 | ME13: 332 | MF13: 333 | MG13: 334 | MH13: 335 | MI13: 336 | MJ13: 337 | MK13: 338 | ML13: 339 | MM13: 340 | MN13: 341 | MO13: 342 | MP13: 343 | MQ13: 344 | MR13: 345 | MS13: 346 | MT13: 347 | MU13: 348 | MV13: 349 | MW13: 350 | MX13: 351 | MY13: 352 | MZ13: 353 | NA13: 354 | NB13: 355 | NC13: 356 | ND13: 357 | NE13: 358 | NF13: 359 | NG13: 360 | NH13: 361 | NI13: 362 | NJ13: 363 | NK13: 364 | NL13: 365 | NM13: 366 | NN13: 367 | NO13: 368 | NP13: 369 | NQ13: 370 | NR13: 371 | NS13: 372 | NT13: 373 | NU13: 374 | NV13: 375 | NW13: 376 | NX13: 377 | NY13: 378 | NZ13: 379 | OA13: 380 | OB13: 381 | OC13: 382 | OD13: 383 | OE13: 384 | OF13: 385 | OG13: =IF(OG12,0,OF13+1) -> 386 | OH13: 387 | OI13: 388 | OJ13: 389 | OK13: 390 | OL13: 391 | OM13: 392 | ON13: 393 | OO13: 394 | OP13: 395 | OQ13: 396 | OR13: 397 | OS13: 398 | OT13: 399 | OU13: 400 | OV13: 401 | OW13: 402 | OX13: 403 | OY13: 404 | OZ13: 405 | PA13: 406 | PB13: 407 | PC13: 408 | PD13: 409 | PE13: 410 | PF13: 411 | PG13: 412 | PH13: 413 | PI13: 414 | PJ13: 415 | PK13: 416 | PL13: 417 | PM13: 418 | PN13: 419 | PO13: 420 | PP13: 421 | PQ13: 422 | PR13: 423 | PS13: 424 | PT13: 425 | PU13: 426 | PV13: 427 | PW13: 428 | PX13: 429 | PY13: 430 | PZ13: 431 | QA13: 432 | QB13: 433 | QC13: 434 | QD13: 435 | QE13: 436 | QF13: 437 | QG13: 438 | QH13: 439 | QI13: 440 | QJ13: 441 | QK13: 442 | QL13: 443 | QM13: 444 | QN13: 445 | QO13: 446 | QP13: 447 | QQ13: 448 | QR13: 449 | QS13: =IF(QS12,0,QR13+1) -> 450 | QT13: 451 | QU13: 452 | QV13: 453 | QW13: 454 | QX13: 455 | QY13: 456 | QZ13: 457 | RA13: 458 | RB13: 459 | RC13: 460 | RD13: 461 | RE13: 462 | RF13: 463 | RG13: 464 | RH13: 465 | RI13: 466 | RJ13: 467 | RK13: 468 | RL13: 469 | RM13: 470 | RN13: 471 | RO13: 472 | RP13: 473 | RQ13: 474 | RR13: 475 | RS13: 476 | RT13: 477 | RU13: 478 | RV13: 479 | RW13: 480 | RX13: 481 | RY13: 482 | RZ13: 483 | SA13: 484 | SB13: 485 | SC13: 486 | SD13: 487 | SE13: 488 | SF13: 489 | SG13: 490 | SH13: 491 | SI13: 492 | SJ13: 493 | SK13: 494 | SL13: 495 | SM13: 496 | SN13: 497 | SO13: 498 | SP13: 499 | SQ13: 500
D14: Forward Semi-Annual Date with Same Dates | G14: Date | L14: =IF(L6,L4,OFFSET(L4,0,-L13)) -> 00:00:00 | M14: =IF(M6,M4,OFFSET(M4,0,-M13)) -> 00:00:00 | N14: 00:00:00 | O14: 00:00:00 | P14: 00:00:00 | Q14: 00:00:00 | R14: 00:00:00 | S14: 00:00:00 | T14: 00:00:00 | U14: 00:00:00 | V14: 00:00:00 | W14: 00:00:00 | X14: 00:00:00 | Y14: 00:00:00 | Z14: 00:00:00 | AA14: 00:00:00 | AB14: 00:00:00 | AC14: 00:00:00 | AD14: 00:00:00 | AE14: 00:00:00 | AF14: 00:00:00 | AG14: 00:00:00 | AH14: 00:00:00 | AI14: 00:00:00 | AJ14: 00:00:00 | AK14: 00:00:00 | AL14: 00:00:00 | AM14: 00:00:00 | AN14: 00:00:00 | AO14: 00:00:00 | AP14: 00:00:00 | AQ14: 00:00:00 | AR14: 00:00:00 | AS14: 00:00:00 | AT14: 00:00:00 | AU14: 00:00:00 | AV14: 00:00:00 | AW14: 00:00:00 | AX14: 00:00:00 | AY14: 00:00:00 | AZ14: 00:00:00 | BA14: 00:00:00 | BB14: 00:00:00 | BC14: 00:00:00 | BD14: 00:00:00 | BE14: 00:00:00 | BF14: 00:00:00 | BG14: 00:00:00 | BH14: 00:00:00 | BI14: 00:00:00 | BJ14: 00:00:00 | BK14: 00:00:00 | BL14: 00:00:00 | BM14: 00:00:00 | BN14: 00:00:00 | BO14: 00:00:00 | BP14: 00:00:00 | BQ14: 00:00:00 | BR14: 00:00:00 | BS14: 00:00:00 | BT14: 00:00:00 | BU14: 00:00:00 | BV14: 00:00:00 | BW14: 00:00:00 | BX14: 00:00:00 | BY14: =IF(BY6,BY4,OFFSET(BY4,0,-BY13)) -> 00:00:00 | BZ14: 00:00:00 | CA14: 00:00:00 | CB14: 00:00:00 | CC14: 00:00:00 | CD14: 00:00:00 | CE14: 00:00:00 | CF14: 00:00:00 | CG14: 00:00:00 | CH14: 00:00:00 | CI14: 00:00:00 | CJ14: 00:00:00 | CK14: 00:00:00 | CL14: 00:00:00 | CM14: 00:00:00 | CN14: 00:00:00 | CO14: 00:00:00 | CP14: 00:00:00 | CQ14: 00:00:00 | CR14: 00:00:00 | CS14: 00:00:00 | CT14: 00:00:00 | CU14: 00:00:00 | CV14: 00:00:00 | CW14: 00:00:00 | CX14: 00:00:00 | CY14: 00:00:00 | CZ14: 00:00:00 | DA14: 00:00:00 | DB14: 00:00:00 | DC14: 00:00:00 | DD14: 00:00:00 | DE14: 00:00:00 | DF14: 00:00:00 | DG14: 00:00:00 | DH14: 00:00:00 | DI14: 00:00:00 | DJ14: 00:00:00 | DK14: 00:00:00 | DL14: 00:00:00 | DM14: 00:00:00 | DN14: 00:00:00 | DO14: 00:00:00 | DP14: 00:00:00 | DQ14: 00:00:00 | DR14: 00:00:00 | DS14: 00:00:00 | DT14: 00:00:00 | DU14: 00:00:00 | DV14: 00:00:00 | DW14: 00:00:00 | DX14: 00:00:00 | DY14: 00:00:00 | DZ14: 00:00:00 | EA14: 00:00:00 | EB14: 00:00:00 | EC14: 00:00:00 | ED14: 00:00:00 | EE14: 00:00:00 | EF14: 00:00:00 | EG14: 00:00:00 | EH14: 00:00:00 | EI14: 00:00:00 | EJ14: 00:00:00 | EK14: =IF(EK6,EK4,OFFSET(EK4,0,-EK13)) -> 00:00:00 | EL14: 00:00:00 | EM14: 00:00:00 | EN14: 00:00:00 | EO14: 00:00:00 | EP14: 00:00:00 | EQ14: 00:00:00 | ER14: 00:00:00 | ES14: 00:00:00 | ET14: 00:00:00 | EU14: 00:00:00 | EV14: 00:00:00 | EW14: 00:00:00 | EX14: 00:00:00 | EY14: 00:00:00 | EZ14: 00:00:00 | FA14: 00:00:00 | FB14: 00:00:00 | FC14: 00:00:00 | FD14: 00:00:00 | FE14: 00:00:00 | FF14: 00:00:00 | FG14: 00:00:00 | FH14: 00:00:00 | FI14: 00:00:00 | FJ14: 00:00:00 | FK14: 00:00:00 | FL14: 00:00:00 | FM14: 00:00:00 | FN14: 00:00:00 | FO14: 00:00:00 | FP14: 00:00:00 | FQ14: 00:00:00 | FR14: 00:00:00 | FS14: 00:00:00 | FT14: 00:00:00 | FU14: 00:00:00 | FV14: 00:00:00 | FW14: 00:00:00 | FX14: 00:00:00 | FY14: 00:00:00 | FZ14: 00:00:00 | GA14: 00:00:00 | GB14: 00:00:00 | GC14: 00:00:00 | GD14: 00:00:00 | GE14: 00:00:00 | GF14: 00:00:00 | GG14: 00:00:00 | GH14: 00:00:00 | GI14: 00:00:00 | GJ14: 00:00:00 | GK14: 00:00:00 | GL14: 00:00:00 | GM14: 00:00:00 | GN14: 00:00:00 | GO14: 00:00:00 | GP14: 00:00:00 | GQ14: 00:00:00 | GR14: 00:00:00 | GS14: 00:00:00 | GT14: 00:00:00 | GU14: 00:00:00 | GV14: 00:00:00 | GW14: =IF(GW6,GW4,OFFSET(GW4,0,-GW13)) -> 00:00:00 | GX14: 00:00:00 | GY14: 00:00:00 | GZ14: 00:00:00 | HA14: 00:00:00 | HB14: 00:00:00 | HC14: 00:00:00 | HD14: 00:00:00 | HE14: 00:00:00 | HF14: 00:00:00 | HG14: 00:00:00 | HH14: 00:00:00 | HI14: 00:00:00 | HJ14: 00:00:00 | HK14: 00:00:00 | HL14: 00:00:00 | HM14: 00:00:00 | HN14: 00:00:00 | HO14: 00:00:00 | HP14: 00:00:00 | HQ14: 00:00:00 | HR14: 00:00:00 | HS14: 00:00:00 | HT14: 00:00:00 | HU14: 00:00:00 | HV14: 00:00:00 | HW14: 00:00:00 | HX14: 00:00:00 | HY14: 00:00:00 | HZ14: 00:00:00 | IA14: 00:00:00 | IB14: 00:00:00 | IC14: 00:00:00 | ID14: 00:00:00 | IE14: 00:00:00 | IF14: 00:00:00 | IG14: 00:00:00 | IH14: 00:00:00 | II14: 00:00:00 | IJ14: 00:00:00 | IK14: 00:00:00 | IL14: 00:00:00 | IM14: 00:00:00 | IN14: 00:00:00 | IO14: 00:00:00 | IP14: 00:00:00 | IQ14: 00:00:00 | IR14: 00:00:00 | IS14: 00:00:00 | IT14: 00:00:00 | IU14: 00:00:00 | IV14: 00:00:00 | IW14: 00:00:00 | IX14: 00:00:00 | IY14: 00:00:00 | IZ14: 00:00:00 | JA14: 00:00:00 | JB14: 00:00:00 | JC14: 00:00:00 | JD14: 00:00:00 | JE14: 00:00:00 | JF14: 00:00:00 | JG14: 00:00:00 | JH14: 00:00:00 | JI14: =IF(JI6,JI4,OFFSET(JI4,0,-JI13)) -> 00:00:00 | JJ14: 00:00:00 | JK14: 00:00:00 | JL14: 00:00:00 | JM14: 00:00:00 | JN14: 00:00:00 | JO14: 00:00:00 | JP14: 00:00:00 | JQ14: 00:00:00 | JR14: 00:00:00 | JS14: 00:00:00 | JT14: 00:00:00 | JU14: 00:00:00 | JV14: 00:00:00 | JW14: 00:00:00 | JX14: 00:00:00 | JY14: 00:00:00 | JZ14: 00:00:00 | KA14: 00:00:00 | KB14: 00:00:00 | KC14: 00:00:00 | KD14: 00:00:00 | KE14: 00:00:00 | KF14: 00:00:00 | KG14: 00:00:00 | KH14: 00:00:00 | KI14: 00:00:00 | KJ14: 00:00:00 | KK14: 00:00:00 | KL14: 00:00:00 | KM14: 00:00:00 | KN14: 00:00:00 | KO14: 00:00:00 | KP14: 00:00:00 | KQ14: 00:00:00 | KR14: 00:00:00 | KS14: 00:00:00 | KT14: 00:00:00 | KU14: 00:00:00 | KV14: 00:00:00 | KW14: 00:00:00 | KX14: 00:00:00 | KY14: 00:00:00 | KZ14: 00:00:00 | LA14: 00:00:00 | LB14: 00:00:00 | LC14: 00:00:00 | LD14: 00:00:00 | LE14: 00:00:00 | LF14: 00:00:00 | LG14: 00:00:00 | LH14: 00:00:00 | LI14: 00:00:00 | LJ14: 00:00:00 | LK14: 00:00:00 | LL14: 00:00:00 | LM14: 00:00:00 | LN14: 00:00:00 | LO14: 00:00:00 | LP14: 00:00:00 | LQ14: 00:00:00 | LR14: 00:00:00 | LS14: 00:00:00 | LT14: 00:00:00 | LU14: =IF(LU6,LU4,OFFSET(LU4,0,-LU13)) -> 00:00:00 | LV14: 00:00:00 | LW14: 00:00:00 | LX14: 00:00:00 | LY14: 00:00:00 | LZ14: 00:00:00 | MA14: 00:00:00 | MB14: 00:00:00 | MC14: 00:00:00 | MD14: 00:00:00 | ME14: 00:00:00 | MF14: 00:00:00 | MG14: 00:00:00 | MH14: 00:00:00 | MI14: 00:00:00 | MJ14: 00:00:00 | MK14: 00:00:00 | ML14: 00:00:00 | MM14: 00:00:00 | MN14: 00:00:00 | MO14: 00:00:00 | MP14: 00:00:00 | MQ14: 00:00:00 | MR14: 00:00:00 | MS14: 00:00:00 | MT14: 00:00:00 | MU14: 00:00:00 | MV14: 00:00:00 | MW14: 00:00:00 | MX14: 00:00:00 | MY14: 00:00:00 | MZ14: 00:00:00 | NA14: 00:00:00 | NB14: 00:00:00 | NC14: 00:00:00 | ND14: 00:00:00 | NE14: 00:00:00 | NF14: 00:00:00 | NG14: 00:00:00 | NH14: 00:00:00 | NI14: 00:00:00 | NJ14: 00:00:00 | NK14: 00:00:00 | NL14: 00:00:00 | NM14: 00:00:00 | NN14: 00:00:00 | NO14: 00:00:00 | NP14: 00:00:00 | NQ14: 00:00:00 | NR14: 00:00:00 | NS14: 00:00:00 | NT14: 00:00:00 | NU14: 00:00:00 | NV14: 00:00:00 | NW14: 00:00:00 | NX14: 00:00:00 | NY14: 00:00:00 | NZ14: 00:00:00 | OA14: 00:00:00 | OB14: 00:00:00 | OC14: 00:00:00 | OD14: 00:00:00 | OE14: 00:00:00 | OF14: 00:00:00 | OG14: =IF(OG6,OG4,OFFSET(OG4,0,-OG13)) -> 00:00:00 | OH14: 00:00:00 | OI14: 00:00:00 | OJ14: 00:00:00 | OK14: 00:00:00 | OL14: 00:00:00 | OM14: 00:00:00 | ON14: 00:00:00 | OO14: 00:00:00 | OP14: 00:00:00 | OQ14: 00:00:00 | OR14: 00:00:00 | OS14: 00:00:00 | OT14: 00:00:00 | OU14: 00:00:00 | OV14: 00:00:00 | OW14: 00:00:00 | OX14: 00:00:00 | OY14: 00:00:00 | OZ14: 00:00:00 | PA14: 00:00:00 | PB14: 00:00:00 | PC14: 00:00:00 | PD14: 00:00:00 | PE14: 00:00:00 | PF14: 00:00:00 | PG14: 00:00:00 | PH14: 00:00:00 | PI14: 00:00:00 | PJ14: 00:00:00 | PK14: 00:00:00 | PL14: 00:00:00 | PM14: 00:00:00 | PN14: 00:00:00 | PO14: 00:00:00 | PP14: 00:00:00 | PQ14: 00:00:00 | PR14: 00:00:00 | PS14: 00:00:00 | PT14: 00:00:00 | PU14: 00:00:00 | PV14: 00:00:00 | PW14: 00:00:00 | PX14: 00:00:00 | PY14: 00:00:00 | PZ14: 00:00:00 | QA14: 00:00:00 | QB14: 00:00:00 | QC14: 00:00:00 | QD14: 00:00:00 | QE14: 00:00:00 | QF14: 00:00:00 | QG14: 00:00:00 | QH14: 00:00:00 | QI14: 00:00:00 | QJ14: 00:00:00 | QK14: 00:00:00 | QL14: 00:00:00 | QM14: 00:00:00 | QN14: 00:00:00 | QO14: 00:00:00 | QP14: 00:00:00 | QQ14: 00:00:00 | QR14: 00:00:00 | QS14: =IF(QS6,QS4,OFFSET(QS4,0,-QS13)) -> 00:00:00 | QT14: 00:00:00 | QU14: 00:00:00 | QV14: 00:00:00 | QW14: 00:00:00 | QX14: 00:00:00 | QY14: 00:00:00 | QZ14: 00:00:00 | RA14: 00:00:00 | RB14: 00:00:00 | RC14: 00:00:00 | RD14: 00:00:00 | RE14: 00:00:00 | RF14: 00:00:00 | RG14: 00:00:00 | RH14: 00:00:00 | RI14: 00:00:00 | RJ14: 00:00:00 | RK14: 00:00:00 | RL14: 00:00:00 | RM14: 00:00:00 | RN14: 00:00:00 | RO14: 00:00:00 | RP14: 00:00:00 | RQ14: 00:00:00 | RR14: 00:00:00 | RS14: 00:00:00 | RT14: 00:00:00 | RU14: 00:00:00 | RV14: 00:00:00 | RW14: 00:00:00 | RX14: 00:00:00 | RY14: 00:00:00 | RZ14: 00:00:00 | SA14: 00:00:00 | SB14: 00:00:00 | SC14: 00:00:00 | SD14: 00:00:00 | SE14: 00:00:00 | SF14: 00:00:00 | SG14: 00:00:00 | SH14: 00:00:00 | SI14: 00:00:00 | SJ14: 00:00:00 | SK14: 00:00:00 | SL14: 00:00:00 | SM14: 00:00:00 | SN14: 00:00:00 | SO14: 00:00:00 | SP14: 00:00:00 | SQ14: 00:00:00
B16: Capacity and Production
D17: Capacity in MW | E17: ='InputC - Operations'!$E$17 -> 0 | G17: ='InputC - Operations'!F17 -> MWp
D18: Capacity in kW | E18: ='InputC - Operations'!E17*1000 -> 0 | G18: kWp | L18: =$E$18*L7 -> 0 | M18: =$E$18*M7 -> 0 | N18: 0 | O18: 0 | P18: 0 | Q18: 0 | R18: 0 | S18: 0 | T18: 0 | U18: 0 | V18: 0 | W18: 0 | X18: 0 | Y18: 0 | Z18: 0 | AA18: 0 | AB18: 0 | AC18: 0 | AD18: 0 | AE18: 0 | AF18: 0 | AG18: 0 | AH18: 0 | AI18: 0 | AJ18: 0 | AK18: 0 | AL18: 0 | AM18: 0 | AN18: 0 | AO18: 0 | AP18: 0 | AQ18: 0 | AR18: 0 | AS18: 0 | AT18: 0 | AU18: 0 | AV18: 0 | AW18: 0 | AX18: 0 | AY18: 0 | AZ18: 0 | BA18: 0 | BB18: 0 | BC18: 0 | BD18: 0 | BE18: 0 | BF18: 0 | BG18: 0 | BH18: 0 | BI18: 0 | BJ18: 0 | BK18: 0 | BL18: 0 | BM18: 0 | BN18: 0 | BO18: 0 | BP18: 0 | BQ18: 0 | BR18: 0 | BS18: 0 | BT18: 0 | BU18: 0 | BV18: 0 | BW18: 0 | BX18: 0 | BY18: =$E$18*BY7 -> 0 | BZ18: 0 | CA18: 0 | CB18: 0 | CC18: 0 | CD18: 0 | CE18: 0 | CF18: 0 | CG18: 0 | CH18: 0 | CI18: 0 | CJ18: 0 | CK18: 0 | CL18: 0 | CM18: 0 | CN18: 0 | CO18: 0 | CP18: 0 | CQ18: 0 | CR18: 0 | CS18: 0 | CT18: 0 | CU18: 0 | CV18: 0 | CW18: 0 | CX18: 0 | CY18: 0 | CZ18: 0 | DA18: 0 | DB18: 0 | DC18: 0 | DD18: 0 | DE18: 0 | DF18: 0 | DG18: 0 | DH18: 0 | DI18: 0 | DJ18: 0 | DK18: 0 | DL18: 0 | DM18: 0 | DN18: 0 | DO18: 0 | DP18: 0 | DQ18: 0 | DR18: 0 | DS18: 0 | DT18: 0 | DU18: 0 | DV18: 0 | DW18: 0 | DX18: 0 | DY18: 0 | DZ18: 0 | EA18: 0 | EB18: 0 | EC18: 0 | ED18: 0 | EE18: 0 | EF18: 0 | EG18: 0 | EH18: 0 | EI18: 0 | EJ18: 0 | EK18: =$E$18*EK7 -> 0 | EL18: 0 | EM18: 0 | EN18: 0 | EO18: 0 | EP18: 0 | EQ18: 0 | ER18: 0 | ES18: 0 | ET18: 0 | EU18: 0 | EV18: 0 | EW18: 0 | EX18: 0 | EY18: 0 | EZ18: 0 | FA18: 0 | FB18: 0 | FC18: 0 | FD18: 0 | FE18: 0 | FF18: 0 | FG18: 0 | FH18: 0 | FI18: 0 | FJ18: 0 | FK18: 0 | FL18: 0 | FM18: 0 | FN18: 0 | FO18: 0 | FP18: 0 | FQ18: 0 | FR18: 0 | FS18: 0 | FT18: 0 | FU18: 0 | FV18: 0 | FW18: 0 | FX18: 0 | FY18: 0 | FZ18: 0 | GA18: 0 | GB18: 0 | GC18: 0 | GD18: 0 | GE18: 0 | GF18: 0 | GG18: 0 | GH18: 0 | GI18: 0 | GJ18: 0 | GK18: 0 | GL18: 0 | GM18: 0 | GN18: 0 | GO18: 0 | GP18: 0 | GQ18: 0 | GR18: 0 | GS18: 0 | GT18: 0 | GU18: 0 | GV18: 0 | GW18: =$E$18*GW7 -> 0 | GX18: 0 | GY18: 0 | GZ18: 0 | HA18: 0 | HB18: 0 | HC18: 0 | HD18: 0 | HE18: 0 | HF18: 0 | HG18: 0 | HH18: 0 | HI18: 0 | HJ18: 0 | HK18: 0 | HL18: 0 | HM18: 0 | HN18: 0 | HO18: 0 | HP18: 0 | HQ18: 0 | HR18: 0 | HS18: 0 | HT18: 0 | HU18: 0 | HV18: 0 | HW18: 0 | HX18: 0 | HY18: 0 | HZ18: 0 | IA18: 0 | IB18: 0 | IC18: 0 | ID18: 0 | IE18: 0 | IF18: 0 | IG18: 0 | IH18: 0 | II18: 0 | IJ18: 0 | IK18: 0 | IL18: 0 | IM18: 0 | IN18: 0 | IO18: 0 | IP18: 0 | IQ18: 0 | IR18: 0 | IS18: 0 | IT18: 0 | IU18: 0 | IV18: 0 | IW18: 0 | IX18: 0 | IY18: 0 | IZ18: 0 | JA18: 0 | JB18: 0 | JC18: 0 | JD18: 0 | JE18: 0 | JF18: 0 | JG18: 0 | JH18: 0 | JI18: =$E$18*JI7 -> 0 | JJ18: 0 | JK18: 0 | JL18: 0 | JM18: 0 | JN18: 0 | JO18: 0 | JP18: 0 | JQ18: 0 | JR18: 0 | JS18: 0 | JT18: 0 | JU18: 0 | JV18: 0 | JW18: 0 | JX18: 0 | JY18: 0 | JZ18: 0 | KA18: 0 | KB18: 0 | KC18: 0 | KD18: 0 | KE18: 0 | KF18: 0 | KG18: 0 | KH18: 0 | KI18: 0 | KJ18: 0 | KK18: 0 | KL18: 0 | KM18: 0 | KN18: 0 | KO18: 0 | KP18: 0 | KQ18: 0 | KR18: 0 | KS18: 0 | KT18: 0 | KU18: 0 | KV18: 0 | KW18: 0 | KX18: 0 | KY18: 0 | KZ18: 0 | LA18: 0 | LB18: 0 | LC18: 0 | LD18: 0 | LE18: 0 | LF18: 0 | LG18: 0 | LH18: 0 | LI18: 0 | LJ18: 0 | LK18: 0 | LL18: 0 | LM18: 0 | LN18: 0 | LO18: 0 | LP18: 0 | LQ18: 0 | LR18: 0 | LS18: 0 | LT18: 0 | LU18: =$E$18*LU7 -> 0 | LV18: 0 | LW18: 0 | LX18: 0 | LY18: 0 | LZ18: 0 | MA18: 0 | MB18: 0 | MC18: 0 | MD18: 0 | ME18: 0 | MF18: 0 | MG18: 0 | MH18: 0 | MI18: 0 | MJ18: 0 | MK18: 0 | ML18: 0 | MM18: 0 | MN18: 0 | MO18: 0 | MP18: 0 | MQ18: 0 | MR18: 0 | MS18: 0 | MT18: 0 | MU18: 0 | MV18: 0 | MW18: 0 | MX18: 0 | MY18: 0 | MZ18: 0 | NA18: 0 | NB18: 0 | NC18: 0 | ND18: 0 | NE18: 0 | NF18: 0 | NG18: 0 | NH18: 0 | NI18: 0 | NJ18: 0 | NK18: 0 | NL18: 0 | NM18: 0 | NN18: 0 | NO18: 0 | NP18: 0 | NQ18: 0 | NR18: 0 | NS18: 0 | NT18: 0 | NU18: 0 | NV18: 0 | NW18: 0 | NX18: 0 | NY18: 0 | NZ18: 0 | OA18: 0 | OB18: 0 | OC18: 0 | OD18: 0 | OE18: 0 | OF18: 0 | OG18: =$E$18*OG7 -> 0 | OH18: 0 | OI18: 0 | OJ18: 0 | OK18: 0 | OL18: 0 | OM18: 0 | ON18: 0 | OO18: 0 | OP18: 0 | OQ18: 0 | OR18: 0 | OS18: 0 | OT18: 0 | OU18: 0 | OV18: 0 | OW18: 0 | OX18: 0 | OY18: 0 | OZ18: 0 | PA18: 0 | PB18: 0 | PC18: 0 | PD18: 0 | PE18: 0 | PF18: 0 | PG18: 0 | PH18: 0 | PI18: 0 | PJ18: 0 | PK18: 0 | PL18: 0 | PM18: 0 | PN18: 0 | PO18: 0 | PP18: 0 | PQ18: 0 | PR18: 0 | PS18: 0 | PT18: 0 | PU18: 0 | PV18: 0 | PW18: 0 | PX18: 0 | PY18: 0 | PZ18: 0 | QA18: 0 | QB18: 0 | QC18: 0 | QD18: 0 | QE18: 0 | QF18: 0 | QG18: 0 | QH18: 0 | QI18: 0 | QJ18: 0 | QK18: 0 | QL18: 0 | QM18: 0 | QN18: 0 | QO18: 0 | QP18: 0 | QQ18: 0 | QR18: 0 | QS18: =$E$18*QS7 -> 0 | QT18: 0 | QU18: 0 | QV18: 0 | QW18: 0 | QX18: 0 | QY18: 0 | QZ18: 0 | RA18: 0 | RB18: 0 | RC18: 0 | RD18: 0 | RE18: 0 | RF18: 0 | RG18: 0 | RH18: 0 | RI18: 0 | RJ18: 0 | RK18: 0 | RL18: 0 | RM18: 0 | RN18: 0 | RO18: 0 | RP18: 0 | RQ18: 0 | RR18: 0 | RS18: 0 | RT18: 0 | RU18: 0 | RV18: 0 | RW18: 0 | RX18: 0 | RY18: 0 | RZ18: 0 | SA18: 0 | SB18: 0 | SC18: 0 | SD18: 0 | SE18: 0 | SF18: 0 | SG18: 0 | SH18: 0 | SI18: 0 | SJ18: 0 | SK18: 0 | SL18: 0 | SM18: 0 | SN18: 0 | SO18: 0 | SP18: 0 | SQ18: 0
D20: Annual Yield | E20: ='InputC - Operations'!$E$22 -> 0 | G20: kWh/kWp | L20: =$E$20*L7 -> 0 | M20: 0 | N20: 0 | O20: 0 | P20: 0 | Q20: 0 | R20: 0 | S20: 0 | T20: 0 | U20: 0 | V20: 0 | W20: 0 | X20: 0 | Y20: 0 | Z20: 0 | AA20: 0 | AB20: 0 | AC20: 0 | AD20: 0 | AE20: 0 | AF20: 0 | AG20: 0 | AH20: 0 | AI20: 0 | AJ20: 0 | AK20: 0 | AL20: 0 | AM20: 0 | AN20: 0 | AO20: 0 | AP20: 0 | AQ20: 0 | AR20: 0 | AS20: 0 | AT20: 0 | AU20: 0 | AV20: 0 | AW20: 0 | AX20: 0 | AY20: 0 | AZ20: 0 | BA20: 0 | BB20: 0 | BC20: 0 | BD20: 0 | BE20: 0 | BF20: 0 | BG20: 0 | BH20: 0 | BI20: 0 | BJ20: 0 | BK20: 0 | BL20: 0 | BM20: 0 | BN20: 0 | BO20: 0 | BP20: 0 | BQ20: 0 | BR20: 0 | BS20: 0 | BT20: 0 | BU20: 0 | BV20: 0 | BW20: 0 | BX20: =$E$20*BX7 -> 0 | BY20: 0 | BZ20: 0 | CA20: 0 | CB20: 0 | CC20: 0 | CD20: 0 | CE20: 0 | CF20: 0 | CG20: 0 | CH20: 0 | CI20: 0 | CJ20: 0 | CK20: 0 | CL20: 0 | CM20: 0 | CN20: 0 | CO20: 0 | CP20: 0 | CQ20: 0 | CR20: 0 | CS20: 0 | CT20: 0 | CU20: 0 | CV20: 0 | CW20: 0 | CX20: 0 | CY20: 0 | CZ20: 0 | DA20: 0 | DB20: 0 | DC20: 0 | DD20: 0 | DE20: 0 | DF20: 0 | DG20: 0 | DH20: 0 | DI20: 0 | DJ20: 0 | DK20: 0 | DL20: 0 | DM20: 0 | DN20: 0 | DO20: 0 | DP20: 0 | DQ20: 0 | DR20: 0 | DS20: 0 | DT20: 0 | DU20: 0 | DV20: 0 | DW20: 0 | DX20: 0 | DY20: 0 | DZ20: 0 | EA20: 0 | EB20: 0 | EC20: 0 | ED20: 0 | EE20: 0 | EF20: 0 | EG20: 0 | EH20: 0 | EI20: 0 | EJ20: =$E$20*EJ7 -> 0 | EK20: 0 | EL20: 0 | EM20: 0 | EN20: 0 | EO20: 0 | EP20: 0 | EQ20: 0 | ER20: 0 | ES20: 0 | ET20: 0 | EU20: 0 | EV20: 0 | EW20: 0 | EX20: 0 | EY20: 0 | EZ20: 0 | FA20: 0 | FB20: 0 | FC20: 0 | FD20: 0 | FE20: 0 | FF20: 0 | FG20: 0 | FH20: 0 | FI20: 0 | FJ20: 0 | FK20: 0 | FL20: 0 | FM20: 0 | FN20: 0 | FO20: 0 | FP20: 0 | FQ20: 0 | FR20: 0 | FS20: 0 | FT20: 0 | FU20: 0 | FV20: 0 | FW20: 0 | FX20: 0 | FY20: 0 | FZ20: 0 | GA20: 0 | GB20: 0 | GC20: 0 | GD20: 0 | GE20: 0 | GF20: 0 | GG20: 0 | GH20: 0 | GI20: 0 | GJ20: 0 | GK20: 0 | GL20: 0 | GM20: 0 | GN20: 0 | GO20: 0 | GP20: 0 | GQ20: 0 | GR20: 0 | GS20: 0 | GT20: 0 | GU20: 0 | GV20: =$E$20*GV7 -> 0 | GW20: 0 | GX20: 0 | GY20: 0 | GZ20: 0 | HA20: 0 | HB20: 0 | HC20: 0 | HD20: 0 | HE20: 0 | HF20: 0 | HG20: 0 | HH20: 0 | HI20: 0 | HJ20: 0 | HK20: 0 | HL20: 0 | HM20: 0 | HN20: 0 | HO20: 0 | HP20: 0 | HQ20: 0 | HR20: 0 | HS20: 0 | HT20: 0 | HU20: 0 | HV20: 0 | HW20: 0 | HX20: 0 | HY20: 0 | HZ20: 0 | IA20: 0 | IB20: 0 | IC20: 0 | ID20: 0 | IE20: 0 | IF20: 0 | IG20: 0 | IH20: 0 | II20: 0 | IJ20: 0 | IK20: 0 | IL20: 0 | IM20: 0 | IN20: 0 | IO20: 0 | IP20: 0 | IQ20: 0 | IR20: 0 | IS20: 0 | IT20: 0 | IU20: 0 | IV20: 0 | IW20: 0 | IX20: 0 | IY20: 0 | IZ20: 0 | JA20: 0 | JB20: 0 | JC20: 0 | JD20: 0 | JE20: 0 | JF20: 0 | JG20: 0 | JH20: =$E$20*JH7 -> 0 | JI20: 0 | JJ20: 0 | JK20: 0 | JL20: 0 | JM20: 0 | JN20: 0 | JO20: 0 | JP20: 0 | JQ20: 0 | JR20: 0 | JS20: 0 | JT20: 0 | JU20: 0 | JV20: 0 | JW20: 0 | JX20: 0 | JY20: 0 | JZ20: 0 | KA20: 0 | KB20: 0 | KC20: 0 | KD20: 0 | KE20: 0 | KF20: 0 | KG20: 0 | KH20: 0 | KI20: 0 | KJ20: 0 | KK20: 0 | KL20: 0 | KM20: 0 | KN20: 0 | KO20: 0 | KP20: 0 | KQ20: 0 | KR20: 0 | KS20: 0 | KT20: 0 | KU20: 0 | KV20: 0 | KW20: 0 | KX20: 0 | KY20: 0 | KZ20: 0 | LA20: 0 | LB20: 0 | LC20: 0 | LD20: 0 | LE20: 0 | LF20: 0 | LG20: 0 | LH20: 0 | LI20: 0 | LJ20: 0 | LK20: 0 | LL20: 0 | LM20: 0 | LN20: 0 | LO20: 0 | LP20: 0 | LQ20: 0 | LR20: 0 | LS20: 0 | LT20: =$E$20*LT7 -> 0 | LU20: 0 | LV20: 0 | LW20: 0 | LX20: 0 | LY20: 0 | LZ20: 0 | MA20: 0 | MB20: 0 | MC20: 0 | MD20: 0 | ME20: 0 | MF20: 0 | MG20: 0 | MH20: 0 | MI20: 0 | MJ20: 0 | MK20: 0 | ML20: 0 | MM20: 0 | MN20: 0 | MO20: 0 | MP20: 0 | MQ20: 0 | MR20: 0 | MS20: 0 | MT20: 0 | MU20: 0 | MV20: 0 | MW20: 0 | MX20: 0 | MY20: 0 | MZ20: 0 | NA20: 0 | NB20: 0 | NC20: 0 | ND20: 0 | NE20: 0 | NF20: 0 | NG20: 0 | NH20: 0 | NI20: 0 | NJ20: 0 | NK20: 0 | NL20: 0 | NM20: 0 | NN20: 0 | NO20: 0 | NP20: 0 | NQ20: 0 | NR20: 0 | NS20: 0 | NT20: 0 | NU20: 0 | NV20: 0 | NW20: 0 | NX20: 0 | NY20: 0 | NZ20: 0 | OA20: 0 | OB20: 0 | OC20: 0 | OD20: 0 | OE20: 0 | OF20: =$E$20*OF7 -> 0 | OG20: 0 | OH20: 0 | OI20: 0 | OJ20: 0 | OK20: 0 | OL20: 0 | OM20: 0 | ON20: 0 | OO20: 0 | OP20: 0 | OQ20: 0 | OR20: 0 | OS20: 0 | OT20: 0 | OU20: 0 | OV20: 0 | OW20: 0 | OX20: 0 | OY20: 0 | OZ20: 0 | PA20: 0 | PB20: 0 | PC20: 0 | PD20: 0 | PE20: 0 | PF20: 0 | PG20: 0 | PH20: 0 | PI20: 0 | PJ20: 0 | PK20: 0 | PL20: 0 | PM20: 0 | PN20: 0 | PO20: 0 | PP20: 0 | PQ20: 0 | PR20: 0 | PS20: 0 | PT20: 0 | PU20: 0 | PV20: 0 | PW20: 0 | PX20: 0 | PY20: 0 | PZ20: 0 | QA20: 0 | QB20: 0 | QC20: 0 | QD20: 0 | QE20: 0 | QF20: 0 | QG20: 0 | QH20: 0 | QI20: 0 | QJ20: 0 | QK20: 0 | QL20: 0 | QM20: 0 | QN20: 0 | QO20: 0 | QP20: 0 | QQ20: 0 | QR20: =$E$20*QR7 -> 0 | QS20: 0 | QT20: 0 | QU20: 0 | QV20: 0 | QW20: 0 | QX20: 0 | QY20: 0 | QZ20: 0 | RA20: 0 | RB20: 0 | RC20: 0 | RD20: 0 | RE20: 0 | RF20: 0 | RG20: 0 | RH20: 0 | RI20: 0 | RJ20: 0 | RK20: 0 | RL20: 0 | RM20: 0 | RN20: 0 | RO20: 0 | RP20: 0 | RQ20: 0 | RR20: 0 | RS20: 0 | RT20: 0 | RU20: 0 | RV20: 0 | RW20: 0 | RX20: 0 | RY20: 0 | RZ20: 0 | SA20: 0 | SB20: 0 | SC20: 0 | SD20: 0 | SE20: 0 | SF20: 0 | SG20: 0 | SH20: 0 | SI20: 0 | SJ20: 0 | SK20: 0 | SL20: 0 | SM20: 0 | SN20: 0 | SO20: 0 | SP20: 0 | SQ20: 0
D21: Annual Generation b/4 Degrad, Availiblity | G21: MWH | L21: =L20*L17 -> 0 | M21: =M20*M17 -> 0 | N21: 0 | O21: 0 | P21: 0 | Q21: 0 | R21: 0 | S21: 0 | T21: 0 | U21: 0 | V21: 0 | W21: 0 | X21: 0 | Y21: 0 | Z21: 0 | AA21: 0 | AB21: 0 | AC21: 0 | AD21: 0 | AE21: 0 | AF21: 0 | AG21: 0 | AH21: 0 | AI21: 0 | AJ21: 0 | AK21: 0 | AL21: 0 | AM21: 0 | AN21: 0 | AO21: 0 | AP21: 0 | AQ21: 0 | AR21: 0 | AS21: 0 | AT21: 0 | AU21: 0 | AV21: 0 | AW21: 0 | AX21: 0 | AY21: 0 | AZ21: 0 | BA21: 0 | BB21: 0 | BC21: 0 | BD21: 0 | BE21: 0 | BF21: 0 | BG21: 0 | BH21: 0 | BI21: 0 | BJ21: 0 | BK21: 0 | BL21: 0 | BM21: 0 | BN21: 0 | BO21: 0 | BP21: 0 | BQ21: 0 | BR21: 0 | BS21: 0 | BT21: 0 | BU21: 0 | BV21: 0 | BW21: 0 | BX21: 0 | BY21: =BY20*BY17 -> 0 | BZ21: 0 | CA21: 0 | CB21: 0 | CC21: 0 | CD21: 0 | CE21: 0 | CF21: 0 | CG21: 0 | CH21: 0 | CI21: 0 | CJ21: 0 | CK21: 0 | CL21: 0 | CM21: 0 | CN21: 0 | CO21: 0 | CP21: 0 | CQ21: 0 | CR21: 0 | CS21: 0 | CT21: 0 | CU21: 0 | CV21: 0 | CW21: 0 | CX21: 0 | CY21: 0 | CZ21: 0 | DA21: 0 | DB21: 0 | DC21: 0 | DD21: 0 | DE21: 0 | DF21: 0 | DG21: 0 | DH21: 0 | DI21: 0 | DJ21: 0 | DK21: 0 | DL21: 0 | DM21: 0 | DN21: 0 | DO21: 0 | DP21: 0 | DQ21: 0 | DR21: 0 | DS21: 0 | DT21: 0 | DU21: 0 | DV21: 0 | DW21: 0 | DX21: 0 | DY21: 0 | DZ21: 0 | EA21: 0 | EB21: 0 | EC21: 0 | ED21: 0 | EE21: 0 | EF21: 0 | EG21: 0 | EH21: 0 | EI21: 0 | EJ21: 0 | EK21: =EK20*EK17 -> 0 | EL21: 0 | EM21: 0 | EN21: 0 | EO21: 0 | EP21: 0 | EQ21: 0 | ER21: 0 | ES21: 0 | ET21: 0 | EU21: 0 | EV21: 0 | EW21: 0 | EX21: 0 | EY21: 0 | EZ21: 0 | FA21: 0 | FB21: 0 | FC21: 0 | FD21: 0 | FE21: 0 | FF21: 0 | FG21: 0 | FH21: 0 | FI21: 0 | FJ21: 0 | FK21: 0 | FL21: 0 | FM21: 0 | FN21: 0 | FO21: 0 | FP21: 0 | FQ21: 0 | FR21: 0 | FS21: 0 | FT21: 0 | FU21: 0 | FV21: 0 | FW21: 0 | FX21: 0 | FY21: 0 | FZ21: 0 | GA21: 0 | GB21: 0 | GC21: 0 | GD21: 0 | GE21: 0 | GF21: 0 | GG21: 0 | GH21: 0 | GI21: 0 | GJ21: 0 | GK21: 0 | GL21: 0 | GM21: 0 | GN21: 0 | GO21: 0 | GP21: 0 | GQ21: 0 | GR21: 0 | GS21: 0 | GT21: 0 | GU21: 0 | GV21: 0 | GW21: =GW20*GW17 -> 0 | GX21: 0 | GY21: 0 | GZ21: 0 | HA21: 0 | HB21: 0 | HC21: 0 | HD21: 0 | HE21: 0 | HF21: 0 | HG21: 0 | HH21: 0 | HI21: 0 | HJ21: 0 | HK21: 0 | HL21: 0 | HM21: 0 | HN21: 0 | HO21: 0 | HP21: 0 | HQ21: 0 | HR21: 0 | HS21: 0 | HT21: 0 | HU21: 0 | HV21: 0 | HW21: 0 | HX21: 0 | HY21: 0 | HZ21: 0 | IA21: 0 | IB21: 0 | IC21: 0 | ID21: 0 | IE21: 0 | IF21: 0 | IG21: 0 | IH21: 0 | II21: 0 | IJ21: 0 | IK21: 0 | IL21: 0 | IM21: 0 | IN21: 0 | IO21: 0 | IP21: 0 | IQ21: 0 | IR21: 0 | IS21: 0 | IT21: 0 | IU21: 0 | IV21: 0 | IW21: 0 | IX21: 0 | IY21: 0 | IZ21: 0 | JA21: 0 | JB21: 0 | JC21: 0 | JD21: 0 | JE21: 0 | JF21: 0 | JG21: 0 | JH21: 0 | JI21: =JI20*JI17 -> 0 | JJ21: 0 | JK21: 0 | JL21: 0 | JM21: 0 | JN21: 0 | JO21: 0 | JP21: 0 | JQ21: 0 | JR21: 0 | JS21: 0 | JT21: 0 | JU21: 0 | JV21: 0 | JW21: 0 | JX21: 0 | JY21: 0 | JZ21: 0 | KA21: 0 | KB21: 0 | KC21: 0 | KD21: 0 | KE21: 0 | KF21: 0 | KG21: 0 | KH21: 0 | KI21: 0 | KJ21: 0 | KK21: 0 | KL21: 0 | KM21: 0 | KN21: 0 | KO21: 0 | KP21: 0 | KQ21: 0 | KR21: 0 | KS21: 0 | KT21: 0 | KU21: 0 | KV21: 0 | KW21: 0 | KX21: 0 | KY21: 0 | KZ21: 0 | LA21: 0 | LB21: 0 | LC21: 0 | LD21: 0 | LE21: 0 | LF21: 0 | LG21: 0 | LH21: 0 | LI21: 0 | LJ21: 0 | LK21: 0 | LL21: 0 | LM21: 0 | LN21: 0 | LO21: 0 | LP21: 0 | LQ21: 0 | LR21: 0 | LS21: 0 | LT21: 0 | LU21: =LU20*LU17 -> 0 | LV21: 0 | LW21: 0 | LX21: 0 | LY21: 0 | LZ21: 0 | MA21: 0 | MB21: 0 | MC21: 0 | MD21: 0 | ME21: 0 | MF21: 0 | MG21: 0 | MH21: 0 | MI21: 0 | MJ21: 0 | MK21: 0 | ML21: 0 | MM21: 0 | MN21: 0 | MO21: 0 | MP21: 0 | MQ21: 0 | MR21: 0 | MS21: 0 | MT21: 0 | MU21: 0 | MV21: 0 | MW21: 0 | MX21: 0 | MY21: 0 | MZ21: 0 | NA21: 0 | NB21: 0 | NC21: 0 | ND21: 0 | NE21: 0 | NF21: 0 | NG21: 0 | NH21: 0 | NI21: 0 | NJ21: 0 | NK21: 0 | NL21: 0 | NM21: 0 | NN21: 0 | NO21: 0 | NP21: 0 | NQ21: 0 | NR21: 0 | NS21: 0 | NT21: 0 | NU21: 0 | NV21: 0 | NW21: 0 | NX21: 0 | NY21: 0 | NZ21: 0 | OA21: 0 | OB21: 0 | OC21: 0 | OD21: 0 | OE21: 0 | OF21: 0 | OG21: =OG20*OG17 -> 0 | OH21: 0 | OI21: 0 | OJ21: 0 | OK21: 0 | OL21: 0 | OM21: 0 | ON21: 0 | OO21: 0 | OP21: 0 | OQ21: 0 | OR21: 0 | OS21: 0 | OT21: 0 | OU21: 0 | OV21: 0 | OW21: 0 | OX21: 0 | OY21: 0 | OZ21: 0 | PA21: 0 | PB21: 0 | PC21: 0 | PD21: 0 | PE21: 0 | PF21: 0 | PG21: 0 | PH21: 0 | PI21: 0 | PJ21: 0 | PK21: 0 | PL21: 0 | PM21: 0 | PN21: 0 | PO21: 0 | PP21: 0 | PQ21: 0 | PR21: 0 | PS21: 0 | PT21: 0 | PU21: 0 | PV21: 0 | PW21: 0 | PX21: 0 | PY21: 0 | PZ21: 0 | QA21: 0 | QB21: 0 | QC21: 0 | QD21: 0 | QE21: 0 | QF21: 0 | QG21: 0 | QH21: 0 | QI21: 0 | QJ21: 0 | QK21: 0 | QL21: 0 | QM21: 0 | QN21: 0 | QO21: 0 | QP21: 0 | QQ21: 0 | QR21: 0 | QS21: =QS20*QS17 -> 0 | QT21: 0 | QU21: 0 | QV21: 0 | QW21: 0 | QX21: 0 | QY21: 0 | QZ21: 0 | RA21: 0 | RB21: 0 | RC21: 0 | RD21: 0 | RE21: 0 | RF21: 0 | RG21: 0 | RH21: 0 | RI21: 0 | RJ21: 0 | RK21: 0 | RL21: 0 | RM21: 0 | RN21: 0 | RO21: 0 | RP21: 0 | RQ21: 0 | RR21: 0 | RS21: 0 | RT21: 0 | RU21: 0 | RV21: 0 | RW21: 0 | RX21: 0 | RY21: 0 | RZ21: 0 | SA21: 0 | SB21: 0 | SC21: 0 | SD21: 0 | SE21: 0 | SF21: 0 | SG21: 0 | SH21: 0 | SI21: 0 | SJ21: 0 | SK21: 0 | SL21: 0 | SM21: 0 | SN21: 0 | SO21: 0 | SP21: 0 | SQ21: 0
D23: Availability Factor | E23: ='InputC - Operations'!$E$24 -> 0.99 | G23: Pct | L23: =$E$23*L7 -> 0 | M23: 0 | N23: 0 | O23: 0 | P23: 0 | Q23: 0 | R23: 0 | S23: 0 | T23: 0 | U23: 0 | V23: 0 | W23: 0 | X23: 0 | Y23: 0 | Z23: 0 | AA23: 0 | AB23: 0 | AC23: 0 | AD23: 0 | AE23: 0 | AF23: 0 | AG23: 0 | AH23: 0 | AI23: 0 | AJ23: 0 | AK23: 0 | AL23: 0 | AM23: 0 | AN23: 0 | AO23: 0 | AP23: 0 | AQ23: 0 | AR23: 0 | AS23: 0 | AT23: 0 | AU23: 0 | AV23: 0 | AW23: 0 | AX23: 0 | AY23: 0 | AZ23: 0 | BA23: 0 | BB23: 0 | BC23: 0 | BD23: 0 | BE23: 0 | BF23: 0 | BG23: 0 | BH23: 0 | BI23: 0 | BJ23: 0 | BK23: 0 | BL23: 0 | BM23: 0 | BN23: 0 | BO23: 0 | BP23: 0 | BQ23: 0 | BR23: 0 | BS23: 0 | BT23: 0 | BU23: 0 | BV23: 0 | BW23: 0 | BX23: =$E$23*BX7 -> 0 | BY23: 0 | BZ23: 0 | CA23: 0 | CB23: 0 | CC23: 0 | CD23: 0 | CE23: 0 | CF23: 0 | CG23: 0 | CH23: 0 | CI23: 0 | CJ23: 0 | CK23: 0 | CL23: 0 | CM23: 0 | CN23: 0 | CO23: 0 | CP23: 0 | CQ23: 0 | CR23: 0 | CS23: 0 | CT23: 0 | CU23: 0 | CV23: 0 | CW23: 0 | CX23: 0 | CY23: 0 | CZ23: 0 | DA23: 0 | DB23: 0 | DC23: 0 | DD23: 0 | DE23: 0 | DF23: 0 | DG23: 0 | DH23: 0 | DI23: 0 | DJ23: 0 | DK23: 0 | DL23: 0 | DM23: 0 | DN23: 0 | DO23: 0 | DP23: 0 | DQ23: 0 | DR23: 0 | DS23: 0 | DT23: 0 | DU23: 0 | DV23: 0 | DW23: 0 | DX23: 0 | DY23: 0 | DZ23: 0 | EA23: 0 | EB23: 0 | EC23: 0 | ED23: 0 | EE23: 0 | EF23: 0 | EG23: 0 | EH23: 0 | EI23: 0 | EJ23: =$E$23*EJ7 -> 0 | EK23: 0 | EL23: 0 | EM23: 0 | EN23: 0 | EO23: 0 | EP23: 0 | EQ23: 0 | ER23: 0 | ES23: 0 | ET23: 0 | EU23: 0 | EV23: 0 | EW23: 0 | EX23: 0 | EY23: 0 | EZ23: 0 | FA23: 0 | FB23: 0 | FC23: 0 | FD23: 0 | FE23: 0 | FF23: 0 | FG23: 0 | FH23: 0 | FI23: 0 | FJ23: 0 | FK23: 0 | FL23: 0 | FM23: 0 | FN23: 0 | FO23: 0 | FP23: 0 | FQ23: 0 | FR23: 0 | FS23: 0 | FT23: 0 | FU23: 0 | FV23: 0 | FW23: 0 | FX23: 0 | FY23: 0 | FZ23: 0 | GA23: 0 | GB23: 0 | GC23: 0 | GD23: 0 | GE23: 0 | GF23: 0 | GG23: 0 | GH23: 0 | GI23: 0 | GJ23: 0 | GK23: 0 | GL23: 0 | GM23: 0 | GN23: 0 | GO23: 0 | GP23: 0 | GQ23: 0 | GR23: 0 | GS23: 0 | GT23: 0 | GU23: 0 | GV23: =$E$23*GV7 -> 0 | GW23: 0 | GX23: 0 | GY23: 0 | GZ23: 0 | HA23: 0 | HB23: 0 | HC23: 0 | HD23: 0 | HE23: 0 | HF23: 0 | HG23: 0 | HH23: 0 | HI23: 0 | HJ23: 0 | HK23: 0 | HL23: 0 | HM23: 0 | HN23: 0 | HO23: 0 | HP23: 0 | HQ23: 0 | HR23: 0 | HS23: 0 | HT23: 0 | HU23: 0 | HV23: 0 | HW23: 0 | HX23: 0 | HY23: 0 | HZ23: 0 | IA23: 0 | IB23: 0 | IC23: 0 | ID23: 0 | IE23: 0 | IF23: 0 | IG23: 0 | IH23: 0 | II23: 0 | IJ23: 0 | IK23: 0 | IL23: 0 | IM23: 0 | IN23: 0 | IO23: 0 | IP23: 0 | IQ23: 0 | IR23: 0 | IS23: 0 | IT23: 0 | IU23: 0 | IV23: 0 | IW23: 0 | IX23: 0 | IY23: 0 | IZ23: 0 | JA23: 0 | JB23: 0 | JC23: 0 | JD23: 0 | JE23: 0 | JF23: 0 | JG23: 0 | JH23: =$E$23*JH7 -> 0 | JI23: 0 | JJ23: 0 | JK23: 0 | JL23: 0 | JM23: 0 | JN23: 0 | JO23: 0 | JP23: 0 | JQ23: 0 | JR23: 0 | JS23: 0 | JT23: 0 | JU23: 0 | JV23: 0 | JW23: 0 | JX23: 0 | JY23: 0 | JZ23: 0 | KA23: 0 | KB23: 0 | KC23: 0 | KD23: 0 | KE23: 0 | KF23: 0 | KG23: 0 | KH23: 0 | KI23: 0 | KJ23: 0 | KK23: 0 | KL23: 0 | KM23: 0 | KN23: 0 | KO23: 0 | KP23: 0 | KQ23: 0 | KR23: 0 | KS23: 0 | KT23: 0 | KU23: 0 | KV23: 0 | KW23: 0 | KX23: 0 | KY23: 0 | KZ23: 0 | LA23: 0 | LB23: 0 | LC23: 0 | LD23: 0 | LE23: 0 | LF23: 0 | LG23: 0 | LH23: 0 | LI23: 0 | LJ23: 0 | LK23: 0 | LL23: 0 | LM23: 0 | LN23: 0 | LO23: 0 | LP23: 0 | LQ23: 0 | LR23: 0 | LS23: 0 | LT23: =$E$23*LT7 -> 0 | LU23: 0 | LV23: 0 | LW23: 0 | LX23: 0 | LY23: 0 | LZ23: 0 | MA23: 0 | MB23: 0 | MC23: 0 | MD23: 0 | ME23: 0 | MF23: 0 | MG23: 0 | MH23: 0 | MI23: 0 | MJ23: 0 | MK23: 0 | ML23: 0 | MM23: 0 | MN23: 0 | MO23: 0 | MP23: 0 | MQ23: 0 | MR23: 0 | MS23: 0 | MT23: 0 | MU23: 0 | MV23: 0 | MW23: 0 | MX23: 0 | MY23: 0 | MZ23: 0 | NA23: 0 | NB23: 0 | NC23: 0 | ND23: 0 | NE23: 0 | NF23: 0 | NG23: 0 | NH23: 0 | NI23: 0 | NJ23: 0 | NK23: 0 | NL23: 0 | NM23: 0 | NN23: 0 | NO23: 0 | NP23: 0 | NQ23: 0 | NR23: 0 | NS23: 0 | NT23: 0 | NU23: 0 | NV23: 0 | NW23: 0 | NX23: 0 | NY23: 0 | NZ23: 0 | OA23: 0 | OB23: 0 | OC23: 0 | OD23: 0 | OE23: 0 | OF23: =$E$23*OF7 -> 0 | OG23: 0 | OH23: 0 | OI23: 0 | OJ23: 0 | OK23: 0 | OL23: 0 | OM23: 0 | ON23: 0 | OO23: 0 | OP23: 0 | OQ23: 0 | OR23: 0 | OS23: 0 | OT23: 0 | OU23: 0 | OV23: 0 | OW23: 0 | OX23: 0 | OY23: 0 | OZ23: 0 | PA23: 0 | PB23: 0 | PC23: 0 | PD23: 0 | PE23: 0 | PF23: 0 | PG23: 0 | PH23: 0 | PI23: 0 | PJ23: 0 | PK23: 0 | PL23: 0 | PM23: 0 | PN23: 0 | PO23: 0 | PP23: 0 | PQ23: 0 | PR23: 0 | PS23: 0 | PT23: 0 | PU23: 0 | PV23: 0 | PW23: 0 | PX23: 0 | PY23: 0 | PZ23: 0 | QA23: 0 | QB23: 0 | QC23: 0 | QD23: 0 | QE23: 0 | QF23: 0 | QG23: 0 | QH23: 0 | QI23: 0 | QJ23: 0 | QK23: 0 | QL23: 0 | QM23: 0 | QN23: 0 | QO23: 0 | QP23: 0 | QQ23: 0 | QR23: =$E$23*QR7 -> 0 | QS23: 0 | QT23: 0 | QU23: 0 | QV23: 0 | QW23: 0 | QX23: 0 | QY23: 0 | QZ23: 0 | RA23: 0 | RB23: 0 | RC23: 0 | RD23: 0 | RE23: 0 | RF23: 0 | RG23: 0 | RH23: 0 | RI23: 0 | RJ23: 0 | RK23: 0 | RL23: 0 | RM23: 0 | RN23: 0 | RO23: 0 | RP23: 0 | RQ23: 0 | RR23: 0 | RS23: 0 | RT23: 0 | RU23: 0 | RV23: 0 | RW23: 0 | RX23: 0 | RY23: 0 | RZ23: 0 | SA23: 0 | SB23: 0 | SC23: 0 | SD23: 0 | SE23: 0 | SF23: 0 | SG23: 0 | SH23: 0 | SI23: 0 | SJ23: 0 | SK23: 0 | SL23: 0 | SM23: 0 | SN23: 0 | SO23: 0 | SP23: 0 | SQ23: 0
D24: Available Generation | G24: MWH | L24: =L23*L21 -> 0 | M24: =M23*M21 -> 0 | N24: 0 | O24: 0 | P24: 0 | Q24: 0 | R24: 0 | S24: 0 | T24: 0 | U24: 0 | V24: 0 | W24: 0 | X24: 0 | Y24: 0 | Z24: 0 | AA24: 0 | AB24: 0 | AC24: 0 | AD24: 0 | AE24: 0 | AF24: 0 | AG24: 0 | AH24: 0 | AI24: 0 | AJ24: 0 | AK24: 0 | AL24: 0 | AM24: 0 | AN24: 0 | AO24: 0 | AP24: 0 | AQ24: 0 | AR24: 0 | AS24: 0 | AT24: 0 | AU24: 0 | AV24: 0 | AW24: 0 | AX24: 0 | AY24: 0 | AZ24: 0 | BA24: 0 | BB24: 0 | BC24: 0 | BD24: 0 | BE24: 0 | BF24: 0 | BG24: 0 | BH24: 0 | BI24: 0 | BJ24: 0 | BK24: 0 | BL24: 0 | BM24: 0 | BN24: 0 | BO24: 0 | BP24: 0 | BQ24: 0 | BR24: 0 | BS24: 0 | BT24: 0 | BU24: 0 | BV24: 0 | BW24: 0 | BX24: 0 | BY24: =BY23*BY21 -> 0 | BZ24: 0 | CA24: 0 | CB24: 0 | CC24: 0 | CD24: 0 | CE24: 0 | CF24: 0 | CG24: 0 | CH24: 0 | CI24: 0 | CJ24: 0 | CK24: 0 | CL24: 0 | CM24: 0 | CN24: 0 | CO24: 0 | CP24: 0 | CQ24: 0 | CR24: 0 | CS24: 0 | CT24: 0 | CU24: 0 | CV24: 0 | CW24: 0 | CX24: 0 | CY24: 0 | CZ24: 0 | DA24: 0 | DB24: 0 | DC24: 0 | DD24: 0 | DE24: 0 | DF24: 0 | DG24: 0 | DH24: 0 | DI24: 0 | DJ24: 0 | DK24: 0 | DL24: 0 | DM24: 0 | DN24: 0 | DO24: 0 | DP24: 0 | DQ24: 0 | DR24: 0 | DS24: 0 | DT24: 0 | DU24: 0 | DV24: 0 | DW24: 0 | DX24: 0 | DY24: 0 | DZ24: 0 | EA24: 0 | EB24: 0 | EC24: 0 | ED24: 0 | EE24: 0 | EF24: 0 | EG24: 0 | EH24: 0 | EI24: 0 | EJ24: 0 | EK24: =EK23*EK21 -> 0 | EL24: 0 | EM24: 0 | EN24: 0 | EO24: 0 | EP24: 0 | EQ24: 0 | ER24: 0 | ES24: 0 | ET24: 0 | EU24: 0 | EV24: 0 | EW24: 0 | EX24: 0 | EY24: 0 | EZ24: 0 | FA24: 0 | FB24: 0 | FC24: 0 | FD24: 0 | FE24: 0 | FF24: 0 | FG24: 0 | FH24: 0 | FI24: 0 | FJ24: 0 | FK24: 0 | FL24: 0 | FM24: 0 | FN24: 0 | FO24: 0 | FP24: 0 | FQ24: 0 | FR24: 0 | FS24: 0 | FT24: 0 | FU24: 0 | FV24: 0 | FW24: 0 | FX24: 0 | FY24: 0 | FZ24: 0 | GA24: 0 | GB24: 0 | GC24: 0 | GD24: 0 | GE24: 0 | GF24: 0 | GG24: 0 | GH24: 0 | GI24: 0 | GJ24: 0 | GK24: 0 | GL24: 0 | GM24: 0 | GN24: 0 | GO24: 0 | GP24: 0 | GQ24: 0 | GR24: 0 | GS24: 0 | GT24: 0 | GU24: 0 | GV24: 0 | GW24: =GW23*GW21 -> 0 | GX24: 0 | GY24: 0 | GZ24: 0 | HA24: 0 | HB24: 0 | HC24: 0 | HD24: 0 | HE24: 0 | HF24: 0 | HG24: 0 | HH24: 0 | HI24: 0 | HJ24: 0 | HK24: 0 | HL24: 0 | HM24: 0 | HN24: 0 | HO24: 0 | HP24: 0 | HQ24: 0 | HR24: 0 | HS24: 0 | HT24: 0 | HU24: 0 | HV24: 0 | HW24: 0 | HX24: 0 | HY24: 0 | HZ24: 0 | IA24: 0 | IB24: 0 | IC24: 0 | ID24: 0 | IE24: 0 | IF24: 0 | IG24: 0 | IH24: 0 | II24: 0 | IJ24: 0 | IK24: 0 | IL24: 0 | IM24: 0 | IN24: 0 | IO24: 0 | IP24: 0 | IQ24: 0 | IR24: 0 | IS24: 0 | IT24: 0 | IU24: 0 | IV24: 0 | IW24: 0 | IX24: 0 | IY24: 0 | IZ24: 0 | JA24: 0 | JB24: 0 | JC24: 0 | JD24: 0 | JE24: 0 | JF24: 0 | JG24: 0 | JH24: 0 | JI24: =JI23*JI21 -> 0 | JJ24: 0 | JK24: 0 | JL24: 0 | JM24: 0 | JN24: 0 | JO24: 0 | JP24: 0 | JQ24: 0 | JR24: 0 | JS24: 0 | JT24: 0 | JU24: 0 | JV24: 0 | JW24: 0 | JX24: 0 | JY24: 0 | JZ24: 0 | KA24: 0 | KB24: 0 | KC24: 0 | KD24: 0 | KE24: 0 | KF24: 0 | KG24: 0 | KH24: 0 | KI24: 0 | KJ24: 0 | KK24: 0 | KL24: 0 | KM24: 0 | KN24: 0 | KO24: 0 | KP24: 0 | KQ24: 0 | KR24: 0 | KS24: 0 | KT24: 0 | KU24: 0 | KV24: 0 | KW24: 0 | KX24: 0 | KY24: 0 | KZ24: 0 | LA24: 0 | LB24: 0 | LC24: 0 | LD24: 0 | LE24: 0 | LF24: 0 | LG24: 0 | LH24: 0 | LI24: 0 | LJ24: 0 | LK24: 0 | LL24: 0 | LM24: 0 | LN24: 0 | LO24: 0 | LP24: 0 | LQ24: 0 | LR24: 0 | LS24: 0 | LT24: 0 | LU24: =LU23*LU21 -> 0 | LV24: 0 | LW24: 0 | LX24: 0 | LY24: 0 | LZ24: 0 | MA24: 0 | MB24: 0 | MC24: 0 | MD24: 0 | ME24: 0 | MF24: 0 | MG24: 0 | MH24: 0 | MI24: 0 | MJ24: 0 | MK24: 0 | ML24: 0 | MM24: 0 | MN24: 0 | MO24: 0 | MP24: 0 | MQ24: 0 | MR24: 0 | MS24: 0 | MT24: 0 | MU24: 0 | MV24: 0 | MW24: 0 | MX24: 0 | MY24: 0 | MZ24: 0 | NA24: 0 | NB24: 0 | NC24: 0 | ND24: 0 | NE24: 0 | NF24: 0 | NG24: 0 | NH24: 0 | NI24: 0 | NJ24: 0 | NK24: 0 | NL24: 0 | NM24: 0 | NN24: 0 | NO24: 0 | NP24: 0 | NQ24: 0 | NR24: 0 | NS24: 0 | NT24: 0 | NU24: 0 | NV24: 0 | NW24: 0 | NX24: 0 | NY24: 0 | NZ24: 0 | OA24: 0 | OB24: 0 | OC24: 0 | OD24: 0 | OE24: 0 | OF24: 0 | OG24: =OG23*OG21 -> 0 | OH24: 0 | OI24: 0 | OJ24: 0 | OK24: 0 | OL24: 0 | OM24: 0 | ON24: 0 | OO24: 0 | OP24: 0 | OQ24: 0 | OR24: 0 | OS24: 0 | OT24: 0 | OU24: 0 | OV24: 0 | OW24: 0 | OX24: 0 | OY24: 0 | OZ24: 0 | PA24: 0 | PB24: 0 | PC24: 0 | PD24: 0 | PE24: 0 | PF24: 0 | PG24: 0 | PH24: 0 | PI24: 0 | PJ24: 0 | PK24: 0 | PL24: 0 | PM24: 0 | PN24: 0 | PO24: 0 | PP24: 0 | PQ24: 0 | PR24: 0 | PS24: 0 | PT24: 0 | PU24: 0 | PV24: 0 | PW24: 0 | PX24: 0 | PY24: 0 | PZ24: 0 | QA24: 0 | QB24: 0 | QC24: 0 | QD24: 0 | QE24: 0 | QF24: 0 | QG24: 0 | QH24: 0 | QI24: 0 | QJ24: 0 | QK24: 0 | QL24: 0 | QM24: 0 | QN24: 0 | QO24: 0 | QP24: 0 | QQ24: 0 | QR24: 0 | QS24: =QS23*QS21 -> 0 | QT24: 0 | QU24: 0 | QV24: 0 | QW24: 0 | QX24: 0 | QY24: 0 | QZ24: 0 | RA24: 0 | RB24: 0 | RC24: 0 | RD24: 0 | RE24: 0 | RF24: 0 | RG24: 0 | RH24: 0 | RI24: 0 | RJ24: 0 | RK24: 0 | RL24: 0 | RM24: 0 | RN24: 0 | RO24: 0 | RP24: 0 | RQ24: 0 | RR24: 0 | RS24: 0 | RT24: 0 | RU24: 0 | RV24: 0 | RW24: 0 | RX24: 0 | RY24: 0 | RZ24: 0 | SA24: 0 | SB24: 0 | SC24: 0 | SD24: 0 | SE24: 0 | SF24: 0 | SG24: 0 | SH24: 0 | SI24: 0 | SJ24: 0 | SK24: 0 | SL24: 0 | SM24: 0 | SN24: 0 | SO24: 0 | SP24: 0 | SQ24: 0
D26: Age in Periods | G26: Months
D27: Age in Years | G27: Years
D28: Annual Degradation | E28: =InputS!D39 -> 0 | G28: % p.a.
D29: Monthly Degradation | G29: % p.p.
D30: Monthly Degradation Index | G30: Index | K30: 1
D31: Annual Generation after Degradation | G31: MWH | L31: =L30*L24 -> 0 | M31: =M30*M24 -> 0 | N31: 0 | O31: 0 | P31: 0 | Q31: 0 | R31: 0 | S31: 0 | T31: 0 | U31: 0 | V31: 0 | W31: 0 | X31: 0 | Y31: 0 | Z31: 0 | AA31: 0 | AB31: 0 | AC31: 0 | AD31: 0 | AE31: 0 | AF31: 0 | AG31: 0 | AH31: 0 | AI31: 0 | AJ31: 0 | AK31: 0 | AL31: 0 | AM31: 0 | AN31: 0 | AO31: 0 | AP31: 0 | AQ31: 0 | AR31: 0 | AS31: 0 | AT31: 0 | AU31: 0 | AV31: 0 | AW31: 0 | AX31: 0 | AY31: 0 | AZ31: 0 | BA31: 0 | BB31: 0 | BC31: 0 | BD31: 0 | BE31: 0 | BF31: 0 | BG31: 0 | BH31: 0 | BI31: 0 | BJ31: 0 | BK31: 0 | BL31: 0 | BM31: 0 | BN31: 0 | BO31: 0 | BP31: 0 | BQ31: 0 | BR31: 0 | BS31: 0 | BT31: 0 | BU31: 0 | BV31: 0 | BW31: 0 | BX31: 0 | BY31: =BY30*BY24 -> 0 | BZ31: 0 | CA31: 0 | CB31: 0 | CC31: 0 | CD31: 0 | CE31: 0 | CF31: 0 | CG31: 0 | CH31: 0 | CI31: 0 | CJ31: 0 | CK31: 0 | CL31: 0 | CM31: 0 | CN31: 0 | CO31: 0 | CP31: 0 | CQ31: 0 | CR31: 0 | CS31: 0 | CT31: 0 | CU31: 0 | CV31: 0 | CW31: 0 | CX31: 0 | CY31: 0 | CZ31: 0 | DA31: 0 | DB31: 0 | DC31: 0 | DD31: 0 | DE31: 0 | DF31: 0 | DG31: 0 | DH31: 0 | DI31: 0 | DJ31: 0 | DK31: 0 | DL31: 0 | DM31: 0 | DN31: 0 | DO31: 0 | DP31: 0 | DQ31: 0 | DR31: 0 | DS31: 0 | DT31: 0 | DU31: 0 | DV31: 0 | DW31: 0 | DX31: 0 | DY31: 0 | DZ31: 0 | EA31: 0 | EB31: 0 | EC31: 0 | ED31: 0 | EE31: 0 | EF31: 0 | EG31: 0 | EH31: 0 | EI31: 0 | EJ31: 0 | EK31: =EK30*EK24 -> 0 | EL31: 0 | EM31: 0 | EN31: 0 | EO31: 0 | EP31: 0 | EQ31: 0 | ER31: 0 | ES31: 0 | ET31: 0 | EU31: 0 | EV31: 0 | EW31: 0 | EX31: 0 | EY31: 0 | EZ31: 0 | FA31: 0 | FB31: 0 | FC31: 0 | FD31: 0 | FE31: 0 | FF31: 0 | FG31: 0 | FH31: 0 | FI31: 0 | FJ31: 0 | FK31: 0 | FL31: 0 | FM31: 0 | FN31: 0 | FO31: 0 | FP31: 0 | FQ31: 0 | FR31: 0 | FS31: 0 | FT31: 0 | FU31: 0 | FV31: 0 | FW31: 0 | FX31: 0 | FY31: 0 | FZ31: 0 | GA31: 0 | GB31: 0 | GC31: 0 | GD31: 0 | GE31: 0 | GF31: 0 | GG31: 0 | GH31: 0 | GI31: 0 | GJ31: 0 | GK31: 0 | GL31: 0 | GM31: 0 | GN31: 0 | GO31: 0 | GP31: 0 | GQ31: 0 | GR31: 0 | GS31: 0 | GT31: 0 | GU31: 0 | GV31: 0 | GW31: =GW30*GW24 -> 0 | GX31: 0 | GY31: 0 | GZ31: 0 | HA31: 0 | HB31: 0 | HC31: 0 | HD31: 0 | HE31: 0 | HF31: 0 | HG31: 0 | HH31: 0 | HI31: 0 | HJ31: 0 | HK31: 0 | HL31: 0 | HM31: 0 | HN31: 0 | HO31: 0 | HP31: 0 | HQ31: 0 | HR31: 0 | HS31: 0 | HT31: 0 | HU31: 0 | HV31: 0 | HW31: 0 | HX31: 0 | HY31: 0 | HZ31: 0 | IA31: 0 | IB31: 0 | IC31: 0 | ID31: 0 | IE31: 0 | IF31: 0 | IG31: 0 | IH31: 0 | II31: 0 | IJ31: 0 | IK31: 0 | IL31: 0 | IM31: 0 | IN31: 0 | IO31: 0 | IP31: 0 | IQ31: 0 | IR31: 0 | IS31: 0 | IT31: 0 | IU31: 0 | IV31: 0 | IW31: 0 | IX31: 0 | IY31: 0 | IZ31: 0 | JA31: 0 | JB31: 0 | JC31: 0 | JD31: 0 | JE31: 0 | JF31: 0 | JG31: 0 | JH31: 0 | JI31: =JI30*JI24 -> 0 | JJ31: 0 | JK31: 0 | JL31: 0 | JM31: 0 | JN31: 0 | JO31: 0 | JP31: 0 | JQ31: 0 | JR31: 0 | JS31: 0 | JT31: 0 | JU31: 0 | JV31: 0 | JW31: 0 | JX31: 0 | JY31: 0 | JZ31: 0 | KA31: 0 | KB31: 0 | KC31: 0 | KD31: 0 | KE31: 0 | KF31: 0 | KG31: 0 | KH31: 0 | KI31: 0 | KJ31: 0 | KK31: 0 | KL31: 0 | KM31: 0 | KN31: 0 | KO31: 0 | KP31: 0 | KQ31: 0 | KR31: 0 | KS31: 0 | KT31: 0 | KU31: 0 | KV31: 0 | KW31: 0 | KX31: 0 | KY31: 0 | KZ31: 0 | LA31: 0 | LB31: 0 | LC31: 0 | LD31: 0 | LE31: 0 | LF31: 0 | LG31: 0 | LH31: 0 | LI31: 0 | LJ31: 0 | LK31: 0 | LL31: 0 | LM31: 0 | LN31: 0 | LO31: 0 | LP31: 0 | LQ31: 0 | LR31: 0 | LS31: 0 | LT31: 0 | LU31: =LU30*LU24 -> 0 | LV31: 0 | LW31: 0 | LX31: 0 | LY31: 0 | LZ31: 0 | MA31: 0 | MB31: 0 | MC31: 0 | MD31: 0 | ME31: 0 | MF31: 0 | MG31: 0 | MH31: 0 | MI31: 0 | MJ31: 0 | MK31: 0 | ML31: 0 | MM31: 0 | MN31: 0 | MO31: 0 | MP31: 0 | MQ31: 0 | MR31: 0 | MS31: 0 | MT31: 0 | MU31: 0 | MV31: 0 | MW31: 0 | MX31: 0 | MY31: 0 | MZ31: 0 | NA31: 0 | NB31: 0 | NC31: 0 | ND31: 0 | NE31: 0 | NF31: 0 | NG31: 0 | NH31: 0 | NI31: 0 | NJ31: 0 | NK31: 0 | NL31: 0 | NM31: 0 | NN31: 0 | NO31: 0 | NP31: 0 | NQ31: 0 | NR31: 0 | NS31: 0 | NT31: 0 | NU31: 0 | NV31: 0 | NW31: 0 | NX31: 0 | NY31: 0 | NZ31: 0 | OA31: 0 | OB31: 0 | OC31: 0 | OD31: 0 | OE31: 0 | OF31: 0 | OG31: =OG30*OG24 -> 0 | OH31: 0 | OI31: 0 | OJ31: 0 | OK31: 0 | OL31: 0 | OM31: 0 | ON31: 0 | OO31: 0 | OP31: 0 | OQ31: 0 | OR31: 0 | OS31: 0 | OT31: 0 | OU31: 0 | OV31: 0 | OW31: 0 | OX31: 0 | OY31: 0 | OZ31: 0 | PA31: 0 | PB31: 0 | PC31: 0 | PD31: 0 | PE31: 0 | PF31: 0 | PG31: 0 | PH31: 0 | PI31: 0 | PJ31: 0 | PK31: 0 | PL31: 0 | PM31: 0 | PN31: 0 | PO31: 0 | PP31: 0 | PQ31: 0 | PR31: 0 | PS31: 0 | PT31: 0 | PU31: 0 | PV31: 0 | PW31: 0 | PX31: 0 | PY31: 0 | PZ31: 0 | QA31: 0 | QB31: 0 | QC31: 0 | QD31: 0 | QE31: 0 | QF31: 0 | QG31: 0 | QH31: 0 | QI31: 0 | QJ31: 0 | QK31: 0 | QL31: 0 | QM31: 0 | QN31: 0 | QO31: 0 | QP31: 0 | QQ31: 0 | QR31: 0 | QS31: =QS30*QS24 -> 0 | QT31: 0 | QU31: 0 | QV31: 0 | QW31: 0 | QX31: 0 | QY31: 0 | QZ31: 0 | RA31: 0 | RB31: 0 | RC31: 0 | RD31: 0 | RE31: 0 | RF31: 0 | RG31: 0 | RH31: 0 | RI31: 0 | RJ31: 0 | RK31: 0 | RL31: 0 | RM31: 0 | RN31: 0 | RO31: 0 | RP31: 0 | RQ31: 0 | RR31: 0 | RS31: 0 | RT31: 0 | RU31: 0 | RV31: 0 | RW31: 0 | RX31: 0 | RY31: 0 | RZ31: 0 | SA31: 0 | SB31: 0 | SC31: 0 | SD31: 0 | SE31: 0 | SF31: 0 | SG31: 0 | SH31: 0 | SI31: 0 | SJ31: 0 | SK31: 0 | SL31: 0 | SM31: 0 | SN31: 0 | SO31: 0 | SP31: 0 | SQ31: 0
D33: Month Number | G33: Month | L33: =MONTH(L4) -> 1 | M33: =MONTH(M4) -> 1 | N33: 1 | O33: 1 | P33: 1 | Q33: 1 | R33: 1 | S33: 1 | T33: 1 | U33: 1 | V33: 1 | W33: 1 | X33: 1 | Y33: 1 | Z33: 1 | AA33: 1 | AB33: 1 | AC33: 1 | AD33: 1 | AE33: 1 | AF33: 1 | AG33: 1 | AH33: 1 | AI33: 1 | AJ33: 1 | AK33: 1 | AL33: 1 | AM33: 1 | AN33: 1 | AO33: 1 | AP33: 1 | AQ33: 1 | AR33: 1 | AS33: 1 | AT33: 1 | AU33: 1 | AV33: 1 | AW33: 1 | AX33: 1 | AY33: 1 | AZ33: 1 | BA33: 1 | BB33: 1 | BC33: 1 | BD33: 1 | BE33: 1 | BF33: 1 | BG33: 1 | BH33: 1 | BI33: 1 | BJ33: 1 | BK33: 1 | BL33: 1 | BM33: 1 | BN33: 1 | BO33: 1 | BP33: 1 | BQ33: 1 | BR33: 1 | BS33: 1 | BT33: 1 | BU33: 1 | BV33: 1 | BW33: 1 | BX33: 1 | BY33: =MONTH(BY4) -> 1 | BZ33: 1 | CA33: 1 | CB33: 1 | CC33: 1 | CD33: 1 | CE33: 1 | CF33: 1 | CG33: 1 | CH33: 1 | CI33: 1 | CJ33: 1 | CK33: 1 | CL33: 1 | CM33: 1 | CN33: 1 | CO33: 1 | CP33: 1 | CQ33: 1 | CR33: 1 | CS33: 1 | CT33: 1 | CU33: 1 | CV33: 1 | CW33: 1 | CX33: 1 | CY33: 1 | CZ33: 1 | DA33: 1 | DB33: 1 | DC33: 1 | DD33: 1 | DE33: 1 | DF33: 1 | DG33: 1 | DH33: 1 | DI33: 1 | DJ33: 1 | DK33: 1 | DL33: 1 | DM33: 1 | DN33: 1 | DO33: 1 | DP33: 1 | DQ33: 1 | DR33: 1 | DS33: 1 | DT33: 1 | DU33: 1 | DV33: 1 | DW33: 1 | DX33: 1 | DY33: 1 | DZ33: 1 | EA33: 1 | EB33: 1 | EC33: 1 | ED33: 1 | EE33: 1 | EF33: 1 | EG33: 1 | EH33: 1 | EI33: 1 | EJ33: 1 | EK33: =MONTH(EK4) -> 1 | EL33: 1 | EM33: 1 | EN33: 1 | EO33: 1 | EP33: 1 | EQ33: 1 | ER33: 1 | ES33: 1 | ET33: 1 | EU33: 1 | EV33: 1 | EW33: 1 | EX33: 1 | EY33: 1 | EZ33: 1 | FA33: 1 | FB33: 1 | FC33: 1 | FD33: 1 | FE33: 1 | FF33: 1 | FG33: 1 | FH33: 1 | FI33: 1 | FJ33: 1 | FK33: 1 | FL33: 1 | FM33: 1 | FN33: 1 | FO33: 1 | FP33: 1 | FQ33: 1 | FR33: 1 | FS33: 1 | FT33: 1 | FU33: 1 | FV33: 1 | FW33: 1 | FX33: 1 | FY33: 1 | FZ33: 1 | GA33: 1 | GB33: 1 | GC33: 1 | GD33: 1 | GE33: 1 | GF33: 1 | GG33: 1 | GH33: 1 | GI33: 1 | GJ33: 1 | GK33: 1 | GL33: 1 | GM33: 1 | GN33: 1 | GO33: 1 | GP33: 1 | GQ33: 1 | GR33: 1 | GS33: 1 | GT33: 1 | GU33: 1 | GV33: 1 | GW33: =MONTH(GW4) -> 1 | GX33: 1 | GY33: 1 | GZ33: 1 | HA33: 1 | HB33: 1 | HC33: 1 | HD33: 1 | HE33: 1 | HF33: 1 | HG33: 1 | HH33: 1 | HI33: 1 | HJ33: 1 | HK33: 1 | HL33: 1 | HM33: 1 | HN33: 1 | HO33: 1 | HP33: 1 | HQ33: 1 | HR33: 1 | HS33: 1 | HT33: 1 | HU33: 1 | HV33: 1 | HW33: 1 | HX33: 1 | HY33: 1 | HZ33: 1 | IA33: 1 | IB33: 1 | IC33: 1 | ID33: 1 | IE33: 1 | IF33: 1 | IG33: 1 | IH33: 1 | II33: 1 | IJ33: 1 | IK33: 1 | IL33: 1 | IM33: 1 | IN33: 1 | IO33: 1 | IP33: 1 | IQ33: 1 | IR33: 1 | IS33: 1 | IT33: 1 | IU33: 1 | IV33: 1 | IW33: 1 | IX33: 1 | IY33: 1 | IZ33: 1 | JA33: 1 | JB33: 1 | JC33: 1 | JD33: 1 | JE33: 1 | JF33: 1 | JG33: 1 | JH33: 1 | JI33: =MONTH(JI4) -> 1 | JJ33: 1 | JK33: 1 | JL33: 1 | JM33: 1 | JN33: 1 | JO33: 1 | JP33: 1 | JQ33: 1 | JR33: 1 | JS33: 1 | JT33: 1 | JU33: 1 | JV33: 1 | JW33: 1 | JX33: 1 | JY33: 1 | JZ33: 1 | KA33: 1 | KB33: 1 | KC33: 1 | KD33: 1 | KE33: 1 | KF33: 1 | KG33: 1 | KH33: 1 | KI33: 1 | KJ33: 1 | KK33: 1 | KL33: 1 | KM33: 1 | KN33: 1 | KO33: 1 | KP33: 1 | KQ33: 1 | KR33: 1 | KS33: 1 | KT33: 1 | KU33: 1 | KV33: 1 | KW33: 1 | KX33: 1 | KY33: 1 | KZ33: 1 | LA33: 1 | LB33: 1 | LC33: 1 | LD33: 1 | LE33: 1 | LF33: 1 | LG33: 1 | LH33: 1 | LI33: 1 | LJ33: 1 | LK33: 1 | LL33: 1 | LM33: 1 | LN33: 1 | LO33: 1 | LP33: 1 | LQ33: 1 | LR33: 1 | LS33: 1 | LT33: 1 | LU33: =MONTH(LU4) -> 1 | LV33: 1 | LW33: 1 | LX33: 1 | LY33: 1 | LZ33: 1 | MA33: 1 | MB33: 1 | MC33: 1 | MD33: 1 | ME33: 1 | MF33: 1 | MG33: 1 | MH33: 1 | MI33: 1 | MJ33: 1 | MK33: 1 | ML33: 1 | MM33: 1 | MN33: 1 | MO33: 1 | MP33: 1 | MQ33: 1 | MR33: 1 | MS33: 1 | MT33: 1 | MU33: 1 | MV33: 1 | MW33: 1 | MX33: 1 | MY33: 1 | MZ33: 1 | NA33: 1 | NB33: 1 | NC33: 1 | ND33: 1 | NE33: 1 | NF33: 1 | NG33: 1 | NH33: 1 | NI33: 1 | NJ33: 1 | NK33: 1 | NL33: 1 | NM33: 1 | NN33: 1 | NO33: 1 | NP33: 1 | NQ33: 1 | NR33: 1 | NS33: 1 | NT33: 1 | NU33: 1 | NV33: 1 | NW33: 1 | NX33: 1 | NY33: 1 | NZ33: 1 | OA33: 1 | OB33: 1 | OC33: 1 | OD33: 1 | OE33: 1 | OF33: 1 | OG33: =MONTH(OG4) -> 1 | OH33: 1 | OI33: 1 | OJ33: 1 | OK33: 1 | OL33: 1 | OM33: 1 | ON33: 1 | OO33: 1 | OP33: 1 | OQ33: 1 | OR33: 1 | OS33: 1 | OT33: 1 | OU33: 1 | OV33: 1 | OW33: 1 | OX33: 1 | OY33: 1 | OZ33: 1 | PA33: 1 | PB33: 1 | PC33: 1 | PD33: 1 | PE33: 1 | PF33: 1 | PG33: 1 | PH33: 1 | PI33: 1 | PJ33: 1 | PK33: 1 | PL33: 1 | PM33: 1 | PN33: 1 | PO33: 1 | PP33: 1 | PQ33: 1 | PR33: 1 | PS33: 1 | PT33: 1 | PU33: 1 | PV33: 1 | PW33: 1 | PX33: 1 | PY33: 1 | PZ33: 1 | QA33: 1 | QB33: 1 | QC33: 1 | QD33: 1 | QE33: 1 | QF33: 1 | QG33: 1 | QH33: 1 | QI33: 1 | QJ33: 1 | QK33: 1 | QL33: 1 | QM33: 1 | QN33: 1 | QO33: 1 | QP33: 1 | QQ33: 1 | QR33: 1 | QS33: =MONTH(QS4) -> 1 | QT33: 1 | QU33: 1 | QV33: 1 | QW33: 1 | QX33: 1 | QY33: 1 | QZ33: 1 | RA33: 1 | RB33: 1 | RC33: 1 | RD33: 1 | RE33: 1 | RF33: 1 | RG33: 1 | RH33: 1 | RI33: 1 | RJ33: 1 | RK33: 1 | RL33: 1 | RM33: 1 | RN33: 1 | RO33: 1 | RP33: 1 | RQ33: 1 | RR33: 1 | RS33: 1 | RT33: 1 | RU33: 1 | RV33: 1 | RW33: 1 | RX33: 1 | RY33: 1 | RZ33: 1 | SA33: 1 | SB33: 1 | SC33: 1 | SD33: 1 | SE33: 1 | SF33: 1 | SG33: 1 | SH33: 1 | SI33: 1 | SJ33: 1 | SK33: 1 | SL33: 1 | SM33: 1 | SN33: 1 | SO33: 1 | SP33: 1 | SQ33: 1
D34: Seasonality | G34: % | L34: =LOOKUP(L33,InputS!19:19,InputS!20:20) -> 0.06666666667 | M34: =LOOKUP(M33,InputS!19:19,InputS!20:20) -> 0.06666666667 | N34: =LOOKUP(N33,InputS!19:19,InputS!20:20) -> 0.06666666667 | O34: =LOOKUP(O33,InputS!19:19,InputS!20:20) -> 0.06666666667 | P34: =LOOKUP(P33,InputS!19:19,InputS!20:20) -> 0.06666666667 | Q34: =LOOKUP(Q33,InputS!19:19,InputS!20:20) -> 0.06666666667 | R34: =LOOKUP(R33,InputS!19:19,InputS!20:20) -> 0.06666666667 | S34: =LOOKUP(S33,InputS!19:19,InputS!20:20) -> 0.06666666667 | T34: =LOOKUP(T33,InputS!19:19,InputS!20:20) -> 0.06666666667 | U34: =LOOKUP(U33,InputS!19:19,InputS!20:20) -> 0.06666666667 | V34: =LOOKUP(V33,InputS!19:19,InputS!20:20) -> 0.06666666667 | W34: =LOOKUP(W33,InputS!19:19,InputS!20:20) -> 0.06666666667 | X34: =LOOKUP(X33,InputS!19:19,InputS!20:20) -> 0.06666666667 | Y34: =LOOKUP(Y33,InputS!19:19,InputS!20:20) -> 0.06666666667 | Z34: =LOOKUP(Z33,InputS!19:19,InputS!20:20) -> 0.06666666667 | AA34: =LOOKUP(AA33,InputS!19:19,InputS!20:20) -> 0.06666666667 | AB34: =LOOKUP(AB33,InputS!19:19,InputS!20:20) -> 0.06666666667 | AC34: =LOOKUP(AC33,InputS!19:19,InputS!20:20) -> 0.06666666667 | AD34: =LOOKUP(AD33,InputS!19:19,InputS!20:20) -> 0.06666666667 | AE34: =LOOKUP(AE33,InputS!19:19,InputS!20:20) -> 0.06666666667 | AF34: =LOOKUP(AF33,InputS!19:19,InputS!20:20) -> 0.06666666667 | AG34: =LOOKUP(AG33,InputS!19:19,InputS!20:20) -> 0.06666666667 | AH34: =LOOKUP(AH33,InputS!19:19,InputS!20:20) -> 0.06666666667 | AI34: =LOOKUP(AI33,InputS!19:19,InputS!20:20) -> 0.06666666667 | AJ34: =LOOKUP(AJ33,InputS!19:19,InputS!20:20) -> 0.06666666667 | AK34: =LOOKUP(AK33,InputS!19:19,InputS!20:20) -> 0.06666666667 | AL34: =LOOKUP(AL33,InputS!19:19,InputS!20:20) -> 0.06666666667 | AM34: =LOOKUP(AM33,InputS!19:19,InputS!20:20) -> 0.06666666667 | AN34: =LOOKUP(AN33,InputS!19:19,InputS!20:20) -> 0.06666666667 | AO34: =LOOKUP(AO33,InputS!19:19,InputS!20:20) -> 0.06666666667 | AP34: =LOOKUP(AP33,InputS!19:19,InputS!20:20) -> 0.06666666667 | AQ34: =LOOKUP(AQ33,InputS!19:19,InputS!20:20) -> 0.06666666667 | AR34: =LOOKUP(AR33,InputS!19:19,InputS!20:20) -> 0.06666666667 | AS34: =LOOKUP(AS33,InputS!19:19,InputS!20:20) -> 0.06666666667 | AT34: =LOOKUP(AT33,InputS!19:19,InputS!20:20) -> 0.06666666667 | AU34: =LOOKUP(AU33,InputS!19:19,InputS!20:20) -> 0.06666666667 | AV34: =LOOKUP(AV33,InputS!19:19,InputS!20:20) -> 0.06666666667 | AW34: =LOOKUP(AW33,InputS!19:19,InputS!20:20) -> 0.06666666667 | AX34: =LOOKUP(AX33,InputS!19:19,InputS!20:20) -> 0.06666666667 | AY34: =LOOKUP(AY33,InputS!19:19,InputS!20:20) -> 0.06666666667 | AZ34: =LOOKUP(AZ33,InputS!19:19,InputS!20:20) -> 0.06666666667 | BA34: =LOOKUP(BA33,InputS!19:19,InputS!20:20) -> 0.06666666667 | BB34: =LOOKUP(BB33,InputS!19:19,InputS!20:20) -> 0.06666666667 | BC34: =LOOKUP(BC33,InputS!19:19,InputS!20:20) -> 0.06666666667 | BD34: =LOOKUP(BD33,InputS!19:19,InputS!20:20) -> 0.06666666667 | BE34: =LOOKUP(BE33,InputS!19:19,InputS!20:20) -> 0.06666666667 | BF34: =LOOKUP(BF33,InputS!19:19,InputS!20:20) -> 0.06666666667 | BG34: =LOOKUP(BG33,InputS!19:19,InputS!20:20) -> 0.06666666667 | BH34: =LOOKUP(BH33,InputS!19:19,InputS!20:20) -> 0.06666666667 | BI34: =LOOKUP(BI33,InputS!19:19,InputS!20:20) -> 0.06666666667 | BJ34: =LOOKUP(BJ33,InputS!19:19,InputS!20:20) -> 0.06666666667 | BK34: =LOOKUP(BK33,InputS!19:19,InputS!20:20) -> 0.06666666667 | BL34: =LOOKUP(BL33,InputS!19:19,InputS!20:20) -> 0.06666666667 | BM34: =LOOKUP(BM33,InputS!19:19,InputS!20:20) -> 0.06666666667 | BN34: =LOOKUP(BN33,InputS!19:19,InputS!20:20) -> 0.06666666667 | BO34: =LOOKUP(BO33,InputS!19:19,InputS!20:20) -> 0.06666666667 | BP34: =LOOKUP(BP33,InputS!19:19,InputS!20:20) -> 0.06666666667 | BQ34: =LOOKUP(BQ33,InputS!19:19,InputS!20:20) -> 0.06666666667 | BR34: =LOOKUP(BR33,InputS!19:19,InputS!20:20) -> 0.06666666667 | BS34: =LOOKUP(BS33,InputS!19:19,InputS!20:20) -> 0.06666666667 | BT34: =LOOKUP(BT33,InputS!19:19,InputS!20:20) -> 0.06666666667 | BU34: =LOOKUP(BU33,InputS!19:19,InputS!20:20) -> 0.06666666667 | BV34: =LOOKUP(BV33,InputS!19:19,InputS!20:20) -> 0.06666666667 | BW34: =LOOKUP(BW33,InputS!19:19,InputS!20:20) -> 0.06666666667 | BX34: =LOOKUP(BX33,InputS!19:19,InputS!20:20) -> 0.06666666667 | BY34: =LOOKUP(BY33,InputS!19:19,InputS!20:20) -> 0.06666666667 | BZ34: =LOOKUP(BZ33,InputS!19:19,InputS!20:20) -> 0.06666666667 | CA34: =LOOKUP(CA33,InputS!19:19,InputS!20:20) -> 0.06666666667 | CB34: =LOOKUP(CB33,InputS!19:19,InputS!20:20) -> 0.06666666667 | CC34: =LOOKUP(CC33,InputS!19:19,InputS!20:20) -> 0.06666666667 | CD34: =LOOKUP(CD33,InputS!19:19,InputS!20:20) -> 0.06666666667 | CE34: =LOOKUP(CE33,InputS!19:19,InputS!20:20) -> 0.06666666667 | CF34: =LOOKUP(CF33,InputS!19:19,InputS!20:20) -> 0.06666666667 | CG34: =LOOKUP(CG33,InputS!19:19,InputS!20:20) -> 0.06666666667 | CH34: =LOOKUP(CH33,InputS!19:19,InputS!20:20) -> 0.06666666667 | CI34: =LOOKUP(CI33,InputS!19:19,InputS!20:20) -> 0.06666666667 | CJ34: =LOOKUP(CJ33,InputS!19:19,InputS!20:20) -> 0.06666666667 | CK34: =LOOKUP(CK33,InputS!19:19,InputS!20:20) -> 0.06666666667 | CL34: =LOOKUP(CL33,InputS!19:19,InputS!20:20) -> 0.06666666667 | CM34: =LOOKUP(CM33,InputS!19:19,InputS!20:20) -> 0.06666666667 | CN34: =LOOKUP(CN33,InputS!19:19,InputS!20:20) -> 0.06666666667 | CO34: =LOOKUP(CO33,InputS!19:19,InputS!20:20) -> 0.06666666667 | CP34: =LOOKUP(CP33,InputS!19:19,InputS!20:20) -> 0.06666666667 | CQ34: =LOOKUP(CQ33,InputS!19:19,InputS!20:20) -> 0.06666666667 | CR34: =LOOKUP(CR33,InputS!19:19,InputS!20:20) -> 0.06666666667 | CS34: =LOOKUP(CS33,InputS!19:19,InputS!20:20) -> 0.06666666667 | CT34: =LOOKUP(CT33,InputS!19:19,InputS!20:20) -> 0.06666666667 | CU34: =LOOKUP(CU33,InputS!19:19,InputS!20:20) -> 0.06666666667 | CV34: =LOOKUP(CV33,InputS!19:19,InputS!20:20) -> 0.06666666667 | CW34: =LOOKUP(CW33,InputS!19:19,InputS!20:20) -> 0.06666666667 | CX34: =LOOKUP(CX33,InputS!19:19,InputS!20:20) -> 0.06666666667 | CY34: =LOOKUP(CY33,InputS!19:19,InputS!20:20) -> 0.06666666667 | CZ34: =LOOKUP(CZ33,InputS!19:19,InputS!20:20) -> 0.06666666667 | DA34: =LOOKUP(DA33,InputS!19:19,InputS!20:20) -> 0.06666666667 | DB34: =LOOKUP(DB33,InputS!19:19,InputS!20:20) -> 0.06666666667 | DC34: =LOOKUP(DC33,InputS!19:19,InputS!20:20) -> 0.06666666667 | DD34: =LOOKUP(DD33,InputS!19:19,InputS!20:20) -> 0.06666666667 | DE34: =LOOKUP(DE33,InputS!19:19,InputS!20:20) -> 0.06666666667 | DF34: =LOOKUP(DF33,InputS!19:19,InputS!20:20) -> 0.06666666667 | DG34: =LOOKUP(DG33,InputS!19:19,InputS!20:20) -> 0.06666666667 | DH34: =LOOKUP(DH33,InputS!19:19,InputS!20:20) -> 0.06666666667 | DI34: =LOOKUP(DI33,InputS!19:19,InputS!20:20) -> 0.06666666667 | DJ34: =LOOKUP(DJ33,InputS!19:19,InputS!20:20) -> 0.06666666667 | DK34: =LOOKUP(DK33,InputS!19:19,InputS!20:20) -> 0.06666666667 | DL34: =LOOKUP(DL33,InputS!19:19,InputS!20:20) -> 0.06666666667 | DM34: =LOOKUP(DM33,InputS!19:19,InputS!20:20) -> 0.06666666667 | DN34: =LOOKUP(DN33,InputS!19:19,InputS!20:20) -> 0.06666666667 | DO34: =LOOKUP(DO33,InputS!19:19,InputS!20:20) -> 0.06666666667 | DP34: =LOOKUP(DP33,InputS!19:19,InputS!20:20) -> 0.06666666667 | DQ34: =LOOKUP(DQ33,InputS!19:19,InputS!20:20) -> 0.06666666667 | DR34: =LOOKUP(DR33,InputS!19:19,InputS!20:20) -> 0.06666666667 | DS34: =LOOKUP(DS33,InputS!19:19,InputS!20:20) -> 0.06666666667 | DT34: =LOOKUP(DT33,InputS!19:19,InputS!20:20) -> 0.06666666667 | DU34: =LOOKUP(DU33,InputS!19:19,InputS!20:20) -> 0.06666666667 | DV34: =LOOKUP(DV33,InputS!19:19,InputS!20:20) -> 0.06666666667 | DW34: =LOOKUP(DW33,InputS!19:19,InputS!20:20) -> 0.06666666667 | DX34: =LOOKUP(DX33,InputS!19:19,InputS!20:20) -> 0.06666666667 | DY34: =LOOKUP(DY33,InputS!19:19,InputS!20:20) -> 0.06666666667 | DZ34: =LOOKUP(DZ33,InputS!19:19,InputS!20:20) -> 0.06666666667 | EA34: =LOOKUP(EA33,InputS!19:19,InputS!20:20) -> 0.06666666667 | EB34: =LOOKUP(EB33,InputS!19:19,InputS!20:20) -> 0.06666666667 | EC34: =LOOKUP(EC33,InputS!19:19,InputS!20:20) -> 0.06666666667 | ED34: =LOOKUP(ED33,InputS!19:19,InputS!20:20) -> 0.06666666667 | EE34: =LOOKUP(EE33,InputS!19:19,InputS!20:20) -> 0.06666666667 | EF34: =LOOKUP(EF33,InputS!19:19,InputS!20:20) -> 0.06666666667 | EG34: =LOOKUP(EG33,InputS!19:19,InputS!20:20) -> 0.06666666667 | EH34: =LOOKUP(EH33,InputS!19:19,InputS!20:20) -> 0.06666666667 | EI34: =LOOKUP(EI33,InputS!19:19,InputS!20:20) -> 0.06666666667 | EJ34: =LOOKUP(EJ33,InputS!19:19,InputS!20:20) -> 0.06666666667 | EK34: =LOOKUP(EK33,InputS!19:19,InputS!20:20) -> 0.06666666667 | EL34: =LOOKUP(EL33,InputS!19:19,InputS!20:20) -> 0.06666666667 | EM34: =LOOKUP(EM33,InputS!19:19,InputS!20:20) -> 0.06666666667 | EN34: =LOOKUP(EN33,InputS!19:19,InputS!20:20) -> 0.06666666667 | EO34: =LOOKUP(EO33,InputS!19:19,InputS!20:20) -> 0.06666666667 | EP34: =LOOKUP(EP33,InputS!19:19,InputS!20:20) -> 0.06666666667 | EQ34: =LOOKUP(EQ33,InputS!19:19,InputS!20:20) -> 0.06666666667 | ER34: =LOOKUP(ER33,InputS!19:19,InputS!20:20) -> 0.06666666667 | ES34: =LOOKUP(ES33,InputS!19:19,InputS!20:20) -> 0.06666666667 | ET34: =LOOKUP(ET33,InputS!19:19,InputS!20:20) -> 0.06666666667 | EU34: =LOOKUP(EU33,InputS!19:19,InputS!20:20) -> 0.06666666667 | EV34: =LOOKUP(EV33,InputS!19:19,InputS!20:20) -> 0.06666666667 | EW34: =LOOKUP(EW33,InputS!19:19,InputS!20:20) -> 0.06666666667 | EX34: =LOOKUP(EX33,InputS!19:19,InputS!20:20) -> 0.06666666667 | EY34: =LOOKUP(EY33,InputS!19:19,InputS!20:20) -> 0.06666666667 | EZ34: =LOOKUP(EZ33,InputS!19:19,InputS!20:20) -> 0.06666666667 | FA34: =LOOKUP(FA33,InputS!19:19,InputS!20:20) -> 0.06666666667 | FB34: =LOOKUP(FB33,InputS!19:19,InputS!20:20) -> 0.06666666667 | FC34: =LOOKUP(FC33,InputS!19:19,InputS!20:20) -> 0.06666666667 | FD34: =LOOKUP(FD33,InputS!19:19,InputS!20:20) -> 0.06666666667 | FE34: =LOOKUP(FE33,InputS!19:19,InputS!20:20) -> 0.06666666667 | FF34: =LOOKUP(FF33,InputS!19:19,InputS!20:20) -> 0.06666666667 | FG34: =LOOKUP(FG33,InputS!19:19,InputS!20:20) -> 0.06666666667 | FH34: =LOOKUP(FH33,InputS!19:19,InputS!20:20) -> 0.06666666667 | FI34: =LOOKUP(FI33,InputS!19:19,InputS!20:20) -> 0.06666666667 | FJ34: =LOOKUP(FJ33,InputS!19:19,InputS!20:20) -> 0.06666666667 | FK34: =LOOKUP(FK33,InputS!19:19,InputS!20:20) -> 0.06666666667 | FL34: =LOOKUP(FL33,InputS!19:19,InputS!20:20) -> 0.06666666667 | FM34: =LOOKUP(FM33,InputS!19:19,InputS!20:20) -> 0.06666666667 | FN34: =LOOKUP(FN33,InputS!19:19,InputS!20:20) -> 0.06666666667 | FO34: =LOOKUP(FO33,InputS!19:19,InputS!20:20) -> 0.06666666667 | FP34: =LOOKUP(FP33,InputS!19:19,InputS!20:20) -> 0.06666666667 | FQ34: =LOOKUP(FQ33,InputS!19:19,InputS!20:20) -> 0.06666666667 | FR34: =LOOKUP(FR33,InputS!19:19,InputS!20:20) -> 0.06666666667 | FS34: =LOOKUP(FS33,InputS!19:19,InputS!20:20) -> 0.06666666667 | FT34: =LOOKUP(FT33,InputS!19:19,InputS!20:20) -> 0.06666666667 | FU34: =LOOKUP(FU33,InputS!19:19,InputS!20:20) -> 0.06666666667 | FV34: =LOOKUP(FV33,InputS!19:19,InputS!20:20) -> 0.06666666667 | FW34: =LOOKUP(FW33,InputS!19:19,InputS!20:20) -> 0.06666666667 | FX34: =LOOKUP(FX33,InputS!19:19,InputS!20:20) -> 0.06666666667 | FY34: =LOOKUP(FY33,InputS!19:19,InputS!20:20) -> 0.06666666667 | FZ34: =LOOKUP(FZ33,InputS!19:19,InputS!20:20) -> 0.06666666667 | GA34: =LOOKUP(GA33,InputS!19:19,InputS!20:20) -> 0.06666666667 | GB34: =LOOKUP(GB33,InputS!19:19,InputS!20:20) -> 0.06666666667 | GC34: =LOOKUP(GC33,InputS!19:19,InputS!20:20) -> 0.06666666667 | GD34: =LOOKUP(GD33,InputS!19:19,InputS!20:20) -> 0.06666666667 | GE34: =LOOKUP(GE33,InputS!19:19,InputS!20:20) -> 0.06666666667 | GF34: =LOOKUP(GF33,InputS!19:19,InputS!20:20) -> 0.06666666667 | GG34: =LOOKUP(GG33,InputS!19:19,InputS!20:20) -> 0.06666666667 | GH34: =LOOKUP(GH33,InputS!19:19,InputS!20:20) -> 0.06666666667 | GI34: =LOOKUP(GI33,InputS!19:19,InputS!20:20) -> 0.06666666667 | GJ34: =LOOKUP(GJ33,InputS!19:19,InputS!20:20) -> 0.06666666667 | GK34: =LOOKUP(GK33,InputS!19:19,InputS!20:20) -> 0.06666666667 | GL34: =LOOKUP(GL33,InputS!19:19,InputS!20:20) -> 0.06666666667 | GM34: =LOOKUP(GM33,InputS!19:19,InputS!20:20) -> 0.06666666667 | GN34: =LOOKUP(GN33,InputS!19:19,InputS!20:20) -> 0.06666666667 | GO34: =LOOKUP(GO33,InputS!19:19,InputS!20:20) -> 0.06666666667 | GP34: =LOOKUP(GP33,InputS!19:19,InputS!20:20) -> 0.06666666667 | GQ34: =LOOKUP(GQ33,InputS!19:19,InputS!20:20) -> 0.06666666667 | GR34: =LOOKUP(GR33,InputS!19:19,InputS!20:20) -> 0.06666666667 | GS34: =LOOKUP(GS33,InputS!19:19,InputS!20:20) -> 0.06666666667 | GT34: =LOOKUP(GT33,InputS!19:19,InputS!20:20) -> 0.06666666667 | GU34: =LOOKUP(GU33,InputS!19:19,InputS!20:20) -> 0.06666666667 | GV34: =LOOKUP(GV33,InputS!19:19,InputS!20:20) -> 0.06666666667 | GW34: =LOOKUP(GW33,InputS!19:19,InputS!20:20) -> 0.06666666667 | GX34: =LOOKUP(GX33,InputS!19:19,InputS!20:20) -> 0.06666666667 | GY34: =LOOKUP(GY33,InputS!19:19,InputS!20:20) -> 0.06666666667 | GZ34: =LOOKUP(GZ33,InputS!19:19,InputS!20:20) -> 0.06666666667 | HA34: =LOOKUP(HA33,InputS!19:19,InputS!20:20) -> 0.06666666667 | HB34: =LOOKUP(HB33,InputS!19:19,InputS!20:20) -> 0.06666666667 | HC34: =LOOKUP(HC33,InputS!19:19,InputS!20:20) -> 0.06666666667 | HD34: =LOOKUP(HD33,InputS!19:19,InputS!20:20) -> 0.06666666667 | HE34: =LOOKUP(HE33,InputS!19:19,InputS!20:20) -> 0.06666666667 | HF34: =LOOKUP(HF33,InputS!19:19,InputS!20:20) -> 0.06666666667 | HG34: =LOOKUP(HG33,InputS!19:19,InputS!20:20) -> 0.06666666667 | HH34: =LOOKUP(HH33,InputS!19:19,InputS!20:20) -> 0.06666666667 | HI34: =LOOKUP(HI33,InputS!19:19,InputS!20:20) -> 0.06666666667 | HJ34: =LOOKUP(HJ33,InputS!19:19,InputS!20:20) -> 0.06666666667 | HK34: =LOOKUP(HK33,InputS!19:19,InputS!20:20) -> 0.06666666667 | HL34: =LOOKUP(HL33,InputS!19:19,InputS!20:20) -> 0.06666666667 | HM34: =LOOKUP(HM33,InputS!19:19,InputS!20:20) -> 0.06666666667 | HN34: =LOOKUP(HN33,InputS!19:19,InputS!20:20) -> 0.06666666667 | HO34: =LOOKUP(HO33,InputS!19:19,InputS!20:20) -> 0.06666666667 | HP34: =LOOKUP(HP33,InputS!19:19,InputS!20:20) -> 0.06666666667 | HQ34: =LOOKUP(HQ33,InputS!19:19,InputS!20:20) -> 0.06666666667 | HR34: =LOOKUP(HR33,InputS!19:19,InputS!20:20) -> 0.06666666667 | HS34: =LOOKUP(HS33,InputS!19:19,InputS!20:20) -> 0.06666666667 | HT34: =LOOKUP(HT33,InputS!19:19,InputS!20:20) -> 0.06666666667 | HU34: =LOOKUP(HU33,InputS!19:19,InputS!20:20) -> 0.06666666667 | HV34: =LOOKUP(HV33,InputS!19:19,InputS!20:20) -> 0.06666666667 | HW34: =LOOKUP(HW33,InputS!19:19,InputS!20:20) -> 0.06666666667 | HX34: =LOOKUP(HX33,InputS!19:19,InputS!20:20) -> 0.06666666667 | HY34: =LOOKUP(HY33,InputS!19:19,InputS!20:20) -> 0.06666666667 | HZ34: =LOOKUP(HZ33,InputS!19:19,InputS!20:20) -> 0.06666666667 | IA34: =LOOKUP(IA33,InputS!19:19,InputS!20:20) -> 0.06666666667 | IB34: =LOOKUP(IB33,InputS!19:19,InputS!20:20) -> 0.06666666667 | IC34: =LOOKUP(IC33,InputS!19:19,InputS!20:20) -> 0.06666666667 | ID34: =LOOKUP(ID33,InputS!19:19,InputS!20:20) -> 0.06666666667 | IE34: =LOOKUP(IE33,InputS!19:19,InputS!20:20) -> 0.06666666667 | IF34: =LOOKUP(IF33,InputS!19:19,InputS!20:20) -> 0.06666666667 | IG34: =LOOKUP(IG33,InputS!19:19,InputS!20:20) -> 0.06666666667 | IH34: =LOOKUP(IH33,InputS!19:19,InputS!20:20) -> 0.06666666667 | II34: =LOOKUP(II33,InputS!19:19,InputS!20:20) -> 0.06666666667 | IJ34: =LOOKUP(IJ33,InputS!19:19,InputS!20:20) -> 0.06666666667 | IK34: =LOOKUP(IK33,InputS!19:19,InputS!20:20) -> 0.06666666667 | IL34: =LOOKUP(IL33,InputS!19:19,InputS!20:20) -> 0.06666666667 | IM34: =LOOKUP(IM33,InputS!19:19,InputS!20:20) -> 0.06666666667 | IN34: =LOOKUP(IN33,InputS!19:19,InputS!20:20) -> 0.06666666667 | IO34: =LOOKUP(IO33,InputS!19:19,InputS!20:20) -> 0.06666666667 | IP34: =LOOKUP(IP33,InputS!19:19,InputS!20:20) -> 0.06666666667 | IQ34: =LOOKUP(IQ33,InputS!19:19,InputS!20:20) -> 0.06666666667 | IR34: =LOOKUP(IR33,InputS!19:19,InputS!20:20) -> 0.06666666667 | IS34: =LOOKUP(IS33,InputS!19:19,InputS!20:20) -> 0.06666666667 | IT34: =LOOKUP(IT33,InputS!19:19,InputS!20:20) -> 0.06666666667 | IU34: =LOOKUP(IU33,InputS!19:19,InputS!20:20) -> 0.06666666667 | IV34: =LOOKUP(IV33,InputS!19:19,InputS!20:20) -> 0.06666666667 | IW34: =LOOKUP(IW33,InputS!19:19,InputS!20:20) -> 0.06666666667 | IX34: =LOOKUP(IX33,InputS!19:19,InputS!20:20) -> 0.06666666667 | IY34: =LOOKUP(IY33,InputS!19:19,InputS!20:20) -> 0.06666666667 | IZ34: =LOOKUP(IZ33,InputS!19:19,InputS!20:20) -> 0.06666666667 | JA34: =LOOKUP(JA33,InputS!19:19,InputS!20:20) -> 0.06666666667 | JB34: =LOOKUP(JB33,InputS!19:19,InputS!20:20) -> 0.06666666667 | JC34: =LOOKUP(JC33,InputS!19:19,InputS!20:20) -> 0.06666666667 | JD34: =LOOKUP(JD33,InputS!19:19,InputS!20:20) -> 0.06666666667 | JE34: =LOOKUP(JE33,InputS!19:19,InputS!20:20) -> 0.06666666667 | JF34: =LOOKUP(JF33,InputS!19:19,InputS!20:20) -> 0.06666666667 | JG34: =LOOKUP(JG33,InputS!19:19,InputS!20:20) -> 0.06666666667 | JH34: =LOOKUP(JH33,InputS!19:19,InputS!20:20) -> 0.06666666667 | JI34: =LOOKUP(JI33,InputS!19:19,InputS!20:20) -> 0.06666666667 | JJ34: =LOOKUP(JJ33,InputS!19:19,InputS!20:20) -> 0.06666666667 | JK34: =LOOKUP(JK33,InputS!19:19,InputS!20:20) -> 0.06666666667 | JL34: =LOOKUP(JL33,InputS!19:19,InputS!20:20) -> 0.06666666667 | JM34: =LOOKUP(JM33,InputS!19:19,InputS!20:20) -> 0.06666666667 | JN34: =LOOKUP(JN33,InputS!19:19,InputS!20:20) -> 0.06666666667 | JO34: =LOOKUP(JO33,InputS!19:19,InputS!20:20) -> 0.06666666667 | JP34: =LOOKUP(JP33,InputS!19:19,InputS!20:20) -> 0.06666666667 | JQ34: =LOOKUP(JQ33,InputS!19:19,InputS!20:20) -> 0.06666666667 | JR34: =LOOKUP(JR33,InputS!19:19,InputS!20:20) -> 0.06666666667 | JS34: =LOOKUP(JS33,InputS!19:19,InputS!20:20) -> 0.06666666667 | JT34: =LOOKUP(JT33,InputS!19:19,InputS!20:20) -> 0.06666666667 | JU34: =LOOKUP(JU33,InputS!19:19,InputS!20:20) -> 0.06666666667 | JV34: =LOOKUP(JV33,InputS!19:19,InputS!20:20) -> 0.06666666667 | JW34: =LOOKUP(JW33,InputS!19:19,InputS!20:20) -> 0.06666666667 | JX34: =LOOKUP(JX33,InputS!19:19,InputS!20:20) -> 0.06666666667 | JY34: =LOOKUP(JY33,InputS!19:19,InputS!20:20) -> 0.06666666667 | JZ34: =LOOKUP(JZ33,InputS!19:19,InputS!20:20) -> 0.06666666667 | KA34: =LOOKUP(KA33,InputS!19:19,InputS!20:20) -> 0.06666666667 | KB34: =LOOKUP(KB33,InputS!19:19,InputS!20:20) -> 0.06666666667 | KC34: =LOOKUP(KC33,InputS!19:19,InputS!20:20) -> 0.06666666667 | KD34: =LOOKUP(KD33,InputS!19:19,InputS!20:20) -> 0.06666666667 | KE34: =LOOKUP(KE33,InputS!19:19,InputS!20:20) -> 0.06666666667 | KF34: =LOOKUP(KF33,InputS!19:19,InputS!20:20) -> 0.06666666667 | KG34: =LOOKUP(KG33,InputS!19:19,InputS!20:20) -> 0.06666666667 | KH34: =LOOKUP(KH33,InputS!19:19,InputS!20:20) -> 0.06666666667 | KI34: =LOOKUP(KI33,InputS!19:19,InputS!20:20) -> 0.06666666667 | KJ34: =LOOKUP(KJ33,InputS!19:19,InputS!20:20) -> 0.06666666667 | KK34: =LOOKUP(KK33,InputS!19:19,InputS!20:20) -> 0.06666666667 | KL34: =LOOKUP(KL33,InputS!19:19,InputS!20:20) -> 0.06666666667 | KM34: =LOOKUP(KM33,InputS!19:19,InputS!20:20) -> 0.06666666667 | KN34: =LOOKUP(KN33,InputS!19:19,InputS!20:20) -> 0.06666666667 | KO34: =LOOKUP(KO33,InputS!19:19,InputS!20:20) -> 0.06666666667 | KP34: =LOOKUP(KP33,InputS!19:19,InputS!20:20) -> 0.06666666667 | KQ34: =LOOKUP(KQ33,InputS!19:19,InputS!20:20) -> 0.06666666667 | KR34: =LOOKUP(KR33,InputS!19:19,InputS!20:20) -> 0.06666666667 | KS34: =LOOKUP(KS33,InputS!19:19,InputS!20:20) -> 0.06666666667 | KT34: =LOOKUP(KT33,InputS!19:19,InputS!20:20) -> 0.06666666667 | KU34: =LOOKUP(KU33,InputS!19:19,InputS!20:20) -> 0.06666666667 | KV34: =LOOKUP(KV33,InputS!19:19,InputS!20:20) -> 0.06666666667 | KW34: =LOOKUP(KW33,InputS!19:19,InputS!20:20) -> 0.06666666667 | KX34: =LOOKUP(KX33,InputS!19:19,InputS!20:20) -> 0.06666666667 | KY34: =LOOKUP(KY33,InputS!19:19,InputS!20:20) -> 0.06666666667 | KZ34: =LOOKUP(KZ33,InputS!19:19,InputS!20:20) -> 0.06666666667 | LA34: =LOOKUP(LA33,InputS!19:19,InputS!20:20) -> 0.06666666667 | LB34: =LOOKUP(LB33,InputS!19:19,InputS!20:20) -> 0.06666666667 | LC34: =LOOKUP(LC33,InputS!19:19,InputS!20:20) -> 0.06666666667 | LD34: =LOOKUP(LD33,InputS!19:19,InputS!20:20) -> 0.06666666667 | LE34: =LOOKUP(LE33,InputS!19:19,InputS!20:20) -> 0.06666666667 | LF34: =LOOKUP(LF33,InputS!19:19,InputS!20:20) -> 0.06666666667 | LG34: =LOOKUP(LG33,InputS!19:19,InputS!20:20) -> 0.06666666667 | LH34: =LOOKUP(LH33,InputS!19:19,InputS!20:20) -> 0.06666666667 | LI34: =LOOKUP(LI33,InputS!19:19,InputS!20:20) -> 0.06666666667 | LJ34: =LOOKUP(LJ33,InputS!19:19,InputS!20:20) -> 0.06666666667 | LK34: =LOOKUP(LK33,InputS!19:19,InputS!20:20) -> 0.06666666667 | LL34: =LOOKUP(LL33,InputS!19:19,InputS!20:20) -> 0.06666666667 | LM34: =LOOKUP(LM33,InputS!19:19,InputS!20:20) -> 0.06666666667 | LN34: =LOOKUP(LN33,InputS!19:19,InputS!20:20) -> 0.06666666667 | LO34: =LOOKUP(LO33,InputS!19:19,InputS!20:20) -> 0.06666666667 | LP34: =LOOKUP(LP33,InputS!19:19,InputS!20:20) -> 0.06666666667 | LQ34: =LOOKUP(LQ33,InputS!19:19,InputS!20:20) -> 0.06666666667 | LR34: =LOOKUP(LR33,InputS!19:19,InputS!20:20) -> 0.06666666667 | LS34: =LOOKUP(LS33,InputS!19:19,InputS!20:20) -> 0.06666666667 | LT34: =LOOKUP(LT33,InputS!19:19,InputS!20:20) -> 0.06666666667 | LU34: =LOOKUP(LU33,InputS!19:19,InputS!20:20) -> 0.06666666667 | LV34: =LOOKUP(LV33,InputS!19:19,InputS!20:20) -> 0.06666666667 | LW34: =LOOKUP(LW33,InputS!19:19,InputS!20:20) -> 0.06666666667 | LX34: =LOOKUP(LX33,InputS!19:19,InputS!20:20) -> 0.06666666667 | LY34: =LOOKUP(LY33,InputS!19:19,InputS!20:20) -> 0.06666666667 | LZ34: =LOOKUP(LZ33,InputS!19:19,InputS!20:20) -> 0.06666666667 | MA34: =LOOKUP(MA33,InputS!19:19,InputS!20:20) -> 0.06666666667 | MB34: =LOOKUP(MB33,InputS!19:19,InputS!20:20) -> 0.06666666667 | MC34: =LOOKUP(MC33,InputS!19:19,InputS!20:20) -> 0.06666666667 | MD34: =LOOKUP(MD33,InputS!19:19,InputS!20:20) -> 0.06666666667 | ME34: =LOOKUP(ME33,InputS!19:19,InputS!20:20) -> 0.06666666667 | MF34: =LOOKUP(MF33,InputS!19:19,InputS!20:20) -> 0.06666666667 | MG34: =LOOKUP(MG33,InputS!19:19,InputS!20:20) -> 0.06666666667 | MH34: =LOOKUP(MH33,InputS!19:19,InputS!20:20) -> 0.06666666667 | MI34: =LOOKUP(MI33,InputS!19:19,InputS!20:20) -> 0.06666666667 | MJ34: =LOOKUP(MJ33,InputS!19:19,InputS!20:20) -> 0.06666666667 | MK34: =LOOKUP(MK33,InputS!19:19,InputS!20:20) -> 0.06666666667 | ML34: =LOOKUP(ML33,InputS!19:19,InputS!20:20) -> 0.06666666667 | MM34: =LOOKUP(MM33,InputS!19:19,InputS!20:20) -> 0.06666666667 | MN34: =LOOKUP(MN33,InputS!19:19,InputS!20:20) -> 0.06666666667 | MO34: =LOOKUP(MO33,InputS!19:19,InputS!20:20) -> 0.06666666667 | MP34: =LOOKUP(MP33,InputS!19:19,InputS!20:20) -> 0.06666666667 | MQ34: =LOOKUP(MQ33,InputS!19:19,InputS!20:20) -> 0.06666666667 | MR34: =LOOKUP(MR33,InputS!19:19,InputS!20:20) -> 0.06666666667 | MS34: =LOOKUP(MS33,InputS!19:19,InputS!20:20) -> 0.06666666667 | MT34: =LOOKUP(MT33,InputS!19:19,InputS!20:20) -> 0.06666666667 | MU34: =LOOKUP(MU33,InputS!19:19,InputS!20:20) -> 0.06666666667 | MV34: =LOOKUP(MV33,InputS!19:19,InputS!20:20) -> 0.06666666667 | MW34: =LOOKUP(MW33,InputS!19:19,InputS!20:20) -> 0.06666666667 | MX34: =LOOKUP(MX33,InputS!19:19,InputS!20:20) -> 0.06666666667 | MY34: =LOOKUP(MY33,InputS!19:19,InputS!20:20) -> 0.06666666667 | MZ34: =LOOKUP(MZ33,InputS!19:19,InputS!20:20) -> 0.06666666667 | NA34: =LOOKUP(NA33,InputS!19:19,InputS!20:20) -> 0.06666666667 | NB34: =LOOKUP(NB33,InputS!19:19,InputS!20:20) -> 0.06666666667 | NC34: =LOOKUP(NC33,InputS!19:19,InputS!20:20) -> 0.06666666667 | ND34: =LOOKUP(ND33,InputS!19:19,InputS!20:20) -> 0.06666666667 | NE34: =LOOKUP(NE33,InputS!19:19,InputS!20:20) -> 0.06666666667 | NF34: =LOOKUP(NF33,InputS!19:19,InputS!20:20) -> 0.06666666667 | NG34: =LOOKUP(NG33,InputS!19:19,InputS!20:20) -> 0.06666666667 | NH34: =LOOKUP(NH33,InputS!19:19,InputS!20:20) -> 0.06666666667 | NI34: =LOOKUP(NI33,InputS!19:19,InputS!20:20) -> 0.06666666667 | NJ34: =LOOKUP(NJ33,InputS!19:19,InputS!20:20) -> 0.06666666667 | NK34: =LOOKUP(NK33,InputS!19:19,InputS!20:20) -> 0.06666666667 | NL34: =LOOKUP(NL33,InputS!19:19,InputS!20:20) -> 0.06666666667 | NM34: =LOOKUP(NM33,InputS!19:19,InputS!20:20) -> 0.06666666667 | NN34: =LOOKUP(NN33,InputS!19:19,InputS!20:20) -> 0.06666666667 | NO34: =LOOKUP(NO33,InputS!19:19,InputS!20:20) -> 0.06666666667 | NP34: =LOOKUP(NP33,InputS!19:19,InputS!20:20) -> 0.06666666667 | NQ34: =LOOKUP(NQ33,InputS!19:19,InputS!20:20) -> 0.06666666667 | NR34: =LOOKUP(NR33,InputS!19:19,InputS!20:20) -> 0.06666666667 | NS34: =LOOKUP(NS33,InputS!19:19,InputS!20:20) -> 0.06666666667 | NT34: =LOOKUP(NT33,InputS!19:19,InputS!20:20) -> 0.06666666667 | NU34: =LOOKUP(NU33,InputS!19:19,InputS!20:20) -> 0.06666666667 | NV34: =LOOKUP(NV33,InputS!19:19,InputS!20:20) -> 0.06666666667 | NW34: =LOOKUP(NW33,InputS!19:19,InputS!20:20) -> 0.06666666667 | NX34: =LOOKUP(NX33,InputS!19:19,InputS!20:20) -> 0.06666666667 | NY34: =LOOKUP(NY33,InputS!19:19,InputS!20:20) -> 0.06666666667 | NZ34: =LOOKUP(NZ33,InputS!19:19,InputS!20:20) -> 0.06666666667 | OA34: =LOOKUP(OA33,InputS!19:19,InputS!20:20) -> 0.06666666667 | OB34: =LOOKUP(OB33,InputS!19:19,InputS!20:20) -> 0.06666666667 | OC34: =LOOKUP(OC33,InputS!19:19,InputS!20:20) -> 0.06666666667 | OD34: =LOOKUP(OD33,InputS!19:19,InputS!20:20) -> 0.06666666667 | OE34: =LOOKUP(OE33,InputS!19:19,InputS!20:20) -> 0.06666666667 | OF34: =LOOKUP(OF33,InputS!19:19,InputS!20:20) -> 0.06666666667 | OG34: =LOOKUP(OG33,InputS!19:19,InputS!20:20) -> 0.06666666667 | OH34: =LOOKUP(OH33,InputS!19:19,InputS!20:20) -> 0.06666666667 | OI34: =LOOKUP(OI33,InputS!19:19,InputS!20:20) -> 0.06666666667 | OJ34: =LOOKUP(OJ33,InputS!19:19,InputS!20:20) -> 0.06666666667 | OK34: =LOOKUP(OK33,InputS!19:19,InputS!20:20) -> 0.06666666667 | OL34: =LOOKUP(OL33,InputS!19:19,InputS!20:20) -> 0.06666666667 | OM34: =LOOKUP(OM33,InputS!19:19,InputS!20:20) -> 0.06666666667 | ON34: =LOOKUP(ON33,InputS!19:19,InputS!20:20) -> 0.06666666667 | OO34: =LOOKUP(OO33,InputS!19:19,InputS!20:20) -> 0.06666666667 | OP34: =LOOKUP(OP33,InputS!19:19,InputS!20:20) -> 0.06666666667 | OQ34: =LOOKUP(OQ33,InputS!19:19,InputS!20:20) -> 0.06666666667 | OR34: =LOOKUP(OR33,InputS!19:19,InputS!20:20) -> 0.06666666667 | OS34: =LOOKUP(OS33,InputS!19:19,InputS!20:20) -> 0.06666666667 | OT34: =LOOKUP(OT33,InputS!19:19,InputS!20:20) -> 0.06666666667 | OU34: =LOOKUP(OU33,InputS!19:19,InputS!20:20) -> 0.06666666667 | OV34: =LOOKUP(OV33,InputS!19:19,InputS!20:20) -> 0.06666666667 | OW34: =LOOKUP(OW33,InputS!19:19,InputS!20:20) -> 0.06666666667 | OX34: =LOOKUP(OX33,InputS!19:19,InputS!20:20) -> 0.06666666667 | OY34: =LOOKUP(OY33,InputS!19:19,InputS!20:20) -> 0.06666666667 | OZ34: =LOOKUP(OZ33,InputS!19:19,InputS!20:20) -> 0.06666666667 | PA34: =LOOKUP(PA33,InputS!19:19,InputS!20:20) -> 0.06666666667 | PB34: =LOOKUP(PB33,InputS!19:19,InputS!20:20) -> 0.06666666667 | PC34: =LOOKUP(PC33,InputS!19:19,InputS!20:20) -> 0.06666666667 | PD34: =LOOKUP(PD33,InputS!19:19,InputS!20:20) -> 0.06666666667 | PE34: =LOOKUP(PE33,InputS!19:19,InputS!20:20) -> 0.06666666667 | PF34: =LOOKUP(PF33,InputS!19:19,InputS!20:20) -> 0.06666666667 | PG34: =LOOKUP(PG33,InputS!19:19,InputS!20:20) -> 0.06666666667 | PH34: =LOOKUP(PH33,InputS!19:19,InputS!20:20) -> 0.06666666667 | PI34: =LOOKUP(PI33,InputS!19:19,InputS!20:20) -> 0.06666666667 | PJ34: =LOOKUP(PJ33,InputS!19:19,InputS!20:20) -> 0.06666666667 | PK34: =LOOKUP(PK33,InputS!19:19,InputS!20:20) -> 0.06666666667 | PL34: =LOOKUP(PL33,InputS!19:19,InputS!20:20) -> 0.06666666667 | PM34: =LOOKUP(PM33,InputS!19:19,InputS!20:20) -> 0.06666666667 | PN34: =LOOKUP(PN33,InputS!19:19,InputS!20:20) -> 0.06666666667 | PO34: =LOOKUP(PO33,InputS!19:19,InputS!20:20) -> 0.06666666667 | PP34: =LOOKUP(PP33,InputS!19:19,InputS!20:20) -> 0.06666666667 | PQ34: =LOOKUP(PQ33,InputS!19:19,InputS!20:20) -> 0.06666666667 | PR34: =LOOKUP(PR33,InputS!19:19,InputS!20:20) -> 0.06666666667 | PS34: =LOOKUP(PS33,InputS!19:19,InputS!20:20) -> 0.06666666667 | PT34: =LOOKUP(PT33,InputS!19:19,InputS!20:20) -> 0.06666666667 | PU34: =LOOKUP(PU33,InputS!19:19,InputS!20:20) -> 0.06666666667 | PV34: =LOOKUP(PV33,InputS!19:19,InputS!20:20) -> 0.06666666667 | PW34: =LOOKUP(PW33,InputS!19:19,InputS!20:20) -> 0.06666666667 | PX34: =LOOKUP(PX33,InputS!19:19,InputS!20:20) -> 0.06666666667 | PY34: =LOOKUP(PY33,InputS!19:19,InputS!20:20) -> 0.06666666667 | PZ34: =LOOKUP(PZ33,InputS!19:19,InputS!20:20) -> 0.06666666667 | QA34: =LOOKUP(QA33,InputS!19:19,InputS!20:20) -> 0.06666666667 | QB34: =LOOKUP(QB33,InputS!19:19,InputS!20:20) -> 0.06666666667 | QC34: =LOOKUP(QC33,InputS!19:19,InputS!20:20) -> 0.06666666667 | QD34: =LOOKUP(QD33,InputS!19:19,InputS!20:20) -> 0.06666666667 | QE34: =LOOKUP(QE33,InputS!19:19,InputS!20:20) -> 0.06666666667 | QF34: =LOOKUP(QF33,InputS!19:19,InputS!20:20) -> 0.06666666667 | QG34: =LOOKUP(QG33,InputS!19:19,InputS!20:20) -> 0.06666666667 | QH34: =LOOKUP(QH33,InputS!19:19,InputS!20:20) -> 0.06666666667 | QI34: =LOOKUP(QI33,InputS!19:19,InputS!20:20) -> 0.06666666667 | QJ34: =LOOKUP(QJ33,InputS!19:19,InputS!20:20) -> 0.06666666667 | QK34: =LOOKUP(QK33,InputS!19:19,InputS!20:20) -> 0.06666666667 | QL34: =LOOKUP(QL33,InputS!19:19,InputS!20:20) -> 0.06666666667 | QM34: =LOOKUP(QM33,InputS!19:19,InputS!20:20) -> 0.06666666667 | QN34: =LOOKUP(QN33,InputS!19:19,InputS!20:20) -> 0.06666666667 | QO34: =LOOKUP(QO33,InputS!19:19,InputS!20:20) -> 0.06666666667 | QP34: =LOOKUP(QP33,InputS!19:19,InputS!20:20) -> 0.06666666667 | QQ34: =LOOKUP(QQ33,InputS!19:19,InputS!20:20) -> 0.06666666667 | QR34: =LOOKUP(QR33,InputS!19:19,InputS!20:20) -> 0.06666666667 | QS34: =LOOKUP(QS33,InputS!19:19,InputS!20:20) -> 0.06666666667 | QT34: =LOOKUP(QT33,InputS!19:19,InputS!20:20) -> 0.06666666667 | QU34: =LOOKUP(QU33,InputS!19:19,InputS!20:20) -> 0.06666666667 | QV34: =LOOKUP(QV33,InputS!19:19,InputS!20:20) -> 0.06666666667 | QW34: =LOOKUP(QW33,InputS!19:19,InputS!20:20) -> 0.06666666667 | QX34: =LOOKUP(QX33,InputS!19:19,InputS!20:20) -> 0.06666666667 | QY34: =LOOKUP(QY33,InputS!19:19,InputS!20:20) -> 0.06666666667 | QZ34: =LOOKUP(QZ33,InputS!19:19,InputS!20:20) -> 0.06666666667 | RA34: =LOOKUP(RA33,InputS!19:19,InputS!20:20) -> 0.06666666667 | RB34: =LOOKUP(RB33,InputS!19:19,InputS!20:20) -> 0.06666666667 | RC34: =LOOKUP(RC33,InputS!19:19,InputS!20:20) -> 0.06666666667 | RD34: =LOOKUP(RD33,InputS!19:19,InputS!20:20) -> 0.06666666667 | RE34: =LOOKUP(RE33,InputS!19:19,InputS!20:20) -> 0.06666666667 | RF34: =LOOKUP(RF33,InputS!19:19,InputS!20:20) -> 0.06666666667 | RG34: =LOOKUP(RG33,InputS!19:19,InputS!20:20) -> 0.06666666667 | RH34: =LOOKUP(RH33,InputS!19:19,InputS!20:20) -> 0.06666666667 | RI34: =LOOKUP(RI33,InputS!19:19,InputS!20:20) -> 0.06666666667 | RJ34: =LOOKUP(RJ33,InputS!19:19,InputS!20:20) -> 0.06666666667 | RK34: =LOOKUP(RK33,InputS!19:19,InputS!20:20) -> 0.06666666667 | RL34: =LOOKUP(RL33,InputS!19:19,InputS!20:20) -> 0.06666666667 | RM34: =LOOKUP(RM33,InputS!19:19,InputS!20:20) -> 0.06666666667 | RN34: =LOOKUP(RN33,InputS!19:19,InputS!20:20) -> 0.06666666667 | RO34: =LOOKUP(RO33,InputS!19:19,InputS!20:20) -> 0.06666666667 | RP34: =LOOKUP(RP33,InputS!19:19,InputS!20:20) -> 0.06666666667 | RQ34: =LOOKUP(RQ33,InputS!19:19,InputS!20:20) -> 0.06666666667 | RR34: =LOOKUP(RR33,InputS!19:19,InputS!20:20) -> 0.06666666667 | RS34: =LOOKUP(RS33,InputS!19:19,InputS!20:20) -> 0.06666666667 | RT34: =LOOKUP(RT33,InputS!19:19,InputS!20:20) -> 0.06666666667 | RU34: =LOOKUP(RU33,InputS!19:19,InputS!20:20) -> 0.06666666667 | RV34: =LOOKUP(RV33,InputS!19:19,InputS!20:20) -> 0.06666666667 | RW34: =LOOKUP(RW33,InputS!19:19,InputS!20:20) -> 0.06666666667 | RX34: =LOOKUP(RX33,InputS!19:19,InputS!20:20) -> 0.06666666667 | RY34: =LOOKUP(RY33,InputS!19:19,InputS!20:20) -> 0.06666666667 | RZ34: =LOOKUP(RZ33,InputS!19:19,InputS!20:20) -> 0.06666666667 | SA34: =LOOKUP(SA33,InputS!19:19,InputS!20:20) -> 0.06666666667 | SB34: =LOOKUP(SB33,InputS!19:19,InputS!20:20) -> 0.06666666667 | SC34: =LOOKUP(SC33,InputS!19:19,InputS!20:20) -> 0.06666666667 | SD34: =LOOKUP(SD33,InputS!19:19,InputS!20:20) -> 0.06666666667 | SE34: =LOOKUP(SE33,InputS!19:19,InputS!20:20) -> 0.06666666667 | SF34: =LOOKUP(SF33,InputS!19:19,InputS!20:20) -> 0.06666666667 | SG34: =LOOKUP(SG33,InputS!19:19,InputS!20:20) -> 0.06666666667 | SH34: =LOOKUP(SH33,InputS!19:19,InputS!20:20) -> 0.06666666667 | SI34: =LOOKUP(SI33,InputS!19:19,InputS!20:20) -> 0.06666666667 | SJ34: =LOOKUP(SJ33,InputS!19:19,InputS!20:20) -> 0.06666666667 | SK34: =LOOKUP(SK33,InputS!19:19,InputS!20:20) -> 0.06666666667 | SL34: =LOOKUP(SL33,InputS!19:19,InputS!20:20) -> 0.06666666667 | SM34: =LOOKUP(SM33,InputS!19:19,InputS!20:20) -> 0.06666666667 | SN34: =LOOKUP(SN33,InputS!19:19,InputS!20:20) -> 0.06666666667 | SO34: =LOOKUP(SO33,InputS!19:19,InputS!20:20) -> 0.06666666667 | SP34: =LOOKUP(SP33,InputS!19:19,InputS!20:20) -> 0.06666666667 | SQ34: =LOOKUP(SQ33,InputS!19:19,InputS!20:20) -> 0.06666666667
D35: Seasonal Generation | G35: MWH | J35: =SUM(K35:XFD35) -> 0 | L35: =L34*L31 -> 0 | M35: =M34*M31 -> 0 | N35: 0 | O35: 0 | P35: 0 | Q35: 0 | R35: 0 | S35: 0 | T35: 0 | U35: 0 | V35: 0 | W35: 0 | X35: 0 | Y35: 0 | Z35: 0 | AA35: 0 | AB35: 0 | AC35: 0 | AD35: 0 | AE35: 0 | AF35: 0 | AG35: 0 | AH35: 0 | AI35: 0 | AJ35: 0 | AK35: 0 | AL35: 0 | AM35: 0 | AN35: 0 | AO35: 0 | AP35: 0 | AQ35: 0 | AR35: 0 | AS35: 0 | AT35: 0 | AU35: 0 | AV35: 0 | AW35: 0 | AX35: 0 | AY35: 0 | AZ35: 0 | BA35: 0 | BB35: 0 | BC35: 0 | BD35: 0 | BE35: 0 | BF35: 0 | BG35: 0 | BH35: 0 | BI35: 0 | BJ35: 0 | BK35: 0 | BL35: 0 | BM35: 0 | BN35: 0 | BO35: 0 | BP35: 0 | BQ35: 0 | BR35: 0 | BS35: 0 | BT35: 0 | BU35: 0 | BV35: 0 | BW35: 0 | BX35: 0 | BY35: =BY34*BY31 -> 0 | BZ35: 0 | CA35: 0 | CB35: 0 | CC35: 0 | CD35: 0 | CE35: 0 | CF35: 0 | CG35: 0 | CH35: 0 | CI35: 0 | CJ35: 0 | CK35: 0 | CL35: 0 | CM35: 0 | CN35: 0 | CO35: 0 | CP35: 0 | CQ35: 0 | CR35: 0 | CS35: 0 | CT35: 0 | CU35: 0 | CV35: 0 | CW35: 0 | CX35: 0 | CY35: 0 | CZ35: 0 | DA35: 0 | DB35: 0 | DC35: 0 | DD35: 0 | DE35: 0 | DF35: 0 | DG35: 0 | DH35: 0 | DI35: 0 | DJ35: 0 | DK35: 0 | DL35: 0 | DM35: 0 | DN35: 0 | DO35: 0 | DP35: 0 | DQ35: 0 | DR35: 0 | DS35: 0 | DT35: 0 | DU35: 0 | DV35: 0 | DW35: 0 | DX35: 0 | DY35: 0 | DZ35: 0 | EA35: 0 | EB35: 0 | EC35: 0 | ED35: 0 | EE35: 0 | EF35: 0 | EG35: 0 | EH35: 0 | EI35: 0 | EJ35: 0 | EK35: =EK34*EK31 -> 0 | EL35: 0 | EM35: 0 | EN35: 0 | EO35: 0 | EP35: 0 | EQ35: 0 | ER35: 0 | ES35: 0 | ET35: 0 | EU35: 0 | EV35: 0 | EW35: 0 | EX35: 0 | EY35: 0 | EZ35: 0 | FA35: 0 | FB35: 0 | FC35: 0 | FD35: 0 | FE35: 0 | FF35: 0 | FG35: 0 | FH35: 0 | FI35: 0 | FJ35: 0 | FK35: 0 | FL35: 0 | FM35: 0 | FN35: 0 | FO35: 0 | FP35: 0 | FQ35: 0 | FR35: 0 | FS35: 0 | FT35: 0 | FU35: 0 | FV35: 0 | FW35: 0 | FX35: 0 | FY35: 0 | FZ35: 0 | GA35: 0 | GB35: 0 | GC35: 0 | GD35: 0 | GE35: 0 | GF35: 0 | GG35: 0 | GH35: 0 | GI35: 0 | GJ35: 0 | GK35: 0 | GL35: 0 | GM35: 0 | GN35: 0 | GO35: 0 | GP35: 0 | GQ35: 0 | GR35: 0 | GS35: 0 | GT35: 0 | GU35: 0 | GV35: 0 | GW35: =GW34*GW31 -> 0 | GX35: 0 | GY35: 0 | GZ35: 0 | HA35: 0 | HB35: 0 | HC35: 0 | HD35: 0 | HE35: 0 | HF35: 0 | HG35: 0 | HH35: 0 | HI35: 0 | HJ35: 0 | HK35: 0 | HL35: 0 | HM35: 0 | HN35: 0 | HO35: 0 | HP35: 0 | HQ35: 0 | HR35: 0 | HS35: 0 | HT35: 0 | HU35: 0 | HV35: 0 | HW35: 0 | HX35: 0 | HY35: 0 | HZ35: 0 | IA35: 0 | IB35: 0 | IC35: 0 | ID35: 0 | IE35: 0 | IF35: 0 | IG35: 0 | IH35: 0 | II35: 0 | IJ35: 0 | IK35: 0 | IL35: 0 | IM35: 0 | IN35: 0 | IO35: 0 | IP35: 0 | IQ35: 0 | IR35: 0 | IS35: 0 | IT35: 0 | IU35: 0 | IV35: 0 | IW35: 0 | IX35: 0 | IY35: 0 | IZ35: 0 | JA35: 0 | JB35: 0 | JC35: 0 | JD35: 0 | JE35: 0 | JF35: 0 | JG35: 0 | JH35: 0 | JI35: =JI34*JI31 -> 0 | JJ35: 0 | JK35: 0 | JL35: 0 | JM35: 0 | JN35: 0 | JO35: 0 | JP35: 0 | JQ35: 0 | JR35: 0 | JS35: 0 | JT35: 0 | JU35: 0 | JV35: 0 | JW35: 0 | JX35: 0 | JY35: 0 | JZ35: 0 | KA35: 0 | KB35: 0 | KC35: 0 | KD35: 0 | KE35: 0 | KF35: 0 | KG35: 0 | KH35: 0 | KI35: 0 | KJ35: 0 | KK35: 0 | KL35: 0 | KM35: 0 | KN35: 0 | KO35: 0 | KP35: 0 | KQ35: 0 | KR35: 0 | KS35: 0 | KT35: 0 | KU35: 0 | KV35: 0 | KW35: 0 | KX35: 0 | KY35: 0 | KZ35: 0 | LA35: 0 | LB35: 0 | LC35: 0 | LD35: 0 | LE35: 0 | LF35: 0 | LG35: 0 | LH35: 0 | LI35: 0 | LJ35: 0 | LK35: 0 | LL35: 0 | LM35: 0 | LN35: 0 | LO35: 0 | LP35: 0 | LQ35: 0 | LR35: 0 | LS35: 0 | LT35: 0 | LU35: =LU34*LU31 -> 0 | LV35: 0 | LW35: 0 | LX35: 0 | LY35: 0 | LZ35: 0 | MA35: 0 | MB35: 0 | MC35: 0 | MD35: 0 | ME35: 0 | MF35: 0 | MG35: 0 | MH35: 0 | MI35: 0 | MJ35: 0 | MK35: 0 | ML35: 0 | MM35: 0 | MN35: 0 | MO35: 0 | MP35: 0 | MQ35: 0 | MR35: 0 | MS35: 0 | MT35: 0 | MU35: 0 | MV35: 0 | MW35: 0 | MX35: 0 | MY35: 0 | MZ35: 0 | NA35: 0 | NB35: 0 | NC35: 0 | ND35: 0 | NE35: 0 | NF35: 0 | NG35: 0 | NH35: 0 | NI35: 0 | NJ35: 0 | NK35: 0 | NL35: 0 | NM35: 0 | NN35: 0 | NO35: 0 | NP35: 0 | NQ35: 0 | NR35: 0 | NS35: 0 | NT35: 0 | NU35: 0 | NV35: 0 | NW35: 0 | NX35: 0 | NY35: 0 | NZ35: 0 | OA35: 0 | OB35: 0 | OC35: 0 | OD35: 0 | OE35: 0 | OF35: 0 | OG35: =OG34*OG31 -> 0 | OH35: 0 | OI35: 0 | OJ35: 0 | OK35: 0 | OL35: 0 | OM35: 0 | ON35: 0 | OO35: 0 | OP35: 0 | OQ35: 0 | OR35: 0 | OS35: 0 | OT35: 0 | OU35: 0 | OV35: 0 | OW35: 0 | OX35: 0 | OY35: 0 | OZ35: 0 | PA35: 0 | PB35: 0 | PC35: 0 | PD35: 0 | PE35: 0 | PF35: 0 | PG35: 0 | PH35: 0 | PI35: 0 | PJ35: 0 | PK35: 0 | PL35: 0 | PM35: 0 | PN35: 0 | PO35: 0 | PP35: 0 | PQ35: 0 | PR35: 0 | PS35: 0 | PT35: 0 | PU35: 0 | PV35: 0 | PW35: 0 | PX35: 0 | PY35: 0 | PZ35: 0 | QA35: 0 | QB35: 0 | QC35: 0 | QD35: 0 | QE35: 0 | QF35: 0 | QG35: 0 | QH35: 0 | QI35: 0 | QJ35: 0 | QK35: 0 | QL35: 0 | QM35: 0 | QN35: 0 | QO35: 0 | QP35: 0 | QQ35: 0 | QR35: 0 | QS35: =QS34*QS31 -> 0 | QT35: 0 | QU35: 0 | QV35: 0 | QW35: 0 | QX35: 0 | QY35: 0 | QZ35: 0 | RA35: 0 | RB35: 0 | RC35: 0 | RD35: 0 | RE35: 0 | RF35: 0 | RG35: 0 | RH35: 0 | RI35: 0 | RJ35: 0 | RK35: 0 | RL35: 0 | RM35: 0 | RN35: 0 | RO35: 0 | RP35: 0 | RQ35: 0 | RR35: 0 | RS35: 0 | RT35: 0 | RU35: 0 | RV35: 0 | RW35: 0 | RX35: 0 | RY35: 0 | RZ35: 0 | SA35: 0 | SB35: 0 | SC35: 0 | SD35: 0 | SE35: 0 | SF35: 0 | SG35: 0 | SH35: 0 | SI35: 0 | SJ35: 0 | SK35: 0 | SL35: 0 | SM35: 0 | SN35: 0 | SO35: 0 | SP35: 0 | SQ35: 0
B37: Cash Flow
C38: Inflation Index
D39: Year | G39: Year | L39: =YEAR(L4) -> 1900 | M39: =YEAR(M4) -> 1900 | N39: 1900 | O39: 1900 | P39: 1900 | Q39: 1900 | R39: 1900 | S39: 1900 | T39: 1900 | U39: 1900 | V39: 1900 | W39: 1900 | X39: 1900 | Y39: 1900 | Z39: 1900 | AA39: 1900 | AB39: 1900 | AC39: 1900 | AD39: 1900 | AE39: 1900 | AF39: 1900 | AG39: 1900 | AH39: 1900 | AI39: 1900 | AJ39: 1900 | AK39: 1900 | AL39: 1900 | AM39: 1900 | AN39: 1900 | AO39: 1900 | AP39: 1900 | AQ39: 1900 | AR39: 1900 | AS39: 1900 | AT39: 1900 | AU39: 1900 | AV39: 1900 | AW39: 1900 | AX39: 1900 | AY39: 1900 | AZ39: 1900 | BA39: 1900 | BB39: 1900 | BC39: 1900 | BD39: 1900 | BE39: 1900 | BF39: 1900 | BG39: 1900 | BH39: 1900 | BI39: 1900 | BJ39: 1900 | BK39: 1900 | BL39: 1900 | BM39: 1900 | BN39: 1900 | BO39: 1900 | BP39: 1900 | BQ39: 1900 | BR39: 1900 | BS39: 1900 | BT39: 1900 | BU39: 1900 | BV39: 1900 | BW39: 1900 | BX39: 1900 | BY39: =YEAR(BY4) -> 1900 | BZ39: 1900 | CA39: 1900 | CB39: 1900 | CC39: 1900 | CD39: 1900 | CE39: 1900 | CF39: 1900 | CG39: 1900 | CH39: 1900 | CI39: 1900 | CJ39: 1900 | CK39: 1900 | CL39: 1900 | CM39: 1900 | CN39: 1900 | CO39: 1900 | CP39: 1900 | CQ39: 1900 | CR39: 1900 | CS39: 1900 | CT39: 1900 | CU39: 1900 | CV39: 1900 | CW39: 1900 | CX39: 1900 | CY39: 1900 | CZ39: 1900 | DA39: 1900 | DB39: 1900 | DC39: 1900 | DD39: 1900 | DE39: 1900 | DF39: 1900 | DG39: 1900 | DH39: 1900 | DI39: 1900 | DJ39: 1900 | DK39: 1900 | DL39: 1900 | DM39: 1900 | DN39: 1900 | DO39: 1900 | DP39: 1900 | DQ39: 1900 | DR39: 1900 | DS39: 1900 | DT39: 1900 | DU39: 1900 | DV39: 1900 | DW39: 1900 | DX39: 1900 | DY39: 1900 | DZ39: 1900 | EA39: 1900 | EB39: 1900 | EC39: 1900 | ED39: 1900 | EE39: 1900 | EF39: 1900 | EG39: 1900 | EH39: 1900 | EI39: 1900 | EJ39: 1900 | EK39: =YEAR(EK4) -> 1900 | EL39: 1900 | EM39: 1900 | EN39: 1900 | EO39: 1900 | EP39: 1900 | EQ39: 1900 | ER39: 1900 | ES39: 1900 | ET39: 1900 | EU39: 1900 | EV39: 1900 | EW39: 1900 | EX39: 1900 | EY39: 1900 | EZ39: 1900 | FA39: 1900 | FB39: 1900 | FC39: 1900 | FD39: 1900 | FE39: 1900 | FF39: 1900 | FG39: 1900 | FH39: 1900 | FI39: 1900 | FJ39: 1900 | FK39: 1900 | FL39: 1900 | FM39: 1900 | FN39: 1900 | FO39: 1900 | FP39: 1900 | FQ39: 1900 | FR39: 1900 | FS39: 1900 | FT39: 1900 | FU39: 1900 | FV39: 1900 | FW39: 1900 | FX39: 1900 | FY39: 1900 | FZ39: 1900 | GA39: 1900 | GB39: 1900 | GC39: 1900 | GD39: 1900 | GE39: 1900 | GF39: 1900 | GG39: 1900 | GH39: 1900 | GI39: 1900 | GJ39: 1900 | GK39: 1900 | GL39: 1900 | GM39: 1900 | GN39: 1900 | GO39: 1900 | GP39: 1900 | GQ39: 1900 | GR39: 1900 | GS39: 1900 | GT39: 1900 | GU39: 1900 | GV39: 1900 | GW39: =YEAR(GW4) -> 1900 | GX39: 1900 | GY39: 1900 | GZ39: 1900 | HA39: 1900 | HB39: 1900 | HC39: 1900 | HD39: 1900 | HE39: 1900 | HF39: 1900 | HG39: 1900 | HH39: 1900 | HI39: 1900 | HJ39: 1900 | HK39: 1900 | HL39: 1900 | HM39: 1900 | HN39: 1900 | HO39: 1900 | HP39: 1900 | HQ39: 1900 | HR39: 1900 | HS39: 1900 | HT39: 1900 | HU39: 1900 | HV39: 1900 | HW39: 1900 | HX39: 1900 | HY39: 1900 | HZ39: 1900 | IA39: 1900 | IB39: 1900 | IC39: 1900 | ID39: 1900 | IE39: 1900 | IF39: 1900 | IG39: 1900 | IH39: 1900 | II39: 1900 | IJ39: 1900 | IK39: 1900 | IL39: 1900 | IM39: 1900 | IN39: 1900 | IO39: 1900 | IP39: 1900 | IQ39: 1900 | IR39: 1900 | IS39: 1900 | IT39: 1900 | IU39: 1900 | IV39: 1900 | IW39: 1900 | IX39: 1900 | IY39: 1900 | IZ39: 1900 | JA39: 1900 | JB39: 1900 | JC39: 1900 | JD39: 1900 | JE39: 1900 | JF39: 1900 | JG39: 1900 | JH39: 1900 | JI39: =YEAR(JI4) -> 1900 | JJ39: 1900 | JK39: 1900 | JL39: 1900 | JM39: 1900 | JN39: 1900 | JO39: 1900 | JP39: 1900 | JQ39: 1900 | JR39: 1900 | JS39: 1900 | JT39: 1900 | JU39: 1900 | JV39: 1900 | JW39: 1900 | JX39: 1900 | JY39: 1900 | JZ39: 1900 | KA39: 1900 | KB39: 1900 | KC39: 1900 | KD39: 1900 | KE39: 1900 | KF39: 1900 | KG39: 1900 | KH39: 1900 | KI39: 1900 | KJ39: 1900 | KK39: 1900 | KL39: 1900 | KM39: 1900 | KN39: 1900 | KO39: 1900 | KP39: 1900 | KQ39: 1900 | KR39: 1900 | KS39: 1900 | KT39: 1900 | KU39: 1900 | KV39: 1900 | KW39: 1900 | KX39: 1900 | KY39: 1900 | KZ39: 1900 | LA39: 1900 | LB39: 1900 | LC39: 1900 | LD39: 1900 | LE39: 1900 | LF39: 1900 | LG39: 1900 | LH39: 1900 | LI39: 1900 | LJ39: 1900 | LK39: 1900 | LL39: 1900 | LM39: 1900 | LN39: 1900 | LO39: 1900 | LP39: 1900 | LQ39: 1900 | LR39: 1900 | LS39: 1900 | LT39: 1900 | LU39: =YEAR(LU4) -> 1900 | LV39: 1900 | LW39: 1900 | LX39: 1900 | LY39: 1900 | LZ39: 1900 | MA39: 1900 | MB39: 1900 | MC39: 1900 | MD39: 1900 | ME39: 1900 | MF39: 1900 | MG39: 1900 | MH39: 1900 | MI39: 1900 | MJ39: 1900 | MK39: 1900 | ML39: 1900 | MM39: 1900 | MN39: 1900 | MO39: 1900 | MP39: 1900 | MQ39: 1900 | MR39: 1900 | MS39: 1900 | MT39: 1900 | MU39: 1900 | MV39: 1900 | MW39: 1900 | MX39: 1900 | MY39: 1900 | MZ39: 1900 | NA39: 1900 | NB39: 1900 | NC39: 1900 | ND39: 1900 | NE39: 1900 | NF39: 1900 | NG39: 1900 | NH39: 1900 | NI39: 1900 | NJ39: 1900 | NK39: 1900 | NL39: 1900 | NM39: 1900 | NN39: 1900 | NO39: 1900 | NP39: 1900 | NQ39: 1900 | NR39: 1900 | NS39: 1900 | NT39: 1900 | NU39: 1900 | NV39: 1900 | NW39: 1900 | NX39: 1900 | NY39: 1900 | NZ39: 1900 | OA39: 1900 | OB39: 1900 | OC39: 1900 | OD39: 1900 | OE39: 1900 | OF39: 1900 | OG39: =YEAR(OG4) -> 1900 | OH39: 1900 | OI39: 1900 | OJ39: 1900 | OK39: 1900 | OL39: 1900 | OM39: 1900 | ON39: 1900 | OO39: 1900 | OP39: 1900 | OQ39: 1900 | OR39: 1900 | OS39: 1900 | OT39: 1900 | OU39: 1900 | OV39: 1900 | OW39: 1900 | OX39: 1900 | OY39: 1900 | OZ39: 1900 | PA39: 1900 | PB39: 1900 | PC39: 1900 | PD39: 1900 | PE39: 1900 | PF39: 1900 | PG39: 1900 | PH39: 1900 | PI39: 1900 | PJ39: 1900 | PK39: 1900 | PL39: 1900 | PM39: 1900 | PN39: 1900 | PO39: 1900 | PP39: 1900 | PQ39: 1900 | PR39: 1900 | PS39: 1900 | PT39: 1900 | PU39: 1900 | PV39: 1900 | PW39: 1900 | PX39: 1900 | PY39: 1900 | PZ39: 1900 | QA39: 1900 | QB39: 1900 | QC39: 1900 | QD39: 1900 | QE39: 1900 | QF39: 1900 | QG39: 1900 | QH39: 1900 | QI39: 1900 | QJ39: 1900 | QK39: 1900 | QL39: 1900 | QM39: 1900 | QN39: 1900 | QO39: 1900 | QP39: 1900 | QQ39: 1900 | QR39: 1900 | QS39: =YEAR(QS4) -> 1900 | QT39: 1900 | QU39: 1900 | QV39: 1900 | QW39: 1900 | QX39: 1900 | QY39: 1900 | QZ39: 1900 | RA39: 1900 | RB39: 1900 | RC39: 1900 | RD39: 1900 | RE39: 1900 | RF39: 1900 | RG39: 1900 | RH39: 1900 | RI39: 1900 | RJ39: 1900 | RK39: 1900 | RL39: 1900 | RM39: 1900 | RN39: 1900 | RO39: 1900 | RP39: 1900 | RQ39: 1900 | RR39: 1900 | RS39: 1900 | RT39: 1900 | RU39: 1900 | RV39: 1900 | RW39: 1900 | RX39: 1900 | RY39: 1900 | RZ39: 1900 | SA39: 1900 | SB39: 1900 | SC39: 1900 | SD39: 1900 | SE39: 1900 | SF39: 1900 | SG39: 1900 | SH39: 1900 | SI39: 1900 | SJ39: 1900 | SK39: 1900 | SL39: 1900 | SM39: 1900 | SN39: 1900 | SO39: 1900 | SP39: 1900 | SQ39: 1900
D40: Annual Inflation Rate | E40: =InputS!D29 -> High Inflation | G40: % p.a. | L40: =LOOKUP(L39,InputS!24:24,InputS!29:29) ->  | M40: =LOOKUP(M39,InputS!24:24,InputS!29:29) ->  | N40: =LOOKUP(N39,InputS!24:24,InputS!29:29) ->  | O40: =LOOKUP(O39,InputS!24:24,InputS!29:29) ->  | P40: =LOOKUP(P39,InputS!24:24,InputS!29:29) ->  | Q40: =LOOKUP(Q39,InputS!24:24,InputS!29:29) ->  | R40: =LOOKUP(R39,InputS!24:24,InputS!29:29) ->  | S40: =LOOKUP(S39,InputS!24:24,InputS!29:29) ->  | T40: =LOOKUP(T39,InputS!24:24,InputS!29:29) ->  | U40: =LOOKUP(U39,InputS!24:24,InputS!29:29) ->  | V40: =LOOKUP(V39,InputS!24:24,InputS!29:29) ->  | W40: =LOOKUP(W39,InputS!24:24,InputS!29:29) ->  | X40: =LOOKUP(X39,InputS!24:24,InputS!29:29) ->  | Y40: =LOOKUP(Y39,InputS!24:24,InputS!29:29) ->  | Z40: =LOOKUP(Z39,InputS!24:24,InputS!29:29) ->  | AA40: =LOOKUP(AA39,InputS!24:24,InputS!29:29) ->  | AB40: =LOOKUP(AB39,InputS!24:24,InputS!29:29) ->  | AC40: =LOOKUP(AC39,InputS!24:24,InputS!29:29) ->  | AD40: =LOOKUP(AD39,InputS!24:24,InputS!29:29) ->  | AE40: =LOOKUP(AE39,InputS!24:24,InputS!29:29) ->  | AF40: =LOOKUP(AF39,InputS!24:24,InputS!29:29) ->  | AG40: =LOOKUP(AG39,InputS!24:24,InputS!29:29) ->  | AH40: =LOOKUP(AH39,InputS!24:24,InputS!29:29) ->  | AI40: =LOOKUP(AI39,InputS!24:24,InputS!29:29) ->  | AJ40: =LOOKUP(AJ39,InputS!24:24,InputS!29:29) ->  | AK40: =LOOKUP(AK39,InputS!24:24,InputS!29:29) ->  | AL40: =LOOKUP(AL39,InputS!24:24,InputS!29:29) ->  | AM40: =LOOKUP(AM39,InputS!24:24,InputS!29:29) ->  | AN40: =LOOKUP(AN39,InputS!24:24,InputS!29:29) ->  | AO40: =LOOKUP(AO39,InputS!24:24,InputS!29:29) ->  | AP40: =LOOKUP(AP39,InputS!24:24,InputS!29:29) ->  | AQ40: =LOOKUP(AQ39,InputS!24:24,InputS!29:29) ->  | AR40: =LOOKUP(AR39,InputS!24:24,InputS!29:29) ->  | AS40: =LOOKUP(AS39,InputS!24:24,InputS!29:29) ->  | AT40: =LOOKUP(AT39,InputS!24:24,InputS!29:29) ->  | AU40: =LOOKUP(AU39,InputS!24:24,InputS!29:29) ->  | AV40: =LOOKUP(AV39,InputS!24:24,InputS!29:29) ->  | AW40: =LOOKUP(AW39,InputS!24:24,InputS!29:29) ->  | AX40: =LOOKUP(AX39,InputS!24:24,InputS!29:29) ->  | AY40: =LOOKUP(AY39,InputS!24:24,InputS!29:29) ->  | AZ40: =LOOKUP(AZ39,InputS!24:24,InputS!29:29) ->  | BA40: =LOOKUP(BA39,InputS!24:24,InputS!29:29) ->  | BB40: =LOOKUP(BB39,InputS!24:24,InputS!29:29) ->  | BC40: =LOOKUP(BC39,InputS!24:24,InputS!29:29) ->  | BD40: =LOOKUP(BD39,InputS!24:24,InputS!29:29) ->  | BE40: =LOOKUP(BE39,InputS!24:24,InputS!29:29) ->  | BF40: =LOOKUP(BF39,InputS!24:24,InputS!29:29) ->  | BG40: =LOOKUP(BG39,InputS!24:24,InputS!29:29) ->  | BH40: =LOOKUP(BH39,InputS!24:24,InputS!29:29) ->  | BI40: =LOOKUP(BI39,InputS!24:24,InputS!29:29) ->  | BJ40: =LOOKUP(BJ39,InputS!24:24,InputS!29:29) ->  | BK40: =LOOKUP(BK39,InputS!24:24,InputS!29:29) ->  | BL40: =LOOKUP(BL39,InputS!24:24,InputS!29:29) ->  | BM40: =LOOKUP(BM39,InputS!24:24,InputS!29:29) ->  | BN40: =LOOKUP(BN39,InputS!24:24,InputS!29:29) ->  | BO40: =LOOKUP(BO39,InputS!24:24,InputS!29:29) ->  | BP40: =LOOKUP(BP39,InputS!24:24,InputS!29:29) ->  | BQ40: =LOOKUP(BQ39,InputS!24:24,InputS!29:29) ->  | BR40: =LOOKUP(BR39,InputS!24:24,InputS!29:29) ->  | BS40: =LOOKUP(BS39,InputS!24:24,InputS!29:29) ->  | BT40: =LOOKUP(BT39,InputS!24:24,InputS!29:29) ->  | BU40: =LOOKUP(BU39,InputS!24:24,InputS!29:29) ->  | BV40: =LOOKUP(BV39,InputS!24:24,InputS!29:29) ->  | BW40: =LOOKUP(BW39,InputS!24:24,InputS!29:29) ->  | BX40: =LOOKUP(BX39,InputS!24:24,InputS!29:29) ->  | BY40: =LOOKUP(BY39,InputS!24:24,InputS!29:29) ->  | BZ40: =LOOKUP(BZ39,InputS!24:24,InputS!29:29) ->  | CA40: =LOOKUP(CA39,InputS!24:24,InputS!29:29) ->  | CB40: =LOOKUP(CB39,InputS!24:24,InputS!29:29) ->  | CC40: =LOOKUP(CC39,InputS!24:24,InputS!29:29) ->  | CD40: =LOOKUP(CD39,InputS!24:24,InputS!29:29) ->  | CE40: =LOOKUP(CE39,InputS!24:24,InputS!29:29) ->  | CF40: =LOOKUP(CF39,InputS!24:24,InputS!29:29) ->  | CG40: =LOOKUP(CG39,InputS!24:24,InputS!29:29) ->  | CH40: =LOOKUP(CH39,InputS!24:24,InputS!29:29) ->  | CI40: =LOOKUP(CI39,InputS!24:24,InputS!29:29) ->  | CJ40: =LOOKUP(CJ39,InputS!24:24,InputS!29:29) ->  | CK40: =LOOKUP(CK39,InputS!24:24,InputS!29:29) ->  | CL40: =LOOKUP(CL39,InputS!24:24,InputS!29:29) ->  | CM40: =LOOKUP(CM39,InputS!24:24,InputS!29:29) ->  | CN40: =LOOKUP(CN39,InputS!24:24,InputS!29:29) ->  | CO40: =LOOKUP(CO39,InputS!24:24,InputS!29:29) ->  | CP40: =LOOKUP(CP39,InputS!24:24,InputS!29:29) ->  | CQ40: =LOOKUP(CQ39,InputS!24:24,InputS!29:29) ->  | CR40: =LOOKUP(CR39,InputS!24:24,InputS!29:29) ->  | CS40: =LOOKUP(CS39,InputS!24:24,InputS!29:29) ->  | CT40: =LOOKUP(CT39,InputS!24:24,InputS!29:29) ->  | CU40: =LOOKUP(CU39,InputS!24:24,InputS!29:29) ->  | CV40: =LOOKUP(CV39,InputS!24:24,InputS!29:29) ->  | CW40: =LOOKUP(CW39,InputS!24:24,InputS!29:29) ->  | CX40: =LOOKUP(CX39,InputS!24:24,InputS!29:29) ->  | CY40: =LOOKUP(CY39,InputS!24:24,InputS!29:29) ->  | CZ40: =LOOKUP(CZ39,InputS!24:24,InputS!29:29) ->  | DA40: =LOOKUP(DA39,InputS!24:24,InputS!29:29) ->  | DB40: =LOOKUP(DB39,InputS!24:24,InputS!29:29) ->  | DC40: =LOOKUP(DC39,InputS!24:24,InputS!29:29) ->  | DD40: =LOOKUP(DD39,InputS!24:24,InputS!29:29) ->  | DE40: =LOOKUP(DE39,InputS!24:24,InputS!29:29) ->  | DF40: =LOOKUP(DF39,InputS!24:24,InputS!29:29) ->  | DG40: =LOOKUP(DG39,InputS!24:24,InputS!29:29) ->  | DH40: =LOOKUP(DH39,InputS!24:24,InputS!29:29) ->  | DI40: =LOOKUP(DI39,InputS!24:24,InputS!29:29) ->  | DJ40: =LOOKUP(DJ39,InputS!24:24,InputS!29:29) ->  | DK40: =LOOKUP(DK39,InputS!24:24,InputS!29:29) ->  | DL40: =LOOKUP(DL39,InputS!24:24,InputS!29:29) ->  | DM40: =LOOKUP(DM39,InputS!24:24,InputS!29:29) ->  | DN40: =LOOKUP(DN39,InputS!24:24,InputS!29:29) ->  | DO40: =LOOKUP(DO39,InputS!24:24,InputS!29:29) ->  | DP40: =LOOKUP(DP39,InputS!24:24,InputS!29:29) ->  | DQ40: =LOOKUP(DQ39,InputS!24:24,InputS!29:29) ->  | DR40: =LOOKUP(DR39,InputS!24:24,InputS!29:29) ->  | DS40: =LOOKUP(DS39,InputS!24:24,InputS!29:29) ->  | DT40: =LOOKUP(DT39,InputS!24:24,InputS!29:29) ->  | DU40: =LOOKUP(DU39,InputS!24:24,InputS!29:29) ->  | DV40: =LOOKUP(DV39,InputS!24:24,InputS!29:29) ->  | DW40: =LOOKUP(DW39,InputS!24:24,InputS!29:29) ->  | DX40: =LOOKUP(DX39,InputS!24:24,InputS!29:29) ->  | DY40: =LOOKUP(DY39,InputS!24:24,InputS!29:29) ->  | DZ40: =LOOKUP(DZ39,InputS!24:24,InputS!29:29) ->  | EA40: =LOOKUP(EA39,InputS!24:24,InputS!29:29) ->  | EB40: =LOOKUP(EB39,InputS!24:24,InputS!29:29) ->  | EC40: =LOOKUP(EC39,InputS!24:24,InputS!29:29) ->  | ED40: =LOOKUP(ED39,InputS!24:24,InputS!29:29) ->  | EE40: =LOOKUP(EE39,InputS!24:24,InputS!29:29) ->  | EF40: =LOOKUP(EF39,InputS!24:24,InputS!29:29) ->  | EG40: =LOOKUP(EG39,InputS!24:24,InputS!29:29) ->  | EH40: =LOOKUP(EH39,InputS!24:24,InputS!29:29) ->  | EI40: =LOOKUP(EI39,InputS!24:24,InputS!29:29) ->  | EJ40: =LOOKUP(EJ39,InputS!24:24,InputS!29:29) ->  | EK40: =LOOKUP(EK39,InputS!24:24,InputS!29:29) ->  | EL40: =LOOKUP(EL39,InputS!24:24,InputS!29:29) ->  | EM40: =LOOKUP(EM39,InputS!24:24,InputS!29:29) ->  | EN40: =LOOKUP(EN39,InputS!24:24,InputS!29:29) ->  | EO40: =LOOKUP(EO39,InputS!24:24,InputS!29:29) ->  | EP40: =LOOKUP(EP39,InputS!24:24,InputS!29:29) ->  | EQ40: =LOOKUP(EQ39,InputS!24:24,InputS!29:29) ->  | ER40: =LOOKUP(ER39,InputS!24:24,InputS!29:29) ->  | ES40: =LOOKUP(ES39,InputS!24:24,InputS!29:29) ->  | ET40: =LOOKUP(ET39,InputS!24:24,InputS!29:29) ->  | EU40: =LOOKUP(EU39,InputS!24:24,InputS!29:29) ->  | EV40: =LOOKUP(EV39,InputS!24:24,InputS!29:29) ->  | EW40: =LOOKUP(EW39,InputS!24:24,InputS!29:29) ->  | EX40: =LOOKUP(EX39,InputS!24:24,InputS!29:29) ->  | EY40: =LOOKUP(EY39,InputS!24:24,InputS!29:29) ->  | EZ40: =LOOKUP(EZ39,InputS!24:24,InputS!29:29) ->  | FA40: =LOOKUP(FA39,InputS!24:24,InputS!29:29) ->  | FB40: =LOOKUP(FB39,InputS!24:24,InputS!29:29) ->  | FC40: =LOOKUP(FC39,InputS!24:24,InputS!29:29) ->  | FD40: =LOOKUP(FD39,InputS!24:24,InputS!29:29) ->  | FE40: =LOOKUP(FE39,InputS!24:24,InputS!29:29) ->  | FF40: =LOOKUP(FF39,InputS!24:24,InputS!29:29) ->  | FG40: =LOOKUP(FG39,InputS!24:24,InputS!29:29) ->  | FH40: =LOOKUP(FH39,InputS!24:24,InputS!29:29) ->  | FI40: =LOOKUP(FI39,InputS!24:24,InputS!29:29) ->  | FJ40: =LOOKUP(FJ39,InputS!24:24,InputS!29:29) ->  | FK40: =LOOKUP(FK39,InputS!24:24,InputS!29:29) ->  | FL40: =LOOKUP(FL39,InputS!24:24,InputS!29:29) ->  | FM40: =LOOKUP(FM39,InputS!24:24,InputS!29:29) ->  | FN40: =LOOKUP(FN39,InputS!24:24,InputS!29:29) ->  | FO40: =LOOKUP(FO39,InputS!24:24,InputS!29:29) ->  | FP40: =LOOKUP(FP39,InputS!24:24,InputS!29:29) ->  | FQ40: =LOOKUP(FQ39,InputS!24:24,InputS!29:29) ->  | FR40: =LOOKUP(FR39,InputS!24:24,InputS!29:29) ->  | FS40: =LOOKUP(FS39,InputS!24:24,InputS!29:29) ->  | FT40: =LOOKUP(FT39,InputS!24:24,InputS!29:29) ->  | FU40: =LOOKUP(FU39,InputS!24:24,InputS!29:29) ->  | FV40: =LOOKUP(FV39,InputS!24:24,InputS!29:29) ->  | FW40: =LOOKUP(FW39,InputS!24:24,InputS!29:29) ->  | FX40: =LOOKUP(FX39,InputS!24:24,InputS!29:29) ->  | FY40: =LOOKUP(FY39,InputS!24:24,InputS!29:29) ->  | FZ40: =LOOKUP(FZ39,InputS!24:24,InputS!29:29) ->  | GA40: =LOOKUP(GA39,InputS!24:24,InputS!29:29) ->  | GB40: =LOOKUP(GB39,InputS!24:24,InputS!29:29) ->  | GC40: =LOOKUP(GC39,InputS!24:24,InputS!29:29) ->  | GD40: =LOOKUP(GD39,InputS!24:24,InputS!29:29) ->  | GE40: =LOOKUP(GE39,InputS!24:24,InputS!29:29) ->  | GF40: =LOOKUP(GF39,InputS!24:24,InputS!29:29) ->  | GG40: =LOOKUP(GG39,InputS!24:24,InputS!29:29) ->  | GH40: =LOOKUP(GH39,InputS!24:24,InputS!29:29) ->  | GI40: =LOOKUP(GI39,InputS!24:24,InputS!29:29) ->  | GJ40: =LOOKUP(GJ39,InputS!24:24,InputS!29:29) ->  | GK40: =LOOKUP(GK39,InputS!24:24,InputS!29:29) ->  | GL40: =LOOKUP(GL39,InputS!24:24,InputS!29:29) ->  | GM40: =LOOKUP(GM39,InputS!24:24,InputS!29:29) ->  | GN40: =LOOKUP(GN39,InputS!24:24,InputS!29:29) ->  | GO40: =LOOKUP(GO39,InputS!24:24,InputS!29:29) ->  | GP40: =LOOKUP(GP39,InputS!24:24,InputS!29:29) ->  | GQ40: =LOOKUP(GQ39,InputS!24:24,InputS!29:29) ->  | GR40: =LOOKUP(GR39,InputS!24:24,InputS!29:29) ->  | GS40: =LOOKUP(GS39,InputS!24:24,InputS!29:29) ->  | GT40: =LOOKUP(GT39,InputS!24:24,InputS!29:29) ->  | GU40: =LOOKUP(GU39,InputS!24:24,InputS!29:29) ->  | GV40: =LOOKUP(GV39,InputS!24:24,InputS!29:29) ->  | GW40: =LOOKUP(GW39,InputS!24:24,InputS!29:29) ->  | GX40: =LOOKUP(GX39,InputS!24:24,InputS!29:29) ->  | GY40: =LOOKUP(GY39,InputS!24:24,InputS!29:29) ->  | GZ40: =LOOKUP(GZ39,InputS!24:24,InputS!29:29) ->  | HA40: =LOOKUP(HA39,InputS!24:24,InputS!29:29) ->  | HB40: =LOOKUP(HB39,InputS!24:24,InputS!29:29) ->  | HC40: =LOOKUP(HC39,InputS!24:24,InputS!29:29) ->  | HD40: =LOOKUP(HD39,InputS!24:24,InputS!29:29) ->  | HE40: =LOOKUP(HE39,InputS!24:24,InputS!29:29) ->  | HF40: =LOOKUP(HF39,InputS!24:24,InputS!29:29) ->  | HG40: =LOOKUP(HG39,InputS!24:24,InputS!29:29) ->  | HH40: =LOOKUP(HH39,InputS!24:24,InputS!29:29) ->  | HI40: =LOOKUP(HI39,InputS!24:24,InputS!29:29) ->  | HJ40: =LOOKUP(HJ39,InputS!24:24,InputS!29:29) ->  | HK40: =LOOKUP(HK39,InputS!24:24,InputS!29:29) ->  | HL40: =LOOKUP(HL39,InputS!24:24,InputS!29:29) ->  | HM40: =LOOKUP(HM39,InputS!24:24,InputS!29:29) ->  | HN40: =LOOKUP(HN39,InputS!24:24,InputS!29:29) ->  | HO40: =LOOKUP(HO39,InputS!24:24,InputS!29:29) ->  | HP40: =LOOKUP(HP39,InputS!24:24,InputS!29:29) ->  | HQ40: =LOOKUP(HQ39,InputS!24:24,InputS!29:29) ->  | HR40: =LOOKUP(HR39,InputS!24:24,InputS!29:29) ->  | HS40: =LOOKUP(HS39,InputS!24:24,InputS!29:29) ->  | HT40: =LOOKUP(HT39,InputS!24:24,InputS!29:29) ->  | HU40: =LOOKUP(HU39,InputS!24:24,InputS!29:29) ->  | HV40: =LOOKUP(HV39,InputS!24:24,InputS!29:29) ->  | HW40: =LOOKUP(HW39,InputS!24:24,InputS!29:29) ->  | HX40: =LOOKUP(HX39,InputS!24:24,InputS!29:29) ->  | HY40: =LOOKUP(HY39,InputS!24:24,InputS!29:29) ->  | HZ40: =LOOKUP(HZ39,InputS!24:24,InputS!29:29) ->  | IA40: =LOOKUP(IA39,InputS!24:24,InputS!29:29) ->  | IB40: =LOOKUP(IB39,InputS!24:24,InputS!29:29) ->  | IC40: =LOOKUP(IC39,InputS!24:24,InputS!29:29) ->  | ID40: =LOOKUP(ID39,InputS!24:24,InputS!29:29) ->  | IE40: =LOOKUP(IE39,InputS!24:24,InputS!29:29) ->  | IF40: =LOOKUP(IF39,InputS!24:24,InputS!29:29) ->  | IG40: =LOOKUP(IG39,InputS!24:24,InputS!29:29) ->  | IH40: =LOOKUP(IH39,InputS!24:24,InputS!29:29) ->  | II40: =LOOKUP(II39,InputS!24:24,InputS!29:29) ->  | IJ40: =LOOKUP(IJ39,InputS!24:24,InputS!29:29) ->  | IK40: =LOOKUP(IK39,InputS!24:24,InputS!29:29) ->  | IL40: =LOOKUP(IL39,InputS!24:24,InputS!29:29) ->  | IM40: =LOOKUP(IM39,InputS!24:24,InputS!29:29) ->  | IN40: =LOOKUP(IN39,InputS!24:24,InputS!29:29) ->  | IO40: =LOOKUP(IO39,InputS!24:24,InputS!29:29) ->  | IP40: =LOOKUP(IP39,InputS!24:24,InputS!29:29) ->  | IQ40: =LOOKUP(IQ39,InputS!24:24,InputS!29:29) ->  | IR40: =LOOKUP(IR39,InputS!24:24,InputS!29:29) ->  | IS40: =LOOKUP(IS39,InputS!24:24,InputS!29:29) ->  | IT40: =LOOKUP(IT39,InputS!24:24,InputS!29:29) ->  | IU40: =LOOKUP(IU39,InputS!24:24,InputS!29:29) ->  | IV40: =LOOKUP(IV39,InputS!24:24,InputS!29:29) ->  | IW40: =LOOKUP(IW39,InputS!24:24,InputS!29:29) ->  | IX40: =LOOKUP(IX39,InputS!24:24,InputS!29:29) ->  | IY40: =LOOKUP(IY39,InputS!24:24,InputS!29:29) ->  | IZ40: =LOOKUP(IZ39,InputS!24:24,InputS!29:29) ->  | JA40: =LOOKUP(JA39,InputS!24:24,InputS!29:29) ->  | JB40: =LOOKUP(JB39,InputS!24:24,InputS!29:29) ->  | JC40: =LOOKUP(JC39,InputS!24:24,InputS!29:29) ->  | JD40: =LOOKUP(JD39,InputS!24:24,InputS!29:29) ->  | JE40: =LOOKUP(JE39,InputS!24:24,InputS!29:29) ->  | JF40: =LOOKUP(JF39,InputS!24:24,InputS!29:29) ->  | JG40: =LOOKUP(JG39,InputS!24:24,InputS!29:29) ->  | JH40: =LOOKUP(JH39,InputS!24:24,InputS!29:29) ->  | JI40: =LOOKUP(JI39,InputS!24:24,InputS!29:29) ->  | JJ40: =LOOKUP(JJ39,InputS!24:24,InputS!29:29) ->  | JK40: =LOOKUP(JK39,InputS!24:24,InputS!29:29) ->  | JL40: =LOOKUP(JL39,InputS!24:24,InputS!29:29) ->  | JM40: =LOOKUP(JM39,InputS!24:24,InputS!29:29) ->  | JN40: =LOOKUP(JN39,InputS!24:24,InputS!29:29) ->  | JO40: =LOOKUP(JO39,InputS!24:24,InputS!29:29) ->  | JP40: =LOOKUP(JP39,InputS!24:24,InputS!29:29) ->  | JQ40: =LOOKUP(JQ39,InputS!24:24,InputS!29:29) ->  | JR40: =LOOKUP(JR39,InputS!24:24,InputS!29:29) ->  | JS40: =LOOKUP(JS39,InputS!24:24,InputS!29:29) ->  | JT40: =LOOKUP(JT39,InputS!24:24,InputS!29:29) ->  | JU40: =LOOKUP(JU39,InputS!24:24,InputS!29:29) ->  | JV40: =LOOKUP(JV39,InputS!24:24,InputS!29:29) ->  | JW40: =LOOKUP(JW39,InputS!24:24,InputS!29:29) ->  | JX40: =LOOKUP(JX39,InputS!24:24,InputS!29:29) ->  | JY40: =LOOKUP(JY39,InputS!24:24,InputS!29:29) ->  | JZ40: =LOOKUP(JZ39,InputS!24:24,InputS!29:29) ->  | KA40: =LOOKUP(KA39,InputS!24:24,InputS!29:29) ->  | KB40: =LOOKUP(KB39,InputS!24:24,InputS!29:29) ->  | KC40: =LOOKUP(KC39,InputS!24:24,InputS!29:29) ->  | KD40: =LOOKUP(KD39,InputS!24:24,InputS!29:29) ->  | KE40: =LOOKUP(KE39,InputS!24:24,InputS!29:29) ->  | KF40: =LOOKUP(KF39,InputS!24:24,InputS!29:29) ->  | KG40: =LOOKUP(KG39,InputS!24:24,InputS!29:29) ->  | KH40: =LOOKUP(KH39,InputS!24:24,InputS!29:29) ->  | KI40: =LOOKUP(KI39,InputS!24:24,InputS!29:29) ->  | KJ40: =LOOKUP(KJ39,InputS!24:24,InputS!29:29) ->  | KK40: =LOOKUP(KK39,InputS!24:24,InputS!29:29) ->  | KL40: =LOOKUP(KL39,InputS!24:24,InputS!29:29) ->  | KM40: =LOOKUP(KM39,InputS!24:24,InputS!29:29) ->  | KN40: =LOOKUP(KN39,InputS!24:24,InputS!29:29) ->  | KO40: =LOOKUP(KO39,InputS!24:24,InputS!29:29) ->  | KP40: =LOOKUP(KP39,InputS!24:24,InputS!29:29) ->  | KQ40: =LOOKUP(KQ39,InputS!24:24,InputS!29:29) ->  | KR40: =LOOKUP(KR39,InputS!24:24,InputS!29:29) ->  | KS40: =LOOKUP(KS39,InputS!24:24,InputS!29:29) ->  | KT40: =LOOKUP(KT39,InputS!24:24,InputS!29:29) ->  | KU40: =LOOKUP(KU39,InputS!24:24,InputS!29:29) ->  | KV40: =LOOKUP(KV39,InputS!24:24,InputS!29:29) ->  | KW40: =LOOKUP(KW39,InputS!24:24,InputS!29:29) ->  | KX40: =LOOKUP(KX39,InputS!24:24,InputS!29:29) ->  | KY40: =LOOKUP(KY39,InputS!24:24,InputS!29:29) ->  | KZ40: =LOOKUP(KZ39,InputS!24:24,InputS!29:29) ->  | LA40: =LOOKUP(LA39,InputS!24:24,InputS!29:29) ->  | LB40: =LOOKUP(LB39,InputS!24:24,InputS!29:29) ->  | LC40: =LOOKUP(LC39,InputS!24:24,InputS!29:29) ->  | LD40: =LOOKUP(LD39,InputS!24:24,InputS!29:29) ->  | LE40: =LOOKUP(LE39,InputS!24:24,InputS!29:29) ->  | LF40: =LOOKUP(LF39,InputS!24:24,InputS!29:29) ->  | LG40: =LOOKUP(LG39,InputS!24:24,InputS!29:29) ->  | LH40: =LOOKUP(LH39,InputS!24:24,InputS!29:29) ->  | LI40: =LOOKUP(LI39,InputS!24:24,InputS!29:29) ->  | LJ40: =LOOKUP(LJ39,InputS!24:24,InputS!29:29) ->  | LK40: =LOOKUP(LK39,InputS!24:24,InputS!29:29) ->  | LL40: =LOOKUP(LL39,InputS!24:24,InputS!29:29) ->  | LM40: =LOOKUP(LM39,InputS!24:24,InputS!29:29) ->  | LN40: =LOOKUP(LN39,InputS!24:24,InputS!29:29) ->  | LO40: =LOOKUP(LO39,InputS!24:24,InputS!29:29) ->  | LP40: =LOOKUP(LP39,InputS!24:24,InputS!29:29) ->  | LQ40: =LOOKUP(LQ39,InputS!24:24,InputS!29:29) ->  | LR40: =LOOKUP(LR39,InputS!24:24,InputS!29:29) ->  | LS40: =LOOKUP(LS39,InputS!24:24,InputS!29:29) ->  | LT40: =LOOKUP(LT39,InputS!24:24,InputS!29:29) ->  | LU40: =LOOKUP(LU39,InputS!24:24,InputS!29:29) ->  | LV40: =LOOKUP(LV39,InputS!24:24,InputS!29:29) ->  | LW40: =LOOKUP(LW39,InputS!24:24,InputS!29:29) ->  | LX40: =LOOKUP(LX39,InputS!24:24,InputS!29:29) ->  | LY40: =LOOKUP(LY39,InputS!24:24,InputS!29:29) ->  | LZ40: =LOOKUP(LZ39,InputS!24:24,InputS!29:29) ->  | MA40: =LOOKUP(MA39,InputS!24:24,InputS!29:29) ->  | MB40: =LOOKUP(MB39,InputS!24:24,InputS!29:29) ->  | MC40: =LOOKUP(MC39,InputS!24:24,InputS!29:29) ->  | MD40: =LOOKUP(MD39,InputS!24:24,InputS!29:29) ->  | ME40: =LOOKUP(ME39,InputS!24:24,InputS!29:29) ->  | MF40: =LOOKUP(MF39,InputS!24:24,InputS!29:29) ->  | MG40: =LOOKUP(MG39,InputS!24:24,InputS!29:29) ->  | MH40: =LOOKUP(MH39,InputS!24:24,InputS!29:29) ->  | MI40: =LOOKUP(MI39,InputS!24:24,InputS!29:29) ->  | MJ40: =LOOKUP(MJ39,InputS!24:24,InputS!29:29) ->  | MK40: =LOOKUP(MK39,InputS!24:24,InputS!29:29) ->  | ML40: =LOOKUP(ML39,InputS!24:24,InputS!29:29) ->  | MM40: =LOOKUP(MM39,InputS!24:24,InputS!29:29) ->  | MN40: =LOOKUP(MN39,InputS!24:24,InputS!29:29) ->  | MO40: =LOOKUP(MO39,InputS!24:24,InputS!29:29) ->  | MP40: =LOOKUP(MP39,InputS!24:24,InputS!29:29) ->  | MQ40: =LOOKUP(MQ39,InputS!24:24,InputS!29:29) ->  | MR40: =LOOKUP(MR39,InputS!24:24,InputS!29:29) ->  | MS40: =LOOKUP(MS39,InputS!24:24,InputS!29:29) ->  | MT40: =LOOKUP(MT39,InputS!24:24,InputS!29:29) ->  | MU40: =LOOKUP(MU39,InputS!24:24,InputS!29:29) ->  | MV40: =LOOKUP(MV39,InputS!24:24,InputS!29:29) ->  | MW40: =LOOKUP(MW39,InputS!24:24,InputS!29:29) ->  | MX40: =LOOKUP(MX39,InputS!24:24,InputS!29:29) ->  | MY40: =LOOKUP(MY39,InputS!24:24,InputS!29:29) ->  | MZ40: =LOOKUP(MZ39,InputS!24:24,InputS!29:29) ->  | NA40: =LOOKUP(NA39,InputS!24:24,InputS!29:29) ->  | NB40: =LOOKUP(NB39,InputS!24:24,InputS!29:29) ->  | NC40: =LOOKUP(NC39,InputS!24:24,InputS!29:29) ->  | ND40: =LOOKUP(ND39,InputS!24:24,InputS!29:29) ->  | NE40: =LOOKUP(NE39,InputS!24:24,InputS!29:29) ->  | NF40: =LOOKUP(NF39,InputS!24:24,InputS!29:29) ->  | NG40: =LOOKUP(NG39,InputS!24:24,InputS!29:29) ->  | NH40: =LOOKUP(NH39,InputS!24:24,InputS!29:29) ->  | NI40: =LOOKUP(NI39,InputS!24:24,InputS!29:29) ->  | NJ40: =LOOKUP(NJ39,InputS!24:24,InputS!29:29) ->  | NK40: =LOOKUP(NK39,InputS!24:24,InputS!29:29) ->  | NL40: =LOOKUP(NL39,InputS!24:24,InputS!29:29) ->  | NM40: =LOOKUP(NM39,InputS!24:24,InputS!29:29) ->  | NN40: =LOOKUP(NN39,InputS!24:24,InputS!29:29) ->  | NO40: =LOOKUP(NO39,InputS!24:24,InputS!29:29) ->  | NP40: =LOOKUP(NP39,InputS!24:24,InputS!29:29) ->  | NQ40: =LOOKUP(NQ39,InputS!24:24,InputS!29:29) ->  | NR40: =LOOKUP(NR39,InputS!24:24,InputS!29:29) ->  | NS40: =LOOKUP(NS39,InputS!24:24,InputS!29:29) ->  | NT40: =LOOKUP(NT39,InputS!24:24,InputS!29:29) ->  | NU40: =LOOKUP(NU39,InputS!24:24,InputS!29:29) ->  | NV40: =LOOKUP(NV39,InputS!24:24,InputS!29:29) ->  | NW40: =LOOKUP(NW39,InputS!24:24,InputS!29:29) ->  | NX40: =LOOKUP(NX39,InputS!24:24,InputS!29:29) ->  | NY40: =LOOKUP(NY39,InputS!24:24,InputS!29:29) ->  | NZ40: =LOOKUP(NZ39,InputS!24:24,InputS!29:29) ->  | OA40: =LOOKUP(OA39,InputS!24:24,InputS!29:29) ->  | OB40: =LOOKUP(OB39,InputS!24:24,InputS!29:29) ->  | OC40: =LOOKUP(OC39,InputS!24:24,InputS!29:29) ->  | OD40: =LOOKUP(OD39,InputS!24:24,InputS!29:29) ->  | OE40: =LOOKUP(OE39,InputS!24:24,InputS!29:29) ->  | OF40: =LOOKUP(OF39,InputS!24:24,InputS!29:29) ->  | OG40: =LOOKUP(OG39,InputS!24:24,InputS!29:29) ->  | OH40: =LOOKUP(OH39,InputS!24:24,InputS!29:29) ->  | OI40: =LOOKUP(OI39,InputS!24:24,InputS!29:29) ->  | OJ40: =LOOKUP(OJ39,InputS!24:24,InputS!29:29) ->  | OK40: =LOOKUP(OK39,InputS!24:24,InputS!29:29) ->  | OL40: =LOOKUP(OL39,InputS!24:24,InputS!29:29) ->  | OM40: =LOOKUP(OM39,InputS!24:24,InputS!29:29) ->  | ON40: =LOOKUP(ON39,InputS!24:24,InputS!29:29) ->  | OO40: =LOOKUP(OO39,InputS!24:24,InputS!29:29) ->  | OP40: =LOOKUP(OP39,InputS!24:24,InputS!29:29) ->  | OQ40: =LOOKUP(OQ39,InputS!24:24,InputS!29:29) ->  | OR40: =LOOKUP(OR39,InputS!24:24,InputS!29:29) ->  | OS40: =LOOKUP(OS39,InputS!24:24,InputS!29:29) ->  | OT40: =LOOKUP(OT39,InputS!24:24,InputS!29:29) ->  | OU40: =LOOKUP(OU39,InputS!24:24,InputS!29:29) ->  | OV40: =LOOKUP(OV39,InputS!24:24,InputS!29:29) ->  | OW40: =LOOKUP(OW39,InputS!24:24,InputS!29:29) ->  | OX40: =LOOKUP(OX39,InputS!24:24,InputS!29:29) ->  | OY40: =LOOKUP(OY39,InputS!24:24,InputS!29:29) ->  | OZ40: =LOOKUP(OZ39,InputS!24:24,InputS!29:29) ->  | PA40: =LOOKUP(PA39,InputS!24:24,InputS!29:29) ->  | PB40: =LOOKUP(PB39,InputS!24:24,InputS!29:29) ->  | PC40: =LOOKUP(PC39,InputS!24:24,InputS!29:29) ->  | PD40: =LOOKUP(PD39,InputS!24:24,InputS!29:29) ->  | PE40: =LOOKUP(PE39,InputS!24:24,InputS!29:29) ->  | PF40: =LOOKUP(PF39,InputS!24:24,InputS!29:29) ->  | PG40: =LOOKUP(PG39,InputS!24:24,InputS!29:29) ->  | PH40: =LOOKUP(PH39,InputS!24:24,InputS!29:29) ->  | PI40: =LOOKUP(PI39,InputS!24:24,InputS!29:29) ->  | PJ40: =LOOKUP(PJ39,InputS!24:24,InputS!29:29) ->  | PK40: =LOOKUP(PK39,InputS!24:24,InputS!29:29) ->  | PL40: =LOOKUP(PL39,InputS!24:24,InputS!29:29) ->  | PM40: =LOOKUP(PM39,InputS!24:24,InputS!29:29) ->  | PN40: =LOOKUP(PN39,InputS!24:24,InputS!29:29) ->  | PO40: =LOOKUP(PO39,InputS!24:24,InputS!29:29) ->  | PP40: =LOOKUP(PP39,InputS!24:24,InputS!29:29) ->  | PQ40: =LOOKUP(PQ39,InputS!24:24,InputS!29:29) ->  | PR40: =LOOKUP(PR39,InputS!24:24,InputS!29:29) ->  | PS40: =LOOKUP(PS39,InputS!24:24,InputS!29:29) ->  | PT40: =LOOKUP(PT39,InputS!24:24,InputS!29:29) ->  | PU40: =LOOKUP(PU39,InputS!24:24,InputS!29:29) ->  | PV40: =LOOKUP(PV39,InputS!24:24,InputS!29:29) ->  | PW40: =LOOKUP(PW39,InputS!24:24,InputS!29:29) ->  | PX40: =LOOKUP(PX39,InputS!24:24,InputS!29:29) ->  | PY40: =LOOKUP(PY39,InputS!24:24,InputS!29:29) ->  | PZ40: =LOOKUP(PZ39,InputS!24:24,InputS!29:29) ->  | QA40: =LOOKUP(QA39,InputS!24:24,InputS!29:29) ->  | QB40: =LOOKUP(QB39,InputS!24:24,InputS!29:29) ->  | QC40: =LOOKUP(QC39,InputS!24:24,InputS!29:29) ->  | QD40: =LOOKUP(QD39,InputS!24:24,InputS!29:29) ->  | QE40: =LOOKUP(QE39,InputS!24:24,InputS!29:29) ->  | QF40: =LOOKUP(QF39,InputS!24:24,InputS!29:29) ->  | QG40: =LOOKUP(QG39,InputS!24:24,InputS!29:29) ->  | QH40: =LOOKUP(QH39,InputS!24:24,InputS!29:29) ->  | QI40: =LOOKUP(QI39,InputS!24:24,InputS!29:29) ->  | QJ40: =LOOKUP(QJ39,InputS!24:24,InputS!29:29) ->  | QK40: =LOOKUP(QK39,InputS!24:24,InputS!29:29) ->  | QL40: =LOOKUP(QL39,InputS!24:24,InputS!29:29) ->  | QM40: =LOOKUP(QM39,InputS!24:24,InputS!29:29) ->  | QN40: =LOOKUP(QN39,InputS!24:24,InputS!29:29) ->  | QO40: =LOOKUP(QO39,InputS!24:24,InputS!29:29) ->  | QP40: =LOOKUP(QP39,InputS!24:24,InputS!29:29) ->  | QQ40: =LOOKUP(QQ39,InputS!24:24,InputS!29:29) ->  | QR40: =LOOKUP(QR39,InputS!24:24,InputS!29:29) ->  | QS40: =LOOKUP(QS39,InputS!24:24,InputS!29:29) ->  | QT40: =LOOKUP(QT39,InputS!24:24,InputS!29:29) ->  | QU40: =LOOKUP(QU39,InputS!24:24,InputS!29:29) ->  | QV40: =LOOKUP(QV39,InputS!24:24,InputS!29:29) ->  | QW40: =LOOKUP(QW39,InputS!24:24,InputS!29:29) ->  | QX40: =LOOKUP(QX39,InputS!24:24,InputS!29:29) ->  | QY40: =LOOKUP(QY39,InputS!24:24,InputS!29:29) ->  | QZ40: =LOOKUP(QZ39,InputS!24:24,InputS!29:29) ->  | RA40: =LOOKUP(RA39,InputS!24:24,InputS!29:29) ->  | RB40: =LOOKUP(RB39,InputS!24:24,InputS!29:29) ->  | RC40: =LOOKUP(RC39,InputS!24:24,InputS!29:29) ->  | RD40: =LOOKUP(RD39,InputS!24:24,InputS!29:29) ->  | RE40: =LOOKUP(RE39,InputS!24:24,InputS!29:29) ->  | RF40: =LOOKUP(RF39,InputS!24:24,InputS!29:29) ->  | RG40: =LOOKUP(RG39,InputS!24:24,InputS!29:29) ->  | RH40: =LOOKUP(RH39,InputS!24:24,InputS!29:29) ->  | RI40: =LOOKUP(RI39,InputS!24:24,InputS!29:29) ->  | RJ40: =LOOKUP(RJ39,InputS!24:24,InputS!29:29) ->  | RK40: =LOOKUP(RK39,InputS!24:24,InputS!29:29) ->  | RL40: =LOOKUP(RL39,InputS!24:24,InputS!29:29) ->  | RM40: =LOOKUP(RM39,InputS!24:24,InputS!29:29) ->  | RN40: =LOOKUP(RN39,InputS!24:24,InputS!29:29) ->  | RO40: =LOOKUP(RO39,InputS!24:24,InputS!29:29) ->  | RP40: =LOOKUP(RP39,InputS!24:24,InputS!29:29) ->  | RQ40: =LOOKUP(RQ39,InputS!24:24,InputS!29:29) ->  | RR40: =LOOKUP(RR39,InputS!24:24,InputS!29:29) ->  | RS40: =LOOKUP(RS39,InputS!24:24,InputS!29:29) ->  | RT40: =LOOKUP(RT39,InputS!24:24,InputS!29:29) ->  | RU40: =LOOKUP(RU39,InputS!24:24,InputS!29:29) ->  | RV40: =LOOKUP(RV39,InputS!24:24,InputS!29:29) ->  | RW40: =LOOKUP(RW39,InputS!24:24,InputS!29:29) ->  | RX40: =LOOKUP(RX39,InputS!24:24,InputS!29:29) ->  | RY40: =LOOKUP(RY39,InputS!24:24,InputS!29:29) ->  | RZ40: =LOOKUP(RZ39,InputS!24:24,InputS!29:29) ->  | SA40: =LOOKUP(SA39,InputS!24:24,InputS!29:29) ->  | SB40: =LOOKUP(SB39,InputS!24:24,InputS!29:29) ->  | SC40: =LOOKUP(SC39,InputS!24:24,InputS!29:29) ->  | SD40: =LOOKUP(SD39,InputS!24:24,InputS!29:29) ->  | SE40: =LOOKUP(SE39,InputS!24:24,InputS!29:29) ->  | SF40: =LOOKUP(SF39,InputS!24:24,InputS!29:29) ->  | SG40: =LOOKUP(SG39,InputS!24:24,InputS!29:29) ->  | SH40: =LOOKUP(SH39,InputS!24:24,InputS!29:29) ->  | SI40: =LOOKUP(SI39,InputS!24:24,InputS!29:29) ->  | SJ40: =LOOKUP(SJ39,InputS!24:24,InputS!29:29) ->  | SK40: =LOOKUP(SK39,InputS!24:24,InputS!29:29) ->  | SL40: =LOOKUP(SL39,InputS!24:24,InputS!29:29) ->  | SM40: =LOOKUP(SM39,InputS!24:24,InputS!29:29) ->  | SN40: =LOOKUP(SN39,InputS!24:24,InputS!29:29) ->  | SO40: =LOOKUP(SO39,InputS!24:24,InputS!29:29) ->  | SP40: =LOOKUP(SP39,InputS!24:24,InputS!29:29) ->  | SQ40: =LOOKUP(SQ39,InputS!24:24,InputS!29:29) -> 
D41: Monthly Inflation Rate | G41: % p.p. | L41: =(1+L40)^(1/Months)-1 ->  | BX41: =(1+BX40)^(1/Months)-1 ->  | EJ41: =(1+EJ40)^(1/Months)-1 ->  | GV41: =(1+GV40)^(1/Months)-1 ->  | JH41: =(1+JH40)^(1/Months)-1 ->  | LT41: =(1+LT40)^(1/Months)-1 ->  | OF41: =(1+OF40)^(1/Months)-1 ->  | QR41: =(1+QR40)^(1/Months)-1 -> 
D43: Inflation Index from COD | G43: Index | K43: 1
D44: Inflation Index from Start Date | G44: Index | K44: 1 | L44: =K44*(1+L41) ->  | M44: =L44*(1+M41) ->  | BY44: =BX44*(1+BY41) ->  | EK44: =EJ44*(1+EK41) ->  | GW44: =GV44*(1+GW41) ->  | JI44: =JH44*(1+JI41) ->  | LU44: =LT44*(1+LU41) ->  | OG44: =OF44*(1+OG41) ->  | QS44: =QR44*(1+QS41) -> 
C46: PPA Revenues
D47: PPA Real Rate (2021) | E47: ='InputC - Operations'!$E$33 -> 33 | G47: USD/MWH | L47: =$E$47 -> 33 | M47: 33 | N47: 33 | O47: 33 | P47: 33 | Q47: 33 | R47: 33 | S47: 33 | T47: 33 | U47: 33 | V47: 33 | W47: 33 | X47: 33 | Y47: 33 | Z47: 33 | AA47: 33 | AB47: 33 | AC47: 33 | AD47: 33 | AE47: 33 | AF47: 33 | AG47: 33 | AH47: 33 | AI47: 33 | AJ47: 33 | AK47: 33 | AL47: 33 | AM47: 33 | AN47: 33 | AO47: 33 | AP47: 33 | AQ47: 33 | AR47: 33 | AS47: 33 | AT47: 33 | AU47: 33 | AV47: 33 | AW47: 33 | AX47: 33 | AY47: 33 | AZ47: 33 | BA47: 33 | BB47: 33 | BC47: 33 | BD47: 33 | BE47: 33 | BF47: 33 | BG47: 33 | BH47: 33 | BI47: 33 | BJ47: 33 | BK47: 33 | BL47: 33 | BM47: 33 | BN47: 33 | BO47: 33 | BP47: 33 | BQ47: 33 | BR47: 33 | BS47: 33 | BT47: 33 | BU47: 33 | BV47: 33 | BW47: 33 | BX47: =$E$47 -> 33 | BY47: 33 | BZ47: 33 | CA47: 33 | CB47: 33 | CC47: 33 | CD47: 33 | CE47: 33 | CF47: 33 | CG47: 33 | CH47: 33 | CI47: 33 | CJ47: 33 | CK47: 33 | CL47: 33 | CM47: 33 | CN47: 33 | CO47: 33 | CP47: 33 | CQ47: 33 | CR47: 33 | CS47: 33 | CT47: 33 | CU47: 33 | CV47: 33 | CW47: 33 | CX47: 33 | CY47: 33 | CZ47: 33 | DA47: 33 | DB47: 33 | DC47: 33 | DD47: 33 | DE47: 33 | DF47: 33 | DG47: 33 | DH47: 33 | DI47: 33 | DJ47: 33 | DK47: 33 | DL47: 33 | DM47: 33 | DN47: 33 | DO47: 33 | DP47: 33 | DQ47: 33 | DR47: 33 | DS47: 33 | DT47: 33 | DU47: 33 | DV47: 33 | DW47: 33 | DX47: 33 | DY47: 33 | DZ47: 33 | EA47: 33 | EB47: 33 | EC47: 33 | ED47: 33 | EE47: 33 | EF47: 33 | EG47: 33 | EH47: 33 | EI47: 33 | EJ47: =$E$47 -> 33 | EK47: 33 | EL47: 33 | EM47: 33 | EN47: 33 | EO47: 33 | EP47: 33 | EQ47: 33 | ER47: 33 | ES47: 33 | ET47: 33 | EU47: 33 | EV47: 33 | EW47: 33 | EX47: 33 | EY47: 33 | EZ47: 33 | FA47: 33 | FB47: 33 | FC47: 33 | FD47: 33 | FE47: 33 | FF47: 33 | FG47: 33 | FH47: 33 | FI47: 33 | FJ47: 33 | FK47: 33 | FL47: 33 | FM47: 33 | FN47: 33 | FO47: 33 | FP47: 33 | FQ47: 33 | FR47: 33 | FS47: 33 | FT47: 33 | FU47: 33 | FV47: 33 | FW47: 33 | FX47: 33 | FY47: 33 | FZ47: 33 | GA47: 33 | GB47: 33 | GC47: 33 | GD47: 33 | GE47: 33 | GF47: 33 | GG47: 33 | GH47: 33 | GI47: 33 | GJ47: 33 | GK47: 33 | GL47: 33 | GM47: 33 | GN47: 33 | GO47: 33 | GP47: 33 | GQ47: 33 | GR47: 33 | GS47: 33 | GT47: 33 | GU47: 33 | GV47: =$E$47 -> 33 | GW47: 33 | GX47: 33 | GY47: 33 | GZ47: 33 | HA47: 33 | HB47: 33 | HC47: 33 | HD47: 33 | HE47: 33 | HF47: 33 | HG47: 33 | HH47: 33 | HI47: 33 | HJ47: 33 | HK47: 33 | HL47: 33 | HM47: 33 | HN47: 33 | HO47: 33 | HP47: 33 | HQ47: 33 | HR47: 33 | HS47: 33 | HT47: 33 | HU47: 33 | HV47: 33 | HW47: 33 | HX47: 33 | HY47: 33 | HZ47: 33 | IA47: 33 | IB47: 33 | IC47: 33 | ID47: 33 | IE47: 33 | IF47: 33 | IG47: 33 | IH47: 33 | II47: 33 | IJ47: 33 | IK47: 33 | IL47: 33 | IM47: 33 | IN47: 33 | IO47: 33 | IP47: 33 | IQ47: 33 | IR47: 33 | IS47: 33 | IT47: 33 | IU47: 33 | IV47: 33 | IW47: 33 | IX47: 33 | IY47: 33 | IZ47: 33 | JA47: 33 | JB47: 33 | JC47: 33 | JD47: 33 | JE47: 33 | JF47: 33 | JG47: 33 | JH47: =$E$47 -> 33 | JI47: 33 | JJ47: 33 | JK47: 33 | JL47: 33 | JM47: 33 | JN47: 33 | JO47: 33 | JP47: 33 | JQ47: 33 | JR47: 33 | JS47: 33 | JT47: 33 | JU47: 33 | JV47: 33 | JW47: 33 | JX47: 33 | JY47: 33 | JZ47: 33 | KA47: 33 | KB47: 33 | KC47: 33 | KD47: 33 | KE47: 33 | KF47: 33 | KG47: 33 | KH47: 33 | KI47: 33 | KJ47: 33 | KK47: 33 | KL47: 33 | KM47: 33 | KN47: 33 | KO47: 33 | KP47: 33 | KQ47: 33 | KR47: 33 | KS47: 33 | KT47: 33 | KU47: 33 | KV47: 33 | KW47: 33 | KX47: 33 | KY47: 33 | KZ47: 33 | LA47: 33 | LB47: 33 | LC47: 33 | LD47: 33 | LE47: 33 | LF47: 33 | LG47: 33 | LH47: 33 | LI47: 33 | LJ47: 33 | LK47: 33 | LL47: 33 | LM47: 33 | LN47: 33 | LO47: 33 | LP47: 33 | LQ47: 33 | LR47: 33 | LS47: 33 | LT47: =$E$47 -> 33 | LU47: 33 | LV47: 33 | LW47: 33 | LX47: 33 | LY47: 33 | LZ47: 33 | MA47: 33 | MB47: 33 | MC47: 33 | MD47: 33 | ME47: 33 | MF47: 33 | MG47: 33 | MH47: 33 | MI47: 33 | MJ47: 33 | MK47: 33 | ML47: 33 | MM47: 33 | MN47: 33 | MO47: 33 | MP47: 33 | MQ47: 33 | MR47: 33 | MS47: 33 | MT47: 33 | MU47: 33 | MV47: 33 | MW47: 33 | MX47: 33 | MY47: 33 | MZ47: 33 | NA47: 33 | NB47: 33 | NC47: 33 | ND47: 33 | NE47: 33 | NF47: 33 | NG47: 33 | NH47: 33 | NI47: 33 | NJ47: 33 | NK47: 33 | NL47: 33 | NM47: 33 | NN47: 33 | NO47: 33 | NP47: 33 | NQ47: 33 | NR47: 33 | NS47: 33 | NT47: 33 | NU47: 33 | NV47: 33 | NW47: 33 | NX47: 33 | NY47: 33 | NZ47: 33 | OA47: 33 | OB47: 33 | OC47: 33 | OD47: 33 | OE47: 33 | OF47: =$E$47 -> 33 | OG47: 33 | OH47: 33 | OI47: 33 | OJ47: 33 | OK47: 33 | OL47: 33 | OM47: 33 | ON47: 33 | OO47: 33 | OP47: 33 | OQ47: 33 | OR47: 33 | OS47: 33 | OT47: 33 | OU47: 33 | OV47: 33 | OW47: 33 | OX47: 33 | OY47: 33 | OZ47: 33 | PA47: 33 | PB47: 33 | PC47: 33 | PD47: 33 | PE47: 33 | PF47: 33 | PG47: 33 | PH47: 33 | PI47: 33 | PJ47: 33 | PK47: 33 | PL47: 33 | PM47: 33 | PN47: 33 | PO47: 33 | PP47: 33 | PQ47: 33 | PR47: 33 | PS47: 33 | PT47: 33 | PU47: 33 | PV47: 33 | PW47: 33 | PX47: 33 | PY47: 33 | PZ47: 33 | QA47: 33 | QB47: 33 | QC47: 33 | QD47: 33 | QE47: 33 | QF47: 33 | QG47: 33 | QH47: 33 | QI47: 33 | QJ47: 33 | QK47: 33 | QL47: 33 | QM47: 33 | QN47: 33 | QO47: 33 | QP47: 33 | QQ47: 33 | QR47: =$E$47 -> 33 | QS47: 33 | QT47: 33 | QU47: 33 | QV47: 33 | QW47: 33 | QX47: 33 | QY47: 33 | QZ47: 33 | RA47: 33 | RB47: 33 | RC47: 33 | RD47: 33 | RE47: 33 | RF47: 33 | RG47: 33 | RH47: 33 | RI47: 33 | RJ47: 33 | RK47: 33 | RL47: 33 | RM47: 33 | RN47: 33 | RO47: 33 | RP47: 33 | RQ47: 33 | RR47: 33 | RS47: 33 | RT47: 33 | RU47: 33 | RV47: 33 | RW47: 33 | RX47: 33 | RY47: 33 | RZ47: 33 | SA47: 33 | SB47: 33 | SC47: 33 | SD47: 33 | SE47: 33 | SF47: 33 | SG47: 33 | SH47: 33 | SI47: 33 | SJ47: 33 | SK47: 33 | SL47: 33 | SM47: 33 | SN47: 33 | SO47: 33 | SP47: 33 | SQ47: 33
D48: PPA Rate Inflated | E48: ='InputC - Operations'!$E$34 -> 1 | G48: USD/MWH | L48: =IF($E$48,L47*L43,L47) -> 0 | M48: =IF($E$48,M47*M43,M47) -> 0 | N48: 0 | O48: 0 | P48: 0 | Q48: 0 | R48: 0 | S48: 0 | T48: 0 | U48: 0 | V48: 0 | W48: 0 | X48: 0 | Y48: 0 | Z48: 0 | AA48: 0 | AB48: 0 | AC48: 0 | AD48: 0 | AE48: 0 | AF48: 0 | AG48: 0 | AH48: 0 | AI48: 0 | AJ48: 0 | AK48: 0 | AL48: 0 | AM48: 0 | AN48: 0 | AO48: 0 | AP48: 0 | AQ48: 0 | AR48: 0 | AS48: 0 | AT48: 0 | AU48: 0 | AV48: 0 | AW48: 0 | AX48: 0 | AY48: 0 | AZ48: 0 | BA48: 0 | BB48: 0 | BC48: 0 | BD48: 0 | BE48: 0 | BF48: 0 | BG48: 0 | BH48: 0 | BI48: 0 | BJ48: 0 | BK48: 0 | BL48: 0 | BM48: 0 | BN48: 0 | BO48: 0 | BP48: 0 | BQ48: 0 | BR48: 0 | BS48: 0 | BT48: 0 | BU48: 0 | BV48: 0 | BW48: 0 | BX48: 0 | BY48: =IF($E$48,BY47*BY43,BY47) -> 0 | BZ48: 0 | CA48: 0 | CB48: 0 | CC48: 0 | CD48: 0 | CE48: 0 | CF48: 0 | CG48: 0 | CH48: 0 | CI48: 0 | CJ48: 0 | CK48: 0 | CL48: 0 | CM48: 0 | CN48: 0 | CO48: 0 | CP48: 0 | CQ48: 0 | CR48: 0 | CS48: 0 | CT48: 0 | CU48: 0 | CV48: 0 | CW48: 0 | CX48: 0 | CY48: 0 | CZ48: 0 | DA48: 0 | DB48: 0 | DC48: 0 | DD48: 0 | DE48: 0 | DF48: 0 | DG48: 0 | DH48: 0 | DI48: 0 | DJ48: 0 | DK48: 0 | DL48: 0 | DM48: 0 | DN48: 0 | DO48: 0 | DP48: 0 | DQ48: 0 | DR48: 0 | DS48: 0 | DT48: 0 | DU48: 0 | DV48: 0 | DW48: 0 | DX48: 0 | DY48: 0 | DZ48: 0 | EA48: 0 | EB48: 0 | EC48: 0 | ED48: 0 | EE48: 0 | EF48: 0 | EG48: 0 | EH48: 0 | EI48: 0 | EJ48: 0 | EK48: =IF($E$48,EK47*EK43,EK47) -> 0 | EL48: 0 | EM48: 0 | EN48: 0 | EO48: 0 | EP48: 0 | EQ48: 0 | ER48: 0 | ES48: 0 | ET48: 0 | EU48: 0 | EV48: 0 | EW48: 0 | EX48: 0 | EY48: 0 | EZ48: 0 | FA48: 0 | FB48: 0 | FC48: 0 | FD48: 0 | FE48: 0 | FF48: 0 | FG48: 0 | FH48: 0 | FI48: 0 | FJ48: 0 | FK48: 0 | FL48: 0 | FM48: 0 | FN48: 0 | FO48: 0 | FP48: 0 | FQ48: 0 | FR48: 0 | FS48: 0 | FT48: 0 | FU48: 0 | FV48: 0 | FW48: 0 | FX48: 0 | FY48: 0 | FZ48: 0 | GA48: 0 | GB48: 0 | GC48: 0 | GD48: 0 | GE48: 0 | GF48: 0 | GG48: 0 | GH48: 0 | GI48: 0 | GJ48: 0 | GK48: 0 | GL48: 0 | GM48: 0 | GN48: 0 | GO48: 0 | GP48: 0 | GQ48: 0 | GR48: 0 | GS48: 0 | GT48: 0 | GU48: 0 | GV48: 0 | GW48: =IF($E$48,GW47*GW43,GW47) -> 0 | GX48: 0 | GY48: 0 | GZ48: 0 | HA48: 0 | HB48: 0 | HC48: 0 | HD48: 0 | HE48: 0 | HF48: 0 | HG48: 0 | HH48: 0 | HI48: 0 | HJ48: 0 | HK48: 0 | HL48: 0 | HM48: 0 | HN48: 0 | HO48: 0 | HP48: 0 | HQ48: 0 | HR48: 0 | HS48: 0 | HT48: 0 | HU48: 0 | HV48: 0 | HW48: 0 | HX48: 0 | HY48: 0 | HZ48: 0 | IA48: 0 | IB48: 0 | IC48: 0 | ID48: 0 | IE48: 0 | IF48: 0 | IG48: 0 | IH48: 0 | II48: 0 | IJ48: 0 | IK48: 0 | IL48: 0 | IM48: 0 | IN48: 0 | IO48: 0 | IP48: 0 | IQ48: 0 | IR48: 0 | IS48: 0 | IT48: 0 | IU48: 0 | IV48: 0 | IW48: 0 | IX48: 0 | IY48: 0 | IZ48: 0 | JA48: 0 | JB48: 0 | JC48: 0 | JD48: 0 | JE48: 0 | JF48: 0 | JG48: 0 | JH48: 0 | JI48: =IF($E$48,JI47*JI43,JI47) -> 0 | JJ48: 0 | JK48: 0 | JL48: 0 | JM48: 0 | JN48: 0 | JO48: 0 | JP48: 0 | JQ48: 0 | JR48: 0 | JS48: 0 | JT48: 0 | JU48: 0 | JV48: 0 | JW48: 0 | JX48: 0 | JY48: 0 | JZ48: 0 | KA48: 0 | KB48: 0 | KC48: 0 | KD48: 0 | KE48: 0 | KF48: 0 | KG48: 0 | KH48: 0 | KI48: 0 | KJ48: 0 | KK48: 0 | KL48: 0 | KM48: 0 | KN48: 0 | KO48: 0 | KP48: 0 | KQ48: 0 | KR48: 0 | KS48: 0 | KT48: 0 | KU48: 0 | KV48: 0 | KW48: 0 | KX48: 0 | KY48: 0 | KZ48: 0 | LA48: 0 | LB48: 0 | LC48: 0 | LD48: 0 | LE48: 0 | LF48: 0 | LG48: 0 | LH48: 0 | LI48: 0 | LJ48: 0 | LK48: 0 | LL48: 0 | LM48: 0 | LN48: 0 | LO48: 0 | LP48: 0 | LQ48: 0 | LR48: 0 | LS48: 0 | LT48: 0 | LU48: =IF($E$48,LU47*LU43,LU47) -> 0 | LV48: 0 | LW48: 0 | LX48: 0 | LY48: 0 | LZ48: 0 | MA48: 0 | MB48: 0 | MC48: 0 | MD48: 0 | ME48: 0 | MF48: 0 | MG48: 0 | MH48: 0 | MI48: 0 | MJ48: 0 | MK48: 0 | ML48: 0 | MM48: 0 | MN48: 0 | MO48: 0 | MP48: 0 | MQ48: 0 | MR48: 0 | MS48: 0 | MT48: 0 | MU48: 0 | MV48: 0 | MW48: 0 | MX48: 0 | MY48: 0 | MZ48: 0 | NA48: 0 | NB48: 0 | NC48: 0 | ND48: 0 | NE48: 0 | NF48: 0 | NG48: 0 | NH48: 0 | NI48: 0 | NJ48: 0 | NK48: 0 | NL48: 0 | NM48: 0 | NN48: 0 | NO48: 0 | NP48: 0 | NQ48: 0 | NR48: 0 | NS48: 0 | NT48: 0 | NU48: 0 | NV48: 0 | NW48: 0 | NX48: 0 | NY48: 0 | NZ48: 0 | OA48: 0 | OB48: 0 | OC48: 0 | OD48: 0 | OE48: 0 | OF48: 0 | OG48: =IF($E$48,OG47*OG43,OG47) -> 0 | OH48: 0 | OI48: 0 | OJ48: 0 | OK48: 0 | OL48: 0 | OM48: 0 | ON48: 0 | OO48: 0 | OP48: 0 | OQ48: 0 | OR48: 0 | OS48: 0 | OT48: 0 | OU48: 0 | OV48: 0 | OW48: 0 | OX48: 0 | OY48: 0 | OZ48: 0 | PA48: 0 | PB48: 0 | PC48: 0 | PD48: 0 | PE48: 0 | PF48: 0 | PG48: 0 | PH48: 0 | PI48: 0 | PJ48: 0 | PK48: 0 | PL48: 0 | PM48: 0 | PN48: 0 | PO48: 0 | PP48: 0 | PQ48: 0 | PR48: 0 | PS48: 0 | PT48: 0 | PU48: 0 | PV48: 0 | PW48: 0 | PX48: 0 | PY48: 0 | PZ48: 0 | QA48: 0 | QB48: 0 | QC48: 0 | QD48: 0 | QE48: 0 | QF48: 0 | QG48: 0 | QH48: 0 | QI48: 0 | QJ48: 0 | QK48: 0 | QL48: 0 | QM48: 0 | QN48: 0 | QO48: 0 | QP48: 0 | QQ48: 0 | QR48: 0 | QS48: =IF($E$48,QS47*QS43,QS47) -> 0 | QT48: 0 | QU48: 0 | QV48: 0 | QW48: 0 | QX48: 0 | QY48: 0 | QZ48: 0 | RA48: 0 | RB48: 0 | RC48: 0 | RD48: 0 | RE48: 0 | RF48: 0 | RG48: 0 | RH48: 0 | RI48: 0 | RJ48: 0 | RK48: 0 | RL48: 0 | RM48: 0 | RN48: 0 | RO48: 0 | RP48: 0 | RQ48: 0 | RR48: 0 | RS48: 0 | RT48: 0 | RU48: 0 | RV48: 0 | RW48: 0 | RX48: 0 | RY48: 0 | RZ48: 0 | SA48: 0 | SB48: 0 | SC48: 0 | SD48: 0 | SE48: 0 | SF48: 0 | SG48: 0 | SH48: 0 | SI48: 0 | SJ48: 0 | SK48: 0 | SL48: 0 | SM48: 0 | SN48: 0 | SO48: 0 | SP48: 0 | SQ48: 0
D50: Total Energy Generation | G50: MWH | L50: =L35 -> 0 | M50: =M35 -> 0 | N50: 0 | O50: 0 | P50: 0 | Q50: 0 | R50: 0 | S50: 0 | T50: 0 | U50: 0 | V50: 0 | W50: 0 | X50: 0 | Y50: 0 | Z50: 0 | AA50: 0 | AB50: 0 | AC50: 0 | AD50: 0 | AE50: 0 | AF50: 0 | AG50: 0 | AH50: 0 | AI50: 0 | AJ50: 0 | AK50: 0 | AL50: 0 | AM50: 0 | AN50: 0 | AO50: 0 | AP50: 0 | AQ50: 0 | AR50: 0 | AS50: 0 | AT50: 0 | AU50: 0 | AV50: 0 | AW50: 0 | AX50: 0 | AY50: 0 | AZ50: 0 | BA50: 0 | BB50: 0 | BC50: 0 | BD50: 0 | BE50: 0 | BF50: 0 | BG50: 0 | BH50: 0 | BI50: 0 | BJ50: 0 | BK50: 0 | BL50: 0 | BM50: 0 | BN50: 0 | BO50: 0 | BP50: 0 | BQ50: 0 | BR50: 0 | BS50: 0 | BT50: 0 | BU50: 0 | BV50: 0 | BW50: 0 | BX50: 0 | BY50: =BY35 -> 0 | BZ50: 0 | CA50: 0 | CB50: 0 | CC50: 0 | CD50: 0 | CE50: 0 | CF50: 0 | CG50: 0 | CH50: 0 | CI50: 0 | CJ50: 0 | CK50: 0 | CL50: 0 | CM50: 0 | CN50: 0 | CO50: 0 | CP50: 0 | CQ50: 0 | CR50: 0 | CS50: 0 | CT50: 0 | CU50: 0 | CV50: 0 | CW50: 0 | CX50: 0 | CY50: 0 | CZ50: 0 | DA50: 0 | DB50: 0 | DC50: 0 | DD50: 0 | DE50: 0 | DF50: 0 | DG50: 0 | DH50: 0 | DI50: 0 | DJ50: 0 | DK50: 0 | DL50: 0 | DM50: 0 | DN50: 0 | DO50: 0 | DP50: 0 | DQ50: 0 | DR50: 0 | DS50: 0 | DT50: 0 | DU50: 0 | DV50: 0 | DW50: 0 | DX50: 0 | DY50: 0 | DZ50: 0 | EA50: 0 | EB50: 0 | EC50: 0 | ED50: 0 | EE50: 0 | EF50: 0 | EG50: 0 | EH50: 0 | EI50: 0 | EJ50: 0 | EK50: =EK35 -> 0 | EL50: 0 | EM50: 0 | EN50: 0 | EO50: 0 | EP50: 0 | EQ50: 0 | ER50: 0 | ES50: 0 | ET50: 0 | EU50: 0 | EV50: 0 | EW50: 0 | EX50: 0 | EY50: 0 | EZ50: 0 | FA50: 0 | FB50: 0 | FC50: 0 | FD50: 0 | FE50: 0 | FF50: 0 | FG50: 0 | FH50: 0 | FI50: 0 | FJ50: 0 | FK50: 0 | FL50: 0 | FM50: 0 | FN50: 0 | FO50: 0 | FP50: 0 | FQ50: 0 | FR50: 0 | FS50: 0 | FT50: 0 | FU50: 0 | FV50: 0 | FW50: 0 | FX50: 0 | FY50: 0 | FZ50: 0 | GA50: 0 | GB50: 0 | GC50: 0 | GD50: 0 | GE50: 0 | GF50: 0 | GG50: 0 | GH50: 0 | GI50: 0 | GJ50: 0 | GK50: 0 | GL50: 0 | GM50: 0 | GN50: 0 | GO50: 0 | GP50: 0 | GQ50: 0 | GR50: 0 | GS50: 0 | GT50: 0 | GU50: 0 | GV50: 0 | GW50: =GW35 -> 0 | GX50: 0 | GY50: 0 | GZ50: 0 | HA50: 0 | HB50: 0 | HC50: 0 | HD50: 0 | HE50: 0 | HF50: 0 | HG50: 0 | HH50: 0 | HI50: 0 | HJ50: 0 | HK50: 0 | HL50: 0 | HM50: 0 | HN50: 0 | HO50: 0 | HP50: 0 | HQ50: 0 | HR50: 0 | HS50: 0 | HT50: 0 | HU50: 0 | HV50: 0 | HW50: 0 | HX50: 0 | HY50: 0 | HZ50: 0 | IA50: 0 | IB50: 0 | IC50: 0 | ID50: 0 | IE50: 0 | IF50: 0 | IG50: 0 | IH50: 0 | II50: 0 | IJ50: 0 | IK50: 0 | IL50: 0 | IM50: 0 | IN50: 0 | IO50: 0 | IP50: 0 | IQ50: 0 | IR50: 0 | IS50: 0 | IT50: 0 | IU50: 0 | IV50: 0 | IW50: 0 | IX50: 0 | IY50: 0 | IZ50: 0 | JA50: 0 | JB50: 0 | JC50: 0 | JD50: 0 | JE50: 0 | JF50: 0 | JG50: 0 | JH50: 0 | JI50: =JI35 -> 0 | JJ50: 0 | JK50: 0 | JL50: 0 | JM50: 0 | JN50: 0 | JO50: 0 | JP50: 0 | JQ50: 0 | JR50: 0 | JS50: 0 | JT50: 0 | JU50: 0 | JV50: 0 | JW50: 0 | JX50: 0 | JY50: 0 | JZ50: 0 | KA50: 0 | KB50: 0 | KC50: 0 | KD50: 0 | KE50: 0 | KF50: 0 | KG50: 0 | KH50: 0 | KI50: 0 | KJ50: 0 | KK50: 0 | KL50: 0 | KM50: 0 | KN50: 0 | KO50: 0 | KP50: 0 | KQ50: 0 | KR50: 0 | KS50: 0 | KT50: 0 | KU50: 0 | KV50: 0 | KW50: 0 | KX50: 0 | KY50: 0 | KZ50: 0 | LA50: 0 | LB50: 0 | LC50: 0 | LD50: 0 | LE50: 0 | LF50: 0 | LG50: 0 | LH50: 0 | LI50: 0 | LJ50: 0 | LK50: 0 | LL50: 0 | LM50: 0 | LN50: 0 | LO50: 0 | LP50: 0 | LQ50: 0 | LR50: 0 | LS50: 0 | LT50: 0 | LU50: =LU35 -> 0 | LV50: 0 | LW50: 0 | LX50: 0 | LY50: 0 | LZ50: 0 | MA50: 0 | MB50: 0 | MC50: 0 | MD50: 0 | ME50: 0 | MF50: 0 | MG50: 0 | MH50: 0 | MI50: 0 | MJ50: 0 | MK50: 0 | ML50: 0 | MM50: 0 | MN50: 0 | MO50: 0 | MP50: 0 | MQ50: 0 | MR50: 0 | MS50: 0 | MT50: 0 | MU50: 0 | MV50: 0 | MW50: 0 | MX50: 0 | MY50: 0 | MZ50: 0 | NA50: 0 | NB50: 0 | NC50: 0 | ND50: 0 | NE50: 0 | NF50: 0 | NG50: 0 | NH50: 0 | NI50: 0 | NJ50: 0 | NK50: 0 | NL50: 0 | NM50: 0 | NN50: 0 | NO50: 0 | NP50: 0 | NQ50: 0 | NR50: 0 | NS50: 0 | NT50: 0 | NU50: 0 | NV50: 0 | NW50: 0 | NX50: 0 | NY50: 0 | NZ50: 0 | OA50: 0 | OB50: 0 | OC50: 0 | OD50: 0 | OE50: 0 | OF50: 0 | OG50: =OG35 -> 0 | OH50: 0 | OI50: 0 | OJ50: 0 | OK50: 0 | OL50: 0 | OM50: 0 | ON50: 0 | OO50: 0 | OP50: 0 | OQ50: 0 | OR50: 0 | OS50: 0 | OT50: 0 | OU50: 0 | OV50: 0 | OW50: 0 | OX50: 0 | OY50: 0 | OZ50: 0 | PA50: 0 | PB50: 0 | PC50: 0 | PD50: 0 | PE50: 0 | PF50: 0 | PG50: 0 | PH50: 0 | PI50: 0 | PJ50: 0 | PK50: 0 | PL50: 0 | PM50: 0 | PN50: 0 | PO50: 0 | PP50: 0 | PQ50: 0 | PR50: 0 | PS50: 0 | PT50: 0 | PU50: 0 | PV50: 0 | PW50: 0 | PX50: 0 | PY50: 0 | PZ50: 0 | QA50: 0 | QB50: 0 | QC50: 0 | QD50: 0 | QE50: 0 | QF50: 0 | QG50: 0 | QH50: 0 | QI50: 0 | QJ50: 0 | QK50: 0 | QL50: 0 | QM50: 0 | QN50: 0 | QO50: 0 | QP50: 0 | QQ50: 0 | QR50: 0 | QS50: =QS35 -> 0 | QT50: 0 | QU50: 0 | QV50: 0 | QW50: 0 | QX50: 0 | QY50: 0 | QZ50: 0 | RA50: 0 | RB50: 0 | RC50: 0 | RD50: 0 | RE50: 0 | RF50: 0 | RG50: 0 | RH50: 0 | RI50: 0 | RJ50: 0 | RK50: 0 | RL50: 0 | RM50: 0 | RN50: 0 | RO50: 0 | RP50: 0 | RQ50: 0 | RR50: 0 | RS50: 0 | RT50: 0 | RU50: 0 | RV50: 0 | RW50: 0 | RX50: 0 | RY50: 0 | RZ50: 0 | SA50: 0 | SB50: 0 | SC50: 0 | SD50: 0 | SE50: 0 | SF50: 0 | SG50: 0 | SH50: 0 | SI50: 0 | SJ50: 0 | SK50: 0 | SL50: 0 | SM50: 0 | SN50: 0 | SO50: 0 | SP50: 0 | SQ50: 0
D51: PPA Revenues | G51: USD | J51: =SUM(K51:XFD51) -> 0 | L51: =L50*L48 -> 0 | M51: =M50*M48 -> 0 | N51: 0 | O51: 0 | P51: 0 | Q51: 0 | R51: 0 | S51: 0 | T51: 0 | U51: 0 | V51: 0 | W51: 0 | X51: 0 | Y51: 0 | Z51: 0 | AA51: 0 | AB51: 0 | AC51: 0 | AD51: 0 | AE51: 0 | AF51: 0 | AG51: 0 | AH51: 0 | AI51: 0 | AJ51: 0 | AK51: 0 | AL51: 0 | AM51: 0 | AN51: 0 | AO51: 0 | AP51: 0 | AQ51: 0 | AR51: 0 | AS51: 0 | AT51: 0 | AU51: 0 | AV51: 0 | AW51: 0 | AX51: 0 | AY51: 0 | AZ51: 0 | BA51: 0 | BB51: 0 | BC51: 0 | BD51: 0 | BE51: 0 | BF51: 0 | BG51: 0 | BH51: 0 | BI51: 0 | BJ51: 0 | BK51: 0 | BL51: 0 | BM51: 0 | BN51: 0 | BO51: 0 | BP51: 0 | BQ51: 0 | BR51: 0 | BS51: 0 | BT51: 0 | BU51: 0 | BV51: 0 | BW51: 0 | BX51: 0 | BY51: =BY50*BY48 -> 0 | BZ51: 0 | CA51: 0 | CB51: 0 | CC51: 0 | CD51: 0 | CE51: 0 | CF51: 0 | CG51: 0 | CH51: 0 | CI51: 0 | CJ51: 0 | CK51: 0 | CL51: 0 | CM51: 0 | CN51: 0 | CO51: 0 | CP51: 0 | CQ51: 0 | CR51: 0 | CS51: 0 | CT51: 0 | CU51: 0 | CV51: 0 | CW51: 0 | CX51: 0 | CY51: 0 | CZ51: 0 | DA51: 0 | DB51: 0 | DC51: 0 | DD51: 0 | DE51: 0 | DF51: 0 | DG51: 0 | DH51: 0 | DI51: 0 | DJ51: 0 | DK51: 0 | DL51: 0 | DM51: 0 | DN51: 0 | DO51: 0 | DP51: 0 | DQ51: 0 | DR51: 0 | DS51: 0 | DT51: 0 | DU51: 0 | DV51: 0 | DW51: 0 | DX51: 0 | DY51: 0 | DZ51: 0 | EA51: 0 | EB51: 0 | EC51: 0 | ED51: 0 | EE51: 0 | EF51: 0 | EG51: 0 | EH51: 0 | EI51: 0 | EJ51: 0 | EK51: =EK50*EK48 -> 0 | EL51: 0 | EM51: 0 | EN51: 0 | EO51: 0 | EP51: 0 | EQ51: 0 | ER51: 0 | ES51: 0 | ET51: 0 | EU51: 0 | EV51: 0 | EW51: 0 | EX51: 0 | EY51: 0 | EZ51: 0 | FA51: 0 | FB51: 0 | FC51: 0 | FD51: 0 | FE51: 0 | FF51: 0 | FG51: 0 | FH51: 0 | FI51: 0 | FJ51: 0 | FK51: 0 | FL51: 0 | FM51: 0 | FN51: 0 | FO51: 0 | FP51: 0 | FQ51: 0 | FR51: 0 | FS51: 0 | FT51: 0 | FU51: 0 | FV51: 0 | FW51: 0 | FX51: 0 | FY51: 0 | FZ51: 0 | GA51: 0 | GB51: 0 | GC51: 0 | GD51: 0 | GE51: 0 | GF51: 0 | GG51: 0 | GH51: 0 | GI51: 0 | GJ51: 0 | GK51: 0 | GL51: 0 | GM51: 0 | GN51: 0 | GO51: 0 | GP51: 0 | GQ51: 0 | GR51: 0 | GS51: 0 | GT51: 0 | GU51: 0 | GV51: 0 | GW51: =GW50*GW48 -> 0 | GX51: 0 | GY51: 0 | GZ51: 0 | HA51: 0 | HB51: 0 | HC51: 0 | HD51: 0 | HE51: 0 | HF51: 0 | HG51: 0 | HH51: 0 | HI51: 0 | HJ51: 0 | HK51: 0 | HL51: 0 | HM51: 0 | HN51: 0 | HO51: 0 | HP51: 0 | HQ51: 0 | HR51: 0 | HS51: 0 | HT51: 0 | HU51: 0 | HV51: 0 | HW51: 0 | HX51: 0 | HY51: 0 | HZ51: 0 | IA51: 0 | IB51: 0 | IC51: 0 | ID51: 0 | IE51: 0 | IF51: 0 | IG51: 0 | IH51: 0 | II51: 0 | IJ51: 0 | IK51: 0 | IL51: 0 | IM51: 0 | IN51: 0 | IO51: 0 | IP51: 0 | IQ51: 0 | IR51: 0 | IS51: 0 | IT51: 0 | IU51: 0 | IV51: 0 | IW51: 0 | IX51: 0 | IY51: 0 | IZ51: 0 | JA51: 0 | JB51: 0 | JC51: 0 | JD51: 0 | JE51: 0 | JF51: 0 | JG51: 0 | JH51: 0 | JI51: =JI50*JI48 -> 0 | JJ51: 0 | JK51: 0 | JL51: 0 | JM51: 0 | JN51: 0 | JO51: 0 | JP51: 0 | JQ51: 0 | JR51: 0 | JS51: 0 | JT51: 0 | JU51: 0 | JV51: 0 | JW51: 0 | JX51: 0 | JY51: 0 | JZ51: 0 | KA51: 0 | KB51: 0 | KC51: 0 | KD51: 0 | KE51: 0 | KF51: 0 | KG51: 0 | KH51: 0 | KI51: 0 | KJ51: 0 | KK51: 0 | KL51: 0 | KM51: 0 | KN51: 0 | KO51: 0 | KP51: 0 | KQ51: 0 | KR51: 0 | KS51: 0 | KT51: 0 | KU51: 0 | KV51: 0 | KW51: 0 | KX51: 0 | KY51: 0 | KZ51: 0 | LA51: 0 | LB51: 0 | LC51: 0 | LD51: 0 | LE51: 0 | LF51: 0 | LG51: 0 | LH51: 0 | LI51: 0 | LJ51: 0 | LK51: 0 | LL51: 0 | LM51: 0 | LN51: 0 | LO51: 0 | LP51: 0 | LQ51: 0 | LR51: 0 | LS51: 0 | LT51: 0 | LU51: =LU50*LU48 -> 0 | LV51: 0 | LW51: 0 | LX51: 0 | LY51: 0 | LZ51: 0 | MA51: 0 | MB51: 0 | MC51: 0 | MD51: 0 | ME51: 0 | MF51: 0 | MG51: 0 | MH51: 0 | MI51: 0 | MJ51: 0 | MK51: 0 | ML51: 0 | MM51: 0 | MN51: 0 | MO51: 0 | MP51: 0 | MQ51: 0 | MR51: 0 | MS51: 0 | MT51: 0 | MU51: 0 | MV51: 0 | MW51: 0 | MX51: 0 | MY51: 0 | MZ51: 0 | NA51: 0 | NB51: 0 | NC51: 0 | ND51: 0 | NE51: 0 | NF51: 0 | NG51: 0 | NH51: 0 | NI51: 0 | NJ51: 0 | NK51: 0 | NL51: 0 | NM51: 0 | NN51: 0 | NO51: 0 | NP51: 0 | NQ51: 0 | NR51: 0 | NS51: 0 | NT51: 0 | NU51: 0 | NV51: 0 | NW51: 0 | NX51: 0 | NY51: 0 | NZ51: 0 | OA51: 0 | OB51: 0 | OC51: 0 | OD51: 0 | OE51: 0 | OF51: 0 | OG51: =OG50*OG48 -> 0 | OH51: 0 | OI51: 0 | OJ51: 0 | OK51: 0 | OL51: 0 | OM51: 0 | ON51: 0 | OO51: 0 | OP51: 0 | OQ51: 0 | OR51: 0 | OS51: 0 | OT51: 0 | OU51: 0 | OV51: 0 | OW51: 0 | OX51: 0 | OY51: 0 | OZ51: 0 | PA51: 0 | PB51: 0 | PC51: 0 | PD51: 0 | PE51: 0 | PF51: 0 | PG51: 0 | PH51: 0 | PI51: 0 | PJ51: 0 | PK51: 0 | PL51: 0 | PM51: 0 | PN51: 0 | PO51: 0 | PP51: 0 | PQ51: 0 | PR51: 0 | PS51: 0 | PT51: 0 | PU51: 0 | PV51: 0 | PW51: 0 | PX51: 0 | PY51: 0 | PZ51: 0 | QA51: 0 | QB51: 0 | QC51: 0 | QD51: 0 | QE51: 0 | QF51: 0 | QG51: 0 | QH51: 0 | QI51: 0 | QJ51: 0 | QK51: 0 | QL51: 0 | QM51: 0 | QN51: 0 | QO51: 0 | QP51: 0 | QQ51: 0 | QR51: 0 | QS51: =QS50*QS48 -> 0 | QT51: 0 | QU51: 0 | QV51: 0 | QW51: 0 | QX51: 0 | QY51: 0 | QZ51: 0 | RA51: 0 | RB51: 0 | RC51: 0 | RD51: 0 | RE51: 0 | RF51: 0 | RG51: 0 | RH51: 0 | RI51: 0 | RJ51: 0 | RK51: 0 | RL51: 0 | RM51: 0 | RN51: 0 | RO51: 0 | RP51: 0 | RQ51: 0 | RR51: 0 | RS51: 0 | RT51: 0 | RU51: 0 | RV51: 0 | RW51: 0 | RX51: 0 | RY51: 0 | RZ51: 0 | SA51: 0 | SB51: 0 | SC51: 0 | SD51: 0 | SE51: 0 | SF51: 0 | SG51: 0 | SH51: 0 | SI51: 0 | SJ51: 0 | SK51: 0 | SL51: 0 | SM51: 0 | SN51: 0 | SO51: 0 | SP51: 0 | SQ51: 0
B53: Operations and Maintenance
D54: Land Lease
D55: Land Lease | E55: ='InputC - Operations'!E40 -> 300000 | G55: USD/yr | L55: =$E$55*L7 -> 0 | M55: =$E$55*M7 -> 0 | N55: 0 | O55: 0 | P55: 0 | Q55: 0 | R55: 0 | S55: 0 | T55: 0 | U55: 0 | V55: 0 | W55: 0 | X55: 0 | Y55: 0 | Z55: 0 | AA55: 0 | AB55: 0 | AC55: 0 | AD55: 0 | AE55: 0 | AF55: 0 | AG55: 0 | AH55: 0 | AI55: 0 | AJ55: 0 | AK55: 0 | AL55: 0 | AM55: 0 | AN55: 0 | AO55: 0 | AP55: 0 | AQ55: 0 | AR55: 0 | AS55: 0 | AT55: 0 | AU55: 0 | AV55: 0 | AW55: 0 | AX55: 0 | AY55: 0 | AZ55: 0 | BA55: 0 | BB55: 0 | BC55: 0 | BD55: 0 | BE55: 0 | BF55: 0 | BG55: 0 | BH55: 0 | BI55: 0 | BJ55: 0 | BK55: 0 | BL55: 0 | BM55: 0 | BN55: 0 | BO55: 0 | BP55: 0 | BQ55: 0 | BR55: 0 | BS55: 0 | BT55: 0 | BU55: 0 | BV55: 0 | BW55: 0 | BX55: 0 | BY55: =$E$55*BY7 -> 0 | BZ55: 0 | CA55: 0 | CB55: 0 | CC55: 0 | CD55: 0 | CE55: 0 | CF55: 0 | CG55: 0 | CH55: 0 | CI55: 0 | CJ55: 0 | CK55: 0 | CL55: 0 | CM55: 0 | CN55: 0 | CO55: 0 | CP55: 0 | CQ55: 0 | CR55: 0 | CS55: 0 | CT55: 0 | CU55: 0 | CV55: 0 | CW55: 0 | CX55: 0 | CY55: 0 | CZ55: 0 | DA55: 0 | DB55: 0 | DC55: 0 | DD55: 0 | DE55: 0 | DF55: 0 | DG55: 0 | DH55: 0 | DI55: 0 | DJ55: 0 | DK55: 0 | DL55: 0 | DM55: 0 | DN55: 0 | DO55: 0 | DP55: 0 | DQ55: 0 | DR55: 0 | DS55: 0 | DT55: 0 | DU55: 0 | DV55: 0 | DW55: 0 | DX55: 0 | DY55: 0 | DZ55: 0 | EA55: 0 | EB55: 0 | EC55: 0 | ED55: 0 | EE55: 0 | EF55: 0 | EG55: 0 | EH55: 0 | EI55: 0 | EJ55: 0 | EK55: =$E$55*EK7 -> 0 | EL55: 0 | EM55: 0 | EN55: 0 | EO55: 0 | EP55: 0 | EQ55: 0 | ER55: 0 | ES55: 0 | ET55: 0 | EU55: 0 | EV55: 0 | EW55: 0 | EX55: 0 | EY55: 0 | EZ55: 0 | FA55: 0 | FB55: 0 | FC55: 0 | FD55: 0 | FE55: 0 | FF55: 0 | FG55: 0 | FH55: 0 | FI55: 0 | FJ55: 0 | FK55: 0 | FL55: 0 | FM55: 0 | FN55: 0 | FO55: 0 | FP55: 0 | FQ55: 0 | FR55: 0 | FS55: 0 | FT55: 0 | FU55: 0 | FV55: 0 | FW55: 0 | FX55: 0 | FY55: 0 | FZ55: 0 | GA55: 0 | GB55: 0 | GC55: 0 | GD55: 0 | GE55: 0 | GF55: 0 | GG55: 0 | GH55: 0 | GI55: 0 | GJ55: 0 | GK55: 0 | GL55: 0 | GM55: 0 | GN55: 0 | GO55: 0 | GP55: 0 | GQ55: 0 | GR55: 0 | GS55: 0 | GT55: 0 | GU55: 0 | GV55: 0 | GW55: =$E$55*GW7 -> 0 | GX55: 0 | GY55: 0 | GZ55: 0 | HA55: 0 | HB55: 0 | HC55: 0 | HD55: 0 | HE55: 0 | HF55: 0 | HG55: 0 | HH55: 0 | HI55: 0 | HJ55: 0 | HK55: 0 | HL55: 0 | HM55: 0 | HN55: 0 | HO55: 0 | HP55: 0 | HQ55: 0 | HR55: 0 | HS55: 0 | HT55: 0 | HU55: 0 | HV55: 0 | HW55: 0 | HX55: 0 | HY55: 0 | HZ55: 0 | IA55: 0 | IB55: 0 | IC55: 0 | ID55: 0 | IE55: 0 | IF55: 0 | IG55: 0 | IH55: 0 | II55: 0 | IJ55: 0 | IK55: 0 | IL55: 0 | IM55: 0 | IN55: 0 | IO55: 0 | IP55: 0 | IQ55: 0 | IR55: 0 | IS55: 0 | IT55: 0 | IU55: 0 | IV55: 0 | IW55: 0 | IX55: 0 | IY55: 0 | IZ55: 0 | JA55: 0 | JB55: 0 | JC55: 0 | JD55: 0 | JE55: 0 | JF55: 0 | JG55: 0 | JH55: 0 | JI55: =$E$55*JI7 -> 0 | JJ55: 0 | JK55: 0 | JL55: 0 | JM55: 0 | JN55: 0 | JO55: 0 | JP55: 0 | JQ55: 0 | JR55: 0 | JS55: 0 | JT55: 0 | JU55: 0 | JV55: 0 | JW55: 0 | JX55: 0 | JY55: 0 | JZ55: 0 | KA55: 0 | KB55: 0 | KC55: 0 | KD55: 0 | KE55: 0 | KF55: 0 | KG55: 0 | KH55: 0 | KI55: 0 | KJ55: 0 | KK55: 0 | KL55: 0 | KM55: 0 | KN55: 0 | KO55: 0 | KP55: 0 | KQ55: 0 | KR55: 0 | KS55: 0 | KT55: 0 | KU55: 0 | KV55: 0 | KW55: 0 | KX55: 0 | KY55: 0 | KZ55: 0 | LA55: 0 | LB55: 0 | LC55: 0 | LD55: 0 | LE55: 0 | LF55: 0 | LG55: 0 | LH55: 0 | LI55: 0 | LJ55: 0 | LK55: 0 | LL55: 0 | LM55: 0 | LN55: 0 | LO55: 0 | LP55: 0 | LQ55: 0 | LR55: 0 | LS55: 0 | LT55: 0 | LU55: =$E$55*LU7 -> 0 | LV55: 0 | LW55: 0 | LX55: 0 | LY55: 0 | LZ55: 0 | MA55: 0 | MB55: 0 | MC55: 0 | MD55: 0 | ME55: 0 | MF55: 0 | MG55: 0 | MH55: 0 | MI55: 0 | MJ55: 0 | MK55: 0 | ML55: 0 | MM55: 0 | MN55: 0 | MO55: 0 | MP55: 0 | MQ55: 0 | MR55: 0 | MS55: 0 | MT55: 0 | MU55: 0 | MV55: 0 | MW55: 0 | MX55: 0 | MY55: 0 | MZ55: 0 | NA55: 0 | NB55: 0 | NC55: 0 | ND55: 0 | NE55: 0 | NF55: 0 | NG55: 0 | NH55: 0 | NI55: 0 | NJ55: 0 | NK55: 0 | NL55: 0 | NM55: 0 | NN55: 0 | NO55: 0 | NP55: 0 | NQ55: 0 | NR55: 0 | NS55: 0 | NT55: 0 | NU55: 0 | NV55: 0 | NW55: 0 | NX55: 0 | NY55: 0 | NZ55: 0 | OA55: 0 | OB55: 0 | OC55: 0 | OD55: 0 | OE55: 0 | OF55: 0 | OG55: =$E$55*OG7 -> 0 | OH55: 0 | OI55: 0 | OJ55: 0 | OK55: 0 | OL55: 0 | OM55: 0 | ON55: 0 | OO55: 0 | OP55: 0 | OQ55: 0 | OR55: 0 | OS55: 0 | OT55: 0 | OU55: 0 | OV55: 0 | OW55: 0 | OX55: 0 | OY55: 0 | OZ55: 0 | PA55: 0 | PB55: 0 | PC55: 0 | PD55: 0 | PE55: 0 | PF55: 0 | PG55: 0 | PH55: 0 | PI55: 0 | PJ55: 0 | PK55: 0 | PL55: 0 | PM55: 0 | PN55: 0 | PO55: 0 | PP55: 0 | PQ55: 0 | PR55: 0 | PS55: 0 | PT55: 0 | PU55: 0 | PV55: 0 | PW55: 0 | PX55: 0 | PY55: 0 | PZ55: 0 | QA55: 0 | QB55: 0 | QC55: 0 | QD55: 0 | QE55: 0 | QF55: 0 | QG55: 0 | QH55: 0 | QI55: 0 | QJ55: 0 | QK55: 0 | QL55: 0 | QM55: 0 | QN55: 0 | QO55: 0 | QP55: 0 | QQ55: 0 | QR55: 0 | QS55: =$E$55*QS7 -> 0 | QT55: 0 | QU55: 0 | QV55: 0 | QW55: 0 | QX55: 0 | QY55: 0 | QZ55: 0 | RA55: 0 | RB55: 0 | RC55: 0 | RD55: 0 | RE55: 0 | RF55: 0 | RG55: 0 | RH55: 0 | RI55: 0 | RJ55: 0 | RK55: 0 | RL55: 0 | RM55: 0 | RN55: 0 | RO55: 0 | RP55: 0 | RQ55: 0 | RR55: 0 | RS55: 0 | RT55: 0 | RU55: 0 | RV55: 0 | RW55: 0 | RX55: 0 | RY55: 0 | RZ55: 0 | SA55: 0 | SB55: 0 | SC55: 0 | SD55: 0 | SE55: 0 | SF55: 0 | SG55: 0 | SH55: 0 | SI55: 0 | SJ55: 0 | SK55: 0 | SL55: 0 | SM55: 0 | SN55: 0 | SO55: 0 | SP55: 0 | SQ55: 0
D56: Land Lease | G56: USD/month | L56: =L55/Months -> 0 | M56: 0 | N56: 0 | O56: 0 | P56: 0 | Q56: 0 | R56: 0 | S56: 0 | T56: 0 | U56: 0 | V56: 0 | W56: 0 | X56: 0 | Y56: 0 | Z56: 0 | AA56: 0 | AB56: 0 | AC56: 0 | AD56: 0 | AE56: 0 | AF56: 0 | AG56: 0 | AH56: 0 | AI56: 0 | AJ56: 0 | AK56: 0 | AL56: 0 | AM56: 0 | AN56: 0 | AO56: 0 | AP56: 0 | AQ56: 0 | AR56: 0 | AS56: 0 | AT56: 0 | AU56: 0 | AV56: 0 | AW56: 0 | AX56: 0 | AY56: 0 | AZ56: 0 | BA56: 0 | BB56: 0 | BC56: 0 | BD56: 0 | BE56: 0 | BF56: 0 | BG56: 0 | BH56: 0 | BI56: 0 | BJ56: 0 | BK56: 0 | BL56: 0 | BM56: 0 | BN56: 0 | BO56: 0 | BP56: 0 | BQ56: 0 | BR56: 0 | BS56: 0 | BT56: 0 | BU56: 0 | BV56: 0 | BW56: 0 | BX56: =BX55/Months -> 0 | BY56: 0 | BZ56: 0 | CA56: 0 | CB56: 0 | CC56: 0 | CD56: 0 | CE56: 0 | CF56: 0 | CG56: 0 | CH56: 0 | CI56: 0 | CJ56: 0 | CK56: 0 | CL56: 0 | CM56: 0 | CN56: 0 | CO56: 0 | CP56: 0 | CQ56: 0 | CR56: 0 | CS56: 0 | CT56: 0 | CU56: 0 | CV56: 0 | CW56: 0 | CX56: 0 | CY56: 0 | CZ56: 0 | DA56: 0 | DB56: 0 | DC56: 0 | DD56: 0 | DE56: 0 | DF56: 0 | DG56: 0 | DH56: 0 | DI56: 0 | DJ56: 0 | DK56: 0 | DL56: 0 | DM56: 0 | DN56: 0 | DO56: 0 | DP56: 0 | DQ56: 0 | DR56: 0 | DS56: 0 | DT56: 0 | DU56: 0 | DV56: 0 | DW56: 0 | DX56: 0 | DY56: 0 | DZ56: 0 | EA56: 0 | EB56: 0 | EC56: 0 | ED56: 0 | EE56: 0 | EF56: 0 | EG56: 0 | EH56: 0 | EI56: 0 | EJ56: =EJ55/Months -> 0 | EK56: 0 | EL56: 0 | EM56: 0 | EN56: 0 | EO56: 0 | EP56: 0 | EQ56: 0 | ER56: 0 | ES56: 0 | ET56: 0 | EU56: 0 | EV56: 0 | EW56: 0 | EX56: 0 | EY56: 0 | EZ56: 0 | FA56: 0 | FB56: 0 | FC56: 0 | FD56: 0 | FE56: 0 | FF56: 0 | FG56: 0 | FH56: 0 | FI56: 0 | FJ56: 0 | FK56: 0 | FL56: 0 | FM56: 0 | FN56: 0 | FO56: 0 | FP56: 0 | FQ56: 0 | FR56: 0 | FS56: 0 | FT56: 0 | FU56: 0 | FV56: 0 | FW56: 0 | FX56: 0 | FY56: 0 | FZ56: 0 | GA56: 0 | GB56: 0 | GC56: 0 | GD56: 0 | GE56: 0 | GF56: 0 | GG56: 0 | GH56: 0 | GI56: 0 | GJ56: 0 | GK56: 0 | GL56: 0 | GM56: 0 | GN56: 0 | GO56: 0 | GP56: 0 | GQ56: 0 | GR56: 0 | GS56: 0 | GT56: 0 | GU56: 0 | GV56: =GV55/Months -> 0 | GW56: 0 | GX56: 0 | GY56: 0 | GZ56: 0 | HA56: 0 | HB56: 0 | HC56: 0 | HD56: 0 | HE56: 0 | HF56: 0 | HG56: 0 | HH56: 0 | HI56: 0 | HJ56: 0 | HK56: 0 | HL56: 0 | HM56: 0 | HN56: 0 | HO56: 0 | HP56: 0 | HQ56: 0 | HR56: 0 | HS56: 0 | HT56: 0 | HU56: 0 | HV56: 0 | HW56: 0 | HX56: 0 | HY56: 0 | HZ56: 0 | IA56: 0 | IB56: 0 | IC56: 0 | ID56: 0 | IE56: 0 | IF56: 0 | IG56: 0 | IH56: 0 | II56: 0 | IJ56: 0 | IK56: 0 | IL56: 0 | IM56: 0 | IN56: 0 | IO56: 0 | IP56: 0 | IQ56: 0 | IR56: 0 | IS56: 0 | IT56: 0 | IU56: 0 | IV56: 0 | IW56: 0 | IX56: 0 | IY56: 0 | IZ56: 0 | JA56: 0 | JB56: 0 | JC56: 0 | JD56: 0 | JE56: 0 | JF56: 0 | JG56: 0 | JH56: =JH55/Months -> 0 | JI56: 0 | JJ56: 0 | JK56: 0 | JL56: 0 | JM56: 0 | JN56: 0 | JO56: 0 | JP56: 0 | JQ56: 0 | JR56: 0 | JS56: 0 | JT56: 0 | JU56: 0 | JV56: 0 | JW56: 0 | JX56: 0 | JY56: 0 | JZ56: 0 | KA56: 0 | KB56: 0 | KC56: 0 | KD56: 0 | KE56: 0 | KF56: 0 | KG56: 0 | KH56: 0 | KI56: 0 | KJ56: 0 | KK56: 0 | KL56: 0 | KM56: 0 | KN56: 0 | KO56: 0 | KP56: 0 | KQ56: 0 | KR56: 0 | KS56: 0 | KT56: 0 | KU56: 0 | KV56: 0 | KW56: 0 | KX56: 0 | KY56: 0 | KZ56: 0 | LA56: 0 | LB56: 0 | LC56: 0 | LD56: 0 | LE56: 0 | LF56: 0 | LG56: 0 | LH56: 0 | LI56: 0 | LJ56: 0 | LK56: 0 | LL56: 0 | LM56: 0 | LN56: 0 | LO56: 0 | LP56: 0 | LQ56: 0 | LR56: 0 | LS56: 0 | LT56: =LT55/Months -> 0 | LU56: 0 | LV56: 0 | LW56: 0 | LX56: 0 | LY56: 0 | LZ56: 0 | MA56: 0 | MB56: 0 | MC56: 0 | MD56: 0 | ME56: 0 | MF56: 0 | MG56: 0 | MH56: 0 | MI56: 0 | MJ56: 0 | MK56: 0 | ML56: 0 | MM56: 0 | MN56: 0 | MO56: 0 | MP56: 0 | MQ56: 0 | MR56: 0 | MS56: 0 | MT56: 0 | MU56: 0 | MV56: 0 | MW56: 0 | MX56: 0 | MY56: 0 | MZ56: 0 | NA56: 0 | NB56: 0 | NC56: 0 | ND56: 0 | NE56: 0 | NF56: 0 | NG56: 0 | NH56: 0 | NI56: 0 | NJ56: 0 | NK56: 0 | NL56: 0 | NM56: 0 | NN56: 0 | NO56: 0 | NP56: 0 | NQ56: 0 | NR56: 0 | NS56: 0 | NT56: 0 | NU56: 0 | NV56: 0 | NW56: 0 | NX56: 0 | NY56: 0 | NZ56: 0 | OA56: 0 | OB56: 0 | OC56: 0 | OD56: 0 | OE56: 0 | OF56: =OF55/Months -> 0 | OG56: 0 | OH56: 0 | OI56: 0 | OJ56: 0 | OK56: 0 | OL56: 0 | OM56: 0 | ON56: 0 | OO56: 0 | OP56: 0 | OQ56: 0 | OR56: 0 | OS56: 0 | OT56: 0 | OU56: 0 | OV56: 0 | OW56: 0 | OX56: 0 | OY56: 0 | OZ56: 0 | PA56: 0 | PB56: 0 | PC56: 0 | PD56: 0 | PE56: 0 | PF56: 0 | PG56: 0 | PH56: 0 | PI56: 0 | PJ56: 0 | PK56: 0 | PL56: 0 | PM56: 0 | PN56: 0 | PO56: 0 | PP56: 0 | PQ56: 0 | PR56: 0 | PS56: 0 | PT56: 0 | PU56: 0 | PV56: 0 | PW56: 0 | PX56: 0 | PY56: 0 | PZ56: 0 | QA56: 0 | QB56: 0 | QC56: 0 | QD56: 0 | QE56: 0 | QF56: 0 | QG56: 0 | QH56: 0 | QI56: 0 | QJ56: 0 | QK56: 0 | QL56: 0 | QM56: 0 | QN56: 0 | QO56: 0 | QP56: 0 | QQ56: 0 | QR56: =QR55/Months -> 0 | QS56: 0 | QT56: 0 | QU56: 0 | QV56: 0 | QW56: 0 | QX56: 0 | QY56: 0 | QZ56: 0 | RA56: 0 | RB56: 0 | RC56: 0 | RD56: 0 | RE56: 0 | RF56: 0 | RG56: 0 | RH56: 0 | RI56: 0 | RJ56: 0 | RK56: 0 | RL56: 0 | RM56: 0 | RN56: 0 | RO56: 0 | RP56: 0 | RQ56: 0 | RR56: 0 | RS56: 0 | RT56: 0 | RU56: 0 | RV56: 0 | RW56: 0 | RX56: 0 | RY56: 0 | RZ56: 0 | SA56: 0 | SB56: 0 | SC56: 0 | SD56: 0 | SE56: 0 | SF56: 0 | SG56: 0 | SH56: 0 | SI56: 0 | SJ56: 0 | SK56: 0 | SL56: 0 | SM56: 0 | SN56: 0 | SO56: 0 | SP56: 0 | SQ56: 0
C58: Base O&M Costs
D59: Age | G59: Year | L59: =L27 -> 0 | M59: =M27 -> 0 | N59: 0 | O59: 0 | P59: 0 | Q59: 0 | R59: 0 | S59: 0 | T59: 0 | U59: 0 | V59: 0 | W59: 0 | X59: 0 | Y59: 0 | Z59: 0 | AA59: 0 | AB59: 0 | AC59: 0 | AD59: 0 | AE59: 0 | AF59: 0 | AG59: 0 | AH59: 0 | AI59: 0 | AJ59: 0 | AK59: 0 | AL59: 0 | AM59: 0 | AN59: 0 | AO59: 0 | AP59: 0 | AQ59: 0 | AR59: 0 | AS59: 0 | AT59: 0 | AU59: 0 | AV59: 0 | AW59: 0 | AX59: 0 | AY59: 0 | AZ59: 0 | BA59: 0 | BB59: 0 | BC59: 0 | BD59: 0 | BE59: 0 | BF59: 0 | BG59: 0 | BH59: 0 | BI59: 0 | BJ59: 0 | BK59: 0 | BL59: 0 | BM59: 0 | BN59: 0 | BO59: 0 | BP59: 0 | BQ59: 0 | BR59: 0 | BS59: 0 | BT59: 0 | BU59: 0 | BV59: 0 | BW59: 0 | BX59: 0 | BY59: =BY27 -> 0 | BZ59: 0 | CA59: 0 | CB59: 0 | CC59: 0 | CD59: 0 | CE59: 0 | CF59: 0 | CG59: 0 | CH59: 0 | CI59: 0 | CJ59: 0 | CK59: 0 | CL59: 0 | CM59: 0 | CN59: 0 | CO59: 0 | CP59: 0 | CQ59: 0 | CR59: 0 | CS59: 0 | CT59: 0 | CU59: 0 | CV59: 0 | CW59: 0 | CX59: 0 | CY59: 0 | CZ59: 0 | DA59: 0 | DB59: 0 | DC59: 0 | DD59: 0 | DE59: 0 | DF59: 0 | DG59: 0 | DH59: 0 | DI59: 0 | DJ59: 0 | DK59: 0 | DL59: 0 | DM59: 0 | DN59: 0 | DO59: 0 | DP59: 0 | DQ59: 0 | DR59: 0 | DS59: 0 | DT59: 0 | DU59: 0 | DV59: 0 | DW59: 0 | DX59: 0 | DY59: 0 | DZ59: 0 | EA59: 0 | EB59: 0 | EC59: 0 | ED59: 0 | EE59: 0 | EF59: 0 | EG59: 0 | EH59: 0 | EI59: 0 | EJ59: 0 | EK59: =EK27 -> 0 | EL59: 0 | EM59: 0 | EN59: 0 | EO59: 0 | EP59: 0 | EQ59: 0 | ER59: 0 | ES59: 0 | ET59: 0 | EU59: 0 | EV59: 0 | EW59: 0 | EX59: 0 | EY59: 0 | EZ59: 0 | FA59: 0 | FB59: 0 | FC59: 0 | FD59: 0 | FE59: 0 | FF59: 0 | FG59: 0 | FH59: 0 | FI59: 0 | FJ59: 0 | FK59: 0 | FL59: 0 | FM59: 0 | FN59: 0 | FO59: 0 | FP59: 0 | FQ59: 0 | FR59: 0 | FS59: 0 | FT59: 0 | FU59: 0 | FV59: 0 | FW59: 0 | FX59: 0 | FY59: 0 | FZ59: 0 | GA59: 0 | GB59: 0 | GC59: 0 | GD59: 0 | GE59: 0 | GF59: 0 | GG59: 0 | GH59: 0 | GI59: 0 | GJ59: 0 | GK59: 0 | GL59: 0 | GM59: 0 | GN59: 0 | GO59: 0 | GP59: 0 | GQ59: 0 | GR59: 0 | GS59: 0 | GT59: 0 | GU59: 0 | GV59: 0 | GW59: =GW27 -> 0 | GX59: 0 | GY59: 0 | GZ59: 0 | HA59: 0 | HB59: 0 | HC59: 0 | HD59: 0 | HE59: 0 | HF59: 0 | HG59: 0 | HH59: 0 | HI59: 0 | HJ59: 0 | HK59: 0 | HL59: 0 | HM59: 0 | HN59: 0 | HO59: 0 | HP59: 0 | HQ59: 0 | HR59: 0 | HS59: 0 | HT59: 0 | HU59: 0 | HV59: 0 | HW59: 0 | HX59: 0 | HY59: 0 | HZ59: 0 | IA59: 0 | IB59: 0 | IC59: 0 | ID59: 0 | IE59: 0 | IF59: 0 | IG59: 0 | IH59: 0 | II59: 0 | IJ59: 0 | IK59: 0 | IL59: 0 | IM59: 0 | IN59: 0 | IO59: 0 | IP59: 0 | IQ59: 0 | IR59: 0 | IS59: 0 | IT59: 0 | IU59: 0 | IV59: 0 | IW59: 0 | IX59: 0 | IY59: 0 | IZ59: 0 | JA59: 0 | JB59: 0 | JC59: 0 | JD59: 0 | JE59: 0 | JF59: 0 | JG59: 0 | JH59: 0 | JI59: =JI27 -> 0 | JJ59: 0 | JK59: 0 | JL59: 0 | JM59: 0 | JN59: 0 | JO59: 0 | JP59: 0 | JQ59: 0 | JR59: 0 | JS59: 0 | JT59: 0 | JU59: 0 | JV59: 0 | JW59: 0 | JX59: 0 | JY59: 0 | JZ59: 0 | KA59: 0 | KB59: 0 | KC59: 0 | KD59: 0 | KE59: 0 | KF59: 0 | KG59: 0 | KH59: 0 | KI59: 0 | KJ59: 0 | KK59: 0 | KL59: 0 | KM59: 0 | KN59: 0 | KO59: 0 | KP59: 0 | KQ59: 0 | KR59: 0 | KS59: 0 | KT59: 0 | KU59: 0 | KV59: 0 | KW59: 0 | KX59: 0 | KY59: 0 | KZ59: 0 | LA59: 0 | LB59: 0 | LC59: 0 | LD59: 0 | LE59: 0 | LF59: 0 | LG59: 0 | LH59: 0 | LI59: 0 | LJ59: 0 | LK59: 0 | LL59: 0 | LM59: 0 | LN59: 0 | LO59: 0 | LP59: 0 | LQ59: 0 | LR59: 0 | LS59: 0 | LT59: 0 | LU59: =LU27 -> 0 | LV59: 0 | LW59: 0 | LX59: 0 | LY59: 0 | LZ59: 0 | MA59: 0 | MB59: 0 | MC59: 0 | MD59: 0 | ME59: 0 | MF59: 0 | MG59: 0 | MH59: 0 | MI59: 0 | MJ59: 0 | MK59: 0 | ML59: 0 | MM59: 0 | MN59: 0 | MO59: 0 | MP59: 0 | MQ59: 0 | MR59: 0 | MS59: 0 | MT59: 0 | MU59: 0 | MV59: 0 | MW59: 0 | MX59: 0 | MY59: 0 | MZ59: 0 | NA59: 0 | NB59: 0 | NC59: 0 | ND59: 0 | NE59: 0 | NF59: 0 | NG59: 0 | NH59: 0 | NI59: 0 | NJ59: 0 | NK59: 0 | NL59: 0 | NM59: 0 | NN59: 0 | NO59: 0 | NP59: 0 | NQ59: 0 | NR59: 0 | NS59: 0 | NT59: 0 | NU59: 0 | NV59: 0 | NW59: 0 | NX59: 0 | NY59: 0 | NZ59: 0 | OA59: 0 | OB59: 0 | OC59: 0 | OD59: 0 | OE59: 0 | OF59: 0 | OG59: =OG27 -> 0 | OH59: 0 | OI59: 0 | OJ59: 0 | OK59: 0 | OL59: 0 | OM59: 0 | ON59: 0 | OO59: 0 | OP59: 0 | OQ59: 0 | OR59: 0 | OS59: 0 | OT59: 0 | OU59: 0 | OV59: 0 | OW59: 0 | OX59: 0 | OY59: 0 | OZ59: 0 | PA59: 0 | PB59: 0 | PC59: 0 | PD59: 0 | PE59: 0 | PF59: 0 | PG59: 0 | PH59: 0 | PI59: 0 | PJ59: 0 | PK59: 0 | PL59: 0 | PM59: 0 | PN59: 0 | PO59: 0 | PP59: 0 | PQ59: 0 | PR59: 0 | PS59: 0 | PT59: 0 | PU59: 0 | PV59: 0 | PW59: 0 | PX59: 0 | PY59: 0 | PZ59: 0 | QA59: 0 | QB59: 0 | QC59: 0 | QD59: 0 | QE59: 0 | QF59: 0 | QG59: 0 | QH59: 0 | QI59: 0 | QJ59: 0 | QK59: 0 | QL59: 0 | QM59: 0 | QN59: 0 | QO59: 0 | QP59: 0 | QQ59: 0 | QR59: 0 | QS59: =QS27 -> 0 | QT59: 0 | QU59: 0 | QV59: 0 | QW59: 0 | QX59: 0 | QY59: 0 | QZ59: 0 | RA59: 0 | RB59: 0 | RC59: 0 | RD59: 0 | RE59: 0 | RF59: 0 | RG59: 0 | RH59: 0 | RI59: 0 | RJ59: 0 | RK59: 0 | RL59: 0 | RM59: 0 | RN59: 0 | RO59: 0 | RP59: 0 | RQ59: 0 | RR59: 0 | RS59: 0 | RT59: 0 | RU59: 0 | RV59: 0 | RW59: 0 | RX59: 0 | RY59: 0 | RZ59: 0 | SA59: 0 | SB59: 0 | SC59: 0 | SD59: 0 | SE59: 0 | SF59: 0 | SG59: 0 | SH59: 0 | SI59: 0 | SJ59: 0 | SK59: 0 | SL59: 0 | SM59: 0 | SN59: 0 | SO59: 0 | SP59: 0 | SQ59: 0
D60: O&M Period | E60: ='InputC - Operations'!E44 -> 5 | G60: Period | L60: =L59<=$E$60 -> TRUE | M60: =M59<=$E$60 -> TRUE | N60: TRUE | O60: TRUE | P60: TRUE | Q60: TRUE | R60: TRUE | S60: TRUE | T60: TRUE | U60: TRUE | V60: TRUE | W60: TRUE | X60: TRUE | Y60: TRUE | Z60: TRUE | AA60: TRUE | AB60: TRUE | AC60: TRUE | AD60: TRUE | AE60: TRUE | AF60: TRUE | AG60: TRUE | AH60: TRUE | AI60: TRUE | AJ60: TRUE | AK60: TRUE | AL60: TRUE | AM60: TRUE | AN60: TRUE | AO60: TRUE | AP60: TRUE | AQ60: TRUE | AR60: TRUE | AS60: TRUE | AT60: TRUE | AU60: TRUE | AV60: TRUE | AW60: TRUE | AX60: TRUE | AY60: TRUE | AZ60: TRUE | BA60: TRUE | BB60: TRUE | BC60: TRUE | BD60: TRUE | BE60: TRUE | BF60: TRUE | BG60: TRUE | BH60: TRUE | BI60: TRUE | BJ60: TRUE | BK60: TRUE | BL60: TRUE | BM60: TRUE | BN60: TRUE | BO60: TRUE | BP60: TRUE | BQ60: TRUE | BR60: TRUE | BS60: TRUE | BT60: TRUE | BU60: TRUE | BV60: TRUE | BW60: TRUE | BX60: TRUE | BY60: =BY59<=$E$60 -> TRUE | BZ60: TRUE | CA60: TRUE | CB60: TRUE | CC60: TRUE | CD60: TRUE | CE60: TRUE | CF60: TRUE | CG60: TRUE | CH60: TRUE | CI60: TRUE | CJ60: TRUE | CK60: TRUE | CL60: TRUE | CM60: TRUE | CN60: TRUE | CO60: TRUE | CP60: TRUE | CQ60: TRUE | CR60: TRUE | CS60: TRUE | CT60: TRUE | CU60: TRUE | CV60: TRUE | CW60: TRUE | CX60: TRUE | CY60: TRUE | CZ60: TRUE | DA60: TRUE | DB60: TRUE | DC60: TRUE | DD60: TRUE | DE60: TRUE | DF60: TRUE | DG60: TRUE | DH60: TRUE | DI60: TRUE | DJ60: TRUE | DK60: TRUE | DL60: TRUE | DM60: TRUE | DN60: TRUE | DO60: TRUE | DP60: TRUE | DQ60: TRUE | DR60: TRUE | DS60: TRUE | DT60: TRUE | DU60: TRUE | DV60: TRUE | DW60: TRUE | DX60: TRUE | DY60: TRUE | DZ60: TRUE | EA60: TRUE | EB60: TRUE | EC60: TRUE | ED60: TRUE | EE60: TRUE | EF60: TRUE | EG60: TRUE | EH60: TRUE | EI60: TRUE | EJ60: TRUE | EK60: =EK59<=$E$60 -> TRUE | EL60: TRUE | EM60: TRUE | EN60: TRUE | EO60: TRUE | EP60: TRUE | EQ60: TRUE | ER60: TRUE | ES60: TRUE | ET60: TRUE | EU60: TRUE | EV60: TRUE | EW60: TRUE | EX60: TRUE | EY60: TRUE | EZ60: TRUE | FA60: TRUE | FB60: TRUE | FC60: TRUE | FD60: TRUE | FE60: TRUE | FF60: TRUE | FG60: TRUE | FH60: TRUE | FI60: TRUE | FJ60: TRUE | FK60: TRUE | FL60: TRUE | FM60: TRUE | FN60: TRUE | FO60: TRUE | FP60: TRUE | FQ60: TRUE | FR60: TRUE | FS60: TRUE | FT60: TRUE | FU60: TRUE | FV60: TRUE | FW60: TRUE | FX60: TRUE | FY60: TRUE | FZ60: TRUE | GA60: TRUE | GB60: TRUE | GC60: TRUE | GD60: TRUE | GE60: TRUE | GF60: TRUE | GG60: TRUE | GH60: TRUE | GI60: TRUE | GJ60: TRUE | GK60: TRUE | GL60: TRUE | GM60: TRUE | GN60: TRUE | GO60: TRUE | GP60: TRUE | GQ60: TRUE | GR60: TRUE | GS60: TRUE | GT60: TRUE | GU60: TRUE | GV60: TRUE | GW60: =GW59<=$E$60 -> TRUE | GX60: TRUE | GY60: TRUE | GZ60: TRUE | HA60: TRUE | HB60: TRUE | HC60: TRUE | HD60: TRUE | HE60: TRUE | HF60: TRUE | HG60: TRUE | HH60: TRUE | HI60: TRUE | HJ60: TRUE | HK60: TRUE | HL60: TRUE | HM60: TRUE | HN60: TRUE | HO60: TRUE | HP60: TRUE | HQ60: TRUE | HR60: TRUE | HS60: TRUE | HT60: TRUE | HU60: TRUE | HV60: TRUE | HW60: TRUE | HX60: TRUE | HY60: TRUE | HZ60: TRUE | IA60: TRUE | IB60: TRUE | IC60: TRUE | ID60: TRUE | IE60: TRUE | IF60: TRUE | IG60: TRUE | IH60: TRUE | II60: TRUE | IJ60: TRUE | IK60: TRUE | IL60: TRUE | IM60: TRUE | IN60: TRUE | IO60: TRUE | IP60: TRUE | IQ60: TRUE | IR60: TRUE | IS60: TRUE | IT60: TRUE | IU60: TRUE | IV60: TRUE | IW60: TRUE | IX60: TRUE | IY60: TRUE | IZ60: TRUE | JA60: TRUE | JB60: TRUE | JC60: TRUE | JD60: TRUE | JE60: TRUE | JF60: TRUE | JG60: TRUE | JH60: TRUE | JI60: =JI59<=$E$60 -> TRUE | JJ60: TRUE | JK60: TRUE | JL60: TRUE | JM60: TRUE | JN60: TRUE | JO60: TRUE | JP60: TRUE | JQ60: TRUE | JR60: TRUE | JS60: TRUE | JT60: TRUE | JU60: TRUE | JV60: TRUE | JW60: TRUE | JX60: TRUE | JY60: TRUE | JZ60: TRUE | KA60: TRUE | KB60: TRUE | KC60: TRUE | KD60: TRUE | KE60: TRUE | KF60: TRUE | KG60: TRUE | KH60: TRUE | KI60: TRUE | KJ60: TRUE | KK60: TRUE | KL60: TRUE | KM60: TRUE | KN60: TRUE | KO60: TRUE | KP60: TRUE | KQ60: TRUE | KR60: TRUE | KS60: TRUE | KT60: TRUE | KU60: TRUE | KV60: TRUE | KW60: TRUE | KX60: TRUE | KY60: TRUE | KZ60: TRUE | LA60: TRUE | LB60: TRUE | LC60: TRUE | LD60: TRUE | LE60: TRUE | LF60: TRUE | LG60: TRUE | LH60: TRUE | LI60: TRUE | LJ60: TRUE | LK60: TRUE | LL60: TRUE | LM60: TRUE | LN60: TRUE | LO60: TRUE | LP60: TRUE | LQ60: TRUE | LR60: TRUE | LS60: TRUE | LT60: TRUE | LU60: =LU59<=$E$60 -> TRUE | LV60: TRUE | LW60: TRUE | LX60: TRUE | LY60: TRUE | LZ60: TRUE | MA60: TRUE | MB60: TRUE | MC60: TRUE | MD60: TRUE | ME60: TRUE | MF60: TRUE | MG60: TRUE | MH60: TRUE | MI60: TRUE | MJ60: TRUE | MK60: TRUE | ML60: TRUE | MM60: TRUE | MN60: TRUE | MO60: TRUE | MP60: TRUE | MQ60: TRUE | MR60: TRUE | MS60: TRUE | MT60: TRUE | MU60: TRUE | MV60: TRUE | MW60: TRUE | MX60: TRUE | MY60: TRUE | MZ60: TRUE | NA60: TRUE | NB60: TRUE | NC60: TRUE | ND60: TRUE | NE60: TRUE | NF60: TRUE | NG60: TRUE | NH60: TRUE | NI60: TRUE | NJ60: TRUE | NK60: TRUE | NL60: TRUE | NM60: TRUE | NN60: TRUE | NO60: TRUE | NP60: TRUE | NQ60: TRUE | NR60: TRUE | NS60: TRUE | NT60: TRUE | NU60: TRUE | NV60: TRUE | NW60: TRUE | NX60: TRUE | NY60: TRUE | NZ60: TRUE | OA60: TRUE | OB60: TRUE | OC60: TRUE | OD60: TRUE | OE60: TRUE | OF60: TRUE | OG60: =OG59<=$E$60 -> TRUE | OH60: TRUE | OI60: TRUE | OJ60: TRUE | OK60: TRUE | OL60: TRUE | OM60: TRUE | ON60: TRUE | OO60: TRUE | OP60: TRUE | OQ60: TRUE | OR60: TRUE | OS60: TRUE | OT60: TRUE | OU60: TRUE | OV60: TRUE | OW60: TRUE | OX60: TRUE | OY60: TRUE | OZ60: TRUE | PA60: TRUE | PB60: TRUE | PC60: TRUE | PD60: TRUE | PE60: TRUE | PF60: TRUE | PG60: TRUE | PH60: TRUE | PI60: TRUE | PJ60: TRUE | PK60: TRUE | PL60: TRUE | PM60: TRUE | PN60: TRUE | PO60: TRUE | PP60: TRUE | PQ60: TRUE | PR60: TRUE | PS60: TRUE | PT60: TRUE | PU60: TRUE | PV60: TRUE | PW60: TRUE | PX60: TRUE | PY60: TRUE | PZ60: TRUE | QA60: TRUE | QB60: TRUE | QC60: TRUE | QD60: TRUE | QE60: TRUE | QF60: TRUE | QG60: TRUE | QH60: TRUE | QI60: TRUE | QJ60: TRUE | QK60: TRUE | QL60: TRUE | QM60: TRUE | QN60: TRUE | QO60: TRUE | QP60: TRUE | QQ60: TRUE | QR60: TRUE | QS60: =QS59<=$E$60 -> TRUE | QT60: TRUE | QU60: TRUE | QV60: TRUE | QW60: TRUE | QX60: TRUE | QY60: TRUE | QZ60: TRUE | RA60: TRUE | RB60: TRUE | RC60: TRUE | RD60: TRUE | RE60: TRUE | RF60: TRUE | RG60: TRUE | RH60: TRUE | RI60: TRUE | RJ60: TRUE | RK60: TRUE | RL60: TRUE | RM60: TRUE | RN60: TRUE | RO60: TRUE | RP60: TRUE | RQ60: TRUE | RR60: TRUE | RS60: TRUE | RT60: TRUE | RU60: TRUE | RV60: TRUE | RW60: TRUE | RX60: TRUE | RY60: TRUE | RZ60: TRUE | SA60: TRUE | SB60: TRUE | SC60: TRUE | SD60: TRUE | SE60: TRUE | SF60: TRUE | SG60: TRUE | SH60: TRUE | SI60: TRUE | SJ60: TRUE | SK60: TRUE | SL60: TRUE | SM60: TRUE | SN60: TRUE | SO60: TRUE | SP60: TRUE | SQ60: TRUE
D61: O&M per Year | E61: ='InputC - Operations'!E43 -> 9.5 | F61: ='InputC - Operations'!E45 -> 8 | G61: ='InputC - Operations'!F43 -> USD/kWp-yr
D62: O&M Real | G62: USD
D63: O&M Nominal | G63: USD | L63: =L62*L44 ->  | BX63: =BX62*BX44 ->  | EJ63: =EJ62*EJ44 ->  | GV63: =GV62*GV44 ->  | JH63: =JH62*JH44 ->  | LT63: =LT62*LT44 ->  | OF63: =OF62*OF44 ->  | QR63: =QR62*QR44 -> 
D65: ='InputC - Operations'!D47 -> Insurance During Operation | E65: ='InputC - Operations'!E47 -> 4 | G65: ='InputC - Operations'!F47 -> USD/kWp-yr | L65: =$E$65*L7 -> 0 | M65: 0 | N65: 0 | O65: 0 | P65: 0 | Q65: 0 | R65: 0 | S65: 0 | T65: 0 | U65: 0 | V65: 0 | W65: 0 | X65: 0 | Y65: 0 | Z65: 0 | AA65: 0 | AB65: 0 | AC65: 0 | AD65: 0 | AE65: 0 | AF65: 0 | AG65: 0 | AH65: 0 | AI65: 0 | AJ65: 0 | AK65: 0 | AL65: 0 | AM65: 0 | AN65: 0 | AO65: 0 | AP65: 0 | AQ65: 0 | AR65: 0 | AS65: 0 | AT65: 0 | AU65: 0 | AV65: 0 | AW65: 0 | AX65: 0 | AY65: 0 | AZ65: 0 | BA65: 0 | BB65: 0 | BC65: 0 | BD65: 0 | BE65: 0 | BF65: 0 | BG65: 0 | BH65: 0 | BI65: 0 | BJ65: 0 | BK65: 0 | BL65: 0 | BM65: 0 | BN65: 0 | BO65: 0 | BP65: 0 | BQ65: 0 | BR65: 0 | BS65: 0 | BT65: 0 | BU65: 0 | BV65: 0 | BW65: 0 | BX65: =$E$65*BX7 -> 0 | BY65: 0 | BZ65: 0 | CA65: 0 | CB65: 0 | CC65: 0 | CD65: 0 | CE65: 0 | CF65: 0 | CG65: 0 | CH65: 0 | CI65: 0 | CJ65: 0 | CK65: 0 | CL65: 0 | CM65: 0 | CN65: 0 | CO65: 0 | CP65: 0 | CQ65: 0 | CR65: 0 | CS65: 0 | CT65: 0 | CU65: 0 | CV65: 0 | CW65: 0 | CX65: 0 | CY65: 0 | CZ65: 0 | DA65: 0 | DB65: 0 | DC65: 0 | DD65: 0 | DE65: 0 | DF65: 0 | DG65: 0 | DH65: 0 | DI65: 0 | DJ65: 0 | DK65: 0 | DL65: 0 | DM65: 0 | DN65: 0 | DO65: 0 | DP65: 0 | DQ65: 0 | DR65: 0 | DS65: 0 | DT65: 0 | DU65: 0 | DV65: 0 | DW65: 0 | DX65: 0 | DY65: 0 | DZ65: 0 | EA65: 0 | EB65: 0 | EC65: 0 | ED65: 0 | EE65: 0 | EF65: 0 | EG65: 0 | EH65: 0 | EI65: 0 | EJ65: =$E$65*EJ7 -> 0 | EK65: 0 | EL65: 0 | EM65: 0 | EN65: 0 | EO65: 0 | EP65: 0 | EQ65: 0 | ER65: 0 | ES65: 0 | ET65: 0 | EU65: 0 | EV65: 0 | EW65: 0 | EX65: 0 | EY65: 0 | EZ65: 0 | FA65: 0 | FB65: 0 | FC65: 0 | FD65: 0 | FE65: 0 | FF65: 0 | FG65: 0 | FH65: 0 | FI65: 0 | FJ65: 0 | FK65: 0 | FL65: 0 | FM65: 0 | FN65: 0 | FO65: 0 | FP65: 0 | FQ65: 0 | FR65: 0 | FS65: 0 | FT65: 0 | FU65: 0 | FV65: 0 | FW65: 0 | FX65: 0 | FY65: 0 | FZ65: 0 | GA65: 0 | GB65: 0 | GC65: 0 | GD65: 0 | GE65: 0 | GF65: 0 | GG65: 0 | GH65: 0 | GI65: 0 | GJ65: 0 | GK65: 0 | GL65: 0 | GM65: 0 | GN65: 0 | GO65: 0 | GP65: 0 | GQ65: 0 | GR65: 0 | GS65: 0 | GT65: 0 | GU65: 0 | GV65: =$E$65*GV7 -> 0 | GW65: 0 | GX65: 0 | GY65: 0 | GZ65: 0 | HA65: 0 | HB65: 0 | HC65: 0 | HD65: 0 | HE65: 0 | HF65: 0 | HG65: 0 | HH65: 0 | HI65: 0 | HJ65: 0 | HK65: 0 | HL65: 0 | HM65: 0 | HN65: 0 | HO65: 0 | HP65: 0 | HQ65: 0 | HR65: 0 | HS65: 0 | HT65: 0 | HU65: 0 | HV65: 0 | HW65: 0 | HX65: 0 | HY65: 0 | HZ65: 0 | IA65: 0 | IB65: 0 | IC65: 0 | ID65: 0 | IE65: 0 | IF65: 0 | IG65: 0 | IH65: 0 | II65: 0 | IJ65: 0 | IK65: 0 | IL65: 0 | IM65: 0 | IN65: 0 | IO65: 0 | IP65: 0 | IQ65: 0 | IR65: 0 | IS65: 0 | IT65: 0 | IU65: 0 | IV65: 0 | IW65: 0 | IX65: 0 | IY65: 0 | IZ65: 0 | JA65: 0 | JB65: 0 | JC65: 0 | JD65: 0 | JE65: 0 | JF65: 0 | JG65: 0 | JH65: =$E$65*JH7 -> 0 | JI65: 0 | JJ65: 0 | JK65: 0 | JL65: 0 | JM65: 0 | JN65: 0 | JO65: 0 | JP65: 0 | JQ65: 0 | JR65: 0 | JS65: 0 | JT65: 0 | JU65: 0 | JV65: 0 | JW65: 0 | JX65: 0 | JY65: 0 | JZ65: 0 | KA65: 0 | KB65: 0 | KC65: 0 | KD65: 0 | KE65: 0 | KF65: 0 | KG65: 0 | KH65: 0 | KI65: 0 | KJ65: 0 | KK65: 0 | KL65: 0 | KM65: 0 | KN65: 0 | KO65: 0 | KP65: 0 | KQ65: 0 | KR65: 0 | KS65: 0 | KT65: 0 | KU65: 0 | KV65: 0 | KW65: 0 | KX65: 0 | KY65: 0 | KZ65: 0 | LA65: 0 | LB65: 0 | LC65: 0 | LD65: 0 | LE65: 0 | LF65: 0 | LG65: 0 | LH65: 0 | LI65: 0 | LJ65: 0 | LK65: 0 | LL65: 0 | LM65: 0 | LN65: 0 | LO65: 0 | LP65: 0 | LQ65: 0 | LR65: 0 | LS65: 0 | LT65: =$E$65*LT7 -> 0 | LU65: 0 | LV65: 0 | LW65: 0 | LX65: 0 | LY65: 0 | LZ65: 0 | MA65: 0 | MB65: 0 | MC65: 0 | MD65: 0 | ME65: 0 | MF65: 0 | MG65: 0 | MH65: 0 | MI65: 0 | MJ65: 0 | MK65: 0 | ML65: 0 | MM65: 0 | MN65: 0 | MO65: 0 | MP65: 0 | MQ65: 0 | MR65: 0 | MS65: 0 | MT65: 0 | MU65: 0 | MV65: 0 | MW65: 0 | MX65: 0 | MY65: 0 | MZ65: 0 | NA65: 0 | NB65: 0 | NC65: 0 | ND65: 0 | NE65: 0 | NF65: 0 | NG65: 0 | NH65: 0 | NI65: 0 | NJ65: 0 | NK65: 0 | NL65: 0 | NM65: 0 | NN65: 0 | NO65: 0 | NP65: 0 | NQ65: 0 | NR65: 0 | NS65: 0 | NT65: 0 | NU65: 0 | NV65: 0 | NW65: 0 | NX65: 0 | NY65: 0 | NZ65: 0 | OA65: 0 | OB65: 0 | OC65: 0 | OD65: 0 | OE65: 0 | OF65: =$E$65*OF7 -> 0 | OG65: 0 | OH65: 0 | OI65: 0 | OJ65: 0 | OK65: 0 | OL65: 0 | OM65: 0 | ON65: 0 | OO65: 0 | OP65: 0 | OQ65: 0 | OR65: 0 | OS65: 0 | OT65: 0 | OU65: 0 | OV65: 0 | OW65: 0 | OX65: 0 | OY65: 0 | OZ65: 0 | PA65: 0 | PB65: 0 | PC65: 0 | PD65: 0 | PE65: 0 | PF65: 0 | PG65: 0 | PH65: 0 | PI65: 0 | PJ65: 0 | PK65: 0 | PL65: 0 | PM65: 0 | PN65: 0 | PO65: 0 | PP65: 0 | PQ65: 0 | PR65: 0 | PS65: 0 | PT65: 0 | PU65: 0 | PV65: 0 | PW65: 0 | PX65: 0 | PY65: 0 | PZ65: 0 | QA65: 0 | QB65: 0 | QC65: 0 | QD65: 0 | QE65: 0 | QF65: 0 | QG65: 0 | QH65: 0 | QI65: 0 | QJ65: 0 | QK65: 0 | QL65: 0 | QM65: 0 | QN65: 0 | QO65: 0 | QP65: 0 | QQ65: 0 | QR65: =$E$65*QR7 -> 0 | QS65: 0 | QT65: 0 | QU65: 0 | QV65: 0 | QW65: 0 | QX65: 0 | QY65: 0 | QZ65: 0 | RA65: 0 | RB65: 0 | RC65: 0 | RD65: 0 | RE65: 0 | RF65: 0 | RG65: 0 | RH65: 0 | RI65: 0 | RJ65: 0 | RK65: 0 | RL65: 0 | RM65: 0 | RN65: 0 | RO65: 0 | RP65: 0 | RQ65: 0 | RR65: 0 | RS65: 0 | RT65: 0 | RU65: 0 | RV65: 0 | RW65: 0 | RX65: 0 | RY65: 0 | RZ65: 0 | SA65: 0 | SB65: 0 | SC65: 0 | SD65: 0 | SE65: 0 | SF65: 0 | SG65: 0 | SH65: 0 | SI65: 0 | SJ65: 0 | SK65: 0 | SL65: 0 | SM65: 0 | SN65: 0 | SO65: 0 | SP65: 0 | SQ65: 0
D66: =D65 -> Insurance During Operation | G66: USD/kWp-mo | L66: =L65/Months -> 0 | M66: 0 | N66: 0 | O66: 0 | P66: 0 | Q66: 0 | R66: 0 | S66: 0 | T66: 0 | U66: 0 | V66: 0 | W66: 0 | X66: 0 | Y66: 0 | Z66: 0 | AA66: 0 | AB66: 0 | AC66: 0 | AD66: 0 | AE66: 0 | AF66: 0 | AG66: 0 | AH66: 0 | AI66: 0 | AJ66: 0 | AK66: 0 | AL66: 0 | AM66: 0 | AN66: 0 | AO66: 0 | AP66: 0 | AQ66: 0 | AR66: 0 | AS66: 0 | AT66: 0 | AU66: 0 | AV66: 0 | AW66: 0 | AX66: 0 | AY66: 0 | AZ66: 0 | BA66: 0 | BB66: 0 | BC66: 0 | BD66: 0 | BE66: 0 | BF66: 0 | BG66: 0 | BH66: 0 | BI66: 0 | BJ66: 0 | BK66: 0 | BL66: 0 | BM66: 0 | BN66: 0 | BO66: 0 | BP66: 0 | BQ66: 0 | BR66: 0 | BS66: 0 | BT66: 0 | BU66: 0 | BV66: 0 | BW66: 0 | BX66: =BX65/Months -> 0 | BY66: 0 | BZ66: 0 | CA66: 0 | CB66: 0 | CC66: 0 | CD66: 0 | CE66: 0 | CF66: 0 | CG66: 0 | CH66: 0 | CI66: 0 | CJ66: 0 | CK66: 0 | CL66: 0 | CM66: 0 | CN66: 0 | CO66: 0 | CP66: 0 | CQ66: 0 | CR66: 0 | CS66: 0 | CT66: 0 | CU66: 0 | CV66: 0 | CW66: 0 | CX66: 0 | CY66: 0 | CZ66: 0 | DA66: 0 | DB66: 0 | DC66: 0 | DD66: 0 | DE66: 0 | DF66: 0 | DG66: 0 | DH66: 0 | DI66: 0 | DJ66: 0 | DK66: 0 | DL66: 0 | DM66: 0 | DN66: 0 | DO66: 0 | DP66: 0 | DQ66: 0 | DR66: 0 | DS66: 0 | DT66: 0 | DU66: 0 | DV66: 0 | DW66: 0 | DX66: 0 | DY66: 0 | DZ66: 0 | EA66: 0 | EB66: 0 | EC66: 0 | ED66: 0 | EE66: 0 | EF66: 0 | EG66: 0 | EH66: 0 | EI66: 0 | EJ66: =EJ65/Months -> 0 | EK66: 0 | EL66: 0 | EM66: 0 | EN66: 0 | EO66: 0 | EP66: 0 | EQ66: 0 | ER66: 0 | ES66: 0 | ET66: 0 | EU66: 0 | EV66: 0 | EW66: 0 | EX66: 0 | EY66: 0 | EZ66: 0 | FA66: 0 | FB66: 0 | FC66: 0 | FD66: 0 | FE66: 0 | FF66: 0 | FG66: 0 | FH66: 0 | FI66: 0 | FJ66: 0 | FK66: 0 | FL66: 0 | FM66: 0 | FN66: 0 | FO66: 0 | FP66: 0 | FQ66: 0 | FR66: 0 | FS66: 0 | FT66: 0 | FU66: 0 | FV66: 0 | FW66: 0 | FX66: 0 | FY66: 0 | FZ66: 0 | GA66: 0 | GB66: 0 | GC66: 0 | GD66: 0 | GE66: 0 | GF66: 0 | GG66: 0 | GH66: 0 | GI66: 0 | GJ66: 0 | GK66: 0 | GL66: 0 | GM66: 0 | GN66: 0 | GO66: 0 | GP66: 0 | GQ66: 0 | GR66: 0 | GS66: 0 | GT66: 0 | GU66: 0 | GV66: =GV65/Months -> 0 | GW66: 0 | GX66: 0 | GY66: 0 | GZ66: 0 | HA66: 0 | HB66: 0 | HC66: 0 | HD66: 0 | HE66: 0 | HF66: 0 | HG66: 0 | HH66: 0 | HI66: 0 | HJ66: 0 | HK66: 0 | HL66: 0 | HM66: 0 | HN66: 0 | HO66: 0 | HP66: 0 | HQ66: 0 | HR66: 0 | HS66: 0 | HT66: 0 | HU66: 0 | HV66: 0 | HW66: 0 | HX66: 0 | HY66: 0 | HZ66: 0 | IA66: 0 | IB66: 0 | IC66: 0 | ID66: 0 | IE66: 0 | IF66: 0 | IG66: 0 | IH66: 0 | II66: 0 | IJ66: 0 | IK66: 0 | IL66: 0 | IM66: 0 | IN66: 0 | IO66: 0 | IP66: 0 | IQ66: 0 | IR66: 0 | IS66: 0 | IT66: 0 | IU66: 0 | IV66: 0 | IW66: 0 | IX66: 0 | IY66: 0 | IZ66: 0 | JA66: 0 | JB66: 0 | JC66: 0 | JD66: 0 | JE66: 0 | JF66: 0 | JG66: 0 | JH66: =JH65/Months -> 0 | JI66: 0 | JJ66: 0 | JK66: 0 | JL66: 0 | JM66: 0 | JN66: 0 | JO66: 0 | JP66: 0 | JQ66: 0 | JR66: 0 | JS66: 0 | JT66: 0 | JU66: 0 | JV66: 0 | JW66: 0 | JX66: 0 | JY66: 0 | JZ66: 0 | KA66: 0 | KB66: 0 | KC66: 0 | KD66: 0 | KE66: 0 | KF66: 0 | KG66: 0 | KH66: 0 | KI66: 0 | KJ66: 0 | KK66: 0 | KL66: 0 | KM66: 0 | KN66: 0 | KO66: 0 | KP66: 0 | KQ66: 0 | KR66: 0 | KS66: 0 | KT66: 0 | KU66: 0 | KV66: 0 | KW66: 0 | KX66: 0 | KY66: 0 | KZ66: 0 | LA66: 0 | LB66: 0 | LC66: 0 | LD66: 0 | LE66: 0 | LF66: 0 | LG66: 0 | LH66: 0 | LI66: 0 | LJ66: 0 | LK66: 0 | LL66: 0 | LM66: 0 | LN66: 0 | LO66: 0 | LP66: 0 | LQ66: 0 | LR66: 0 | LS66: 0 | LT66: =LT65/Months -> 0 | LU66: 0 | LV66: 0 | LW66: 0 | LX66: 0 | LY66: 0 | LZ66: 0 | MA66: 0 | MB66: 0 | MC66: 0 | MD66: 0 | ME66: 0 | MF66: 0 | MG66: 0 | MH66: 0 | MI66: 0 | MJ66: 0 | MK66: 0 | ML66: 0 | MM66: 0 | MN66: 0 | MO66: 0 | MP66: 0 | MQ66: 0 | MR66: 0 | MS66: 0 | MT66: 0 | MU66: 0 | MV66: 0 | MW66: 0 | MX66: 0 | MY66: 0 | MZ66: 0 | NA66: 0 | NB66: 0 | NC66: 0 | ND66: 0 | NE66: 0 | NF66: 0 | NG66: 0 | NH66: 0 | NI66: 0 | NJ66: 0 | NK66: 0 | NL66: 0 | NM66: 0 | NN66: 0 | NO66: 0 | NP66: 0 | NQ66: 0 | NR66: 0 | NS66: 0 | NT66: 0 | NU66: 0 | NV66: 0 | NW66: 0 | NX66: 0 | NY66: 0 | NZ66: 0 | OA66: 0 | OB66: 0 | OC66: 0 | OD66: 0 | OE66: 0 | OF66: =OF65/Months -> 0 | OG66: 0 | OH66: 0 | OI66: 0 | OJ66: 0 | OK66: 0 | OL66: 0 | OM66: 0 | ON66: 0 | OO66: 0 | OP66: 0 | OQ66: 0 | OR66: 0 | OS66: 0 | OT66: 0 | OU66: 0 | OV66: 0 | OW66: 0 | OX66: 0 | OY66: 0 | OZ66: 0 | PA66: 0 | PB66: 0 | PC66: 0 | PD66: 0 | PE66: 0 | PF66: 0 | PG66: 0 | PH66: 0 | PI66: 0 | PJ66: 0 | PK66: 0 | PL66: 0 | PM66: 0 | PN66: 0 | PO66: 0 | PP66: 0 | PQ66: 0 | PR66: 0 | PS66: 0 | PT66: 0 | PU66: 0 | PV66: 0 | PW66: 0 | PX66: 0 | PY66: 0 | PZ66: 0 | QA66: 0 | QB66: 0 | QC66: 0 | QD66: 0 | QE66: 0 | QF66: 0 | QG66: 0 | QH66: 0 | QI66: 0 | QJ66: 0 | QK66: 0 | QL66: 0 | QM66: 0 | QN66: 0 | QO66: 0 | QP66: 0 | QQ66: 0 | QR66: =QR65/Months -> 0 | QS66: 0 | QT66: 0 | QU66: 0 | QV66: 0 | QW66: 0 | QX66: 0 | QY66: 0 | QZ66: 0 | RA66: 0 | RB66: 0 | RC66: 0 | RD66: 0 | RE66: 0 | RF66: 0 | RG66: 0 | RH66: 0 | RI66: 0 | RJ66: 0 | RK66: 0 | RL66: 0 | RM66: 0 | RN66: 0 | RO66: 0 | RP66: 0 | RQ66: 0 | RR66: 0 | RS66: 0 | RT66: 0 | RU66: 0 | RV66: 0 | RW66: 0 | RX66: 0 | RY66: 0 | RZ66: 0 | SA66: 0 | SB66: 0 | SC66: 0 | SD66: 0 | SE66: 0 | SF66: 0 | SG66: 0 | SH66: 0 | SI66: 0 | SJ66: 0 | SK66: 0 | SL66: 0 | SM66: 0 | SN66: 0 | SO66: 0 | SP66: 0 | SQ66: 0
D67: Insurance During Operation | G67: USD | L67: =L66*L18 -> 0 | M67: 0 | N67: 0 | O67: 0 | P67: 0 | Q67: 0 | R67: 0 | S67: 0 | T67: 0 | U67: 0 | V67: 0 | W67: 0 | X67: 0 | Y67: 0 | Z67: 0 | AA67: 0 | AB67: 0 | AC67: 0 | AD67: 0 | AE67: 0 | AF67: 0 | AG67: 0 | AH67: 0 | AI67: 0 | AJ67: 0 | AK67: 0 | AL67: 0 | AM67: 0 | AN67: 0 | AO67: 0 | AP67: 0 | AQ67: 0 | AR67: 0 | AS67: 0 | AT67: 0 | AU67: 0 | AV67: 0 | AW67: 0 | AX67: 0 | AY67: 0 | AZ67: 0 | BA67: 0 | BB67: 0 | BC67: 0 | BD67: 0 | BE67: 0 | BF67: 0 | BG67: 0 | BH67: 0 | BI67: 0 | BJ67: 0 | BK67: 0 | BL67: 0 | BM67: 0 | BN67: 0 | BO67: 0 | BP67: 0 | BQ67: 0 | BR67: 0 | BS67: 0 | BT67: 0 | BU67: 0 | BV67: 0 | BW67: 0 | BX67: =BX66*BX18 -> 0 | BY67: 0 | BZ67: 0 | CA67: 0 | CB67: 0 | CC67: 0 | CD67: 0 | CE67: 0 | CF67: 0 | CG67: 0 | CH67: 0 | CI67: 0 | CJ67: 0 | CK67: 0 | CL67: 0 | CM67: 0 | CN67: 0 | CO67: 0 | CP67: 0 | CQ67: 0 | CR67: 0 | CS67: 0 | CT67: 0 | CU67: 0 | CV67: 0 | CW67: 0 | CX67: 0 | CY67: 0 | CZ67: 0 | DA67: 0 | DB67: 0 | DC67: 0 | DD67: 0 | DE67: 0 | DF67: 0 | DG67: 0 | DH67: 0 | DI67: 0 | DJ67: 0 | DK67: 0 | DL67: 0 | DM67: 0 | DN67: 0 | DO67: 0 | DP67: 0 | DQ67: 0 | DR67: 0 | DS67: 0 | DT67: 0 | DU67: 0 | DV67: 0 | DW67: 0 | DX67: 0 | DY67: 0 | DZ67: 0 | EA67: 0 | EB67: 0 | EC67: 0 | ED67: 0 | EE67: 0 | EF67: 0 | EG67: 0 | EH67: 0 | EI67: 0 | EJ67: =EJ66*EJ18 -> 0 | EK67: 0 | EL67: 0 | EM67: 0 | EN67: 0 | EO67: 0 | EP67: 0 | EQ67: 0 | ER67: 0 | ES67: 0 | ET67: 0 | EU67: 0 | EV67: 0 | EW67: 0 | EX67: 0 | EY67: 0 | EZ67: 0 | FA67: 0 | FB67: 0 | FC67: 0 | FD67: 0 | FE67: 0 | FF67: 0 | FG67: 0 | FH67: 0 | FI67: 0 | FJ67: 0 | FK67: 0 | FL67: 0 | FM67: 0 | FN67: 0 | FO67: 0 | FP67: 0 | FQ67: 0 | FR67: 0 | FS67: 0 | FT67: 0 | FU67: 0 | FV67: 0 | FW67: 0 | FX67: 0 | FY67: 0 | FZ67: 0 | GA67: 0 | GB67: 0 | GC67: 0 | GD67: 0 | GE67: 0 | GF67: 0 | GG67: 0 | GH67: 0 | GI67: 0 | GJ67: 0 | GK67: 0 | GL67: 0 | GM67: 0 | GN67: 0 | GO67: 0 | GP67: 0 | GQ67: 0 | GR67: 0 | GS67: 0 | GT67: 0 | GU67: 0 | GV67: =GV66*GV18 -> 0 | GW67: 0 | GX67: 0 | GY67: 0 | GZ67: 0 | HA67: 0 | HB67: 0 | HC67: 0 | HD67: 0 | HE67: 0 | HF67: 0 | HG67: 0 | HH67: 0 | HI67: 0 | HJ67: 0 | HK67: 0 | HL67: 0 | HM67: 0 | HN67: 0 | HO67: 0 | HP67: 0 | HQ67: 0 | HR67: 0 | HS67: 0 | HT67: 0 | HU67: 0 | HV67: 0 | HW67: 0 | HX67: 0 | HY67: 0 | HZ67: 0 | IA67: 0 | IB67: 0 | IC67: 0 | ID67: 0 | IE67: 0 | IF67: 0 | IG67: 0 | IH67: 0 | II67: 0 | IJ67: 0 | IK67: 0 | IL67: 0 | IM67: 0 | IN67: 0 | IO67: 0 | IP67: 0 | IQ67: 0 | IR67: 0 | IS67: 0 | IT67: 0 | IU67: 0 | IV67: 0 | IW67: 0 | IX67: 0 | IY67: 0 | IZ67: 0 | JA67: 0 | JB67: 0 | JC67: 0 | JD67: 0 | JE67: 0 | JF67: 0 | JG67: 0 | JH67: =JH66*JH18 -> 0 | JI67: 0 | JJ67: 0 | JK67: 0 | JL67: 0 | JM67: 0 | JN67: 0 | JO67: 0 | JP67: 0 | JQ67: 0 | JR67: 0 | JS67: 0 | JT67: 0 | JU67: 0 | JV67: 0 | JW67: 0 | JX67: 0 | JY67: 0 | JZ67: 0 | KA67: 0 | KB67: 0 | KC67: 0 | KD67: 0 | KE67: 0 | KF67: 0 | KG67: 0 | KH67: 0 | KI67: 0 | KJ67: 0 | KK67: 0 | KL67: 0 | KM67: 0 | KN67: 0 | KO67: 0 | KP67: 0 | KQ67: 0 | KR67: 0 | KS67: 0 | KT67: 0 | KU67: 0 | KV67: 0 | KW67: 0 | KX67: 0 | KY67: 0 | KZ67: 0 | LA67: 0 | LB67: 0 | LC67: 0 | LD67: 0 | LE67: 0 | LF67: 0 | LG67: 0 | LH67: 0 | LI67: 0 | LJ67: 0 | LK67: 0 | LL67: 0 | LM67: 0 | LN67: 0 | LO67: 0 | LP67: 0 | LQ67: 0 | LR67: 0 | LS67: 0 | LT67: =LT66*LT18 -> 0 | LU67: 0 | LV67: 0 | LW67: 0 | LX67: 0 | LY67: 0 | LZ67: 0 | MA67: 0 | MB67: 0 | MC67: 0 | MD67: 0 | ME67: 0 | MF67: 0 | MG67: 0 | MH67: 0 | MI67: 0 | MJ67: 0 | MK67: 0 | ML67: 0 | MM67: 0 | MN67: 0 | MO67: 0 | MP67: 0 | MQ67: 0 | MR67: 0 | MS67: 0 | MT67: 0 | MU67: 0 | MV67: 0 | MW67: 0 | MX67: 0 | MY67: 0 | MZ67: 0 | NA67: 0 | NB67: 0 | NC67: 0 | ND67: 0 | NE67: 0 | NF67: 0 | NG67: 0 | NH67: 0 | NI67: 0 | NJ67: 0 | NK67: 0 | NL67: 0 | NM67: 0 | NN67: 0 | NO67: 0 | NP67: 0 | NQ67: 0 | NR67: 0 | NS67: 0 | NT67: 0 | NU67: 0 | NV67: 0 | NW67: 0 | NX67: 0 | NY67: 0 | NZ67: 0 | OA67: 0 | OB67: 0 | OC67: 0 | OD67: 0 | OE67: 0 | OF67: =OF66*OF18 -> 0 | OG67: 0 | OH67: 0 | OI67: 0 | OJ67: 0 | OK67: 0 | OL67: 0 | OM67: 0 | ON67: 0 | OO67: 0 | OP67: 0 | OQ67: 0 | OR67: 0 | OS67: 0 | OT67: 0 | OU67: 0 | OV67: 0 | OW67: 0 | OX67: 0 | OY67: 0 | OZ67: 0 | PA67: 0 | PB67: 0 | PC67: 0 | PD67: 0 | PE67: 0 | PF67: 0 | PG67: 0 | PH67: 0 | PI67: 0 | PJ67: 0 | PK67: 0 | PL67: 0 | PM67: 0 | PN67: 0 | PO67: 0 | PP67: 0 | PQ67: 0 | PR67: 0 | PS67: 0 | PT67: 0 | PU67: 0 | PV67: 0 | PW67: 0 | PX67: 0 | PY67: 0 | PZ67: 0 | QA67: 0 | QB67: 0 | QC67: 0 | QD67: 0 | QE67: 0 | QF67: 0 | QG67: 0 | QH67: 0 | QI67: 0 | QJ67: 0 | QK67: 0 | QL67: 0 | QM67: 0 | QN67: 0 | QO67: 0 | QP67: 0 | QQ67: 0 | QR67: =QR66*QR18 -> 0 | QS67: 0 | QT67: 0 | QU67: 0 | QV67: 0 | QW67: 0 | QX67: 0 | QY67: 0 | QZ67: 0 | RA67: 0 | RB67: 0 | RC67: 0 | RD67: 0 | RE67: 0 | RF67: 0 | RG67: 0 | RH67: 0 | RI67: 0 | RJ67: 0 | RK67: 0 | RL67: 0 | RM67: 0 | RN67: 0 | RO67: 0 | RP67: 0 | RQ67: 0 | RR67: 0 | RS67: 0 | RT67: 0 | RU67: 0 | RV67: 0 | RW67: 0 | RX67: 0 | RY67: 0 | RZ67: 0 | SA67: 0 | SB67: 0 | SC67: 0 | SD67: 0 | SE67: 0 | SF67: 0 | SG67: 0 | SH67: 0 | SI67: 0 | SJ67: 0 | SK67: 0 | SL67: 0 | SM67: 0 | SN67: 0 | SO67: 0 | SP67: 0 | SQ67: 0
D69: Total O&M Expenses | G69: USD/Month | J69: =SUM(K69:XFD69) ->  | L69: =L67+L63+L56 ->  | BX69: =BX67+BX63+BX56 ->  | EJ69: =EJ67+EJ63+EJ56 ->  | GV69: =GV67+GV63+GV56 ->  | JH69: =JH67+JH63+JH56 ->  | LT69: =LT67+LT63+LT56 ->  | OF69: =OF67+OF63+OF56 ->  | QR69: =QR67+QR63+QR56 -> 
D71: Total EBITDA | G71: USD/Month | J71: =SUM(K71:XFD71) ->  | L71: =L51-L69 ->  | M71: =M51-M69 ->  | BY71: =BY51-BY69 ->  | EK71: =EK51-EK69 ->  | GW71: =GW51-GW69 ->  | JI71: =JI51-JI69 ->  | LU71: =LU51-LU69 ->  | OG71: =OG51-OG69 ->  | QS71: =QS51-QS69 -> 
B73: Working Capital
C74: Revenues
D75: Revenue Booked | G75: USD/Month | L75: =L51 -> 0 | M75: =M51 -> 0 | N75: 0 | O75: 0 | P75: 0 | Q75: 0 | R75: 0 | S75: 0 | T75: 0 | U75: 0 | V75: 0 | W75: 0 | X75: 0 | Y75: 0 | Z75: 0 | AA75: 0 | AB75: 0 | AC75: 0 | AD75: 0 | AE75: 0 | AF75: 0 | AG75: 0 | AH75: 0 | AI75: 0 | AJ75: 0 | AK75: 0 | AL75: 0 | AM75: 0 | AN75: 0 | AO75: 0 | AP75: 0 | AQ75: 0 | AR75: 0 | AS75: 0 | AT75: 0 | AU75: 0 | AV75: 0 | AW75: 0 | AX75: 0 | AY75: 0 | AZ75: 0 | BA75: 0 | BB75: 0 | BC75: 0 | BD75: 0 | BE75: 0 | BF75: 0 | BG75: 0 | BH75: 0 | BI75: 0 | BJ75: 0 | BK75: 0 | BL75: 0 | BM75: 0 | BN75: 0 | BO75: 0 | BP75: 0 | BQ75: 0 | BR75: 0 | BS75: 0 | BT75: 0 | BU75: 0 | BV75: 0 | BW75: 0 | BX75: 0 | BY75: =BY51 -> 0 | BZ75: 0 | CA75: 0 | CB75: 0 | CC75: 0 | CD75: 0 | CE75: 0 | CF75: 0 | CG75: 0 | CH75: 0 | CI75: 0 | CJ75: 0 | CK75: 0 | CL75: 0 | CM75: 0 | CN75: 0 | CO75: 0 | CP75: 0 | CQ75: 0 | CR75: 0 | CS75: 0 | CT75: 0 | CU75: 0 | CV75: 0 | CW75: 0 | CX75: 0 | CY75: 0 | CZ75: 0 | DA75: 0 | DB75: 0 | DC75: 0 | DD75: 0 | DE75: 0 | DF75: 0 | DG75: 0 | DH75: 0 | DI75: 0 | DJ75: 0 | DK75: 0 | DL75: 0 | DM75: 0 | DN75: 0 | DO75: 0 | DP75: 0 | DQ75: 0 | DR75: 0 | DS75: 0 | DT75: 0 | DU75: 0 | DV75: 0 | DW75: 0 | DX75: 0 | DY75: 0 | DZ75: 0 | EA75: 0 | EB75: 0 | EC75: 0 | ED75: 0 | EE75: 0 | EF75: 0 | EG75: 0 | EH75: 0 | EI75: 0 | EJ75: 0 | EK75: =EK51 -> 0 | EL75: 0 | EM75: 0 | EN75: 0 | EO75: 0 | EP75: 0 | EQ75: 0 | ER75: 0 | ES75: 0 | ET75: 0 | EU75: 0 | EV75: 0 | EW75: 0 | EX75: 0 | EY75: 0 | EZ75: 0 | FA75: 0 | FB75: 0 | FC75: 0 | FD75: 0 | FE75: 0 | FF75: 0 | FG75: 0 | FH75: 0 | FI75: 0 | FJ75: 0 | FK75: 0 | FL75: 0 | FM75: 0 | FN75: 0 | FO75: 0 | FP75: 0 | FQ75: 0 | FR75: 0 | FS75: 0 | FT75: 0 | FU75: 0 | FV75: 0 | FW75: 0 | FX75: 0 | FY75: 0 | FZ75: 0 | GA75: 0 | GB75: 0 | GC75: 0 | GD75: 0 | GE75: 0 | GF75: 0 | GG75: 0 | GH75: 0 | GI75: 0 | GJ75: 0 | GK75: 0 | GL75: 0 | GM75: 0 | GN75: 0 | GO75: 0 | GP75: 0 | GQ75: 0 | GR75: 0 | GS75: 0 | GT75: 0 | GU75: 0 | GV75: 0 | GW75: =GW51 -> 0 | GX75: 0 | GY75: 0 | GZ75: 0 | HA75: 0 | HB75: 0 | HC75: 0 | HD75: 0 | HE75: 0 | HF75: 0 | HG75: 0 | HH75: 0 | HI75: 0 | HJ75: 0 | HK75: 0 | HL75: 0 | HM75: 0 | HN75: 0 | HO75: 0 | HP75: 0 | HQ75: 0 | HR75: 0 | HS75: 0 | HT75: 0 | HU75: 0 | HV75: 0 | HW75: 0 | HX75: 0 | HY75: 0 | HZ75: 0 | IA75: 0 | IB75: 0 | IC75: 0 | ID75: 0 | IE75: 0 | IF75: 0 | IG75: 0 | IH75: 0 | II75: 0 | IJ75: 0 | IK75: 0 | IL75: 0 | IM75: 0 | IN75: 0 | IO75: 0 | IP75: 0 | IQ75: 0 | IR75: 0 | IS75: 0 | IT75: 0 | IU75: 0 | IV75: 0 | IW75: 0 | IX75: 0 | IY75: 0 | IZ75: 0 | JA75: 0 | JB75: 0 | JC75: 0 | JD75: 0 | JE75: 0 | JF75: 0 | JG75: 0 | JH75: 0 | JI75: =JI51 -> 0 | JJ75: 0 | JK75: 0 | JL75: 0 | JM75: 0 | JN75: 0 | JO75: 0 | JP75: 0 | JQ75: 0 | JR75: 0 | JS75: 0 | JT75: 0 | JU75: 0 | JV75: 0 | JW75: 0 | JX75: 0 | JY75: 0 | JZ75: 0 | KA75: 0 | KB75: 0 | KC75: 0 | KD75: 0 | KE75: 0 | KF75: 0 | KG75: 0 | KH75: 0 | KI75: 0 | KJ75: 0 | KK75: 0 | KL75: 0 | KM75: 0 | KN75: 0 | KO75: 0 | KP75: 0 | KQ75: 0 | KR75: 0 | KS75: 0 | KT75: 0 | KU75: 0 | KV75: 0 | KW75: 0 | KX75: 0 | KY75: 0 | KZ75: 0 | LA75: 0 | LB75: 0 | LC75: 0 | LD75: 0 | LE75: 0 | LF75: 0 | LG75: 0 | LH75: 0 | LI75: 0 | LJ75: 0 | LK75: 0 | LL75: 0 | LM75: 0 | LN75: 0 | LO75: 0 | LP75: 0 | LQ75: 0 | LR75: 0 | LS75: 0 | LT75: 0 | LU75: =LU51 -> 0 | LV75: 0 | LW75: 0 | LX75: 0 | LY75: 0 | LZ75: 0 | MA75: 0 | MB75: 0 | MC75: 0 | MD75: 0 | ME75: 0 | MF75: 0 | MG75: 0 | MH75: 0 | MI75: 0 | MJ75: 0 | MK75: 0 | ML75: 0 | MM75: 0 | MN75: 0 | MO75: 0 | MP75: 0 | MQ75: 0 | MR75: 0 | MS75: 0 | MT75: 0 | MU75: 0 | MV75: 0 | MW75: 0 | MX75: 0 | MY75: 0 | MZ75: 0 | NA75: 0 | NB75: 0 | NC75: 0 | ND75: 0 | NE75: 0 | NF75: 0 | NG75: 0 | NH75: 0 | NI75: 0 | NJ75: 0 | NK75: 0 | NL75: 0 | NM75: 0 | NN75: 0 | NO75: 0 | NP75: 0 | NQ75: 0 | NR75: 0 | NS75: 0 | NT75: 0 | NU75: 0 | NV75: 0 | NW75: 0 | NX75: 0 | NY75: 0 | NZ75: 0 | OA75: 0 | OB75: 0 | OC75: 0 | OD75: 0 | OE75: 0 | OF75: 0 | OG75: =OG51 -> 0 | OH75: 0 | OI75: 0 | OJ75: 0 | OK75: 0 | OL75: 0 | OM75: 0 | ON75: 0 | OO75: 0 | OP75: 0 | OQ75: 0 | OR75: 0 | OS75: 0 | OT75: 0 | OU75: 0 | OV75: 0 | OW75: 0 | OX75: 0 | OY75: 0 | OZ75: 0 | PA75: 0 | PB75: 0 | PC75: 0 | PD75: 0 | PE75: 0 | PF75: 0 | PG75: 0 | PH75: 0 | PI75: 0 | PJ75: 0 | PK75: 0 | PL75: 0 | PM75: 0 | PN75: 0 | PO75: 0 | PP75: 0 | PQ75: 0 | PR75: 0 | PS75: 0 | PT75: 0 | PU75: 0 | PV75: 0 | PW75: 0 | PX75: 0 | PY75: 0 | PZ75: 0 | QA75: 0 | QB75: 0 | QC75: 0 | QD75: 0 | QE75: 0 | QF75: 0 | QG75: 0 | QH75: 0 | QI75: 0 | QJ75: 0 | QK75: 0 | QL75: 0 | QM75: 0 | QN75: 0 | QO75: 0 | QP75: 0 | QQ75: 0 | QR75: 0 | QS75: =QS51 -> 0 | QT75: 0 | QU75: 0 | QV75: 0 | QW75: 0 | QX75: 0 | QY75: 0 | QZ75: 0 | RA75: 0 | RB75: 0 | RC75: 0 | RD75: 0 | RE75: 0 | RF75: 0 | RG75: 0 | RH75: 0 | RI75: 0 | RJ75: 0 | RK75: 0 | RL75: 0 | RM75: 0 | RN75: 0 | RO75: 0 | RP75: 0 | RQ75: 0 | RR75: 0 | RS75: 0 | RT75: 0 | RU75: 0 | RV75: 0 | RW75: 0 | RX75: 0 | RY75: 0 | RZ75: 0 | SA75: 0 | SB75: 0 | SC75: 0 | SD75: 0 | SE75: 0 | SF75: 0 | SG75: 0 | SH75: 0 | SI75: 0 | SJ75: 0 | SK75: 0 | SL75: 0 | SM75: 0 | SN75: 0 | SO75: 0 | SP75: 0 | SQ75: 0
D76: Revenue Months in Arrears | E76: ='InputC - Operations'!E37 -> 2 | G76: ='InputC - Operations'!F37 -> Months | L76: =$E$76 -> 2 | M76: =$E$76 -> 2 | N76: 2 | O76: 2 | P76: 2 | Q76: 2 | R76: 2 | S76: 2 | T76: 2 | U76: 2 | V76: 2 | W76: 2 | X76: 2 | Y76: 2 | Z76: 2 | AA76: 2 | AB76: 2 | AC76: 2 | AD76: 2 | AE76: 2 | AF76: 2 | AG76: 2 | AH76: 2 | AI76: 2 | AJ76: 2 | AK76: 2 | AL76: 2 | AM76: 2 | AN76: 2 | AO76: 2 | AP76: 2 | AQ76: 2 | AR76: 2 | AS76: 2 | AT76: 2 | AU76: 2 | AV76: 2 | AW76: 2 | AX76: 2 | AY76: 2 | AZ76: 2 | BA76: 2 | BB76: 2 | BC76: 2 | BD76: 2 | BE76: 2 | BF76: 2 | BG76: 2 | BH76: 2 | BI76: 2 | BJ76: 2 | BK76: 2 | BL76: 2 | BM76: 2 | BN76: 2 | BO76: 2 | BP76: 2 | BQ76: 2 | BR76: 2 | BS76: 2 | BT76: 2 | BU76: 2 | BV76: 2 | BW76: 2 | BX76: 2 | BY76: =$E$76 -> 2 | BZ76: 2 | CA76: 2 | CB76: 2 | CC76: 2 | CD76: 2 | CE76: 2 | CF76: 2 | CG76: 2 | CH76: 2 | CI76: 2 | CJ76: 2 | CK76: 2 | CL76: 2 | CM76: 2 | CN76: 2 | CO76: 2 | CP76: 2 | CQ76: 2 | CR76: 2 | CS76: 2 | CT76: 2 | CU76: 2 | CV76: 2 | CW76: 2 | CX76: 2 | CY76: 2 | CZ76: 2 | DA76: 2 | DB76: 2 | DC76: 2 | DD76: 2 | DE76: 2 | DF76: 2 | DG76: 2 | DH76: 2 | DI76: 2 | DJ76: 2 | DK76: 2 | DL76: 2 | DM76: 2 | DN76: 2 | DO76: 2 | DP76: 2 | DQ76: 2 | DR76: 2 | DS76: 2 | DT76: 2 | DU76: 2 | DV76: 2 | DW76: 2 | DX76: 2 | DY76: 2 | DZ76: 2 | EA76: 2 | EB76: 2 | EC76: 2 | ED76: 2 | EE76: 2 | EF76: 2 | EG76: 2 | EH76: 2 | EI76: 2 | EJ76: 2 | EK76: =$E$76 -> 2 | EL76: 2 | EM76: 2 | EN76: 2 | EO76: 2 | EP76: 2 | EQ76: 2 | ER76: 2 | ES76: 2 | ET76: 2 | EU76: 2 | EV76: 2 | EW76: 2 | EX76: 2 | EY76: 2 | EZ76: 2 | FA76: 2 | FB76: 2 | FC76: 2 | FD76: 2 | FE76: 2 | FF76: 2 | FG76: 2 | FH76: 2 | FI76: 2 | FJ76: 2 | FK76: 2 | FL76: 2 | FM76: 2 | FN76: 2 | FO76: 2 | FP76: 2 | FQ76: 2 | FR76: 2 | FS76: 2 | FT76: 2 | FU76: 2 | FV76: 2 | FW76: 2 | FX76: 2 | FY76: 2 | FZ76: 2 | GA76: 2 | GB76: 2 | GC76: 2 | GD76: 2 | GE76: 2 | GF76: 2 | GG76: 2 | GH76: 2 | GI76: 2 | GJ76: 2 | GK76: 2 | GL76: 2 | GM76: 2 | GN76: 2 | GO76: 2 | GP76: 2 | GQ76: 2 | GR76: 2 | GS76: 2 | GT76: 2 | GU76: 2 | GV76: 2 | GW76: =$E$76 -> 2 | GX76: 2 | GY76: 2 | GZ76: 2 | HA76: 2 | HB76: 2 | HC76: 2 | HD76: 2 | HE76: 2 | HF76: 2 | HG76: 2 | HH76: 2 | HI76: 2 | HJ76: 2 | HK76: 2 | HL76: 2 | HM76: 2 | HN76: 2 | HO76: 2 | HP76: 2 | HQ76: 2 | HR76: 2 | HS76: 2 | HT76: 2 | HU76: 2 | HV76: 2 | HW76: 2 | HX76: 2 | HY76: 2 | HZ76: 2 | IA76: 2 | IB76: 2 | IC76: 2 | ID76: 2 | IE76: 2 | IF76: 2 | IG76: 2 | IH76: 2 | II76: 2 | IJ76: 2 | IK76: 2 | IL76: 2 | IM76: 2 | IN76: 2 | IO76: 2 | IP76: 2 | IQ76: 2 | IR76: 2 | IS76: 2 | IT76: 2 | IU76: 2 | IV76: 2 | IW76: 2 | IX76: 2 | IY76: 2 | IZ76: 2 | JA76: 2 | JB76: 2 | JC76: 2 | JD76: 2 | JE76: 2 | JF76: 2 | JG76: 2 | JH76: 2 | JI76: =$E$76 -> 2 | JJ76: 2 | JK76: 2 | JL76: 2 | JM76: 2 | JN76: 2 | JO76: 2 | JP76: 2 | JQ76: 2 | JR76: 2 | JS76: 2 | JT76: 2 | JU76: 2 | JV76: 2 | JW76: 2 | JX76: 2 | JY76: 2 | JZ76: 2 | KA76: 2 | KB76: 2 | KC76: 2 | KD76: 2 | KE76: 2 | KF76: 2 | KG76: 2 | KH76: 2 | KI76: 2 | KJ76: 2 | KK76: 2 | KL76: 2 | KM76: 2 | KN76: 2 | KO76: 2 | KP76: 2 | KQ76: 2 | KR76: 2 | KS76: 2 | KT76: 2 | KU76: 2 | KV76: 2 | KW76: 2 | KX76: 2 | KY76: 2 | KZ76: 2 | LA76: 2 | LB76: 2 | LC76: 2 | LD76: 2 | LE76: 2 | LF76: 2 | LG76: 2 | LH76: 2 | LI76: 2 | LJ76: 2 | LK76: 2 | LL76: 2 | LM76: 2 | LN76: 2 | LO76: 2 | LP76: 2 | LQ76: 2 | LR76: 2 | LS76: 2 | LT76: 2 | LU76: =$E$76 -> 2 | LV76: 2 | LW76: 2 | LX76: 2 | LY76: 2 | LZ76: 2 | MA76: 2 | MB76: 2 | MC76: 2 | MD76: 2 | ME76: 2 | MF76: 2 | MG76: 2 | MH76: 2 | MI76: 2 | MJ76: 2 | MK76: 2 | ML76: 2 | MM76: 2 | MN76: 2 | MO76: 2 | MP76: 2 | MQ76: 2 | MR76: 2 | MS76: 2 | MT76: 2 | MU76: 2 | MV76: 2 | MW76: 2 | MX76: 2 | MY76: 2 | MZ76: 2 | NA76: 2 | NB76: 2 | NC76: 2 | ND76: 2 | NE76: 2 | NF76: 2 | NG76: 2 | NH76: 2 | NI76: 2 | NJ76: 2 | NK76: 2 | NL76: 2 | NM76: 2 | NN76: 2 | NO76: 2 | NP76: 2 | NQ76: 2 | NR76: 2 | NS76: 2 | NT76: 2 | NU76: 2 | NV76: 2 | NW76: 2 | NX76: 2 | NY76: 2 | NZ76: 2 | OA76: 2 | OB76: 2 | OC76: 2 | OD76: 2 | OE76: 2 | OF76: 2 | OG76: =$E$76 -> 2 | OH76: 2 | OI76: 2 | OJ76: 2 | OK76: 2 | OL76: 2 | OM76: 2 | ON76: 2 | OO76: 2 | OP76: 2 | OQ76: 2 | OR76: 2 | OS76: 2 | OT76: 2 | OU76: 2 | OV76: 2 | OW76: 2 | OX76: 2 | OY76: 2 | OZ76: 2 | PA76: 2 | PB76: 2 | PC76: 2 | PD76: 2 | PE76: 2 | PF76: 2 | PG76: 2 | PH76: 2 | PI76: 2 | PJ76: 2 | PK76: 2 | PL76: 2 | PM76: 2 | PN76: 2 | PO76: 2 | PP76: 2 | PQ76: 2 | PR76: 2 | PS76: 2 | PT76: 2 | PU76: 2 | PV76: 2 | PW76: 2 | PX76: 2 | PY76: 2 | PZ76: 2 | QA76: 2 | QB76: 2 | QC76: 2 | QD76: 2 | QE76: 2 | QF76: 2 | QG76: 2 | QH76: 2 | QI76: 2 | QJ76: 2 | QK76: 2 | QL76: 2 | QM76: 2 | QN76: 2 | QO76: 2 | QP76: 2 | QQ76: 2 | QR76: 2 | QS76: =$E$76 -> 2 | QT76: 2 | QU76: 2 | QV76: 2 | QW76: 2 | QX76: 2 | QY76: 2 | QZ76: 2 | RA76: 2 | RB76: 2 | RC76: 2 | RD76: 2 | RE76: 2 | RF76: 2 | RG76: 2 | RH76: 2 | RI76: 2 | RJ76: 2 | RK76: 2 | RL76: 2 | RM76: 2 | RN76: 2 | RO76: 2 | RP76: 2 | RQ76: 2 | RR76: 2 | RS76: 2 | RT76: 2 | RU76: 2 | RV76: 2 | RW76: 2 | RX76: 2 | RY76: 2 | RZ76: 2 | SA76: 2 | SB76: 2 | SC76: 2 | SD76: 2 | SE76: 2 | SF76: 2 | SG76: 2 | SH76: 2 | SI76: 2 | SJ76: 2 | SK76: 2 | SL76: 2 | SM76: 2 | SN76: 2 | SO76: 2 | SP76: 2 | SQ76: 2
D77: Revenues Collected | G77: USD/Month | L77: =OFFSET(L75,0,-L76) -> 0 | M77: =OFFSET(M75,0,-M76) -> 0 | N77: 0 | O77: 0 | P77: 0 | Q77: 0 | R77: 0 | S77: 0 | T77: 0 | U77: 0 | V77: 0 | W77: 0 | X77: 0 | Y77: 0 | Z77: 0 | AA77: 0 | AB77: 0 | AC77: 0 | AD77: 0 | AE77: 0 | AF77: 0 | AG77: 0 | AH77: 0 | AI77: 0 | AJ77: 0 | AK77: 0 | AL77: 0 | AM77: 0 | AN77: 0 | AO77: 0 | AP77: 0 | AQ77: 0 | AR77: 0 | AS77: 0 | AT77: 0 | AU77: 0 | AV77: 0 | AW77: 0 | AX77: 0 | AY77: 0 | AZ77: 0 | BA77: 0 | BB77: 0 | BC77: 0 | BD77: 0 | BE77: 0 | BF77: 0 | BG77: 0 | BH77: 0 | BI77: 0 | BJ77: 0 | BK77: 0 | BL77: 0 | BM77: 0 | BN77: 0 | BO77: 0 | BP77: 0 | BQ77: 0 | BR77: 0 | BS77: 0 | BT77: 0 | BU77: 0 | BV77: 0 | BW77: 0 | BX77: 0 | BY77: =OFFSET(BY75,0,-BY76) -> 0 | BZ77: 0 | CA77: 0 | CB77: 0 | CC77: 0 | CD77: 0 | CE77: 0 | CF77: 0 | CG77: 0 | CH77: 0 | CI77: 0 | CJ77: 0 | CK77: 0 | CL77: 0 | CM77: 0 | CN77: 0 | CO77: 0 | CP77: 0 | CQ77: 0 | CR77: 0 | CS77: 0 | CT77: 0 | CU77: 0 | CV77: 0 | CW77: 0 | CX77: 0 | CY77: 0 | CZ77: 0 | DA77: 0 | DB77: 0 | DC77: 0 | DD77: 0 | DE77: 0 | DF77: 0 | DG77: 0 | DH77: 0 | DI77: 0 | DJ77: 0 | DK77: 0 | DL77: 0 | DM77: 0 | DN77: 0 | DO77: 0 | DP77: 0 | DQ77: 0 | DR77: 0 | DS77: 0 | DT77: 0 | DU77: 0 | DV77: 0 | DW77: 0 | DX77: 0 | DY77: 0 | DZ77: 0 | EA77: 0 | EB77: 0 | EC77: 0 | ED77: 0 | EE77: 0 | EF77: 0 | EG77: 0 | EH77: 0 | EI77: 0 | EJ77: 0 | EK77: =OFFSET(EK75,0,-EK76) -> 0 | EL77: 0 | EM77: 0 | EN77: 0 | EO77: 0 | EP77: 0 | EQ77: 0 | ER77: 0 | ES77: 0 | ET77: 0 | EU77: 0 | EV77: 0 | EW77: 0 | EX77: 0 | EY77: 0 | EZ77: 0 | FA77: 0 | FB77: 0 | FC77: 0 | FD77: 0 | FE77: 0 | FF77: 0 | FG77: 0 | FH77: 0 | FI77: 0 | FJ77: 0 | FK77: 0 | FL77: 0 | FM77: 0 | FN77: 0 | FO77: 0 | FP77: 0 | FQ77: 0 | FR77: 0 | FS77: 0 | FT77: 0 | FU77: 0 | FV77: 0 | FW77: 0 | FX77: 0 | FY77: 0 | FZ77: 0 | GA77: 0 | GB77: 0 | GC77: 0 | GD77: 0 | GE77: 0 | GF77: 0 | GG77: 0 | GH77: 0 | GI77: 0 | GJ77: 0 | GK77: 0 | GL77: 0 | GM77: 0 | GN77: 0 | GO77: 0 | GP77: 0 | GQ77: 0 | GR77: 0 | GS77: 0 | GT77: 0 | GU77: 0 | GV77: 0 | GW77: =OFFSET(GW75,0,-GW76) -> 0 | GX77: 0 | GY77: 0 | GZ77: 0 | HA77: 0 | HB77: 0 | HC77: 0 | HD77: 0 | HE77: 0 | HF77: 0 | HG77: 0 | HH77: 0 | HI77: 0 | HJ77: 0 | HK77: 0 | HL77: 0 | HM77: 0 | HN77: 0 | HO77: 0 | HP77: 0 | HQ77: 0 | HR77: 0 | HS77: 0 | HT77: 0 | HU77: 0 | HV77: 0 | HW77: 0 | HX77: 0 | HY77: 0 | HZ77: 0 | IA77: 0 | IB77: 0 | IC77: 0 | ID77: 0 | IE77: 0 | IF77: 0 | IG77: 0 | IH77: 0 | II77: 0 | IJ77: 0 | IK77: 0 | IL77: 0 | IM77: 0 | IN77: 0 | IO77: 0 | IP77: 0 | IQ77: 0 | IR77: 0 | IS77: 0 | IT77: 0 | IU77: 0 | IV77: 0 | IW77: 0 | IX77: 0 | IY77: 0 | IZ77: 0 | JA77: 0 | JB77: 0 | JC77: 0 | JD77: 0 | JE77: 0 | JF77: 0 | JG77: 0 | JH77: 0 | JI77: =OFFSET(JI75,0,-JI76) -> 0 | JJ77: 0 | JK77: 0 | JL77: 0 | JM77: 0 | JN77: 0 | JO77: 0 | JP77: 0 | JQ77: 0 | JR77: 0 | JS77: 0 | JT77: 0 | JU77: 0 | JV77: 0 | JW77: 0 | JX77: 0 | JY77: 0 | JZ77: 0 | KA77: 0 | KB77: 0 | KC77: 0 | KD77: 0 | KE77: 0 | KF77: 0 | KG77: 0 | KH77: 0 | KI77: 0 | KJ77: 0 | KK77: 0 | KL77: 0 | KM77: 0 | KN77: 0 | KO77: 0 | KP77: 0 | KQ77: 0 | KR77: 0 | KS77: 0 | KT77: 0 | KU77: 0 | KV77: 0 | KW77: 0 | KX77: 0 | KY77: 0 | KZ77: 0 | LA77: 0 | LB77: 0 | LC77: 0 | LD77: 0 | LE77: 0 | LF77: 0 | LG77: 0 | LH77: 0 | LI77: 0 | LJ77: 0 | LK77: 0 | LL77: 0 | LM77: 0 | LN77: 0 | LO77: 0 | LP77: 0 | LQ77: 0 | LR77: 0 | LS77: 0 | LT77: 0 | LU77: =OFFSET(LU75,0,-LU76) -> 0 | LV77: 0 | LW77: 0 | LX77: 0 | LY77: 0 | LZ77: 0 | MA77: 0 | MB77: 0 | MC77: 0 | MD77: 0 | ME77: 0 | MF77: 0 | MG77: 0 | MH77: 0 | MI77: 0 | MJ77: 0 | MK77: 0 | ML77: 0 | MM77: 0 | MN77: 0 | MO77: 0 | MP77: 0 | MQ77: 0 | MR77: 0 | MS77: 0 | MT77: 0 | MU77: 0 | MV77: 0 | MW77: 0 | MX77: 0 | MY77: 0 | MZ77: 0 | NA77: 0 | NB77: 0 | NC77: 0 | ND77: 0 | NE77: 0 | NF77: 0 | NG77: 0 | NH77: 0 | NI77: 0 | NJ77: 0 | NK77: 0 | NL77: 0 | NM77: 0 | NN77: 0 | NO77: 0 | NP77: 0 | NQ77: 0 | NR77: 0 | NS77: 0 | NT77: 0 | NU77: 0 | NV77: 0 | NW77: 0 | NX77: 0 | NY77: 0 | NZ77: 0 | OA77: 0 | OB77: 0 | OC77: 0 | OD77: 0 | OE77: 0 | OF77: 0 | OG77: =OFFSET(OG75,0,-OG76) -> 0 | OH77: 0 | OI77: 0 | OJ77: 0 | OK77: 0 | OL77: 0 | OM77: 0 | ON77: 0 | OO77: 0 | OP77: 0 | OQ77: 0 | OR77: 0 | OS77: 0 | OT77: 0 | OU77: 0 | OV77: 0 | OW77: 0 | OX77: 0 | OY77: 0 | OZ77: 0 | PA77: 0 | PB77: 0 | PC77: 0 | PD77: 0 | PE77: 0 | PF77: 0 | PG77: 0 | PH77: 0 | PI77: 0 | PJ77: 0 | PK77: 0 | PL77: 0 | PM77: 0 | PN77: 0 | PO77: 0 | PP77: 0 | PQ77: 0 | PR77: 0 | PS77: 0 | PT77: 0 | PU77: 0 | PV77: 0 | PW77: 0 | PX77: 0 | PY77: 0 | PZ77: 0 | QA77: 0 | QB77: 0 | QC77: 0 | QD77: 0 | QE77: 0 | QF77: 0 | QG77: 0 | QH77: 0 | QI77: 0 | QJ77: 0 | QK77: 0 | QL77: 0 | QM77: 0 | QN77: 0 | QO77: 0 | QP77: 0 | QQ77: 0 | QR77: 0 | QS77: =OFFSET(QS75,0,-QS76) -> 0 | QT77: 0 | QU77: 0 | QV77: 0 | QW77: 0 | QX77: 0 | QY77: 0 | QZ77: 0 | RA77: 0 | RB77: 0 | RC77: 0 | RD77: 0 | RE77: 0 | RF77: 0 | RG77: 0 | RH77: 0 | RI77: 0 | RJ77: 0 | RK77: 0 | RL77: 0 | RM77: 0 | RN77: 0 | RO77: 0 | RP77: 0 | RQ77: 0 | RR77: 0 | RS77: 0 | RT77: 0 | RU77: 0 | RV77: 0 | RW77: 0 | RX77: 0 | RY77: 0 | RZ77: 0 | SA77: 0 | SB77: 0 | SC77: 0 | SD77: 0 | SE77: 0 | SF77: 0 | SG77: 0 | SH77: 0 | SI77: 0 | SJ77: 0 | SK77: 0 | SL77: 0 | SM77: 0 | SN77: 0 | SO77: 0 | SP77: 0 | SQ77: 0
D79: A/R Balance - BF | G79: USD | L79: =K82 -> 0 | M79: =L82 -> 0 | N79: 0 | O79: 0 | P79: 0 | Q79: 0 | R79: 0 | S79: 0 | T79: 0 | U79: 0 | V79: 0 | W79: 0 | X79: 0 | Y79: 0 | Z79: 0 | AA79: 0 | AB79: 0 | AC79: 0 | AD79: 0 | AE79: 0 | AF79: 0 | AG79: 0 | AH79: 0 | AI79: 0 | AJ79: 0 | AK79: 0 | AL79: 0 | AM79: 0 | AN79: 0 | AO79: 0 | AP79: 0 | AQ79: 0 | AR79: 0 | AS79: 0 | AT79: 0 | AU79: 0 | AV79: 0 | AW79: 0 | AX79: 0 | AY79: 0 | AZ79: 0 | BA79: 0 | BB79: 0 | BC79: 0 | BD79: 0 | BE79: 0 | BF79: 0 | BG79: 0 | BH79: 0 | BI79: 0 | BJ79: 0 | BK79: 0 | BL79: 0 | BM79: 0 | BN79: 0 | BO79: 0 | BP79: 0 | BQ79: 0 | BR79: 0 | BS79: 0 | BT79: 0 | BU79: 0 | BV79: 0 | BW79: 0 | BX79: 0 | BY79: =BX82 -> 0 | BZ79: 0 | CA79: 0 | CB79: 0 | CC79: 0 | CD79: 0 | CE79: 0 | CF79: 0 | CG79: 0 | CH79: 0 | CI79: 0 | CJ79: 0 | CK79: 0 | CL79: 0 | CM79: 0 | CN79: 0 | CO79: 0 | CP79: 0 | CQ79: 0 | CR79: 0 | CS79: 0 | CT79: 0 | CU79: 0 | CV79: 0 | CW79: 0 | CX79: 0 | CY79: 0 | CZ79: 0 | DA79: 0 | DB79: 0 | DC79: 0 | DD79: 0 | DE79: 0 | DF79: 0 | DG79: 0 | DH79: 0 | DI79: 0 | DJ79: 0 | DK79: 0 | DL79: 0 | DM79: 0 | DN79: 0 | DO79: 0 | DP79: 0 | DQ79: 0 | DR79: 0 | DS79: 0 | DT79: 0 | DU79: 0 | DV79: 0 | DW79: 0 | DX79: 0 | DY79: 0 | DZ79: 0 | EA79: 0 | EB79: 0 | EC79: 0 | ED79: 0 | EE79: 0 | EF79: 0 | EG79: 0 | EH79: 0 | EI79: 0 | EJ79: 0 | EK79: =EJ82 -> 0 | EL79: 0 | EM79: 0 | EN79: 0 | EO79: 0 | EP79: 0 | EQ79: 0 | ER79: 0 | ES79: 0 | ET79: 0 | EU79: 0 | EV79: 0 | EW79: 0 | EX79: 0 | EY79: 0 | EZ79: 0 | FA79: 0 | FB79: 0 | FC79: 0 | FD79: 0 | FE79: 0 | FF79: 0 | FG79: 0 | FH79: 0 | FI79: 0 | FJ79: 0 | FK79: 0 | FL79: 0 | FM79: 0 | FN79: 0 | FO79: 0 | FP79: 0 | FQ79: 0 | FR79: 0 | FS79: 0 | FT79: 0 | FU79: 0 | FV79: 0 | FW79: 0 | FX79: 0 | FY79: 0 | FZ79: 0 | GA79: 0 | GB79: 0 | GC79: 0 | GD79: 0 | GE79: 0 | GF79: 0 | GG79: 0 | GH79: 0 | GI79: 0 | GJ79: 0 | GK79: 0 | GL79: 0 | GM79: 0 | GN79: 0 | GO79: 0 | GP79: 0 | GQ79: 0 | GR79: 0 | GS79: 0 | GT79: 0 | GU79: 0 | GV79: 0 | GW79: =GV82 -> 0 | GX79: 0 | GY79: 0 | GZ79: 0 | HA79: 0 | HB79: 0 | HC79: 0 | HD79: 0 | HE79: 0 | HF79: 0 | HG79: 0 | HH79: 0 | HI79: 0 | HJ79: 0 | HK79: 0 | HL79: 0 | HM79: 0 | HN79: 0 | HO79: 0 | HP79: 0 | HQ79: 0 | HR79: 0 | HS79: 0 | HT79: 0 | HU79: 0 | HV79: 0 | HW79: 0 | HX79: 0 | HY79: 0 | HZ79: 0 | IA79: 0 | IB79: 0 | IC79: 0 | ID79: 0 | IE79: 0 | IF79: 0 | IG79: 0 | IH79: 0 | II79: 0 | IJ79: 0 | IK79: 0 | IL79: 0 | IM79: 0 | IN79: 0 | IO79: 0 | IP79: 0 | IQ79: 0 | IR79: 0 | IS79: 0 | IT79: 0 | IU79: 0 | IV79: 0 | IW79: 0 | IX79: 0 | IY79: 0 | IZ79: 0 | JA79: 0 | JB79: 0 | JC79: 0 | JD79: 0 | JE79: 0 | JF79: 0 | JG79: 0 | JH79: 0 | JI79: =JH82 -> 0 | JJ79: 0 | JK79: 0 | JL79: 0 | JM79: 0 | JN79: 0 | JO79: 0 | JP79: 0 | JQ79: 0 | JR79: 0 | JS79: 0 | JT79: 0 | JU79: 0 | JV79: 0 | JW79: 0 | JX79: 0 | JY79: 0 | JZ79: 0 | KA79: 0 | KB79: 0 | KC79: 0 | KD79: 0 | KE79: 0 | KF79: 0 | KG79: 0 | KH79: 0 | KI79: 0 | KJ79: 0 | KK79: 0 | KL79: 0 | KM79: 0 | KN79: 0 | KO79: 0 | KP79: 0 | KQ79: 0 | KR79: 0 | KS79: 0 | KT79: 0 | KU79: 0 | KV79: 0 | KW79: 0 | KX79: 0 | KY79: 0 | KZ79: 0 | LA79: 0 | LB79: 0 | LC79: 0 | LD79: 0 | LE79: 0 | LF79: 0 | LG79: 0 | LH79: 0 | LI79: 0 | LJ79: 0 | LK79: 0 | LL79: 0 | LM79: 0 | LN79: 0 | LO79: 0 | LP79: 0 | LQ79: 0 | LR79: 0 | LS79: 0 | LT79: 0 | LU79: =LT82 -> 0 | LV79: 0 | LW79: 0 | LX79: 0 | LY79: 0 | LZ79: 0 | MA79: 0 | MB79: 0 | MC79: 0 | MD79: 0 | ME79: 0 | MF79: 0 | MG79: 0 | MH79: 0 | MI79: 0 | MJ79: 0 | MK79: 0 | ML79: 0 | MM79: 0 | MN79: 0 | MO79: 0 | MP79: 0 | MQ79: 0 | MR79: 0 | MS79: 0 | MT79: 0 | MU79: 0 | MV79: 0 | MW79: 0 | MX79: 0 | MY79: 0 | MZ79: 0 | NA79: 0 | NB79: 0 | NC79: 0 | ND79: 0 | NE79: 0 | NF79: 0 | NG79: 0 | NH79: 0 | NI79: 0 | NJ79: 0 | NK79: 0 | NL79: 0 | NM79: 0 | NN79: 0 | NO79: 0 | NP79: 0 | NQ79: 0 | NR79: 0 | NS79: 0 | NT79: 0 | NU79: 0 | NV79: 0 | NW79: 0 | NX79: 0 | NY79: 0 | NZ79: 0 | OA79: 0 | OB79: 0 | OC79: 0 | OD79: 0 | OE79: 0 | OF79: 0 | OG79: =OF82 -> 0 | OH79: 0 | OI79: 0 | OJ79: 0 | OK79: 0 | OL79: 0 | OM79: 0 | ON79: 0 | OO79: 0 | OP79: 0 | OQ79: 0 | OR79: 0 | OS79: 0 | OT79: 0 | OU79: 0 | OV79: 0 | OW79: 0 | OX79: 0 | OY79: 0 | OZ79: 0 | PA79: 0 | PB79: 0 | PC79: 0 | PD79: 0 | PE79: 0 | PF79: 0 | PG79: 0 | PH79: 0 | PI79: 0 | PJ79: 0 | PK79: 0 | PL79: 0 | PM79: 0 | PN79: 0 | PO79: 0 | PP79: 0 | PQ79: 0 | PR79: 0 | PS79: 0 | PT79: 0 | PU79: 0 | PV79: 0 | PW79: 0 | PX79: 0 | PY79: 0 | PZ79: 0 | QA79: 0 | QB79: 0 | QC79: 0 | QD79: 0 | QE79: 0 | QF79: 0 | QG79: 0 | QH79: 0 | QI79: 0 | QJ79: 0 | QK79: 0 | QL79: 0 | QM79: 0 | QN79: 0 | QO79: 0 | QP79: 0 | QQ79: 0 | QR79: 0 | QS79: =QR82 -> 0 | QT79: 0 | QU79: 0 | QV79: 0 | QW79: 0 | QX79: 0 | QY79: 0 | QZ79: 0 | RA79: 0 | RB79: 0 | RC79: 0 | RD79: 0 | RE79: 0 | RF79: 0 | RG79: 0 | RH79: 0 | RI79: 0 | RJ79: 0 | RK79: 0 | RL79: 0 | RM79: 0 | RN79: 0 | RO79: 0 | RP79: 0 | RQ79: 0 | RR79: 0 | RS79: 0 | RT79: 0 | RU79: 0 | RV79: 0 | RW79: 0 | RX79: 0 | RY79: 0 | RZ79: 0 | SA79: 0 | SB79: 0 | SC79: 0 | SD79: 0 | SE79: 0 | SF79: 0 | SG79: 0 | SH79: 0 | SI79: 0 | SJ79: 0 | SK79: 0 | SL79: 0 | SM79: 0 | SN79: 0 | SO79: 0 | SP79: 0 | SQ79: 0
D80: Add: Revenues Booked | G80: USD | L80: =L75 -> 0 | M80: =M75 -> 0 | N80: 0 | O80: 0 | P80: 0 | Q80: 0 | R80: 0 | S80: 0 | T80: 0 | U80: 0 | V80: 0 | W80: 0 | X80: 0 | Y80: 0 | Z80: 0 | AA80: 0 | AB80: 0 | AC80: 0 | AD80: 0 | AE80: 0 | AF80: 0 | AG80: 0 | AH80: 0 | AI80: 0 | AJ80: 0 | AK80: 0 | AL80: 0 | AM80: 0 | AN80: 0 | AO80: 0 | AP80: 0 | AQ80: 0 | AR80: 0 | AS80: 0 | AT80: 0 | AU80: 0 | AV80: 0 | AW80: 0 | AX80: 0 | AY80: 0 | AZ80: 0 | BA80: 0 | BB80: 0 | BC80: 0 | BD80: 0 | BE80: 0 | BF80: 0 | BG80: 0 | BH80: 0 | BI80: 0 | BJ80: 0 | BK80: 0 | BL80: 0 | BM80: 0 | BN80: 0 | BO80: 0 | BP80: 0 | BQ80: 0 | BR80: 0 | BS80: 0 | BT80: 0 | BU80: 0 | BV80: 0 | BW80: 0 | BX80: 0 | BY80: =BY75 -> 0 | BZ80: 0 | CA80: 0 | CB80: 0 | CC80: 0 | CD80: 0 | CE80: 0 | CF80: 0 | CG80: 0 | CH80: 0 | CI80: 0 | CJ80: 0 | CK80: 0 | CL80: 0 | CM80: 0 | CN80: 0 | CO80: 0 | CP80: 0 | CQ80: 0 | CR80: 0 | CS80: 0 | CT80: 0 | CU80: 0 | CV80: 0 | CW80: 0 | CX80: 0 | CY80: 0 | CZ80: 0 | DA80: 0 | DB80: 0 | DC80: 0 | DD80: 0 | DE80: 0 | DF80: 0 | DG80: 0 | DH80: 0 | DI80: 0 | DJ80: 0 | DK80: 0 | DL80: 0 | DM80: 0 | DN80: 0 | DO80: 0 | DP80: 0 | DQ80: 0 | DR80: 0 | DS80: 0 | DT80: 0 | DU80: 0 | DV80: 0 | DW80: 0 | DX80: 0 | DY80: 0 | DZ80: 0 | EA80: 0 | EB80: 0 | EC80: 0 | ED80: 0 | EE80: 0 | EF80: 0 | EG80: 0 | EH80: 0 | EI80: 0 | EJ80: 0 | EK80: =EK75 -> 0 | EL80: 0 | EM80: 0 | EN80: 0 | EO80: 0 | EP80: 0 | EQ80: 0 | ER80: 0 | ES80: 0 | ET80: 0 | EU80: 0 | EV80: 0 | EW80: 0 | EX80: 0 | EY80: 0 | EZ80: 0 | FA80: 0 | FB80: 0 | FC80: 0 | FD80: 0 | FE80: 0 | FF80: 0 | FG80: 0 | FH80: 0 | FI80: 0 | FJ80: 0 | FK80: 0 | FL80: 0 | FM80: 0 | FN80: 0 | FO80: 0 | FP80: 0 | FQ80: 0 | FR80: 0 | FS80: 0 | FT80: 0 | FU80: 0 | FV80: 0 | FW80: 0 | FX80: 0 | FY80: 0 | FZ80: 0 | GA80: 0 | GB80: 0 | GC80: 0 | GD80: 0 | GE80: 0 | GF80: 0 | GG80: 0 | GH80: 0 | GI80: 0 | GJ80: 0 | GK80: 0 | GL80: 0 | GM80: 0 | GN80: 0 | GO80: 0 | GP80: 0 | GQ80: 0 | GR80: 0 | GS80: 0 | GT80: 0 | GU80: 0 | GV80: 0 | GW80: =GW75 -> 0 | GX80: 0 | GY80: 0 | GZ80: 0 | HA80: 0 | HB80: 0 | HC80: 0 | HD80: 0 | HE80: 0 | HF80: 0 | HG80: 0 | HH80: 0 | HI80: 0 | HJ80: 0 | HK80: 0 | HL80: 0 | HM80: 0 | HN80: 0 | HO80: 0 | HP80: 0 | HQ80: 0 | HR80: 0 | HS80: 0 | HT80: 0 | HU80: 0 | HV80: 0 | HW80: 0 | HX80: 0 | HY80: 0 | HZ80: 0 | IA80: 0 | IB80: 0 | IC80: 0 | ID80: 0 | IE80: 0 | IF80: 0 | IG80: 0 | IH80: 0 | II80: 0 | IJ80: 0 | IK80: 0 | IL80: 0 | IM80: 0 | IN80: 0 | IO80: 0 | IP80: 0 | IQ80: 0 | IR80: 0 | IS80: 0 | IT80: 0 | IU80: 0 | IV80: 0 | IW80: 0 | IX80: 0 | IY80: 0 | IZ80: 0 | JA80: 0 | JB80: 0 | JC80: 0 | JD80: 0 | JE80: 0 | JF80: 0 | JG80: 0 | JH80: 0 | JI80: =JI75 -> 0 | JJ80: 0 | JK80: 0 | JL80: 0 | JM80: 0 | JN80: 0 | JO80: 0 | JP80: 0 | JQ80: 0 | JR80: 0 | JS80: 0 | JT80: 0 | JU80: 0 | JV80: 0 | JW80: 0 | JX80: 0 | JY80: 0 | JZ80: 0 | KA80: 0 | KB80: 0 | KC80: 0 | KD80: 0 | KE80: 0 | KF80: 0 | KG80: 0 | KH80: 0 | KI80: 0 | KJ80: 0 | KK80: 0 | KL80: 0 | KM80: 0 | KN80: 0 | KO80: 0 | KP80: 0 | KQ80: 0 | KR80: 0 | KS80: 0 | KT80: 0 | KU80: 0 | KV80: 0 | KW80: 0 | KX80: 0 | KY80: 0 | KZ80: 0 | LA80: 0 | LB80: 0 | LC80: 0 | LD80: 0 | LE80: 0 | LF80: 0 | LG80: 0 | LH80: 0 | LI80: 0 | LJ80: 0 | LK80: 0 | LL80: 0 | LM80: 0 | LN80: 0 | LO80: 0 | LP80: 0 | LQ80: 0 | LR80: 0 | LS80: 0 | LT80: 0 | LU80: =LU75 -> 0 | LV80: 0 | LW80: 0 | LX80: 0 | LY80: 0 | LZ80: 0 | MA80: 0 | MB80: 0 | MC80: 0 | MD80: 0 | ME80: 0 | MF80: 0 | MG80: 0 | MH80: 0 | MI80: 0 | MJ80: 0 | MK80: 0 | ML80: 0 | MM80: 0 | MN80: 0 | MO80: 0 | MP80: 0 | MQ80: 0 | MR80: 0 | MS80: 0 | MT80: 0 | MU80: 0 | MV80: 0 | MW80: 0 | MX80: 0 | MY80: 0 | MZ80: 0 | NA80: 0 | NB80: 0 | NC80: 0 | ND80: 0 | NE80: 0 | NF80: 0 | NG80: 0 | NH80: 0 | NI80: 0 | NJ80: 0 | NK80: 0 | NL80: 0 | NM80: 0 | NN80: 0 | NO80: 0 | NP80: 0 | NQ80: 0 | NR80: 0 | NS80: 0 | NT80: 0 | NU80: 0 | NV80: 0 | NW80: 0 | NX80: 0 | NY80: 0 | NZ80: 0 | OA80: 0 | OB80: 0 | OC80: 0 | OD80: 0 | OE80: 0 | OF80: 0 | OG80: =OG75 -> 0 | OH80: 0 | OI80: 0 | OJ80: 0 | OK80: 0 | OL80: 0 | OM80: 0 | ON80: 0 | OO80: 0 | OP80: 0 | OQ80: 0 | OR80: 0 | OS80: 0 | OT80: 0 | OU80: 0 | OV80: 0 | OW80: 0 | OX80: 0 | OY80: 0 | OZ80: 0 | PA80: 0 | PB80: 0 | PC80: 0 | PD80: 0 | PE80: 0 | PF80: 0 | PG80: 0 | PH80: 0 | PI80: 0 | PJ80: 0 | PK80: 0 | PL80: 0 | PM80: 0 | PN80: 0 | PO80: 0 | PP80: 0 | PQ80: 0 | PR80: 0 | PS80: 0 | PT80: 0 | PU80: 0 | PV80: 0 | PW80: 0 | PX80: 0 | PY80: 0 | PZ80: 0 | QA80: 0 | QB80: 0 | QC80: 0 | QD80: 0 | QE80: 0 | QF80: 0 | QG80: 0 | QH80: 0 | QI80: 0 | QJ80: 0 | QK80: 0 | QL80: 0 | QM80: 0 | QN80: 0 | QO80: 0 | QP80: 0 | QQ80: 0 | QR80: 0 | QS80: =QS75 -> 0 | QT80: 0 | QU80: 0 | QV80: 0 | QW80: 0 | QX80: 0 | QY80: 0 | QZ80: 0 | RA80: 0 | RB80: 0 | RC80: 0 | RD80: 0 | RE80: 0 | RF80: 0 | RG80: 0 | RH80: 0 | RI80: 0 | RJ80: 0 | RK80: 0 | RL80: 0 | RM80: 0 | RN80: 0 | RO80: 0 | RP80: 0 | RQ80: 0 | RR80: 0 | RS80: 0 | RT80: 0 | RU80: 0 | RV80: 0 | RW80: 0 | RX80: 0 | RY80: 0 | RZ80: 0 | SA80: 0 | SB80: 0 | SC80: 0 | SD80: 0 | SE80: 0 | SF80: 0 | SG80: 0 | SH80: 0 | SI80: 0 | SJ80: 0 | SK80: 0 | SL80: 0 | SM80: 0 | SN80: 0 | SO80: 0 | SP80: 0 | SQ80: 0
D81: Less: Revenues Collected | G81: USD | L81: =L77 -> 0 | M81: =M77 -> 0 | N81: 0 | O81: 0 | P81: 0 | Q81: 0 | R81: 0 | S81: 0 | T81: 0 | U81: 0 | V81: 0 | W81: 0 | X81: 0 | Y81: 0 | Z81: 0 | AA81: 0 | AB81: 0 | AC81: 0 | AD81: 0 | AE81: 0 | AF81: 0 | AG81: 0 | AH81: 0 | AI81: 0 | AJ81: 0 | AK81: 0 | AL81: 0 | AM81: 0 | AN81: 0 | AO81: 0 | AP81: 0 | AQ81: 0 | AR81: 0 | AS81: 0 | AT81: 0 | AU81: 0 | AV81: 0 | AW81: 0 | AX81: 0 | AY81: 0 | AZ81: 0 | BA81: 0 | BB81: 0 | BC81: 0 | BD81: 0 | BE81: 0 | BF81: 0 | BG81: 0 | BH81: 0 | BI81: 0 | BJ81: 0 | BK81: 0 | BL81: 0 | BM81: 0 | BN81: 0 | BO81: 0 | BP81: 0 | BQ81: 0 | BR81: 0 | BS81: 0 | BT81: 0 | BU81: 0 | BV81: 0 | BW81: 0 | BX81: 0 | BY81: =BY77 -> 0 | BZ81: 0 | CA81: 0 | CB81: 0 | CC81: 0 | CD81: 0 | CE81: 0 | CF81: 0 | CG81: 0 | CH81: 0 | CI81: 0 | CJ81: 0 | CK81: 0 | CL81: 0 | CM81: 0 | CN81: 0 | CO81: 0 | CP81: 0 | CQ81: 0 | CR81: 0 | CS81: 0 | CT81: 0 | CU81: 0 | CV81: 0 | CW81: 0 | CX81: 0 | CY81: 0 | CZ81: 0 | DA81: 0 | DB81: 0 | DC81: 0 | DD81: 0 | DE81: 0 | DF81: 0 | DG81: 0 | DH81: 0 | DI81: 0 | DJ81: 0 | DK81: 0 | DL81: 0 | DM81: 0 | DN81: 0 | DO81: 0 | DP81: 0 | DQ81: 0 | DR81: 0 | DS81: 0 | DT81: 0 | DU81: 0 | DV81: 0 | DW81: 0 | DX81: 0 | DY81: 0 | DZ81: 0 | EA81: 0 | EB81: 0 | EC81: 0 | ED81: 0 | EE81: 0 | EF81: 0 | EG81: 0 | EH81: 0 | EI81: 0 | EJ81: 0 | EK81: =EK77 -> 0 | EL81: 0 | EM81: 0 | EN81: 0 | EO81: 0 | EP81: 0 | EQ81: 0 | ER81: 0 | ES81: 0 | ET81: 0 | EU81: 0 | EV81: 0 | EW81: 0 | EX81: 0 | EY81: 0 | EZ81: 0 | FA81: 0 | FB81: 0 | FC81: 0 | FD81: 0 | FE81: 0 | FF81: 0 | FG81: 0 | FH81: 0 | FI81: 0 | FJ81: 0 | FK81: 0 | FL81: 0 | FM81: 0 | FN81: 0 | FO81: 0 | FP81: 0 | FQ81: 0 | FR81: 0 | FS81: 0 | FT81: 0 | FU81: 0 | FV81: 0 | FW81: 0 | FX81: 0 | FY81: 0 | FZ81: 0 | GA81: 0 | GB81: 0 | GC81: 0 | GD81: 0 | GE81: 0 | GF81: 0 | GG81: 0 | GH81: 0 | GI81: 0 | GJ81: 0 | GK81: 0 | GL81: 0 | GM81: 0 | GN81: 0 | GO81: 0 | GP81: 0 | GQ81: 0 | GR81: 0 | GS81: 0 | GT81: 0 | GU81: 0 | GV81: 0 | GW81: =GW77 -> 0 | GX81: 0 | GY81: 0 | GZ81: 0 | HA81: 0 | HB81: 0 | HC81: 0 | HD81: 0 | HE81: 0 | HF81: 0 | HG81: 0 | HH81: 0 | HI81: 0 | HJ81: 0 | HK81: 0 | HL81: 0 | HM81: 0 | HN81: 0 | HO81: 0 | HP81: 0 | HQ81: 0 | HR81: 0 | HS81: 0 | HT81: 0 | HU81: 0 | HV81: 0 | HW81: 0 | HX81: 0 | HY81: 0 | HZ81: 0 | IA81: 0 | IB81: 0 | IC81: 0 | ID81: 0 | IE81: 0 | IF81: 0 | IG81: 0 | IH81: 0 | II81: 0 | IJ81: 0 | IK81: 0 | IL81: 0 | IM81: 0 | IN81: 0 | IO81: 0 | IP81: 0 | IQ81: 0 | IR81: 0 | IS81: 0 | IT81: 0 | IU81: 0 | IV81: 0 | IW81: 0 | IX81: 0 | IY81: 0 | IZ81: 0 | JA81: 0 | JB81: 0 | JC81: 0 | JD81: 0 | JE81: 0 | JF81: 0 | JG81: 0 | JH81: 0 | JI81: =JI77 -> 0 | JJ81: 0 | JK81: 0 | JL81: 0 | JM81: 0 | JN81: 0 | JO81: 0 | JP81: 0 | JQ81: 0 | JR81: 0 | JS81: 0 | JT81: 0 | JU81: 0 | JV81: 0 | JW81: 0 | JX81: 0 | JY81: 0 | JZ81: 0 | KA81: 0 | KB81: 0 | KC81: 0 | KD81: 0 | KE81: 0 | KF81: 0 | KG81: 0 | KH81: 0 | KI81: 0 | KJ81: 0 | KK81: 0 | KL81: 0 | KM81: 0 | KN81: 0 | KO81: 0 | KP81: 0 | KQ81: 0 | KR81: 0 | KS81: 0 | KT81: 0 | KU81: 0 | KV81: 0 | KW81: 0 | KX81: 0 | KY81: 0 | KZ81: 0 | LA81: 0 | LB81: 0 | LC81: 0 | LD81: 0 | LE81: 0 | LF81: 0 | LG81: 0 | LH81: 0 | LI81: 0 | LJ81: 0 | LK81: 0 | LL81: 0 | LM81: 0 | LN81: 0 | LO81: 0 | LP81: 0 | LQ81: 0 | LR81: 0 | LS81: 0 | LT81: 0 | LU81: =LU77 -> 0 | LV81: 0 | LW81: 0 | LX81: 0 | LY81: 0 | LZ81: 0 | MA81: 0 | MB81: 0 | MC81: 0 | MD81: 0 | ME81: 0 | MF81: 0 | MG81: 0 | MH81: 0 | MI81: 0 | MJ81: 0 | MK81: 0 | ML81: 0 | MM81: 0 | MN81: 0 | MO81: 0 | MP81: 0 | MQ81: 0 | MR81: 0 | MS81: 0 | MT81: 0 | MU81: 0 | MV81: 0 | MW81: 0 | MX81: 0 | MY81: 0 | MZ81: 0 | NA81: 0 | NB81: 0 | NC81: 0 | ND81: 0 | NE81: 0 | NF81: 0 | NG81: 0 | NH81: 0 | NI81: 0 | NJ81: 0 | NK81: 0 | NL81: 0 | NM81: 0 | NN81: 0 | NO81: 0 | NP81: 0 | NQ81: 0 | NR81: 0 | NS81: 0 | NT81: 0 | NU81: 0 | NV81: 0 | NW81: 0 | NX81: 0 | NY81: 0 | NZ81: 0 | OA81: 0 | OB81: 0 | OC81: 0 | OD81: 0 | OE81: 0 | OF81: 0 | OG81: =OG77 -> 0 | OH81: 0 | OI81: 0 | OJ81: 0 | OK81: 0 | OL81: 0 | OM81: 0 | ON81: 0 | OO81: 0 | OP81: 0 | OQ81: 0 | OR81: 0 | OS81: 0 | OT81: 0 | OU81: 0 | OV81: 0 | OW81: 0 | OX81: 0 | OY81: 0 | OZ81: 0 | PA81: 0 | PB81: 0 | PC81: 0 | PD81: 0 | PE81: 0 | PF81: 0 | PG81: 0 | PH81: 0 | PI81: 0 | PJ81: 0 | PK81: 0 | PL81: 0 | PM81: 0 | PN81: 0 | PO81: 0 | PP81: 0 | PQ81: 0 | PR81: 0 | PS81: 0 | PT81: 0 | PU81: 0 | PV81: 0 | PW81: 0 | PX81: 0 | PY81: 0 | PZ81: 0 | QA81: 0 | QB81: 0 | QC81: 0 | QD81: 0 | QE81: 0 | QF81: 0 | QG81: 0 | QH81: 0 | QI81: 0 | QJ81: 0 | QK81: 0 | QL81: 0 | QM81: 0 | QN81: 0 | QO81: 0 | QP81: 0 | QQ81: 0 | QR81: 0 | QS81: =QS77 -> 0 | QT81: 0 | QU81: 0 | QV81: 0 | QW81: 0 | QX81: 0 | QY81: 0 | QZ81: 0 | RA81: 0 | RB81: 0 | RC81: 0 | RD81: 0 | RE81: 0 | RF81: 0 | RG81: 0 | RH81: 0 | RI81: 0 | RJ81: 0 | RK81: 0 | RL81: 0 | RM81: 0 | RN81: 0 | RO81: 0 | RP81: 0 | RQ81: 0 | RR81: 0 | RS81: 0 | RT81: 0 | RU81: 0 | RV81: 0 | RW81: 0 | RX81: 0 | RY81: 0 | RZ81: 0 | SA81: 0 | SB81: 0 | SC81: 0 | SD81: 0 | SE81: 0 | SF81: 0 | SG81: 0 | SH81: 0 | SI81: 0 | SJ81: 0 | SK81: 0 | SL81: 0 | SM81: 0 | SN81: 0 | SO81: 0 | SP81: 0 | SQ81: 0
D82: A/R Balance - CF | G82: USD | L82: =L79+L80-L81 -> 0 | M82: =M79+M80-M81 -> 0 | N82: 0 | O82: 0 | P82: 0 | Q82: 0 | R82: 0 | S82: 0 | T82: 0 | U82: 0 | V82: 0 | W82: 0 | X82: 0 | Y82: 0 | Z82: 0 | AA82: 0 | AB82: 0 | AC82: 0 | AD82: 0 | AE82: 0 | AF82: 0 | AG82: 0 | AH82: 0 | AI82: 0 | AJ82: 0 | AK82: 0 | AL82: 0 | AM82: 0 | AN82: 0 | AO82: 0 | AP82: 0 | AQ82: 0 | AR82: 0 | AS82: 0 | AT82: 0 | AU82: 0 | AV82: 0 | AW82: 0 | AX82: 0 | AY82: 0 | AZ82: 0 | BA82: 0 | BB82: 0 | BC82: 0 | BD82: 0 | BE82: 0 | BF82: 0 | BG82: 0 | BH82: 0 | BI82: 0 | BJ82: 0 | BK82: 0 | BL82: 0 | BM82: 0 | BN82: 0 | BO82: 0 | BP82: 0 | BQ82: 0 | BR82: 0 | BS82: 0 | BT82: 0 | BU82: 0 | BV82: 0 | BW82: 0 | BX82: 0 | BY82: =BY79+BY80-BY81 -> 0 | BZ82: 0 | CA82: 0 | CB82: 0 | CC82: 0 | CD82: 0 | CE82: 0 | CF82: 0 | CG82: 0 | CH82: 0 | CI82: 0 | CJ82: 0 | CK82: 0 | CL82: 0 | CM82: 0 | CN82: 0 | CO82: 0 | CP82: 0 | CQ82: 0 | CR82: 0 | CS82: 0 | CT82: 0 | CU82: 0 | CV82: 0 | CW82: 0 | CX82: 0 | CY82: 0 | CZ82: 0 | DA82: 0 | DB82: 0 | DC82: 0 | DD82: 0 | DE82: 0 | DF82: 0 | DG82: 0 | DH82: 0 | DI82: 0 | DJ82: 0 | DK82: 0 | DL82: 0 | DM82: 0 | DN82: 0 | DO82: 0 | DP82: 0 | DQ82: 0 | DR82: 0 | DS82: 0 | DT82: 0 | DU82: 0 | DV82: 0 | DW82: 0 | DX82: 0 | DY82: 0 | DZ82: 0 | EA82: 0 | EB82: 0 | EC82: 0 | ED82: 0 | EE82: 0 | EF82: 0 | EG82: 0 | EH82: 0 | EI82: 0 | EJ82: 0 | EK82: =EK79+EK80-EK81 -> 0 | EL82: 0 | EM82: 0 | EN82: 0 | EO82: 0 | EP82: 0 | EQ82: 0 | ER82: 0 | ES82: 0 | ET82: 0 | EU82: 0 | EV82: 0 | EW82: 0 | EX82: 0 | EY82: 0 | EZ82: 0 | FA82: 0 | FB82: 0 | FC82: 0 | FD82: 0 | FE82: 0 | FF82: 0 | FG82: 0 | FH82: 0 | FI82: 0 | FJ82: 0 | FK82: 0 | FL82: 0 | FM82: 0 | FN82: 0 | FO82: 0 | FP82: 0 | FQ82: 0 | FR82: 0 | FS82: 0 | FT82: 0 | FU82: 0 | FV82: 0 | FW82: 0 | FX82: 0 | FY82: 0 | FZ82: 0 | GA82: 0 | GB82: 0 | GC82: 0 | GD82: 0 | GE82: 0 | GF82: 0 | GG82: 0 | GH82: 0 | GI82: 0 | GJ82: 0 | GK82: 0 | GL82: 0 | GM82: 0 | GN82: 0 | GO82: 0 | GP82: 0 | GQ82: 0 | GR82: 0 | GS82: 0 | GT82: 0 | GU82: 0 | GV82: 0 | GW82: =GW79+GW80-GW81 -> 0 | GX82: 0 | GY82: 0 | GZ82: 0 | HA82: 0 | HB82: 0 | HC82: 0 | HD82: 0 | HE82: 0 | HF82: 0 | HG82: 0 | HH82: 0 | HI82: 0 | HJ82: 0 | HK82: 0 | HL82: 0 | HM82: 0 | HN82: 0 | HO82: 0 | HP82: 0 | HQ82: 0 | HR82: 0 | HS82: 0 | HT82: 0 | HU82: 0 | HV82: 0 | HW82: 0 | HX82: 0 | HY82: 0 | HZ82: 0 | IA82: 0 | IB82: 0 | IC82: 0 | ID82: 0 | IE82: 0 | IF82: 0 | IG82: 0 | IH82: 0 | II82: 0 | IJ82: 0 | IK82: 0 | IL82: 0 | IM82: 0 | IN82: 0 | IO82: 0 | IP82: 0 | IQ82: 0 | IR82: 0 | IS82: 0 | IT82: 0 | IU82: 0 | IV82: 0 | IW82: 0 | IX82: 0 | IY82: 0 | IZ82: 0 | JA82: 0 | JB82: 0 | JC82: 0 | JD82: 0 | JE82: 0 | JF82: 0 | JG82: 0 | JH82: 0 | JI82: =JI79+JI80-JI81 -> 0 | JJ82: 0 | JK82: 0 | JL82: 0 | JM82: 0 | JN82: 0 | JO82: 0 | JP82: 0 | JQ82: 0 | JR82: 0 | JS82: 0 | JT82: 0 | JU82: 0 | JV82: 0 | JW82: 0 | JX82: 0 | JY82: 0 | JZ82: 0 | KA82: 0 | KB82: 0 | KC82: 0 | KD82: 0 | KE82: 0 | KF82: 0 | KG82: 0 | KH82: 0 | KI82: 0 | KJ82: 0 | KK82: 0 | KL82: 0 | KM82: 0 | KN82: 0 | KO82: 0 | KP82: 0 | KQ82: 0 | KR82: 0 | KS82: 0 | KT82: 0 | KU82: 0 | KV82: 0 | KW82: 0 | KX82: 0 | KY82: 0 | KZ82: 0 | LA82: 0 | LB82: 0 | LC82: 0 | LD82: 0 | LE82: 0 | LF82: 0 | LG82: 0 | LH82: 0 | LI82: 0 | LJ82: 0 | LK82: 0 | LL82: 0 | LM82: 0 | LN82: 0 | LO82: 0 | LP82: 0 | LQ82: 0 | LR82: 0 | LS82: 0 | LT82: 0 | LU82: =LU79+LU80-LU81 -> 0 | LV82: 0 | LW82: 0 | LX82: 0 | LY82: 0 | LZ82: 0 | MA82: 0 | MB82: 0 | MC82: 0 | MD82: 0 | ME82: 0 | MF82: 0 | MG82: 0 | MH82: 0 | MI82: 0 | MJ82: 0 | MK82: 0 | ML82: 0 | MM82: 0 | MN82: 0 | MO82: 0 | MP82: 0 | MQ82: 0 | MR82: 0 | MS82: 0 | MT82: 0 | MU82: 0 | MV82: 0 | MW82: 0 | MX82: 0 | MY82: 0 | MZ82: 0 | NA82: 0 | NB82: 0 | NC82: 0 | ND82: 0 | NE82: 0 | NF82: 0 | NG82: 0 | NH82: 0 | NI82: 0 | NJ82: 0 | NK82: 0 | NL82: 0 | NM82: 0 | NN82: 0 | NO82: 0 | NP82: 0 | NQ82: 0 | NR82: 0 | NS82: 0 | NT82: 0 | NU82: 0 | NV82: 0 | NW82: 0 | NX82: 0 | NY82: 0 | NZ82: 0 | OA82: 0 | OB82: 0 | OC82: 0 | OD82: 0 | OE82: 0 | OF82: 0 | OG82: =OG79+OG80-OG81 -> 0 | OH82: 0 | OI82: 0 | OJ82: 0 | OK82: 0 | OL82: 0 | OM82: 0 | ON82: 0 | OO82: 0 | OP82: 0 | OQ82: 0 | OR82: 0 | OS82: 0 | OT82: 0 | OU82: 0 | OV82: 0 | OW82: 0 | OX82: 0 | OY82: 0 | OZ82: 0 | PA82: 0 | PB82: 0 | PC82: 0 | PD82: 0 | PE82: 0 | PF82: 0 | PG82: 0 | PH82: 0 | PI82: 0 | PJ82: 0 | PK82: 0 | PL82: 0 | PM82: 0 | PN82: 0 | PO82: 0 | PP82: 0 | PQ82: 0 | PR82: 0 | PS82: 0 | PT82: 0 | PU82: 0 | PV82: 0 | PW82: 0 | PX82: 0 | PY82: 0 | PZ82: 0 | QA82: 0 | QB82: 0 | QC82: 0 | QD82: 0 | QE82: 0 | QF82: 0 | QG82: 0 | QH82: 0 | QI82: 0 | QJ82: 0 | QK82: 0 | QL82: 0 | QM82: 0 | QN82: 0 | QO82: 0 | QP82: 0 | QQ82: 0 | QR82: 0 | QS82: =QS79+QS80-QS81 -> 0 | QT82: 0 | QU82: 0 | QV82: 0 | QW82: 0 | QX82: 0 | QY82: 0 | QZ82: 0 | RA82: 0 | RB82: 0 | RC82: 0 | RD82: 0 | RE82: 0 | RF82: 0 | RG82: 0 | RH82: 0 | RI82: 0 | RJ82: 0 | RK82: 0 | RL82: 0 | RM82: 0 | RN82: 0 | RO82: 0 | RP82: 0 | RQ82: 0 | RR82: 0 | RS82: 0 | RT82: 0 | RU82: 0 | RV82: 0 | RW82: 0 | RX82: 0 | RY82: 0 | RZ82: 0 | SA82: 0 | SB82: 0 | SC82: 0 | SD82: 0 | SE82: 0 | SF82: 0 | SG82: 0 | SH82: 0 | SI82: 0 | SJ82: 0 | SK82: 0 | SL82: 0 | SM82: 0 | SN82: 0 | SO82: 0 | SP82: 0 | SQ82: 0
D84: Change in Current Assets | G84: USD | L84: =L82-L79 -> 0 | M84: =M82-M79 -> 0 | N84: 0 | O84: 0 | P84: 0 | Q84: 0 | R84: 0 | S84: 0 | T84: 0 | U84: 0 | V84: 0 | W84: 0 | X84: 0 | Y84: 0 | Z84: 0 | AA84: 0 | AB84: 0 | AC84: 0 | AD84: 0 | AE84: 0 | AF84: 0 | AG84: 0 | AH84: 0 | AI84: 0 | AJ84: 0 | AK84: 0 | AL84: 0 | AM84: 0 | AN84: 0 | AO84: 0 | AP84: 0 | AQ84: 0 | AR84: 0 | AS84: 0 | AT84: 0 | AU84: 0 | AV84: 0 | AW84: 0 | AX84: 0 | AY84: 0 | AZ84: 0 | BA84: 0 | BB84: 0 | BC84: 0 | BD84: 0 | BE84: 0 | BF84: 0 | BG84: 0 | BH84: 0 | BI84: 0 | BJ84: 0 | BK84: 0 | BL84: 0 | BM84: 0 | BN84: 0 | BO84: 0 | BP84: 0 | BQ84: 0 | BR84: 0 | BS84: 0 | BT84: 0 | BU84: 0 | BV84: 0 | BW84: 0 | BX84: 0 | BY84: =BY82-BY79 -> 0 | BZ84: 0 | CA84: 0 | CB84: 0 | CC84: 0 | CD84: 0 | CE84: 0 | CF84: 0 | CG84: 0 | CH84: 0 | CI84: 0 | CJ84: 0 | CK84: 0 | CL84: 0 | CM84: 0 | CN84: 0 | CO84: 0 | CP84: 0 | CQ84: 0 | CR84: 0 | CS84: 0 | CT84: 0 | CU84: 0 | CV84: 0 | CW84: 0 | CX84: 0 | CY84: 0 | CZ84: 0 | DA84: 0 | DB84: 0 | DC84: 0 | DD84: 0 | DE84: 0 | DF84: 0 | DG84: 0 | DH84: 0 | DI84: 0 | DJ84: 0 | DK84: 0 | DL84: 0 | DM84: 0 | DN84: 0 | DO84: 0 | DP84: 0 | DQ84: 0 | DR84: 0 | DS84: 0 | DT84: 0 | DU84: 0 | DV84: 0 | DW84: 0 | DX84: 0 | DY84: 0 | DZ84: 0 | EA84: 0 | EB84: 0 | EC84: 0 | ED84: 0 | EE84: 0 | EF84: 0 | EG84: 0 | EH84: 0 | EI84: 0 | EJ84: 0 | EK84: =EK82-EK79 -> 0 | EL84: 0 | EM84: 0 | EN84: 0 | EO84: 0 | EP84: 0 | EQ84: 0 | ER84: 0 | ES84: 0 | ET84: 0 | EU84: 0 | EV84: 0 | EW84: 0 | EX84: 0 | EY84: 0 | EZ84: 0 | FA84: 0 | FB84: 0 | FC84: 0 | FD84: 0 | FE84: 0 | FF84: 0 | FG84: 0 | FH84: 0 | FI84: 0 | FJ84: 0 | FK84: 0 | FL84: 0 | FM84: 0 | FN84: 0 | FO84: 0 | FP84: 0 | FQ84: 0 | FR84: 0 | FS84: 0 | FT84: 0 | FU84: 0 | FV84: 0 | FW84: 0 | FX84: 0 | FY84: 0 | FZ84: 0 | GA84: 0 | GB84: 0 | GC84: 0 | GD84: 0 | GE84: 0 | GF84: 0 | GG84: 0 | GH84: 0 | GI84: 0 | GJ84: 0 | GK84: 0 | GL84: 0 | GM84: 0 | GN84: 0 | GO84: 0 | GP84: 0 | GQ84: 0 | GR84: 0 | GS84: 0 | GT84: 0 | GU84: 0 | GV84: 0 | GW84: =GW82-GW79 -> 0 | GX84: 0 | GY84: 0 | GZ84: 0 | HA84: 0 | HB84: 0 | HC84: 0 | HD84: 0 | HE84: 0 | HF84: 0 | HG84: 0 | HH84: 0 | HI84: 0 | HJ84: 0 | HK84: 0 | HL84: 0 | HM84: 0 | HN84: 0 | HO84: 0 | HP84: 0 | HQ84: 0 | HR84: 0 | HS84: 0 | HT84: 0 | HU84: 0 | HV84: 0 | HW84: 0 | HX84: 0 | HY84: 0 | HZ84: 0 | IA84: 0 | IB84: 0 | IC84: 0 | ID84: 0 | IE84: 0 | IF84: 0 | IG84: 0 | IH84: 0 | II84: 0 | IJ84: 0 | IK84: 0 | IL84: 0 | IM84: 0 | IN84: 0 | IO84: 0 | IP84: 0 | IQ84: 0 | IR84: 0 | IS84: 0 | IT84: 0 | IU84: 0 | IV84: 0 | IW84: 0 | IX84: 0 | IY84: 0 | IZ84: 0 | JA84: 0 | JB84: 0 | JC84: 0 | JD84: 0 | JE84: 0 | JF84: 0 | JG84: 0 | JH84: 0 | JI84: =JI82-JI79 -> 0 | JJ84: 0 | JK84: 0 | JL84: 0 | JM84: 0 | JN84: 0 | JO84: 0 | JP84: 0 | JQ84: 0 | JR84: 0 | JS84: 0 | JT84: 0 | JU84: 0 | JV84: 0 | JW84: 0 | JX84: 0 | JY84: 0 | JZ84: 0 | KA84: 0 | KB84: 0 | KC84: 0 | KD84: 0 | KE84: 0 | KF84: 0 | KG84: 0 | KH84: 0 | KI84: 0 | KJ84: 0 | KK84: 0 | KL84: 0 | KM84: 0 | KN84: 0 | KO84: 0 | KP84: 0 | KQ84: 0 | KR84: 0 | KS84: 0 | KT84: 0 | KU84: 0 | KV84: 0 | KW84: 0 | KX84: 0 | KY84: 0 | KZ84: 0 | LA84: 0 | LB84: 0 | LC84: 0 | LD84: 0 | LE84: 0 | LF84: 0 | LG84: 0 | LH84: 0 | LI84: 0 | LJ84: 0 | LK84: 0 | LL84: 0 | LM84: 0 | LN84: 0 | LO84: 0 | LP84: 0 | LQ84: 0 | LR84: 0 | LS84: 0 | LT84: 0 | LU84: =LU82-LU79 -> 0 | LV84: 0 | LW84: 0 | LX84: 0 | LY84: 0 | LZ84: 0 | MA84: 0 | MB84: 0 | MC84: 0 | MD84: 0 | ME84: 0 | MF84: 0 | MG84: 0 | MH84: 0 | MI84: 0 | MJ84: 0 | MK84: 0 | ML84: 0 | MM84: 0 | MN84: 0 | MO84: 0 | MP84: 0 | MQ84: 0 | MR84: 0 | MS84: 0 | MT84: 0 | MU84: 0 | MV84: 0 | MW84: 0 | MX84: 0 | MY84: 0 | MZ84: 0 | NA84: 0 | NB84: 0 | NC84: 0 | ND84: 0 | NE84: 0 | NF84: 0 | NG84: 0 | NH84: 0 | NI84: 0 | NJ84: 0 | NK84: 0 | NL84: 0 | NM84: 0 | NN84: 0 | NO84: 0 | NP84: 0 | NQ84: 0 | NR84: 0 | NS84: 0 | NT84: 0 | NU84: 0 | NV84: 0 | NW84: 0 | NX84: 0 | NY84: 0 | NZ84: 0 | OA84: 0 | OB84: 0 | OC84: 0 | OD84: 0 | OE84: 0 | OF84: 0 | OG84: =OG82-OG79 -> 0 | OH84: 0 | OI84: 0 | OJ84: 0 | OK84: 0 | OL84: 0 | OM84: 0 | ON84: 0 | OO84: 0 | OP84: 0 | OQ84: 0 | OR84: 0 | OS84: 0 | OT84: 0 | OU84: 0 | OV84: 0 | OW84: 0 | OX84: 0 | OY84: 0 | OZ84: 0 | PA84: 0 | PB84: 0 | PC84: 0 | PD84: 0 | PE84: 0 | PF84: 0 | PG84: 0 | PH84: 0 | PI84: 0 | PJ84: 0 | PK84: 0 | PL84: 0 | PM84: 0 | PN84: 0 | PO84: 0 | PP84: 0 | PQ84: 0 | PR84: 0 | PS84: 0 | PT84: 0 | PU84: 0 | PV84: 0 | PW84: 0 | PX84: 0 | PY84: 0 | PZ84: 0 | QA84: 0 | QB84: 0 | QC84: 0 | QD84: 0 | QE84: 0 | QF84: 0 | QG84: 0 | QH84: 0 | QI84: 0 | QJ84: 0 | QK84: 0 | QL84: 0 | QM84: 0 | QN84: 0 | QO84: 0 | QP84: 0 | QQ84: 0 | QR84: 0 | QS84: =QS82-QS79 -> 0 | QT84: 0 | QU84: 0 | QV84: 0 | QW84: 0 | QX84: 0 | QY84: 0 | QZ84: 0 | RA84: 0 | RB84: 0 | RC84: 0 | RD84: 0 | RE84: 0 | RF84: 0 | RG84: 0 | RH84: 0 | RI84: 0 | RJ84: 0 | RK84: 0 | RL84: 0 | RM84: 0 | RN84: 0 | RO84: 0 | RP84: 0 | RQ84: 0 | RR84: 0 | RS84: 0 | RT84: 0 | RU84: 0 | RV84: 0 | RW84: 0 | RX84: 0 | RY84: 0 | RZ84: 0 | SA84: 0 | SB84: 0 | SC84: 0 | SD84: 0 | SE84: 0 | SF84: 0 | SG84: 0 | SH84: 0 | SI84: 0 | SJ84: 0 | SK84: 0 | SL84: 0 | SM84: 0 | SN84: 0 | SO84: 0 | SP84: 0 | SQ84: 0
C86: Operating Costs
D87: Expenses Booked | G87: USD/Month | L87: =L69 ->  | M87: =M69 ->  | BY87: =BY69 ->  | EK87: =EK69 ->  | GW87: =GW69 ->  | JI87: =JI69 ->  | LU87: =LU69 ->  | OG87: =OG69 ->  | QS87: =QS69 -> 
D88: ='InputC - Operations'!D49 -> Operation and Maintenance Payment Arrears | E88: ='InputC - Operations'!E49 -> 2 | G88: ='InputC - Operations'!F49 -> Months | L88: =$E$88 -> 2 | M88: =$E$88 -> 2 | N88: 2 | O88: 2 | P88: 2 | Q88: 2 | R88: 2 | S88: 2 | T88: 2 | U88: 2 | V88: 2 | W88: 2 | X88: 2 | Y88: 2 | Z88: 2 | AA88: 2 | AB88: 2 | AC88: 2 | AD88: 2 | AE88: 2 | AF88: 2 | AG88: 2 | AH88: 2 | AI88: 2 | AJ88: 2 | AK88: 2 | AL88: 2 | AM88: 2 | AN88: 2 | AO88: 2 | AP88: 2 | AQ88: 2 | AR88: 2 | AS88: 2 | AT88: 2 | AU88: 2 | AV88: 2 | AW88: 2 | AX88: 2 | AY88: 2 | AZ88: 2 | BA88: 2 | BB88: 2 | BC88: 2 | BD88: 2 | BE88: 2 | BF88: 2 | BG88: 2 | BH88: 2 | BI88: 2 | BJ88: 2 | BK88: 2 | BL88: 2 | BM88: 2 | BN88: 2 | BO88: 2 | BP88: 2 | BQ88: 2 | BR88: 2 | BS88: 2 | BT88: 2 | BU88: 2 | BV88: 2 | BW88: 2 | BX88: 2 | BY88: =$E$88 -> 2 | BZ88: 2 | CA88: 2 | CB88: 2 | CC88: 2 | CD88: 2 | CE88: 2 | CF88: 2 | CG88: 2 | CH88: 2 | CI88: 2 | CJ88: 2 | CK88: 2 | CL88: 2 | CM88: 2 | CN88: 2 | CO88: 2 | CP88: 2 | CQ88: 2 | CR88: 2 | CS88: 2 | CT88: 2 | CU88: 2 | CV88: 2 | CW88: 2 | CX88: 2 | CY88: 2 | CZ88: 2 | DA88: 2 | DB88: 2 | DC88: 2 | DD88: 2 | DE88: 2 | DF88: 2 | DG88: 2 | DH88: 2 | DI88: 2 | DJ88: 2 | DK88: 2 | DL88: 2 | DM88: 2 | DN88: 2 | DO88: 2 | DP88: 2 | DQ88: 2 | DR88: 2 | DS88: 2 | DT88: 2 | DU88: 2 | DV88: 2 | DW88: 2 | DX88: 2 | DY88: 2 | DZ88: 2 | EA88: 2 | EB88: 2 | EC88: 2 | ED88: 2 | EE88: 2 | EF88: 2 | EG88: 2 | EH88: 2 | EI88: 2 | EJ88: 2 | EK88: =$E$88 -> 2 | EL88: 2 | EM88: 2 | EN88: 2 | EO88: 2 | EP88: 2 | EQ88: 2 | ER88: 2 | ES88: 2 | ET88: 2 | EU88: 2 | EV88: 2 | EW88: 2 | EX88: 2 | EY88: 2 | EZ88: 2 | FA88: 2 | FB88: 2 | FC88: 2 | FD88: 2 | FE88: 2 | FF88: 2 | FG88: 2 | FH88: 2 | FI88: 2 | FJ88: 2 | FK88: 2 | FL88: 2 | FM88: 2 | FN88: 2 | FO88: 2 | FP88: 2 | FQ88: 2 | FR88: 2 | FS88: 2 | FT88: 2 | FU88: 2 | FV88: 2 | FW88: 2 | FX88: 2 | FY88: 2 | FZ88: 2 | GA88: 2 | GB88: 2 | GC88: 2 | GD88: 2 | GE88: 2 | GF88: 2 | GG88: 2 | GH88: 2 | GI88: 2 | GJ88: 2 | GK88: 2 | GL88: 2 | GM88: 2 | GN88: 2 | GO88: 2 | GP88: 2 | GQ88: 2 | GR88: 2 | GS88: 2 | GT88: 2 | GU88: 2 | GV88: 2 | GW88: =$E$88 -> 2 | GX88: 2 | GY88: 2 | GZ88: 2 | HA88: 2 | HB88: 2 | HC88: 2 | HD88: 2 | HE88: 2 | HF88: 2 | HG88: 2 | HH88: 2 | HI88: 2 | HJ88: 2 | HK88: 2 | HL88: 2 | HM88: 2 | HN88: 2 | HO88: 2 | HP88: 2 | HQ88: 2 | HR88: 2 | HS88: 2 | HT88: 2 | HU88: 2 | HV88: 2 | HW88: 2 | HX88: 2 | HY88: 2 | HZ88: 2 | IA88: 2 | IB88: 2 | IC88: 2 | ID88: 2 | IE88: 2 | IF88: 2 | IG88: 2 | IH88: 2 | II88: 2 | IJ88: 2 | IK88: 2 | IL88: 2 | IM88: 2 | IN88: 2 | IO88: 2 | IP88: 2 | IQ88: 2 | IR88: 2 | IS88: 2 | IT88: 2 | IU88: 2 | IV88: 2 | IW88: 2 | IX88: 2 | IY88: 2 | IZ88: 2 | JA88: 2 | JB88: 2 | JC88: 2 | JD88: 2 | JE88: 2 | JF88: 2 | JG88: 2 | JH88: 2 | JI88: =$E$88 -> 2 | JJ88: 2 | JK88: 2 | JL88: 2 | JM88: 2 | JN88: 2 | JO88: 2 | JP88: 2 | JQ88: 2 | JR88: 2 | JS88: 2 | JT88: 2 | JU88: 2 | JV88: 2 | JW88: 2 | JX88: 2 | JY88: 2 | JZ88: 2 | KA88: 2 | KB88: 2 | KC88: 2 | KD88: 2 | KE88: 2 | KF88: 2 | KG88: 2 | KH88: 2 | KI88: 2 | KJ88: 2 | KK88: 2 | KL88: 2 | KM88: 2 | KN88: 2 | KO88: 2 | KP88: 2 | KQ88: 2 | KR88: 2 | KS88: 2 | KT88: 2 | KU88: 2 | KV88: 2 | KW88: 2 | KX88: 2 | KY88: 2 | KZ88: 2 | LA88: 2 | LB88: 2 | LC88: 2 | LD88: 2 | LE88: 2 | LF88: 2 | LG88: 2 | LH88: 2 | LI88: 2 | LJ88: 2 | LK88: 2 | LL88: 2 | LM88: 2 | LN88: 2 | LO88: 2 | LP88: 2 | LQ88: 2 | LR88: 2 | LS88: 2 | LT88: 2 | LU88: =$E$88 -> 2 | LV88: 2 | LW88: 2 | LX88: 2 | LY88: 2 | LZ88: 2 | MA88: 2 | MB88: 2 | MC88: 2 | MD88: 2 | ME88: 2 | MF88: 2 | MG88: 2 | MH88: 2 | MI88: 2 | MJ88: 2 | MK88: 2 | ML88: 2 | MM88: 2 | MN88: 2 | MO88: 2 | MP88: 2 | MQ88: 2 | MR88: 2 | MS88: 2 | MT88: 2 | MU88: 2 | MV88: 2 | MW88: 2 | MX88: 2 | MY88: 2 | MZ88: 2 | NA88: 2 | NB88: 2 | NC88: 2 | ND88: 2 | NE88: 2 | NF88: 2 | NG88: 2 | NH88: 2 | NI88: 2 | NJ88: 2 | NK88: 2 | NL88: 2 | NM88: 2 | NN88: 2 | NO88: 2 | NP88: 2 | NQ88: 2 | NR88: 2 | NS88: 2 | NT88: 2 | NU88: 2 | NV88: 2 | NW88: 2 | NX88: 2 | NY88: 2 | NZ88: 2 | OA88: 2 | OB88: 2 | OC88: 2 | OD88: 2 | OE88: 2 | OF88: 2 | OG88: =$E$88 -> 2 | OH88: 2 | OI88: 2 | OJ88: 2 | OK88: 2 | OL88: 2 | OM88: 2 | ON88: 2 | OO88: 2 | OP88: 2 | OQ88: 2 | OR88: 2 | OS88: 2 | OT88: 2 | OU88: 2 | OV88: 2 | OW88: 2 | OX88: 2 | OY88: 2 | OZ88: 2 | PA88: 2 | PB88: 2 | PC88: 2 | PD88: 2 | PE88: 2 | PF88: 2 | PG88: 2 | PH88: 2 | PI88: 2 | PJ88: 2 | PK88: 2 | PL88: 2 | PM88: 2 | PN88: 2 | PO88: 2 | PP88: 2 | PQ88: 2 | PR88: 2 | PS88: 2 | PT88: 2 | PU88: 2 | PV88: 2 | PW88: 2 | PX88: 2 | PY88: 2 | PZ88: 2 | QA88: 2 | QB88: 2 | QC88: 2 | QD88: 2 | QE88: 2 | QF88: 2 | QG88: 2 | QH88: 2 | QI88: 2 | QJ88: 2 | QK88: 2 | QL88: 2 | QM88: 2 | QN88: 2 | QO88: 2 | QP88: 2 | QQ88: 2 | QR88: 2 | QS88: =$E$88 -> 2 | QT88: 2 | QU88: 2 | QV88: 2 | QW88: 2 | QX88: 2 | QY88: 2 | QZ88: 2 | RA88: 2 | RB88: 2 | RC88: 2 | RD88: 2 | RE88: 2 | RF88: 2 | RG88: 2 | RH88: 2 | RI88: 2 | RJ88: 2 | RK88: 2 | RL88: 2 | RM88: 2 | RN88: 2 | RO88: 2 | RP88: 2 | RQ88: 2 | RR88: 2 | RS88: 2 | RT88: 2 | RU88: 2 | RV88: 2 | RW88: 2 | RX88: 2 | RY88: 2 | RZ88: 2 | SA88: 2 | SB88: 2 | SC88: 2 | SD88: 2 | SE88: 2 | SF88: 2 | SG88: 2 | SH88: 2 | SI88: 2 | SJ88: 2 | SK88: 2 | SL88: 2 | SM88: 2 | SN88: 2 | SO88: 2 | SP88: 2 | SQ88: 2
D89: Expenses Paid | G89: USD/Month | L89: =OFFSET(L87,0,-L88) -> 0 | M89: =OFFSET(M87,0,-M88) -> 0 | BY89: =OFFSET(BY87,0,-BY88) ->  | EK89: =OFFSET(EK87,0,-EK88) ->  | GW89: =OFFSET(GW87,0,-GW88) ->  | JI89: =OFFSET(JI87,0,-JI88) ->  | LU89: =OFFSET(LU87,0,-LU88) ->  | OG89: =OFFSET(OG87,0,-OG88) ->  | QS89: =OFFSET(QS87,0,-QS88) -> 
D91: Accounts Payable Balance - BF | G91: USD | L91: =K94 -> 0 | M91: =L94 ->  | BY91: =BX94 ->  | EK91: =EJ94 ->  | GW91: =GV94 ->  | JI91: =JH94 ->  | LU91: =LT94 ->  | OG91: =OF94 ->  | QS91: =QR94 -> 
D92: Add: Expenses Booked | G92: USD | L92: =L87 ->  | M92: =M87 ->  | BY92: =BY87 ->  | EK92: =EK87 ->  | GW92: =GW87 ->  | JI92: =JI87 ->  | LU92: =LU87 ->  | OG92: =OG87 ->  | QS92: =QS87 -> 
D93: Less: Expenses Collected | G93: USD | L93: =L89 -> 0 | M93: =M89 -> 0 | BY93: =BY89 ->  | EK93: =EK89 ->  | GW93: =GW89 ->  | JI93: =JI89 ->  | LU93: =LU89 ->  | OG93: =OG89 ->  | QS93: =QS89 -> 
D94: Payable Balance - CF | G94: USD | L94: =L91+L92-L93 ->  | M94: =M91+M92-M93 ->  | BY94: =BY91+BY92-BY93 ->  | EK94: =EK91+EK92-EK93 ->  | GW94: =GW91+GW92-GW93 ->  | JI94: =JI91+JI92-JI93 ->  | LU94: =LU91+LU92-LU93 ->  | OG94: =OG91+OG92-OG93 ->  | QS94: =QS91+QS92-QS93 -> 
D96: Payable Change | G96: USD | L96: =L94-L91 ->  | M96: =M94-M91 ->  | BY96: =BY94-BY91 ->  | EK96: =EK94-EK91 ->  | GW96: =GW94-GW91 ->  | JI96: =JI94-JI91 ->  | LU96: =LU94-LU91 ->  | OG96: =OG94-OG91 ->  | QS96: =QS94-QS91 -> 
D98: Total Working Capital | G98: USD | L98: =L82-L94 ->  | M98: =M82-M94 ->  | BY98: =BY82-BY94 ->  | EK98: =EK82-EK94 ->  | GW98: =GW82-GW94 ->  | JI98: =JI82-JI94 ->  | LU98: =LU82-LU94 ->  | OG98: =OG82-OG94 ->  | QS98: =QS82-QS94 -> 
D99: Change in Working Capital | G99: USD | L99: =L84-L96 ->  | M99: =M84-M96 ->  | BY99: =BY84-BY96 ->  | EK99: =EK84-EK96 ->  | GW99: =GW84-GW96 ->  | JI99: =JI84-JI96 ->  | LU99: =LU84-LU96 ->  | OG99: =OG84-OG96 ->  | QS99: =QS84-QS96 -> 

Sheet Project Finance Semi-Annual
A1: =MID(CELL("filename"),FIND("]",CELL("filename"),1)+1,250) -> InputC - Operations
D2: Period Number | F2: Constant | G2: Constant | H2: Unit | I2: Total | J2: Test | M2: 1 | N2: 2 | O2: 3 | P2: 4 | Q2: 5 | R2: 6 | S2: 7 | T2: 8 | U2: 9 | V2: 10 | W2: 11 | X2: 12 | Y2: 13 | Z2: 14 | AA2: 15 | AB2: 16 | AC2: 17 | AD2: 18 | AE2: 19 | AF2: 20 | AG2: 21 | AH2: 22 | AI2: 23 | AJ2: 24 | AK2: 25 | AL2: 26 | AM2: 27 | AN2: 28 | AO2: 29 | AP2: 30 | AQ2: 31 | AR2: 32 | AS2: 33 | AT2: 34 | AU2: 35 | AV2: 36 | AW2: 37 | AX2: 38 | AY2: 39 | AZ2: 40 | BA2: 41 | BB2: 42 | BC2: 43 | BD2: 44 | BE2: 45 | BF2: 46 | BG2: 47 | BH2: 48 | BI2: 49 | BJ2: 50 | BK2: 51 | BL2: 52 | BM2: 53 | BN2: 54 | BO2: 55 | BP2: 56 | BQ2: 57 | BR2: 58 | BS2: 59 | BT2: 60 | BU2: 61 | BV2: 62 | BW2: 63 | BX2: 64 | BY2: 65 | BZ2: 66 | CA2: 67 | CB2: 68 | CC2: 69 | CD2: 70 | CE2: 71 | CF2: 72 | CG2: 73 | CH2: 74 | CI2: 75 | CJ2: 76 | CK2: 77 | CL2: 78 | CM2: 79 | CN2: 80 | CO2: 81 | CP2: 82 | CQ2: 83 | CR2: 84 | CS2: 85 | CT2: 86 | CU2: 87 | CV2: 88 | CW2: 89 | CX2: 90
D3: Pre-COD Period | M3: ='Operation Monthly'!L6 -> 0 | N3: ='Operation Monthly'!M6 -> 0 | O3: ='Operation Monthly'!N6 -> 0 | P3: ='Operation Monthly'!O6 -> 0 | Q3: ='Operation Monthly'!P6 -> 0 | R3: ='Operation Monthly'!Q6 -> 0 | S3: ='Operation Monthly'!R6 -> 0 | T3: ='Operation Monthly'!S6 -> 0 | U3: ='Operation Monthly'!T6 -> 0 | V3: ='Operation Monthly'!U6 -> 0 | W3: ='Operation Monthly'!V6 -> 0 | X3: ='Operation Monthly'!W6 -> 0 | Y3: ='Operation Monthly'!X6 -> 0 | Z3: ='Operation Monthly'!Y6 -> 0 | AA3: ='Operation Monthly'!Z6 -> 0 | AB3: ='Operation Monthly'!AA6 -> 0 | AC3: ='Operation Monthly'!AB6 -> 0 | AD3: ='Operation Monthly'!AC6 -> 0 | AE3: ='Operation Monthly'!AD6 -> 0 | AF3: ='Operation Monthly'!AE6 -> 0 | AG3: ='Operation Monthly'!AF6 -> 0 | AH3: ='Operation Monthly'!AG6 -> 0 | AI3: ='Operation Monthly'!AH6 -> 0 | AJ3: ='Operation Monthly'!AI6 -> 0 | AK3: ='Operation Monthly'!AJ6 -> 0 | AL3: ='Operation Monthly'!AK6 -> 0 | AM3: ='Operation Monthly'!AL6 -> 0 | AN3: ='Operation Monthly'!AM6 -> 0 | AO3: ='Operation Monthly'!AN6 -> 0 | AP3: ='Operation Monthly'!AO6 -> 0 | AQ3: ='Operation Monthly'!AP6 -> 0 | AR3: ='Operation Monthly'!AQ6 -> 0 | AS3: ='Operation Monthly'!AR6 -> 0 | AT3: ='Operation Monthly'!AS6 -> 0 | AU3: ='Operation Monthly'!AT6 -> 0 | AV3: ='Operation Monthly'!AU6 -> 0 | AW3: ='Operation Monthly'!AV6 -> 0 | AX3: ='Operation Monthly'!AW6 -> 0 | AY3: ='Operation Monthly'!AX6 -> 0 | AZ3: ='Operation Monthly'!AY6 -> 0 | BA3: ='Operation Monthly'!AZ6 -> 0 | BB3: ='Operation Monthly'!BA6 -> 0 | BC3: ='Operation Monthly'!BB6 -> 0 | BD3: ='Operation Monthly'!BC6 -> 0 | BE3: ='Operation Monthly'!BD6 -> 0 | BF3: ='Operation Monthly'!BE6 -> 0 | BG3: ='Operation Monthly'!BF6 -> 0 | BH3: ='Operation Monthly'!BG6 -> 0 | BI3: ='Operation Monthly'!BH6 -> 0 | BJ3: ='Operation Monthly'!BI6 -> 0 | BK3: ='Operation Monthly'!BJ6 -> 0 | BL3: ='Operation Monthly'!BK6 -> 0 | BM3: ='Operation Monthly'!BL6 -> 0 | BN3: ='Operation Monthly'!BM6 -> 0 | BO3: ='Operation Monthly'!BN6 -> 0 | BP3: ='Operation Monthly'!BO6 -> 0 | BQ3: ='Operation Monthly'!BP6 -> 0 | BR3: ='Operation Monthly'!BQ6 -> 0 | BS3: ='Operation Monthly'!BR6 -> 0 | BT3: ='Operation Monthly'!BS6 -> 0 | BU3: ='Operation Monthly'!BT6 -> 0 | BV3: ='Operation Monthly'!BU6 -> 0 | BW3: ='Operation Monthly'!BV6 -> 0 | BX3: ='Operation Monthly'!BW6 -> 0 | BY3: ='Operation Monthly'!BX6 -> 0 | BZ3: ='Operation Monthly'!BY6 -> 0 | CA3: ='Operation Monthly'!BZ6 -> 0 | CB3: ='Operation Monthly'!CA6 -> 0 | CC3: ='Operation Monthly'!CB6 -> 0 | CD3: ='Operation Monthly'!CC6 -> 0 | CE3: ='Operation Monthly'!CD6 -> 0 | CF3: ='Operation Monthly'!CE6 -> 0 | CG3: ='Operation Monthly'!CF6 -> 0 | CH3: ='Operation Monthly'!CG6 -> 0 | CI3: ='Operation Monthly'!CH6 -> 0 | CJ3: ='Operation Monthly'!CI6 -> 0 | CK3: ='Operation Monthly'!CJ6 -> 0 | CL3: ='Operation Monthly'!CK6 -> 0 | CM3: ='Operation Monthly'!CL6 -> 0 | CN3: ='Operation Monthly'!CM6 -> 0 | CO3: ='Operation Monthly'!CN6 -> 0 | CP3: ='Operation Monthly'!CO6 -> 0 | CQ3: ='Operation Monthly'!CP6 -> 0 | CR3: ='Operation Monthly'!CQ6 -> 0 | CS3: ='Operation Monthly'!CR6 -> 0 | CT3: ='Operation Monthly'!CS6 -> 0 | CU3: ='Operation Monthly'!CT6 -> 0 | CV3: ='Operation Monthly'!CU6 -> 0 | CW3: ='Operation Monthly'!CV6 -> 0 | CX3: ='Operation Monthly'!CW6 -> 0
D4: Months in Period | F4: ='InputC - Operations'!E13 -> 0
D5: Start of Period | M5: =L6+1 -> 00:00:00 | N5: 1900-01-01 | O5: 1900-01-01 | P5: 1900-01-01 | Q5: 1900-01-01 | R5: 1900-01-01 | S5: 1900-01-01 | T5: 1900-01-01 | U5: 1900-01-01 | V5: 1900-01-01 | W5: 1900-01-01 | X5: 1900-01-01 | Y5: 1900-01-01 | Z5: 1900-01-01 | AA5: 1900-01-01 | AB5: 1900-01-01 | AC5: 1900-01-01 | AD5: 1900-01-01 | AE5: 1900-01-01 | AF5: 1900-01-01 | AG5: 1900-01-01 | AH5: 1900-01-01 | AI5: 1900-01-01 | AJ5: 1900-01-01 | AK5: 1900-01-01 | AL5: 1900-01-01 | AM5: 1900-01-01 | AN5: 1900-01-01 | AO5: 1900-01-01 | AP5: 1900-01-01 | AQ5: 1900-01-01 | AR5: 1900-01-01 | AS5: =AR6+1 -> 1900-01-01 | AT5: 1900-01-01 | AU5: 1900-01-01 | AV5: 1900-01-01 | AW5: 1900-01-01 | AX5: 1900-01-01 | AY5: 1900-01-01 | AZ5: 1900-01-01 | BA5: 1900-01-01 | BB5: 1900-01-01 | BC5: 1900-01-01 | BD5: 1900-01-01 | BE5: 1900-01-01 | BF5: 1900-01-01 | BG5: 1900-01-01 | BH5: 1900-01-01 | BI5: 1900-01-01 | BJ5: 1900-01-01 | BK5: 1900-01-01 | BL5: 1900-01-01 | BM5: 1900-01-01 | BN5: 1900-01-01 | BO5: 1900-01-01 | BP5: 1900-01-01 | BQ5: 1900-01-01 | BR5: 1900-01-01 | BS5: 1900-01-01 | BT5: 1900-01-01 | BU5: 1900-01-01 | BV5: 1900-01-01 | BW5: 1900-01-01 | BX5: 1900-01-01 | BY5: =BX6+1 -> 1900-01-01 | BZ5: 1900-01-01 | CA5: 1900-01-01 | CB5: 1900-01-01 | CC5: 1900-01-01 | CD5: 1900-01-01 | CE5: 1900-01-01 | CF5: 1900-01-01 | CG5: 1900-01-01 | CH5: 1900-01-01 | CI5: 1900-01-01 | CJ5: 1900-01-01 | CK5: 1900-01-01 | CL5: 1900-01-01 | CM5: 1900-01-01 | CN5: 1900-01-01 | CO5: 1900-01-01 | CP5: 1900-01-01 | CQ5: 1900-01-01 | CR5: 1900-01-01 | CS5: 1900-01-01 | CT5: 1900-01-01 | CU5: 1900-01-01 | CV5: 1900-01-01 | CW5: 1900-01-01 | CX5: 1900-01-01
D6: End of Period | L6: ='Operation Monthly'!K5 -> -1
D7: Operating Flag | F7: ='InputC - Operations'!E9 -> 00:00:00 | G7: ='InputC - Operations'!E11 -> 00:00:00 | M7: =AND(M5>=$F$7,M5<$G$7) -> FALSE | N7: FALSE | O7: FALSE | P7: FALSE | Q7: FALSE | R7: FALSE | S7: FALSE | T7: FALSE | U7: FALSE | V7: FALSE | W7: FALSE | X7: FALSE | Y7: FALSE | Z7: FALSE | AA7: FALSE | AB7: FALSE | AC7: FALSE | AD7: FALSE | AE7: FALSE | AF7: FALSE | AG7: FALSE | AH7: FALSE | AI7: FALSE | AJ7: FALSE | AK7: FALSE | AL7: FALSE | AM7: FALSE | AN7: FALSE | AO7: FALSE | AP7: FALSE | AQ7: FALSE | AR7: FALSE | AS7: =AND(AS5>=$F$7,AS5<$G$7) -> FALSE | AT7: FALSE | AU7: FALSE | AV7: FALSE | AW7: FALSE | AX7: FALSE | AY7: FALSE | AZ7: FALSE | BA7: FALSE | BB7: FALSE | BC7: FALSE | BD7: FALSE | BE7: FALSE | BF7: FALSE | BG7: FALSE | BH7: FALSE | BI7: FALSE | BJ7: FALSE | BK7: FALSE | BL7: FALSE | BM7: FALSE | BN7: FALSE | BO7: FALSE | BP7: FALSE | BQ7: FALSE | BR7: FALSE | BS7: FALSE | BT7: FALSE | BU7: FALSE | BV7: FALSE | BW7: FALSE | BX7: FALSE | BY7: =AND(BY5>=$F$7,BY5<$G$7) -> FALSE | BZ7: FALSE | CA7: FALSE | CB7: FALSE | CC7: FALSE | CD7: FALSE | CE7: FALSE | CF7: FALSE | CG7: FALSE | CH7: FALSE | CI7: FALSE | CJ7: FALSE | CK7: FALSE | CL7: FALSE | CM7: FALSE | CN7: FALSE | CO7: FALSE | CP7: FALSE | CQ7: FALSE | CR7: FALSE | CS7: FALSE | CT7: FALSE | CU7: FALSE | CV7: FALSE | CW7: FALSE | CX7: FALSE
D8: Year | M8: =YEAR(M5) -> 1900 | N8: =YEAR(N5) -> 1900 | O8: 1900 | P8: 1900 | Q8: 1900 | R8: 1900 | S8: 1900 | T8: 1900 | U8: 1900 | V8: 1900 | W8: 1900 | X8: 1900 | Y8: 1900 | Z8: 1900 | AA8: 1900 | AB8: 1900 | AC8: 1900 | AD8: 1900 | AE8: 1900 | AF8: 1900 | AG8: 1900 | AH8: 1900 | AI8: 1900 | AJ8: 1900 | AK8: 1900 | AL8: 1900 | AM8: 1900 | AN8: 1900 | AO8: 1900 | AP8: 1900 | AQ8: 1900 | AR8: 1900 | AS8: 1900 | AT8: 1900 | AU8: 1900 | AV8: 1900 | AW8: 1900 | AX8: 1900 | AY8: 1900 | AZ8: 1900 | BA8: 1900 | BB8: 1900 | BC8: 1900 | BD8: 1900 | BE8: 1900 | BF8: 1900 | BG8: 1900 | BH8: 1900 | BI8: 1900 | BJ8: 1900 | BK8: 1900 | BL8: 1900 | BM8: 1900 | BN8: 1900 | BO8: 1900 | BP8: 1900 | BQ8: 1900 | BR8: 1900 | BS8: 1900 | BT8: 1900 | BU8: 1900 | BV8: 1900 | BW8: 1900 | BX8: 1900 | BY8: 1900 | BZ8: =YEAR(BZ5) -> 1900 | CA8: 1900 | CB8: 1900 | CC8: 1900 | CD8: 1900 | CE8: 1900 | CF8: 1900 | CG8: 1900 | CH8: 1900 | CI8: 1900 | CJ8: 1900 | CK8: 1900 | CL8: 1900 | CM8: 1900 | CN8: 1900 | CO8: 1900 | CP8: 1900 | CQ8: 1900 | CR8: 1900 | CS8: 1900 | CT8: 1900 | CU8: 1900 | CV8: 1900 | CW8: 1900 | CX8: 1900
B10: Transferred Variables
D11: EBITDA to Semi-Annual | H11: USD | I11: =SUM(M11:XFD11) -> 0
D12: Working Captial Changes to Semi-Annual | H12: USD | I12: =SUM(M12:XFD12) ->  | M12: =SUMIF('Operation Monthly'!$14:$14,'Project Finance Semi-Annual'!M$5,'Operation Monthly'!99:99) ->  | N12: =SUMIF('Operation Monthly'!$14:$14,'Project Finance Semi-Annual'!N$5,'Operation Monthly'!99:99) -> 0 | O12: =SUMIF('Operation Monthly'!$14:$14,'Project Finance Semi-Annual'!O$5,'Operation Monthly'!99:99) -> 0 | P12: =SUMIF('Operation Monthly'!$14:$14,'Project Finance Semi-Annual'!P$5,'Operation Monthly'!99:99) -> 0 | Q12: =SUMIF('Operation Monthly'!$14:$14,'Project Finance Semi-Annual'!Q$5,'Operation Monthly'!99:99) -> 0 | R12: =SUMIF('Operation Monthly'!$14:$14,'Project Finance Semi-Annual'!R$5,'Operation Monthly'!99:99) -> 0 | S12: =SUMIF('Operation Monthly'!$14:$14,'Project Finance Semi-Annual'!S$5,'Operation Monthly'!99:99) -> 0 | T12: =SUMIF('Operation Monthly'!$14:$14,'Project Finance Semi-Annual'!T$5,'Operation Monthly'!99:99) -> 0 | U12: =SUMIF('Operation Monthly'!$14:$14,'Project Finance Semi-Annual'!U$5,'Operation Monthly'!99:99) -> 0 | V12: =SUMIF('Operation Monthly'!$14:$14,'Project Finance Semi-Annual'!V$5,'Operation Monthly'!99:99) -> 0 | W12: =SUMIF('Operation Monthly'!$14:$14,'Project Finance Semi-Annual'!W$5,'Operation Monthly'!99:99) -> 0 | X12: =SUMIF('Operation Monthly'!$14:$14,'Project Finance Semi-Annual'!X$5,'Operation Monthly'!99:99) -> 0 | Y12: =SUMIF('Operation Monthly'!$14:$14,'Project Finance Semi-Annual'!Y$5,'Operation Monthly'!99:99) -> 0 | Z12: =SUMIF('Operation Monthly'!$14:$14,'Project Finance Semi-Annual'!Z$5,'Operation Monthly'!99:99) -> 0 | AA12: =SUMIF('Operation Monthly'!$14:$14,'Project Finance Semi-Annual'!AA$5,'Operation Monthly'!99:99) -> 0 | AB12: =SUMIF('Operation Monthly'!$14:$14,'Project Finance Semi-Annual'!AB$5,'Operation Monthly'!99:99) -> 0 | AC12: =SUMIF('Operation Monthly'!$14:$14,'Project Finance Semi-Annual'!AC$5,'Operation Monthly'!99:99) -> 0 | AD12: =SUMIF('Operation Monthly'!$14:$14,'Project Finance Semi-Annual'!AD$5,'Operation Monthly'!99:99) -> 0 | AE12: =SUMIF('Operation Monthly'!$14:$14,'Project Finance Semi-Annual'!AE$5,'Operation Monthly'!99:99) -> 0 | AF12: =SUMIF('Operation Monthly'!$14:$14,'Project Finance Semi-Annual'!AF$5,'Operation Monthly'!99:99) -> 0 | AG12: =SUMIF('Operation Monthly'!$14:$14,'Project Finance Semi-Annual'!AG$5,'Operation Monthly'!99:99) -> 0 | AH12: =SUMIF('Operation Monthly'!$14:$14,'Project Finance Semi-Annual'!AH$5,'Operation Monthly'!99:99) -> 0 | AI12: =SUMIF('Operation Monthly'!$14:$14,'Project Finance Semi-Annual'!AI$5,'Operation Monthly'!99:99) -> 0 | AJ12: =SUMIF('Operation Monthly'!$14:$14,'Project Finance Semi-Annual'!AJ$5,'Operation Monthly'!99:99) -> 0 | AK12: =SUMIF('Operation Monthly'!$14:$14,'Project Finance Semi-Annual'!AK$5,'Operation Monthly'!99:99) -> 0 | AL12: =SUMIF('Operation Monthly'!$14:$14,'Project Finance Semi-Annual'!AL$5,'Operation Monthly'!99:99) -> 0 | AM12: =SUMIF('Operation Monthly'!$14:$14,'Project Finance Semi-Annual'!AM$5,'Operation Monthly'!99:99) -> 0 | AN12: =SUMIF('Operation Monthly'!$14:$14,'Project Finance Semi-Annual'!AN$5,'Operation Monthly'!99:99) -> 0 | AO12: =SUMIF('Operation Monthly'!$14:$14,'Project Finance Semi-Annual'!AO$5,'Operation Monthly'!99:99) -> 0 | AP12: =SUMIF('Operation Monthly'!$14:$14,'Project Finance Semi-Annual'!AP$5,'Operation Monthly'!99:99) -> 0 | AQ12: =SUMIF('Operation Monthly'!$14:$14,'Project Finance Semi-Annual'!AQ$5,'Operation Monthly'!99:99) -> 0 | AR12: =SUMIF('Operation Monthly'!$14:$14,'Project Finance Semi-Annual'!AR$5,'Operation Monthly'!99:99) -> 0 | AS12: =SUMIF('Operation Monthly'!$14:$14,'Project Finance Semi-Annual'!AS$5,'Operation Monthly'!99:99) -> 0 | AT12: =SUMIF('Operation Monthly'!$14:$14,'Project Finance Semi-Annual'!AT$5,'Operation Monthly'!99:99) -> 0 | AU12: =SUMIF('Operation Monthly'!$14:$14,'Project Finance Semi-Annual'!AU$5,'Operation Monthly'!99:99) -> 0 | AV12: =SUMIF('Operation Monthly'!$14:$14,'Project Finance Semi-Annual'!AV$5,'Operation Monthly'!99:99) -> 0 | AW12: =SUMIF('Operation Monthly'!$14:$14,'Project Finance Semi-Annual'!AW$5,'Operation Monthly'!99:99) -> 0 | AX12: =SUMIF('Operation Monthly'!$14:$14,'Project Finance Semi-Annual'!AX$5,'Operation Monthly'!99:99) -> 0 | AY12: =SUMIF('Operation Monthly'!$14:$14,'Project Finance Semi-Annual'!AY$5,'Operation Monthly'!99:99) -> 0 | AZ12: =SUMIF('Operation Monthly'!$14:$14,'Project Finance Semi-Annual'!AZ$5,'Operation Monthly'!99:99) -> 0 | BA12: =SUMIF('Operation Monthly'!$14:$14,'Project Finance Semi-Annual'!BA$5,'Operation Monthly'!99:99) -> 0 | BB12: =SUMIF('Operation Monthly'!$14:$14,'Project Finance Semi-Annual'!BB$5,'Operation Monthly'!99:99) -> 0 | BC12: =SUMIF('Operation Monthly'!$14:$14,'Project Finance Semi-Annual'!BC$5,'Operation Monthly'!99:99) -> 0 | BD12: =SUMIF('Operation Monthly'!$14:$14,'Project Finance Semi-Annual'!BD$5,'Operation Monthly'!99:99) -> 0 | BE12: =SUMIF('Operation Monthly'!$14:$14,'Project Finance Semi-Annual'!BE$5,'Operation Monthly'!99:99) -> 0 | BF12: =SUMIF('Operation Monthly'!$14:$14,'Project Finance Semi-Annual'!BF$5,'Operation Monthly'!99:99) -> 0 | BG12: =SUMIF('Operation Monthly'!$14:$14,'Project Finance Semi-Annual'!BG$5,'Operation Monthly'!99:99) -> 0 | BH12: =SUMIF('Operation Monthly'!$14:$14,'Project Finance Semi-Annual'!BH$5,'Operation Monthly'!99:99) -> 0 | BI12: =SUMIF('Operation Monthly'!$14:$14,'Project Finance Semi-Annual'!BI$5,'Operation Monthly'!99:99) -> 0 | BJ12: =SUMIF('Operation Monthly'!$14:$14,'Project Finance Semi-Annual'!BJ$5,'Operation Monthly'!99:99) -> 0 | BK12: =SUMIF('Operation Monthly'!$14:$14,'Project Finance Semi-Annual'!BK$5,'Operation Monthly'!99:99) -> 0 | BL12: =SUMIF('Operation Monthly'!$14:$14,'Project Finance Semi-Annual'!BL$5,'Operation Monthly'!99:99) -> 0 | BM12: =SUMIF('Operation Monthly'!$14:$14,'Project Finance Semi-Annual'!BM$5,'Operation Monthly'!99:99) -> 0 | BN12: =SUMIF('Operation Monthly'!$14:$14,'Project Finance Semi-Annual'!BN$5,'Operation Monthly'!99:99) -> 0 | BO12: =SUMIF('Operation Monthly'!$14:$14,'Project Finance Semi-Annual'!BO$5,'Operation Monthly'!99:99) -> 0 | BP12: =SUMIF('Operation Monthly'!$14:$14,'Project Finance Semi-Annual'!BP$5,'Operation Monthly'!99:99) -> 0 | BQ12: =SUMIF('Operation Monthly'!$14:$14,'Project Finance Semi-Annual'!BQ$5,'Operation Monthly'!99:99) -> 0 | BR12: =SUMIF('Operation Monthly'!$14:$14,'Project Finance Semi-Annual'!BR$5,'Operation Monthly'!99:99) -> 0 | BS12: =SUMIF('Operation Monthly'!$14:$14,'Project Finance Semi-Annual'!BS$5,'Operation Monthly'!99:99) -> 0 | BT12: =SUMIF('Operation Monthly'!$14:$14,'Project Finance Semi-Annual'!BT$5,'Operation Monthly'!99:99) -> 0 | BU12: =SUMIF('Operation Monthly'!$14:$14,'Project Finance Semi-Annual'!BU$5,'Operation Monthly'!99:99) -> 0 | BV12: =SUMIF('Operation Monthly'!$14:$14,'Project Finance Semi-Annual'!BV$5,'Operation Monthly'!99:99) -> 0 | BW12: =SUMIF('Operation Monthly'!$14:$14,'Project Finance Semi-Annual'!BW$5,'Operation Monthly'!99:99) -> 0 | BX12: =SUMIF('Operation Monthly'!$14:$14,'Project Finance Semi-Annual'!BX$5,'Operation Monthly'!99:99) -> 0 | BY12: =SUMIF('Operation Monthly'!$14:$14,'Project Finance Semi-Annual'!BY$5,'Operation Monthly'!99:99) -> 0 | BZ12: =SUMIF('Operation Monthly'!$14:$14,'Project Finance Semi-Annual'!BZ$5,'Operation Monthly'!99:99) -> 0 | CA12: =SUMIF('Operation Monthly'!$14:$14,'Project Finance Semi-Annual'!CA$5,'Operation Monthly'!99:99) -> 0 | CB12: =SUMIF('Operation Monthly'!$14:$14,'Project Finance Semi-Annual'!CB$5,'Operation Monthly'!99:99) -> 0 | CC12: =SUMIF('Operation Monthly'!$14:$14,'Project Finance Semi-Annual'!CC$5,'Operation Monthly'!99:99) -> 0 | CD12: =SUMIF('Operation Monthly'!$14:$14,'Project Finance Semi-Annual'!CD$5,'Operation Monthly'!99:99) -> 0 | CE12: =SUMIF('Operation Monthly'!$14:$14,'Project Finance Semi-Annual'!CE$5,'Operation Monthly'!99:99) -> 0 | CF12: =SUMIF('Operation Monthly'!$14:$14,'Project Finance Semi-Annual'!CF$5,'Operation Monthly'!99:99) -> 0 | CG12: =SUMIF('Operation Monthly'!$14:$14,'Project Finance Semi-Annual'!CG$5,'Operation Monthly'!99:99) -> 0 | CH12: =SUMIF('Operation Monthly'!$14:$14,'Project Finance Semi-Annual'!CH$5,'Operation Monthly'!99:99) -> 0 | CI12: =SUMIF('Operation Monthly'!$14:$14,'Project Finance Semi-Annual'!CI$5,'Operation Monthly'!99:99) -> 0 | CJ12: =SUMIF('Operation Monthly'!$14:$14,'Project Finance Semi-Annual'!CJ$5,'Operation Monthly'!99:99) -> 0 | CK12: =SUMIF('Operation Monthly'!$14:$14,'Project Finance Semi-Annual'!CK$5,'Operation Monthly'!99:99) -> 0 | CL12: =SUMIF('Operation Monthly'!$14:$14,'Project Finance Semi-Annual'!CL$5,'Operation Monthly'!99:99) -> 0 | CM12: =SUMIF('Operation Monthly'!$14:$14,'Project Finance Semi-Annual'!CM$5,'Operation Monthly'!99:99) -> 0 | CN12: =SUMIF('Operation Monthly'!$14:$14,'Project Finance Semi-Annual'!CN$5,'Operation Monthly'!99:99) -> 0 | CO12: =SUMIF('Operation Monthly'!$14:$14,'Project Finance Semi-Annual'!CO$5,'Operation Monthly'!99:99) -> 0 | CP12: =SUMIF('Operation Monthly'!$14:$14,'Project Finance Semi-Annual'!CP$5,'Operation Monthly'!99:99) -> 0 | CQ12: =SUMIF('Operation Monthly'!$14:$14,'Project Finance Semi-Annual'!CQ$5,'Operation Monthly'!99:99) -> 0 | CR12: =SUMIF('Operation Monthly'!$14:$14,'Project Finance Semi-Annual'!CR$5,'Operation Monthly'!99:99) -> 0 | CS12: =SUMIF('Operation Monthly'!$14:$14,'Project Finance Semi-Annual'!CS$5,'Operation Monthly'!99:99) -> 0 | CT12: =SUMIF('Operation Monthly'!$14:$14,'Project Finance Semi-Annual'!CT$5,'Operation Monthly'!99:99) -> 0 | CU12: =SUMIF('Operation Monthly'!$14:$14,'Project Finance Semi-Annual'!CU$5,'Operation Monthly'!99:99) -> 0 | CV12: =SUMIF('Operation Monthly'!$14:$14,'Project Finance Semi-Annual'!CV$5,'Operation Monthly'!99:99) -> 0 | CW12: =SUMIF('Operation Monthly'!$14:$14,'Project Finance Semi-Annual'!CW$5,'Operation Monthly'!99:99) -> 0 | CX12: =SUMIF('Operation Monthly'!$14:$14,'Project Finance Semi-Annual'!CX$5,'Operation Monthly'!99:99) -> 0
D13: Revenues | H13: USD | M13: =SUMIF('Operation Monthly'!$14:$14,'Project Finance Semi-Annual'!M$5,'Operation Monthly'!51:51) -> 0 | N13: =SUMIF('Operation Monthly'!$14:$14,'Project Finance Semi-Annual'!N$5,'Operation Monthly'!51:51) -> 0 | O13: =SUMIF('Operation Monthly'!$14:$14,'Project Finance Semi-Annual'!O$5,'Operation Monthly'!51:51) -> 0 | P13: =SUMIF('Operation Monthly'!$14:$14,'Project Finance Semi-Annual'!P$5,'Operation Monthly'!51:51) -> 0 | Q13: =SUMIF('Operation Monthly'!$14:$14,'Project Finance Semi-Annual'!Q$5,'Operation Monthly'!51:51) -> 0 | R13: =SUMIF('Operation Monthly'!$14:$14,'Project Finance Semi-Annual'!R$5,'Operation Monthly'!51:51) -> 0 | S13: =SUMIF('Operation Monthly'!$14:$14,'Project Finance Semi-Annual'!S$5,'Operation Monthly'!51:51) -> 0 | T13: =SUMIF('Operation Monthly'!$14:$14,'Project Finance Semi-Annual'!T$5,'Operation Monthly'!51:51) -> 0 | U13: =SUMIF('Operation Monthly'!$14:$14,'Project Finance Semi-Annual'!U$5,'Operation Monthly'!51:51) -> 0 | V13: =SUMIF('Operation Monthly'!$14:$14,'Project Finance Semi-Annual'!V$5,'Operation Monthly'!51:51) -> 0 | W13: =SUMIF('Operation Monthly'!$14:$14,'Project Finance Semi-Annual'!W$5,'Operation Monthly'!51:51) -> 0 | X13: =SUMIF('Operation Monthly'!$14:$14,'Project Finance Semi-Annual'!X$5,'Operation Monthly'!51:51) -> 0 | Y13: =SUMIF('Operation Monthly'!$14:$14,'Project Finance Semi-Annual'!Y$5,'Operation Monthly'!51:51) -> 0 | Z13: =SUMIF('Operation Monthly'!$14:$14,'Project Finance Semi-Annual'!Z$5,'Operation Monthly'!51:51) -> 0 | AA13: =SUMIF('Operation Monthly'!$14:$14,'Project Finance Semi-Annual'!AA$5,'Operation Monthly'!51:51) -> 0 | AB13: =SUMIF('Operation Monthly'!$14:$14,'Project Finance Semi-Annual'!AB$5,'Operation Monthly'!51:51) -> 0 | AC13: =SUMIF('Operation Monthly'!$14:$14,'Project Finance Semi-Annual'!AC$5,'Operation Monthly'!51:51) -> 0 | AD13: =SUMIF('Operation Monthly'!$14:$14,'Project Finance Semi-Annual'!AD$5,'Operation Monthly'!51:51) -> 0 | AE13: =SUMIF('Operation Monthly'!$14:$14,'Project Finance Semi-Annual'!AE$5,'Operation Monthly'!51:51) -> 0 | AF13: =SUMIF('Operation Monthly'!$14:$14,'Project Finance Semi-Annual'!AF$5,'Operation Monthly'!51:51) -> 0 | AG13: =SUMIF('Operation Monthly'!$14:$14,'Project Finance Semi-Annual'!AG$5,'Operation Monthly'!51:51) -> 0 | AH13: =SUMIF('Operation Monthly'!$14:$14,'Project Finance Semi-Annual'!AH$5,'Operation Monthly'!51:51) -> 0 | AI13: =SUMIF('Operation Monthly'!$14:$14,'Project Finance Semi-Annual'!AI$5,'Operation Monthly'!51:51) -> 0 | AJ13: =SUMIF('Operation Monthly'!$14:$14,'Project Finance Semi-Annual'!AJ$5,'Operation Monthly'!51:51) -> 0 | AK13: =SUMIF('Operation Monthly'!$14:$14,'Project Finance Semi-Annual'!AK$5,'Operation Monthly'!51:51) -> 0 | AL13: =SUMIF('Operation Monthly'!$14:$14,'Project Finance Semi-Annual'!AL$5,'Operation Monthly'!51:51) -> 0 | AM13: =SUMIF('Operation Monthly'!$14:$14,'Project Finance Semi-Annual'!AM$5,'Operation Monthly'!51:51) -> 0 | AN13: =SUMIF('Operation Monthly'!$14:$14,'Project Finance Semi-Annual'!AN$5,'Operation Monthly'!51:51) -> 0 | AO13: =SUMIF('Operation Monthly'!$14:$14,'Project Finance Semi-Annual'!AO$5,'Operation Monthly'!51:51) -> 0 | AP13: =SUMIF('Operation Monthly'!$14:$14,'Project Finance Semi-Annual'!AP$5,'Operation Monthly'!51:51) -> 0 | AQ13: =SUMIF('Operation Monthly'!$14:$14,'Project Finance Semi-Annual'!AQ$5,'Operation Monthly'!51:51) -> 0 | AR13: =SUMIF('Operation Monthly'!$14:$14,'Project Finance Semi-Annual'!AR$5,'Operation Monthly'!51:51) -> 0 | AS13: =SUMIF('Operation Monthly'!$14:$14,'Project Finance Semi-Annual'!AS$5,'Operation Monthly'!51:51) -> 0 | AT13: =SUMIF('Operation Monthly'!$14:$14,'Project Finance Semi-Annual'!AT$5,'Operation Monthly'!51:51) -> 0 | AU13: =SUMIF('Operation Monthly'!$14:$14,'Project Finance Semi-Annual'!AU$5,'Operation Monthly'!51:51) -> 0 | AV13: =SUMIF('Operation Monthly'!$14:$14,'Project Finance Semi-Annual'!AV$5,'Operation Monthly'!51:51) -> 0 | AW13: =SUMIF('Operation Monthly'!$14:$14,'Project Finance Semi-Annual'!AW$5,'Operation Monthly'!51:51) -> 0 | AX13: =SUMIF('Operation Monthly'!$14:$14,'Project Finance Semi-Annual'!AX$5,'Operation Monthly'!51:51) -> 0 | AY13: =SUMIF('Operation Monthly'!$14:$14,'Project Finance Semi-Annual'!AY$5,'Operation Monthly'!51:51) -> 0 | AZ13: =SUMIF('Operation Monthly'!$14:$14,'Project Finance Semi-Annual'!AZ$5,'Operation Monthly'!51:51) -> 0 | BA13: =SUMIF('Operation Monthly'!$14:$14,'Project Finance Semi-Annual'!BA$5,'Operation Monthly'!51:51) -> 0 | BB13: =SUMIF('Operation Monthly'!$14:$14,'Project Finance Semi-Annual'!BB$5,'Operation Monthly'!51:51) -> 0 | BC13: =SUMIF('Operation Monthly'!$14:$14,'Project Finance Semi-Annual'!BC$5,'Operation Monthly'!51:51) -> 0 | BD13: =SUMIF('Operation Monthly'!$14:$14,'Project Finance Semi-Annual'!BD$5,'Operation Monthly'!51:51) -> 0 | BE13: =SUMIF('Operation Monthly'!$14:$14,'Project Finance Semi-Annual'!BE$5,'Operation Monthly'!51:51) -> 0 | BF13: =SUMIF('Operation Monthly'!$14:$14,'Project Finance Semi-Annual'!BF$5,'Operation Monthly'!51:51) -> 0 | BG13: =SUMIF('Operation Monthly'!$14:$14,'Project Finance Semi-Annual'!BG$5,'Operation Monthly'!51:51) -> 0 | BH13: =SUMIF('Operation Monthly'!$14:$14,'Project Finance Semi-Annual'!BH$5,'Operation Monthly'!51:51) -> 0 | BI13: =SUMIF('Operation Monthly'!$14:$14,'Project Finance Semi-Annual'!BI$5,'Operation Monthly'!51:51) -> 0 | BJ13: =SUMIF('Operation Monthly'!$14:$14,'Project Finance Semi-Annual'!BJ$5,'Operation Monthly'!51:51) -> 0 | BK13: =SUMIF('Operation Monthly'!$14:$14,'Project Finance Semi-Annual'!BK$5,'Operation Monthly'!51:51) -> 0 | BL13: =SUMIF('Operation Monthly'!$14:$14,'Project Finance Semi-Annual'!BL$5,'Operation Monthly'!51:51) -> 0 | BM13: =SUMIF('Operation Monthly'!$14:$14,'Project Finance Semi-Annual'!BM$5,'Operation Monthly'!51:51) -> 0 | BN13: =SUMIF('Operation Monthly'!$14:$14,'Project Finance Semi-Annual'!BN$5,'Operation Monthly'!51:51) -> 0 | BO13: =SUMIF('Operation Monthly'!$14:$14,'Project Finance Semi-Annual'!BO$5,'Operation Monthly'!51:51) -> 0 | BP13: =SUMIF('Operation Monthly'!$14:$14,'Project Finance Semi-Annual'!BP$5,'Operation Monthly'!51:51) -> 0 | BQ13: =SUMIF('Operation Monthly'!$14:$14,'Project Finance Semi-Annual'!BQ$5,'Operation Monthly'!51:51) -> 0 | BR13: =SUMIF('Operation Monthly'!$14:$14,'Project Finance Semi-Annual'!BR$5,'Operation Monthly'!51:51) -> 0 | BS13: =SUMIF('Operation Monthly'!$14:$14,'Project Finance Semi-Annual'!BS$5,'Operation Monthly'!51:51) -> 0 | BT13: =SUMIF('Operation Monthly'!$14:$14,'Project Finance Semi-Annual'!BT$5,'Operation Monthly'!51:51) -> 0 | BU13: =SUMIF('Operation Monthly'!$14:$14,'Project Finance Semi-Annual'!BU$5,'Operation Monthly'!51:51) -> 0 | BV13: =SUMIF('Operation Monthly'!$14:$14,'Project Finance Semi-Annual'!BV$5,'Operation Monthly'!51:51) -> 0 | BW13: =SUMIF('Operation Monthly'!$14:$14,'Project Finance Semi-Annual'!BW$5,'Operation Monthly'!51:51) -> 0 | BX13: =SUMIF('Operation Monthly'!$14:$14,'Project Finance Semi-Annual'!BX$5,'Operation Monthly'!51:51) -> 0 | BY13: =SUMIF('Operation Monthly'!$14:$14,'Project Finance Semi-Annual'!BY$5,'Operation Monthly'!51:51) -> 0 | BZ13: =SUMIF('Operation Monthly'!$14:$14,'Project Finance Semi-Annual'!BZ$5,'Operation Monthly'!51:51) -> 0 | CA13: =SUMIF('Operation Monthly'!$14:$14,'Project Finance Semi-Annual'!CA$5,'Operation Monthly'!51:51) -> 0 | CB13: =SUMIF('Operation Monthly'!$14:$14,'Project Finance Semi-Annual'!CB$5,'Operation Monthly'!51:51) -> 0 | CC13: =SUMIF('Operation Monthly'!$14:$14,'Project Finance Semi-Annual'!CC$5,'Operation Monthly'!51:51) -> 0 | CD13: =SUMIF('Operation Monthly'!$14:$14,'Project Finance Semi-Annual'!CD$5,'Operation Monthly'!51:51) -> 0 | CE13: =SUMIF('Operation Monthly'!$14:$14,'Project Finance Semi-Annual'!CE$5,'Operation Monthly'!51:51) -> 0 | CF13: =SUMIF('Operation Monthly'!$14:$14,'Project Finance Semi-Annual'!CF$5,'Operation Monthly'!51:51) -> 0 | CG13: =SUMIF('Operation Monthly'!$14:$14,'Project Finance Semi-Annual'!CG$5,'Operation Monthly'!51:51) -> 0 | CH13: =SUMIF('Operation Monthly'!$14:$14,'Project Finance Semi-Annual'!CH$5,'Operation Monthly'!51:51) -> 0 | CI13: =SUMIF('Operation Monthly'!$14:$14,'Project Finance Semi-Annual'!CI$5,'Operation Monthly'!51:51) -> 0 | CJ13: =SUMIF('Operation Monthly'!$14:$14,'Project Finance Semi-Annual'!CJ$5,'Operation Monthly'!51:51) -> 0 | CK13: =SUMIF('Operation Monthly'!$14:$14,'Project Finance Semi-Annual'!CK$5,'Operation Monthly'!51:51) -> 0 | CL13: =SUMIF('Operation Monthly'!$14:$14,'Project Finance Semi-Annual'!CL$5,'Operation Monthly'!51:51) -> 0 | CM13: =SUMIF('Operation Monthly'!$14:$14,'Project Finance Semi-Annual'!CM$5,'Operation Monthly'!51:51) -> 0 | CN13: =SUMIF('Operation Monthly'!$14:$14,'Project Finance Semi-Annual'!CN$5,'Operation Monthly'!51:51) -> 0 | CO13: =SUMIF('Operation Monthly'!$14:$14,'Project Finance Semi-Annual'!CO$5,'Operation Monthly'!51:51) -> 0 | CP13: =SUMIF('Operation Monthly'!$14:$14,'Project Finance Semi-Annual'!CP$5,'Operation Monthly'!51:51) -> 0 | CQ13: =SUMIF('Operation Monthly'!$14:$14,'Project Finance Semi-Annual'!CQ$5,'Operation Monthly'!51:51) -> 0 | CR13: =SUMIF('Operation Monthly'!$14:$14,'Project Finance Semi-Annual'!CR$5,'Operation Monthly'!51:51) -> 0 | CS13: =SUMIF('Operation Monthly'!$14:$14,'Project Finance Semi-Annual'!CS$5,'Operation Monthly'!51:51) -> 0 | CT13: =SUMIF('Operation Monthly'!$14:$14,'Project Finance Semi-Annual'!CT$5,'Operation Monthly'!51:51) -> 0 | CU13: =SUMIF('Operation Monthly'!$14:$14,'Project Finance Semi-Annual'!CU$5,'Operation Monthly'!51:51) -> 0 | CV13: =SUMIF('Operation Monthly'!$14:$14,'Project Finance Semi-Annual'!CV$5,'Operation Monthly'!51:51) -> 0 | CW13: =SUMIF('Operation Monthly'!$14:$14,'Project Finance Semi-Annual'!CW$5,'Operation Monthly'!51:51) -> 0 | CX13: =SUMIF('Operation Monthly'!$14:$14,'Project Finance Semi-Annual'!CX$5,'Operation Monthly'!51:51) -> 0
